Workbook

Sheet LCC Rekenblad
H2: Life Cycle Cost Rekenblad - Gebouwschil en Energie | Z2: Datum | AA2: 2015-09-14 | AC2: Disclaimer: Berekeningen uitgevoerd met het 'LCC Rekenblad - Gebouwschil en Energie' zijn simulaties die de werkelijkheid slechts benaderen. 3E geeft geen garantie aangaande de resultaten en aanvaardt geen aansprakelijkheid voor het gebruik dat derden ervan maken.
Z3: Versie | AA3: v 1.2
B9: =IFERROR(IF(SUM(FA!K533:K534) > FA!K523, "Productie van elektriciteit door WKK en/of PV is overgedimensioneerd", ""), "") -> 
B10: =IF(Overview!$P$8 <> 0, "Opgepast, één of meerdere inputs werden gewijzigd ten opzichte van", "De huidige inputwaarden gelden voor") -> Opgepast, één of meerdere inputs werden gewijzigd ten opzichte van | G10: =Last_Scenario -> Scenario 1
B12: =IFERROR(IF(Sim!R48 <> 0, "Het rekenblad dient te worden herberekend (zie knop hierboven)", ""), "") -> 
B13: Algemene kenmerken van het gebouw
C16: Naam van het project
C17: Scenario
K19: Verliesoppervlaktes | U19: Gebouwschil
C20: Aantal bedden
C21: Elektriciteitsaansluiting
M22: Oriëntatie | N22: Opake delen (m²) | P22: Vensters (m²) | R22: Helling (°) | V22: Isolatie
C23: =IF( SUM(Overview!H14:H19) <> 100, "Som moet 100% zijn", "") -> Som moet 100% zijn | F23: Vloeroppervlakte (%)
C24: Kamers | G24: % | L24: Gevel | W24: =IF(Isolatie_Default = "eigen waarden", "Totale U-waarde", "Isolatie Type") -> Isolatie Type | Y24: =IF(Isolatie_Default = "eigen waarden", "Kost isolatie", "Isolatiedikte") -> Isolatiedikte | AA24: =IF(Isolatie_Default = "default waarden", "Totale U-waarde", "") -> Totale U-waarde
C25: Leefruimte / Eetzaal / Inkom | G25: % | M25: =VLOOKUP(Lists!E54, Lists!$E$57:$H$64, 3, FALSE) -> oost | V25: Gevel | X25: =IF(Isolatie_Default = "eigen waarden", "W/m²K", "") ->  | Z25: =IF(Isolatie_Default = "eigen waarden", "€/m²", "cm") -> cm | AA25: =IFERROR(IF(Isolatie_Default = "default waarden", Fixed!I56, ""), "") -> 1.643683143 | AB25: =IF(Isolatie_Default = "default waarden", "W/m²K", "") -> W/m²K
C26: Keuken / Kantoor / Leesruimte | G26: % | M26: =VLOOKUP(M25, Lists!$E$57:$H$64, 3, FALSE) -> zuid | V26: Dak | X26: =IF(Isolatie_Default = "eigen waarden", "W/m²K", "") ->  | Z26: =IF(Isolatie_Default = "eigen waarden", "€/m²", "cm") -> cm | AA26: =IFERROR(IF(Isolatie_Default = "default waarden", Fixed!I67, ""), "") -> 2.467206252 | AB26: =IF(Isolatie_Default = "default waarden", "W/m²K", "") -> W/m²K
C27: Verpleegruimte / Wasserij / Kine | G27: % | M27: =VLOOKUP(M26, Lists!$E$57:$H$64, 3, FALSE) -> west | V27: Vloer | X27: =IF(Isolatie_Default = "eigen waarden", "W/m²K", "") ->  | Z27: =IF(Isolatie_Default = "eigen waarden", "€/m²", "cm") -> cm | AA27: =IFERROR(IF(Isolatie_Default = "default waarden", IFERROR(ROUND(Fixed!I33, 2), "-") & " / " & IFERROR(ROUND(Fixed!I44, 2), "-") & " ", ""), "") -> - / 2,99 | AB27: =IF(Isolatie_Default = "default waarden", "W/m²K", "") -> W/m²K
C28: Gangen / Berging / Technisch | G28: %
C29: Overige | G29: % | L29: Dak | M29: =IF(E35=""," ",E35) ->  | V29: Ramen | AA29: =IF(Ramen_Default = "default waarden", 0.7 * Lists!F162 + 0.3 * Lists!F173 + 3 * Lists!F187,"") -> 1.91 | AB29: =IF(Ramen_Default = "default waarden", "W/m²K", "") -> W/m²K
M30: =IF( Lists!$E$83 = "zadeldak", VLOOKUP(Lists!$E$96, Lists!$E$57:$H$64, 4, FALSE), "") -> 
B31: Geometrie van het gebouw | V31: =IF(Ramen_Default = "eigen waarden", "Raam", "Glas") -> Glas | X31: =IF(Ramen_Default = "eigen waarden", "W/m²K", "") ->  | Z31: =IF(Ramen_Default = "eigen waarden", "€/m²", "") -> 
L32: Vloerplaat | V32: =IF(Ramen_Default = "eigen waarden", "g-waarde", "Kader") -> Kader | X32: =IF(Ramen_Default = "eigen waarden", "(-)", "") -> 
V33: =IF(Ramen_Default = "eigen waarden", "", "Psi-waarde") -> Psi-waarde | AA33: =IF(Ramen_Default = "default waarden", "g-waarde raam", "") -> g-waarde raam
C34: Volume | G34: m³ | V34: =IF(Ramen_Default = "eigen waarden", "", "Zon Type") -> Zon Type | AA34: =IF(Ramen_Default = "default waarden", Lists!F197, "") -> 0.52 | AB34: =IF(Ramen_Default = "default waarden","(-)", "") -> (-)
C35: Totaal vloeroppervlak | G35: m² | M35: =IF(VloerType = "boven kelder / parking", "percentage vloer boven kelder / parking (%)", "") -> 
M36: =IF(OR(Overview!H41 < 100, VloerType = "boven grond"), "geschatte omtrek vloerplaat boven volle grond (m)", "") -> geschatte omtrek vloerplaat boven volle grond (m) | V36: Zonnewering | W36: Type
C37: Dak type | W37: =IF(Zonnewering = "geen", "", "Locatie") -> 
B39: Speciale technieken en hernieuwbare energie | U39: Bewaren en inladen van Scenario's
C42: Verwarming | E42: Installatie verwarming | O42: =IF(Opwekking_Warmte = "WKK", "", IF(OR(Opwekking_Warmte = "pelletketel", Opwekking_Warmte = "gascondensatieketel", Opwekking_Warmte = "mazoutketel" ), "Rendement", "COP")) -> Rendement | V42: Scenario volgens de huidige inputwaarden | Y42: Laatst bewaarde scenario
E43: Piek installatie verwarming | O43: =IF( Opwekking_Warmte_NP = "gascondensatieketel", "Rendement", "") -> 
E44: Emissiesysteem verwarming | O44: =IFERROR(IF(OR(AND(Lists!E267 <> Lists!E271, Lists!E303 = Lists!E309), AND(Lists!E267 = Lists!E271, Lists!E303 <> Lists!E309), AND(Lists!E303 = "via de ventilatielucht", Lists!F330 = "nee")), "Kies een ander emissiesysteem", ""), "") -> 
C46: Warm tapwater | E46: Oppervlakte keuken | I46: m² | V46: =IF(Overview!$P$8 = 0, Overview!H$11 & " - " & Overview!H$12,"") ->  | Y46: =Overview!J$11 & " - " & Overview!J$12 -> -
E47: Installatie warm tapwater
E48: Piek installatie warm tapwater
E49: Opslag dmv boiler ?
E50: Layout gebouw | M50: =IF(Layout <> Lists!E441, Lists!H436, "") ->  | N50: m/kamer
E51: Isolatieniveau circulatieleiding
E52: Lengte tapleiding | I52: meter per tappunt
E53: Zonnecollectoren | O53: =IF(Opwekking_SWW_ZB = Lists!E375, "Collector opp. (m²)", "") ->  | R53: =IF(Opwekking_SWW_ZB = Lists!E375, "m²", "") ->  | V53: =IF(Overview!$P$8 = 0, Overview!H$11 & " - " & Overview!H$12, "") ->  | Y53: =Overview!K$11 & " - " & Overview!K$12 -> -
M54: =IFERROR( IF(AND(Opwekking_SWW_ZB = Lists!E375, Lists!G373 <> Lists!I373), "Het collectoroppervlak wordt gecorrigeerd tot", ""), "") ->  | Q54: =IFERROR(IF(AND(Opwekking_SWW_ZB = Lists!E375,Lists!G373 <> Lists!I373), Lists!I373, ""), "") ->  | R54: =IFERROR(IF(AND(Opwekking_SWW_ZB = Lists!E375, Lists!G373 <> Lists!I373), "m²", ""), "") -> 
Q56: =IF(Opwekking_Koude = "lucht-lucht warmtepomp", "COP", "EER") -> EER
C57: Koeling | E57: Installatie koeling | Q57: =Lists!G459 -> 
E58: Piek installatie koeling
E59: Emissiesysteem koeling | O59: =IF(OR(AND(Lists!E459 <> Lists!E465, Lists!E477 = Lists!E481), AND(Lists!E459 = Lists!E465, Lists!E477 <> Lists!E481)), "Kies een ander emissiesysteem", "") -> 
E60: Gekoelde vloeroppervlakte | I60: % | V60: =IF(Overview!$P$8 = 0, Overview!H$11 & " - " & Overview!H$12,"") ->  | Y60: =Overview!L$11 & " - " & Overview!L$12 -> -
C62: Ventilatie | E62: Type systeem
E63: Type regeling
E64: =IF( AND( Ventilatie_Systeem = "mechanische toevoer en afvoer (systeem D)", WTW = Lists!$E$557), "Rendement warmteterugwinning", "") ->  | I64: =IF( AND( Ventilatie_Systeem = "mechanische toevoer en afvoer (systeem D)", WTW = Lists!$E$557), "%", "") -> 
H66: Type lichtbron | L66: Regeling
C67: Verlichting | E67: =C24 -> Kamers | V67: =IF(Overview!$P$8 = 0, Overview!H$11 & " - " & Overview!H$12, "") ->  | Y67: =Overview!M$11 & " - " & Overview!M$12 -> -
E68: Leefruimte / Eetzaal / Inkom
E69: Keuken / Kantoor / Leesruimte
E70: Verpleegruimte / Wasserij / Kine
E71: Gangen / Berging / Technisch
E72: Overige
C74: Fotovoltaïsche energie | E74: Dimensionering | O74: =Lists!H573 -> 0 | P74: kWp | V74: =IF(Overview!$P$8 = 0, Overview!H$11 & " - " & Overview!H$12,"") ->  | Y74: =Overview!N$11 & " - " & Overview!N$12 -> -
E75: =IF(OR(DakType <> "plat dak", PV = Lists!E575), "", "Helling") ->  | I75: =IF(OR(DakType <> "plat dak", PV = Lists!E575), "", "°") -> 
E76: =IF(PV = Lists!E575, "", "Installatiejaar") -> 

Sheet Resultaten
H2: ='LCC Rekenblad'!H2:U3 & " - Resultaten" -> Life Cycle Cost Rekenblad - Gebouwschil en Energie - Resultaten | V2: ='LCC Rekenblad'!Z2 -> Datum | W2: ='LCC Rekenblad'!AA2 -> 2015-09-14
V3: ='LCC Rekenblad'!Z3 -> Versie | W3: ='LCC Rekenblad'!AA3 -> v 1.2
B6: Overzicht alle Scenario's
B29: ="Scenario 1 - " & Overview!J11 & " - " & Overview!J12 -> Scenario 1 - -
B51: ="Scenario 2 - " & Overview!K11 & " - " & Overview!K12 -> Scenario 2 - -
B73: ="Scenario 3 - " & Overview!L11 & " - " & Overview!L12 -> Scenario 3 - -
B95: ="Scenario 4 - " & Overview!M11 & " - " & Overview!M12 -> Scenario 4 - -
B117: ="Scenario 5 - " & Overview!N11 & " - " & Overview!N12 -> Scenario 5 - -

Sheet Lists (hidden)
A2: Algemeen
B4: Ja / Nee
E6: ja
E7: nee
B9: Projectnaam
A15: Bestemming
E17: woonzorgcentrum
E19: woonzorgcentrum
E20: ziekenhuis
A23: Type Aansluiting
E25: laagspanning
E27: laagspanning
E28: middenspanning
A30: Indeling
F32: opp %
E33: ='LCC Rekenblad'!C24 -> Kamers
E34: ='LCC Rekenblad'!C25 -> Leefruimte / Eetzaal / Inkom
E35: ='LCC Rekenblad'!C26 -> Keuken / Kantoor / Leesruimte
E36: ='LCC Rekenblad'!C27 -> Verpleegruimte / Wasserij / Kine
E37: ='LCC Rekenblad'!C28 -> Gangen / Berging / Technisch
E38: ='LCC Rekenblad'!C29 -> Overige
A42: Geometrie
E44: ='LCC Rekenblad'!C34 -> Volume | G44: m³
E45: ='LCC Rekenblad'!C35 -> Totaal vloeroppervlak | G45: m²
E46: ='LCC Rekenblad'!L32 -> Vloerplaat | G46: m²
E48: Aantal Bouwlagen | F48: =ROUND(F45 / F46, 0) -> 
A51: Oriëntatie
F53: ° | G53: gevel (+90°) | H53: dak (+180°) | I53: +90° | J53: +180° | K53: +270°
E54: noord | F54: =VLOOKUP($E$54, $E$57:$K$64, 2, FALSE) -> 180 | G54: =VLOOKUP($E$54, $E$57:$K$64, 3, FALSE) -> oost | H54: =VLOOKUP($E$54, $E$57:$K$64, 4, FALSE) -> zuid | I54: =VLOOKUP($E$54, $E$57:$K$64, 5, FALSE) -> -90 | J54: =VLOOKUP($E$54, $E$57:$K$64, 6, FALSE) -> 0 | K54: =VLOOKUP($E$54, $E$57:$K$64, 7, FALSE) -> 90
F56: ° | G56: gevel (+90°) | H56: dak (+180°) | I56: +90° | J56: +180° | K56: +270°
E57: noord | F57: 180 | G57: oost | H57: zuid | I57: -90 | J57: 0 | K57: 90
E58: noord-oost | F58: -135 | G58: zuid-oost | H58: zuid-west | I58: -45 | J58: 45 | K58: 135
E59: oost | F59: -90 | G59: zuid | H59: west | I59: 0 | J59: 90 | K59: 180
E60: zuid-oost | F60: -45 | G60: zuid-west | H60: noord-west | I60: 45 | J60: 135 | K60: -135
E61: zuid | F61: 0 | G61: west | H61: noord | I61: 90 | J61: 180 | K61: -90
E62: zuid-west | F62: 45 | G62: noord-west | H62: noord-oost | I62: 135 | J62: -135 | K62: -45
E63: west | F63: 90 | G63: noord | H63: oost | I63: 180 | J63: -90 | K63: 0
E64: noord-west | F64: 135 | G64: noord-oost | H64: zuid-oost | I64: -135 | J64: -45 | K64: 45
A69: Gevel
B71: Oriëntatie - Oppervlakte
F73: opake delen | G73: vensters
E74: =E54 -> noord
E75: ='LCC Rekenblad'!M25 -> oost
E76: ='LCC Rekenblad'!M26 -> zuid
E77: ='LCC Rekenblad'!M27 -> west
A79: Dak
B81: Dak Type
E83: plat dak
E85: plat dak
E86: hellend dak
E87: zadeldak
B89: Beschikbaarheid dak
E91: Beschikbaarheid dak | F91: 0.85
B93: Oriëntatie - Oppervlakte - Helling
F95: opake delen | G95: vensters | H95: helling | I95: oriëntatie
E96: zuid | H96: - | I96: =IFERROR(VLOOKUP(E96, $E$57:$K$64, 2, FALSE), 0) -> 0
E97: ='LCC Rekenblad'!$M$30 ->  | F97: - | G97: - | H97: - | I97: =IFERROR(VLOOKUP(E97, $E$57:$K$64, 2, FALSE), 0) -> 0
A99: Vloer
B101: Vloer Type
E104: boven grond
E106: boven grond
E107: boven kelder / parking
B109: Vloer Oppervlakte
F111: %
E112: percentage boven kelder/parking
F114: m
E115: geschatte perimeter boven volle grond
A117: Isolatie Type
B119: Isolatie Default
E121: default waarden
E123: default waarden
E124: eigen waarden
C126: Mogelijke Isolatietypes
F128: λ-waarde (W/mK) | G128: €/cm/m²
E129: PUR | F129: 0.027 | G129: 3.24
E130: MW | F130: 0.0375 | G130: 2.62
E131: EPS | F131: 0.04 | G131: 3.13
E132: XPS | F132: 0.03 | G132: 3.31
E133: Cellulose | F133: 0.039 | G133: 2.74
C135: Isolatie Type
H136: in formula (cause the thicknesses can change)
F137: Type | G137: Dikte (cm) | H137: €/m² | I137: U-waarde isolatie(W/m²K)
E138: Isolatie Gevel | F138: PUR | H138: =G138 * VLOOKUP(F138, $E$129:$G$133, 3, FALSE) ->  | I138: =VLOOKUP(F138, $E$129:$G$133, 2, FALSE) / (G138 / 100) -> 
E139: Isolatie Dak | F139: PUR | H139: =G139 * VLOOKUP(F139, $E$129:$G$133, 3, FALSE) ->  | I139: =VLOOKUP(F139, $E$129:$G$133, 2, FALSE) / (G139 / 100) -> 
E140: Isolatie Vloerplaat | F140: PUR | H140: =G140 * VLOOKUP(F140, $E$129:$G$133, 3, FALSE) ->  | I140: =VLOOKUP(F140, $E$129:$G$133, 2, FALSE) / (G140 / 100) -> 
B142: Isolatie Eigen Waarden
F144: W/m²K | G144: €/m²
E145: U-waarde Gevel | F145: 1.00 | G145: -
E146: U-waarde Dak | F146: 1.00 | G146: -
E147: U-waarde Vloerplaat | F147: 1.00 | G147: -
A150: Ramen
B152: Ramen Default
E154: default waarden
E156: default waarden
E157: eigen waarden
C159: Glas Type
F161: Ug | G161: €/m²
E162: dubbel glas Ug = 1.1 | F162: =VLOOKUP($E162, $E$165:$G$168, 2, FALSE) -> 1.1 | G162: =VLOOKUP($E162, $E$165:$G$168, 3, FALSE) -> 84.7
F164: Ug | G164: €/m²
E165: dubbel glas Ug = 1.1 | F165: 1.1 | G165: 84.7
E166: dubbel glas Ug = 1.0 | F166: 1 | G166: 87
E167: dubbel glas Ug = 0.9 | F167: 0.9 | G167: 100
E168: drievoudig glas Ug = 0.6 | F168: 0.6 | G168: 138.45
C170: Kader Type
F172: Up | G172: €/m²
E173: aluminium Up = 3.0 | F173: =VLOOKUP($E173, $E$176:$G$182, 2, FALSE) -> 3 | G173: =VLOOKUP($E173, $E$176:$G$182, 3, FALSE) -> 345
F175: Up | G175: €/m²
E176: aluminium Up = 3.0 | F176: 3 | G176: 345
E177: aluminium Up = 2.4 | F177: 2.4 | G177: 365
E178: aluminium Up = 1.7 | F178: 1.7 | G178: 395
E179: aluminium Up = 0.8 | F179: 0.8 | G179: 454
E180: hout | F180: 1.5 | G180: 389
E181: hout - aluminium | F181: 1.5 | G181: 468.5
E182: PVC | F182: 1.3 | G182: 219
C184: Thermische Onderbreking
F186: Psi | G186: €/m²
E187: zonder thermische onderbreking | F187: =VLOOKUP($E187, $E$190:$G$191, 2, FALSE) -> 0.08 | G187: =VLOOKUP($E187, $E$190:$G$191, 3, FALSE) -> 0
F189: Psi | G189: €/m²
E190: zonder thermische onderbreking | F190: 0.08 | G190: 0
E191: met thermische onderbreking | F191: 0.035 | G191: 10
C194: Zon Type
F196: g-waarde | G196: LTA-waarde | H196: €/m²
E197: niet-zonwerend glas | F197: =VLOOKUP(E162, $E$204:$G$207, (IF(E197 = E200, 2, 3)), FALSE) -> 0.52 | G197: =VLOOKUP(E162, $E$210:$G$213, (IF(E197 = E200, 2, 3)), FALSE) -> 0.7 | H197: =VLOOKUP($E197, $E$200:$F$201, 2, FALSE) -> 0
F199: €/m²
E200: niet-zonwerend glas | F200: 0
E201: zonwerend glas | F201: 44
E203: g-waarde | F203: =E200 -> niet-zonwerend glas | G203: =E201 -> zonwerend glas
E204: =E165 -> dubbel glas Ug = 1.1 | F204: 0.52 | G204: 0.28
E205: =E166 -> dubbel glas Ug = 1.0 | F205: 0.5 | G205: 0.265
E206: =E167 -> dubbel glas Ug = 0.9 | F206: 0.47 | G206: 0.25
E207: =E168 -> drievoudig glas Ug = 0.6 | F207: 0.61 | G207: 0.35
E209: LTA | F209: =F203 -> niet-zonwerend glas | G209: =G203 -> zonwerend glas
E210: =E204 -> dubbel glas Ug = 1.1 | F210: 0.7 | G210: 0.3
E211: =E205 -> dubbel glas Ug = 1.0 | F211: 0.69 | G211: 0.29
E212: =E206 -> dubbel glas Ug = 0.9 | F212: 0.68 | G212: 0.25
E213: =E207 -> drievoudig glas Ug = 0.6 | F213: 0.65 | G213: 0.35
B215: Ramen Eigen Waarden
F216: Uw | G216: g-waarde | H216: LTA-waarde | I216: €/m²
E217: Eigenschappen raam | F217: 5.00 | G217: 1.00 | H217: =FORECAST((G217 / 1), $F$220:$F$233, $E$220:$E$233) -> 1.121842105 | I217: -
E219: g-waarde | F219: LTA-waarde
E220: 0.85 | F220: 0.9
E221: 0.8
E222: 0.75 | F222: 0.8
E223: 0.7
E224: 0.65
E225: 0.6 | F225: 0.73
E226: 0.55
E227: 0.5 | F227: 0.7
E228: 0.45 | F228: 0.68
E229: 0.4 | F229: 0.55
E230: 0.35
E231: 0.3 | F231: 0.25
E232: 0.25 | F232: 0.25
E233: 0.2
A236: Zonnewering
B238: Type Zonnewering
F240: Fc | H240: €/m²
E241: geen | F241: =VLOOKUP($E241, $E$244:$H$249, 2, FALSE) -> 1 | G241: =VLOOKUP($E241, $E$244:$H$249, 3, FALSE) -> NA | H241: =VLOOKUP($E241, $E$244:$H$249, 4, FALSE) -> 0
F243: Fc | H243: €/m²
E244: geen | F244: 1 | G244: NA | H244: 0
E245: binnen - manuele bediening | F245: 0.9 | G245: manual | H245: 73
E246: binnen - elektronische bediening - geen sturing | F246: 0.9 | G246: manual | H246: 200
E247: buiten - elektronische bediening - geen sturing | F247: 0.5 | G247: manual | H247: 250
E248: buiten - elektronische bediening - sturing | F248: 0.5 | G248: automatic | H248: 350
E249: structurele zonnewering in het vlak | F249: 0.5 | G249: NA | H249: 295
B251: Locatie Zonnewering
F253: van | G253: tot
E254: overal | F254: =VLOOKUP($E254, $E$257:$G$260, 2, FALSE) -> -180 | G254: =VLOOKUP($E254, $E$257:$G$260, 3, FALSE) -> 180
F256: van | G256: tot
E257: zuid-oost tot zuid-west | F257: -45 | G257: 45
E258: oost tot west | F258: -90 | G258: 90
E259: noord-oost tot noord-west | F259: -135 | G259: 135
E260: overal | F260: -180 | G260: 180
A262: Verwarmingssytseem
B264: Installatie Preferent
F266: rendement/COP
E267: gascondensatieketel
E269: gascondensatieketel
E270: pelletketel
E271: lucht-lucht warmtepomp
E272: lucht-water warmtepomp
E273: bodem-water warmtepomp
E274: water-water warmtepomp
E275: WKK
E277: gascondensatieketel | F277: Condenserende ketel | G277: Aardgas
E278: pelletketel | F278: Niet condenserende ketel | G278: Hout
E279: lucht-lucht warmtepomp | F279: Warmtepomp | G279: Elektriciteit
E280: lucht-water warmtepomp | F280: Warmtepomp | G280: Elektriciteit
E281: bodem-water warmtepomp | F281: Warmtepomp | G281: Elektriciteit
E282: water-water warmtepomp | F282: Warmtepomp | G282: Elektriciteit
E283: WKK | F283: Externe warmtelevering | G283: Aardgas
B285: Installatie Niet Preferent
F286: rendement
E287: geen
E289: geen
E290: gascondensatieketel
E292: gascondensatieketel | F292: Condenserende ketel | G292: Aardgas
E293: geen
E296: lucht-water warmtepomp | F296: enkel buitenlucht | G296: water
E297: bodem-water warmtepomp | F297: bodem | G297: water
... 215 more rows

Sheet Overview (hidden)
E2: Scenario Nummer | H2: 1 | J2: Last saved or loaded scenario | L2: ="Scenario " & Scenario_Nummer -> Scenario 1
E3: Back-up Current Scenario | H3: 2 | J3: Index last saved or loaded scenario | L3: =MATCH(Last_Scenario, $J$10:$N$10, 0) -> 1
E4: Reference Column | H4: =I8 + Scenario_Nummer -> 10 | J4: Scenario Column | L4: =HLOOKUP(Input_Column, $I$8:$Q$9, 2, FALSE) -> J
E5: Scenario Input Start Row | H5: =$I$11 -> 11
E6: Scenario Input End Row | H6: =$I$105 -> 105
A8: Input | I8: =COLUMN(I10) -> 9 | J8: 10 | K8: 11 | L8: 12 | M8: 13 | N8: 14 | P8: =IFERROR(SUM(P11:P105), 1) -> 56
I9: I | J9: J | K9: K | L9: L | M9: M | N9: N | O9: O | P9: P
E10: Parameter | F10: Referentie | G10: Lijst | H10: Waarde | I10: Rijnummer | J10: Scenario 1 | K10: Scenario 2 | L10: Scenario 3 | M10: Scenario 4 | N10: Scenario 5 | P10: ≠ met laatste scenario
E11: Naam Project | F11: TextBox1 | H11: =Lists!E11 ->  | I11: =ROW(E11) -> 11 | P11: =IF(H11 = INDEX(J11:N11, $L$3), 0, 1) -> 0
E12: Naam Scenario Variant | F12: TextBox48 | H12: =Lists!F11 ->  | I12: =ROW(E12) -> 12 | P12: 0
E13: Aansluiting | F13: ComboBox37 | G13: Aansluiting_Lijst | H13: =Lists!E$25 -> laagspanning | I13: =ROW(E13) -> 13 | P13: 1
E14: ="Oppervlaktepercentage " & Lists!E33 -> Oppervlaktepercentage Kamers | F14: TextBox41 | H14: =IFERROR(Lists!F33 / 1, 0) -> 0 | I14: =ROW(E14) -> 14 | P14: 0
E15: ="Oppervlaktepercentage " & Lists!E34 -> Oppervlaktepercentage Leefruimte / Eetzaal / Inkom | F15: TextBox39 | H15: =IFERROR(Lists!F34 / 1, 0) -> 0 | I15: =ROW(E15) -> 15 | P15: 0
E16: ="Oppervlaktepercentage " & Lists!E35 -> Oppervlaktepercentage Keuken / Kantoor / Leesruimte | F16: TextBox52 | H16: =IFERROR(Lists!F35 / 1, 0) -> 0 | I16: 16 | P16: 0
E17: ="Oppervlaktepercentage " & Lists!E36 -> Oppervlaktepercentage Verpleegruimte / Wasserij / Kine | F17: TextBox53 | H17: =IFERROR(Lists!F36 / 1, 0) -> 0 | I17: 17 | P17: 0
E18: ="Oppervlaktepercentage " & Lists!E37 -> Oppervlaktepercentage Gangen / Berging / Technisch | F18: TextBox40 | H18: =IFERROR(Lists!F37 / 1, 0) -> 0 | I18: 18 | P18: 0
E19: ="Oppervlaktepercentage " & Lists!E38 -> Oppervlaktepercentage Overige | F19: TextBox54 | H19: =IFERROR(Lists!F38 / 1, 0) -> 0 | I19: 19 | P19: 0
E20: Volume | F20: TextBox2 | H20: =IFERROR(Lists!F$44 / 1, 0) -> 0 | I20: 20 | P20: 0
E21: Totaal Vloeroppervlak | F21: TextBox3 | H21: =IFERROR(Lists!F$45 / 1, 0) -> 0 | I21: 21 | P21: 0
E22: Daktype | F22: ComboBox_DakType | G22: DakType_Lijst | H22: =Lists!E$83 -> plat dak | I22: =ROW(E22) -> 22 | P22: 1
E23: Voorgevel Oriëntatie | F23: ComboBox_Oriëntatie | G23: Oriëntatie_Lijst | H23: =Lists!E$54 -> noord | I23: 23 | P23: 1
E24: Gevel Opaak Oriëntatie 1 | F24: TextBox4 | H24: =IFERROR(Lists!F$74 / 1, 0) -> 0 | I24: 24 | P24: 0
E25: Gevel Opaak Oriëntatie 2 | F25: TextBox5 | H25: =IFERROR(Lists!F$75 / 1, 0) -> 0 | I25: 25 | P25: 0
E26: Gevel Opaak Oriëntatie 3 | F26: TextBox6 | H26: =IFERROR(Lists!F$76 / 1, 0) -> 0 | I26: 26 | P26: 0
E27: Gevel Opaak Oriëntatie 4 | F27: TextBox7 | H27: =IFERROR(Lists!F$77 / 1, 0) -> 0 | I27: 27 | P27: 0
E28: Gevel Venster Oriëntatie 1 | F28: TextBox8 | H28: =IFERROR(Lists!G$74 / 1, 0) -> 0 | I28: 28 | P28: 0
E29: Gevel Venster Oriëntatie 2 | F29: TextBox9 | H29: =IFERROR(Lists!G$75 / 1, 0) -> 0 | I29: 29 | P29: 0
E30: Gevel Venster Oriëntatie 3 | F30: TextBox10 | H30: =IFERROR(Lists!G$76 / 1, 0) -> 0 | I30: 30 | P30: 0
E31: Gevel Venster Oriëntatie 4 | F31: TextBox11 | H31: =IFERROR(Lists!G$77 / 1, 0) -> 0 | I31: 31 | P31: 0
E32: Dak Oriëntatie | F32: ComboBox15 | G32: Oriëntatie_Lijst | H32: =Lists!E$96 -> zuid | I32: 32 | P32: 1
E33: Dak Opaak Oriëntatie 1 | F33: TextBox12 | H33: =IFERROR(Lists!F$96 / 1, 0) -> 0 | I33: 33 | P33: 0
E34: Dak Opaak Oriëntatie 2 | F34: TextBox16 | H34: =IFERROR(Lists!F$97 / 1, 0) -> 0 | I34: 34 | P34: 0
E35: Dak Venster Oriëntatie 1 | F35: TextBox13 | H35: =IFERROR(Lists!G$96 / 1, 0) -> 0 | I35: 35 | P35: 0
E36: Dak Venster Oriëntatie 2 | F36: TextBox29 | H36: =IFERROR(Lists!G$97 / 1, 0) -> 0 | I36: 36 | P36: 0
E37: Dak Helling Oriëntatie 1 | F37: TextBox14 | H37: =IFERROR(Lists!H$96 / 1, 0) -> 0 | I37: 37 | P37: 0
E38: Dak Helling Oriëntatie 2 | F38: TextBox30 | H38: =IFERROR(Lists!H$97 / 1, 0) -> 0 | I38: 38 | P38: 0
E39: Vloerplaat Oppervlak | F39: TextBox15 | H39: =IFERROR(Lists!F$46 / 1, 0) -> 0 | I39: 39 | P39: 0
E40: Vloerplaat Type | F40: ComboBox6 | G40: VloerType_Lijst | H40: =Lists!E$104 -> boven grond | I40: 40 | P40: 1
E41: percentage vloer boven kelder / parking (%) | F41: TextBox24 | H41: =IFERROR(Lists!F$112 / 1, 0) -> 0 | I41: 41 | P41: 0
E42: geschatte perimeter boven volle grond | F42: TextBox33 | H42: =IFERROR(Lists!F115 / 1, 0) -> 0 | I42: 42 | P42: =IF(H42 = INDEX(J42:N42, $L$3), 0, 1) -> 0
E43: Isolatie Default | F43: ComboBox19 | G43: Isolatie_Default_Lijst | H43: =Lists!E$121 -> default waarden | I43: 43 | P43: 1
E44: Isolatie Type Gevel | F44: ComboBox3 | G44: IsolatieType_Lijst | H44: =Lists!F138 -> PUR | I44: 44 | P44: 1
E45: Isolatie Type Dak | F45: ComboBox4 | G45: IsolatieType_Lijst | H45: =Lists!F139 -> PUR | I45: 45 | P45: 1
E46: Isolatie Type Vloerplaat | F46: ComboBox5 | G46: IsolatieType_Lijst | H46: =Lists!F140 -> PUR | I46: 46 | P46: 1
E47: Isolatie Dikte Gevel | F47: TextBox19 | H47: =IFERROR(Lists!G138 / 1, 0) -> 0 | I47: 47 | P47: 0
E48: Isolatie Dikte Dak | F48: TextBox20 | H48: =IFERROR(Lists!G139 / 1, 0) -> 0 | I48: 48 | P48: 0
E49: Isolatie Dikte Vloerplaat | F49: TextBox21 | H49: =IFERROR(Lists!G140 / 1, 0) -> 0 | I49: 49 | P49: 0
E50: U-waarde Gevel | F50: TextBox35 | H50: =IFERROR(Lists!F145 / 1, 1) -> 1 | I50: 50 | P50: 1
E51: U-waarde Dak | F51: TextBox36 | H51: =IFERROR(Lists!F146 / 1, 1) -> 1 | I51: 51 | P51: 1
E52: U-waarde Vloerplaat | F52: TextBox37 | H52: =IFERROR(Lists!F147 / 1, 1) -> 1 | I52: 52 | P52: 1
E53: Prijs Gevel | F53: TextBox17 | H53: =IFERROR(Lists!G145 / 1, 0) -> 0 | I53: 53 | P53: 0
E54: Prijs Dak | F54: TextBox18 | H54: =IFERROR(Lists!G146 / 1, 0) -> 0 | I54: 54 | P54: 0
E55: Prijs Vloerplaat | F55: TextBox49 | H55: =IFERROR(Lists!G147 / 1, 0) -> 0 | I55: 55 | P55: 0
E56: Ramen Default | F56: ComboBox18 | G56: Ramen_Default_Lijst | H56: =Lists!E$154 -> default waarden | I56: 56 | P56: 1
E57: Glas Type | F57: ComboBox7 | G57: GlasType_Lijst | H57: =Lists!E$162 -> dubbel glas Ug = 1.1 | I57: 57 | P57: 1
E58: Kader Type | F58: ComboBox1 | G58: KaderType_Lijst | H58: =Lists!E$173 -> aluminium Up = 3.0 | I58: 58 | P58: 1
E59: Thermische Onderbreking Type | F59: ComboBox26 | G59: ThermischeOnderbreking_Lijst | H59: =Lists!E$187 -> zonder thermische onderbreking | I59: 59 | P59: 1
E60: Zon Type | F60: ComboBox17 | G60: g_Waarde_Lijst | H60: =Lists!E$197 -> niet-zonwerend glas | I60: 60 | P60: 1
E61: U-waarde raam (W/m²K) | F61: TextBox32 | H61: =IFERROR(Lists!F217 / 1, 5) -> 5 | I61: 61 | P61: 1
E62: g-waarde | F62: TextBox34 | H62: =IFERROR(Lists!G217 / 1, 1) -> 1 | I62: 62 | P62: 1
E63: Prijs Raam | F63: TextBox50 | H63: =IFERROR(Lists!I217 / 1, 0) -> 0 | I63: 63 | P63: 0
E64: Type Zonnewering | F64: ComboBox8 | G64: Zonnewering_Lijst | H64: =Lists!E$241 -> geen | I64: 64 | P64: 1
E65: Locatie Zonnewering | F65: ComboBox2 | G65: Zonnewering_Locatie_Lijst | H65: =Lists!E$254 -> overal | I65: 65 | P65: 1
E66: Opwekking Warmte P | F66: ComboBox10 | G66: Opwekking_Warmte_Lijst | H66: =Lists!E$267 -> gascondensatieketel | I66: 66 | P66: 1
E67: WarmteP η/COP | F67: TextBox22 | H67: =IFERROR(Lists!F$267 / 1, 1) -> 1 | I67: 67 | P67: 1
E68: Opwekking Warmte NP | F68: ComboBox11 | G68: Opwekking_Warmte_NP_Lijst | H68: =Lists!E$287 -> geen | I68: 68 | P68: 1
E69: WarmteNP η/COP | F69: TextBox25 | H69: =IFERROR(Lists!F$287 / 1, 1) -> 1 | I69: 69 | P69: 1
E70: Emissie Warmte NP | F70: ComboBox9 | G70: Emissie_Warmte_Lijst | H70: =Lists!E$303 -> radiatoren regime 70/50°C | I70: 70 | P70: 1
E71: Opwekking Koude | F71: ComboBox29 | G71: Opwekking_Koude_Lijst | H71: =Lists!E$459 -> compressiekoelmachine | I71: 71 | P71: 1
E72: Koude η/COP | F72: TextBox27 | H72: =IFERROR(Lists!F$459 / 1, 1) -> 2.8 | I72: 72 | P72: 1
E73: Opwekking Koude NP | F73: ComboBox12 | G73: Opwekking_Koude_NP_Lijst | H73: =Lists!E$470 -> geen | I73: 73 | P73: 1
E74: KoudeNP η/COP | F74: TextBox26 | H74: =IFERROR(Lists!F$470 / 1, 1) -> 2 | I74: 74 | P74: =IF(H74 = INDEX(J74:N74, $L$3), 0, 1) -> 1
E75: Emissie Koude NP | F75: ComboBox30 | G75: Emissie_Koude_Lijst | H75: =Lists!E$477 -> koelplafonds | I75: 75 | P75: 1
E76: Gekoelde Vloeroppervlakte | F76: TextBox38 | H76: =IFERROR(Lists!E485 / 1, 100) -> 100 | I76: 76 | P76: 1
E77: ="Lichtbron " & Lists!E33 -> Lichtbron Kamers | F77: ComboBox20 | G77: Lichtbron_Lijst | H77: =Lists!F510 -> Compact Fluo | I77: 77 | P77: 1
E78: ="Lichtbron " & Lists!E34 -> Lichtbron Leefruimte / Eetzaal / Inkom | F78: ComboBox21 | G78: Lichtbron_Lijst | H78: =Lists!F511 -> Compact Fluo | I78: 78 | P78: 1
E79: ="Lichtbron " & Lists!E35 -> Lichtbron Keuken / Kantoor / Leesruimte | F79: ComboBox38 | G79: Lichtbron_Lijst | H79: =Lists!F512 -> Compact Fluo | I79: 79 | P79: 1
E80: ="Lichtbron " & Lists!E36 -> Lichtbron Verpleegruimte / Wasserij / Kine | F80: ComboBox39 | G80: Lichtbron_Lijst | H80: =Lists!F513 -> Compact Fluo | I80: 80 | P80: 1
E81: ="Lichtbron " & Lists!E37 -> Lichtbron Gangen / Berging / Technisch | F81: ComboBox23 | G81: Lichtbron_Lijst | H81: =Lists!F514 -> Compact Fluo | I81: 81 | P81: 1
E82: ="Lichtbron " & Lists!E38 -> Lichtbron Overige | F82: ComboBox40 | G82: Lichtbron_Lijst | H82: =Lists!F515 -> Compact Fluo | I82: 82 | P82: 1
E83: ="Regeling " & Lists!E33 -> Regeling Kamers | F83: ComboBox13 | G83: Verlichting_Regeling_Lijst | H83: =Lists!G510 -> geen regeling | I83: 83 | P83: 1
E84: ="Regeling " & Lists!E34 -> Regeling Leefruimte / Eetzaal / Inkom | F84: ComboBox24 | G84: Verlichting_Regeling_Lijst | H84: =Lists!G511 -> geen regeling | I84: 84 | P84: 1
E85: ="Regeling " & Lists!E35 -> Regeling Keuken / Kantoor / Leesruimte | F85: ComboBox41 | G85: Verlichting_Regeling_Lijst | H85: =Lists!G512 -> geen regeling | I85: 85 | P85: 1
E86: ="Regeling " & Lists!E36 -> Regeling Verpleegruimte / Wasserij / Kine | F86: ComboBox42 | G86: Verlichting_Regeling_Lijst | H86: =Lists!G513 -> geen regeling | I86: 86 | P86: 1
E87: ="Regeling " & Lists!E37 -> Regeling Gangen / Berging / Technisch | F87: ComboBox25 | G87: Verlichting_Regeling_Lijst | H87: =Lists!G514 -> geen regeling | I87: 87 | P87: 1
E88: ="Regeling " & Lists!E38 -> Regeling Overige | F88: ComboBox43 | G88: Verlichting_Regeling_Lijst | H88: =Lists!G515 -> geen regeling | I88: 88 | P88: 1
E89: Ventilatie Type | F89: ComboBox31 | G89: Ventilatie_Lijst | H89: =Lists!E$538 -> mechanische afvoer (systeem C) | I89: =ROW(E89) -> 89 | P89: 1
E90: Ventilatie Toerenregeling | F90: ComboBox32 | G90: Ventilatie_Toerenregeling_Lijst | H90: =Lists!E$546 -> zonder automatische toerenregeling | I90: =ROW(E90) -> 90 | P90: 1
E91: WTW Rendement | F91: TextBox28 | H91: =IFERROR(Lists!H$538 / 1, 0) -> 0 | I91: 91 | P91: 0
E92: Aantal Bedden | F92: TextBox42 | H92: =IFERROR(Lists!F$336 / 1, 0) -> 0 | I92: =ROW(E92) -> 92 | P92: 0
E93: Oppervlakte Keuken | F93: TextBox51 | H93: =IFERROR(Lists!F$337 / 1, 0) -> 0 | I93: =ROW(E93) -> 93 | P93: 0
E94: Opwekking SWW P | F94: ComboBox27 | G94: Opwekking_SWW_Lijst | H94: =Lists!E$342 -> gascondensatieketel | I94: 94 | P94: 1
E95: Opwekking SWW NP | F95: ComboBox28 | G95: Opwekking_SWW_NP_Lijst | H95: =Lists!E$363 -> geen | I95: 95 | P95: =IF(H95 = INDEX(J95:N95, $L$3), 0, 1) -> 1
E96: Opwekking SWW ZB | F96: ComboBox36 | G96: Opwekking_SWW_ZB_Lijst | H96: =Opwekking_SWW_ZB -> zonder zonnecollectoren | I96: 96 | P96: 1
E97: Collector Oppervlak Zonneboiler | F97: TextBox46 | H97: =IFERROR(Lists!F373 / 1, 0) -> 0 | I97: 97 | P97: 0
E98: Boiler ? | F98: ComboBox35 | G98: Ja_Nee_Lijst | H98: =Lists!G$342 -> ja | I98: 98 | P98: 1
E99: Layout | F99: ComboBox14 | G99: Layout_Lijst | H99: =Lists!E436 -> onbekend | I99: 99 | P99: 1
E100: Lengte circulatieleiding | F100: TextBox58 | H100: =IFERROR(Lists!G$436 / 1, 20) -> 20 | I100: =ROW(E100) -> 100 | P100: 1
E101: Isolatieniveau circulatieleiding | F101: ComboBox44 | G101: Circulatie_Lijst | H101: =Lists!F$436 -> standaard | I101: 101 | P101: 1
E102: Lengte tapleiding | F102: TextBox59 | H102: =IFERROR(Lists!J$436 / 1, 5) -> 5 | I102: 102 | P102: 1
E103: PV Vermogen | F103: ComboBox16 | G103: PV_Lijst | H103: =Lists!E$573 -> geen PV | I103: 103 | P103: 1
E104: Jaar Bouwvergunning | F104: TextBox23 | H104: =IFERROR(Lists!E615 / 1, 2014) -> 2014 | I104: =ROW(E104) -> 104 | P104: =IF(H104 = INDEX(J104:N104, $L$3), 0, 1) -> 1
E105: PV Helling | F105: TextBox31 | H105: =IFERROR(Lists!F$573 / 1, 0) -> 0 | I105: =ROW(E105) -> 105 | P105: 0
A107: Output | H107: Waarde | J107: Scenario 1 | K107: Scenario 2 | L107: Scenario 3 | M107: Scenario 4 | N107: Scenario 5
C110: Totale Actuele Kost (TAK) over 20 jaar
F111: Totale Actuele Kost over 20 jaar | G111: €/m² | H111: =FA!F2277 -> 
F112: Initiële investeringskost | G112: €/m² | H112: =FA!F1683 -> 
F113: CO2-emissie | G113: ton/m² | H113: =FA!F663 -> 
C115: Gactualiseerde bedragen investering - restwaarde
F116: Investeringskosten | G116: €/m² | H116: =FA!F$1678 -> 
F117: Restwaarde | G117: €/m² | H117: =FA!F$1735 -> 
F118: Investeringskost min restwaarde | G118: €/m² | H118: =H116 + H117 -> 
C120: Indicatie operationele kosten en opbrengsten in jaar 1
F122: Energieverbruik en -kosten | G122: €/m² | H122: =SUM(FA!K2302,FA!K2305,FA!K2306,FA!K2307,FA!K2308) -> 
F123: Opbrengsten en vermeden kosten uit energieproductie | G123: €/m² | H123: =SUM(FA!K2303:K2304, FA!K2314) -> 
F124: Onderhoudskosten | G124: €/m² | H124: =FA!K2311 -> 
C126: Indicatie operationele kosten en opbrengsten in jaar 1
E127: =FA!E$2302 -> Total Electricity Costs (including self-consumption) | F127: =FA!A$2302 -> Elektriciteitsverbruik | G127: € | H127: =FA!K$2302 -> 
E128: =FA!E$2303 -> Avoided Costs Electricity Purchase | F128: =FA!A$2303 -> Dekking elektriciteitsverbruik door PV en/of WKK | G128: € | H128: =FA!K$2303 -> 
E129: =FA!E$2304 -> Revenue Electricity Injection | F129: =FA!A$2304 -> Netinjectie elektriciteit | G129: € | H129: =FA!K$2304 -> 
E130: =FA!E$2305 -> Electricity Injection Cost | F130: =FA!A$2305 -> Injectietarief | G130: € | H130: =FA!K$2305 -> 0
E131: =FA!E$2306 -> Gas Cost | F131: =FA!A$2306 -> Aardgasverbruik | G131: € | H131: =FA!K$2306 -> 
E132: =FA!E$2308 -> Biomass Cost | F132: =FA!A$2308 -> Biomassaverbruik | G132: € | H132: =FA!K$2308 -> 0
E133: =FA!E$2311 -> Total Maintenance Cost | F133: =FA!A$2311 -> Onderhoudskost | G133: € | H133: =FA!K$2311 -> 
E134: =FA!E$2313 -> GC Revenue | F134: =FA!A$2313 -> Groenestroomcertificaten | G134: € | H134: =FA!K$2313 -> 0
E135: =FA!E$2314 -> Cogen Certificate Revenue | F135: =FA!A$2314 -> WKK certificaten | G135: € | H135: =FA!K$2314 -> 0
C137: Eind energieverbruik en -productie
F138: Verwarming | G138: kWh/m² | H138: =Etot!O$633 / 3.6 / Sim!$J$7 -> 
F139: Sanitair warm water | G139: kWh/m² | H139: =Etot!O$673 / 3.6 / Sim!$J$7 -> 
F140: Koeling | G140: kWh/m² | H140: =Etot!O$750 / 3.6 / Sim!$J$7 -> 
F141: Bevochtiging | G141: kWh/m² | H141: =Etot!O$794 / 3.6 / Sim!$J$7 -> 
F142: Hulpenergie | G142: kWh/m² | H142: =SUM(Etot!O820 / Etot!B818, Etot!O831 / Etot!B829, Etot!O841 / Etot!B839, Etot!O849 / Etot!B847) / 3.6 / Sim!$J$7 -> 
F143: Verlichting | G143: kWh/m² | H143: =(Etot!O862 / Etot!B860) / 3.6 / Sim!$J$7 -> 
F144: Som Verbruik | G144: kWh/m² | H144: =SUM(H138:H143) -> 
F145: Elektriciteitsproductie PV | G145: kWh/m² | H145: =- (Etot!O874 / Etot!B872) / 3.6 / Sim!$J$7 -> 
F146: Sanitair warm water productie zonnecollectoren | G146: kWh/m² | H146: =- Etot!O663 / 3.6 / Sim!$J$7 -> 
F147: Elektriciteitsproductie WKK | G147: kWh/m² | H147: =- (Etot!O884 / Etot!B882) / 3.6 / Sim!$J$7 -> 
F148: Overige | G148: kWh/m² | H148: =- H144 - SUM(H145:H147) -> 
C150: Aandeel primair energieverbruik
F151: Verwarming | G151: kWh | H151: =Etot!P$893 / SUM(Etot!$P$893:$P$903) -> 
F152: Sanitair warm water | G152: kWh | H152: =Etot!P$895 / SUM(Etot!$P$893:$P$903) -> 
F153: Koeling | G153: kWh | H153: =Etot!P$897 / SUM(Etot!$P$893:$P$903) -> 
F154: Bevochtiging | G154: kWh | H154: =Etot!P$899 / SUM(Etot!$P$893:$P$903) -> 
F155: Hulpenergie | G155: kWh | H155: =Etot!P$901 / SUM(Etot!$P$893:$P$903) -> 
F156: Verlichting | G156: kWh | H156: =Etot!P$903 / SUM(Etot!$P$893:$P$903) -> 
F157: Som Verbruik | G157: kWh | H157: =SUM(H151:H156) -> 
F158: Elektriciteitsproductie PV | G158: kWh | H158: =Etot!P$905 / SUM(Etot!$P$893:$P$903) -> 
F159: Sanitair warm water productie zonnecollectoren | G159: kWh | H159: =Etot!O$663 * (SUM(Etot!$O$679:$O$683) / SUM(Etot!$O$667:$O$671)) / SUM(Etot!$P$893:$P$903) -> 
F160: Elektriciteitsproductie WKK | G160: kWh | H160: =Etot!P$907 / SUM(Etot!$P$893:$P$903) -> 
F161: Overige | G161: kWh | H161: =H157-SUM(H158:H160) -> 
C163: Primair energieverbruik en -productie
F164: Verwarming | G164: kWh/m² | H164: =Etot!P$893 / Sim!$J$7 -> 
F165: Sanitair warm water | G165: kWh/m² | H165: =Etot!P$895 / Sim!$J$7 -> 
F166: Koeling | G166: kWh/m² | H166: =Etot!P$897 / Sim!$J$7 -> 
F167: Bevochtiging | G167: kWh/m² | H167: =Etot!P$899 / Sim!$J$7 -> 
F168: Hulpenergie | G168: kWh/m² | H168: =Etot!P$901 / Sim!$J$7 -> 
F169: Verlichting | G169: kWh/m² | H169: =Etot!P$903 / Sim!$J$7 -> 
F170: Som Verbruik | G170: kWh/m² | H170: =SUM(H164:H169) -> 
F171: Elektriciteitsproductie PV | G171: kWh/m² | H171: =- Etot!P$905 / Sim!$J$7 -> 
F172: Sanitair warm water productie zonnecollectoren | G172: kWh/m² | H172: =- Etot!O$663 / 3.6 / Sim!$J$7 -> 
F173: Elektriciteitsproductie WKK | G173: kWh/m² | H173: =- Etot!P$907 / Sim!$J$7 -> 
F174: Overige | G174: kWh/m² | H174: =- H170 - SUM(H171:H173) -> 
C176: Aandeel kosten over volledige evaluatieperiode
E177: =FA!E2234 -> Electricity Purchase Cost | F177: Elektriciteit | G177: € | H177: =FA!H$2234 -> 
E178: Injection Tariff Cost | F178: Injectietarief | G178: € | H178: =SUM(FA!H$2236, FA!H$2237) -> 0
E179: =FA!E2238 -> Gas Cost | F179: Aardgas | G179: € | H179: =FA!H$2238 -> 
E180: =FA!E2240 -> Biomass Cost | F180: Biomassa | G180: € | H180: =FA!H$2240 -> 0
E181: =FA!E2242 -> Total Maintenance Cost | F181: Onderhoud | G181: € | H181: =FA!H$2242 -> 
E182: Sum | F182: Som | G182: € | H182: =SUM(H177:H181) -> 
F184: =F177 -> Elektriciteit | G184: € | H184: =H177 / H$182 -> 
F185: Injectietarief | G185: €
F186: Aardgas | G186: €
F187: Biomassa | G187: €
F188: Onderhoud | G188: €
F189: Som | G189: €
C191: Aandeel kosten jaar 1
E193: =E177 -> Electricity Purchase Cost | F193: Elektriciteit | G193: € | H193: =FA!K$2234 -> 
E194: =E178 -> Injection Tariff Cost | F194: Injectietarief | G194: € | H194: =SUM(FA!K$2236, FA!K$2237) -> 0
E195: =E179 -> Gas Cost | F195: Aardgas | G195: € | H195: =FA!K$2238 -> 
E196: =E180 -> Biomass Cost | F196: Biomassa | G196: € | H196: =FA!K$2240 -> 0
E197: =E181 -> Total Maintenance Cost | F197: Onderhoud | G197: € | H197: =FA!K$2242 -> 
E198: Sum | F198: Som | G198: € | H198: =SUM(H193:H197) -> 
F200: =F193 -> Elektriciteit | G200: € | H200: =H193 / H$198 -> 
F201: =F194 -> Injectietarief | G201: €
F202: =F195 -> Aardgas | G202: €
F203: =F196 -> Biomassa | G203: €
F204: Onderhoud | G204: €
F205: Som | G205: €
C207: Netto energieverbruik voor verwarming
F208: Transmissieverlies | G208: kWh/m² | H208: =- Etot!O582 / 3.6 / Sim!$J$7 -> 
F209: Ventilatieverlies | G209: kWh/m² | H209: =- Etot!O590 / 3.6 / Sim!$J$7 -> 
F210: Interne winsten | G210: kWh/m² | H210: =Etot!O596 / 3.6 / Sim!$J$7 -> 
F211: Zonnewinsten | G211: kWh/m² | H211: =Etot!O600 / 3.6 / Sim!$J$7 -> 
C213: Netto energieverbruik voor koeling
F214: Transmissieverlies | G214: kWh/m² | H214: =- Etot!O698 / 3.6 / Sim!$J$7 -> 
F215: Ventilatieverlies | G215: kWh/m² | H215: =- Etot!O706 / 3.6 / Sim!$J$7 -> 
F216: Interne winsten | G216: kWh/m² | H216: =Etot!O712 / 3.6 / Sim!$J$7 -> 
F217: Zonnewinsten | G217: kWh/m² | H217: =Etot!O716 / 3.6 / Sim!$J$7 -> 

Sheet Fixed (hidden)
A2: Building Geometry Calculations
B4: Inclined Roof Surface Calculation
F6: base | G6: base / 2 | H6: roof inclination | I6: heigth ridge | J6: base inclined | K6: length | L6: m²
E7: flat roof | F7: 35 | K7: 15 | L7: =F7 *K7 -> 525
E8: inclined roof | G8: =F7 / 2 -> 17.5 | H8: 40 | I8: =TAN(RADIANS(H8))*G8 -> 14.68424355 | J8: =(G8^2 + I8^2) ^ (1/2) -> 22.84462756 | K8: =K7 -> 15 | L8: =(J8 * 2) * K8 -> 685.3388269
E9: dakhelling
K10: roof surface inclination factor | L10: =L8 / L7 -> 1.305407289
B12: Ground floor slab calculation
E14: Ground conductivity (λ) | G14: 2 | H14: W/mK
E15: Grounwater factor (Gw) | G15: 1 | H15: [-]
E16: Thickness of the facade (w) | G16: =Fixed!F56 -> 0.355 | H16: [m]
E17: Exposed perimeter of the slab (P) | G17: =Sim!J15 -> 0 | H17: [m]
E19: dt= | G19: =G16+G14*(Fixed!H33) -> 1.024520293
E20: B'= | G20: =2*Etot!B267/$G$17 -> 
A22: Insulation
B24: U-value Calculation Floor above Ground
F26: d (m) | G26: λ (W/mK) | H26: R FL (m²K/W) | I26: U Floor (W/m²K)
E27: Rse | H27: 0.04
E28: Structurele plaat | F28: 0.2 | G28: 2.2 | H28: =F28/G28 -> 0.09090909091
E29: Isolatie (bestaande + nieuwe) | F29: =Overview!H49 / 100 -> 0 | H29: =F29 / VLOOKUP(Overview!H46, Lists!$E$129:$F$133, 2, FALSE) -> 0
E30: cement | F30: 0.02 | G30: 0.93 | H30: =F30/G30 -> 0.02150537634
E31: Tapijtvloer | F31: 0.01 | G31: 0.81 | H31: =F31/G31 -> 0.01234567901
E32: Rsi | H32: 0.17
H33: =SUM( H27:H32) -> 0.3347601463 | I33: =IF( Overview!H$43 = "default waarden", IF(Fixed!G19<Fixed!G20,2*Fixed!G14/(PI()*Fixed!G20+Fixed!G19)*LN((PI()*Fixed!G20/Fixed!G19)+1),Fixed!G14/(0.457*Fixed!G20+Fixed!G19)), Overview!H52) ->  | K33: =I33 -> 
B35: U-value Calculation Floor above Basement
F37: d (m) | G37: λ (W/mK) | H37: R FL (m²K/W) | I37: U Floor (W/m²K)
E38: Rse | H38: 0.04
E39: Structurele plaat | F39: 0.2 | G39: 2.2 | H39: =F39/G39 -> 0.09090909091
E40: Isolatie (bestaande + nieuwe) | F40: =Overview!H49 / 100 -> 0 | H40: =F40 / VLOOKUP(Overview!H46, Lists!$E$129:$F$133, 2, FALSE) -> 0
E41: cement | F41: 0.02 | G41: 0.93 | H41: =F41/G41 -> 0.02150537634
E42: Tapijtvloer | F42: 0.01 | G42: 0.81 | H42: =F42/G42 -> 0.01234567901
E43: Rsi | H43: 0.17
H44: =SUM( H38:H43) -> 0.3347601463 | I44: =IF( Overview!H$43 = "default waarden", 1 / H44, Overview!H52) -> 2.987213416 | K44: =I44 -> 2.987213416
B46: U-value Calculation Facade
F48: d (m) | G48: λ (W/mK) | H48: R F (m²K/W) | I48: U Facade (W/m²K)
E49: Rse | H49: 0.04
E50: Pleister | F50: 0.015 | G50: 0.52 | H50: =F50/G50 -> 0.02884615385
E51: Structurele plaat | F51: 0.2 | G51: 1.7 | H51: =F51/G51 -> 0.1176470588
E52: Isolatie (bestaande + nieuwe) | F52: =Overview!H47 / 100 -> 0 | H52: =F52 / VLOOKUP(Overview!H44, Lists!$E$129:$F$133, 2, FALSE) -> 0
E53: air lucht spouw | F53: 0.02 | H53: 0.09
E54: beton panelen | F54: 0.12 | G54: 0.58 | H54: =F54/G54 -> 0.2068965517
E55: Rsi | H55: 0.125
F56: =SUM(F50:F54) -> 0.355 | H56: =SUM( H49:H55) -> 0.6083897644 | I56: =IF( Overview!H43 = "default waarden", 1 / H56, Overview!H50) -> 1.643683143 | K56: =I56 -> 1.643683143
B58: U-value Calculation Roof
F60: d (m) | G60: λ (W/mK) | H60: R (m²K/W) | I60: U Roof (W/m²K)
E61: Rse | H61: 0.04
E62: pleister | F62: 0.015 | G62: 0.52 | H62: =F62/G62 -> 0.02884615385
E63: Structurele plaat | F63: 0.3 | G63: 1.7 | H63: =F63/G63 -> 0.1764705882
E64: Isolatie (bestaande + nieuwe) | F64: =Overview!H48 / 100 -> 0 | H64: =F64 / VLOOKUP(Overview!H45, Lists!$E$129:$F$133, 2, FALSE) -> 0
E65: EPDM | F65: 0.015 | G65: 0.25 | H65: =F65/G65 -> 0.06
E66: Rsi | H66: 0.1
H67: =SUM( H61:H66) -> 0.4053167421 | I67: =IF( Overview!H43 = "default waarden", 1 / H67, Overview!H51) -> 2.467206252 | K67: =I67 -> 2.467206252
A69: Building Knots
B71: Facade - Roof
E73: Facade - Roof Perimeter | F73: =G17 -> 0 | G73: m | H73: according to DWG file in the reference buildings folder map
B75: Facade - Floor
E77: Facade - Floor Perimeter | F77: =G17 -> 0 | G77: m | H77: according to DWG file in the reference buildings folder map
B79: Facade-Window
C81: Windows type 1
E83: # Windows type 1 (1.5 * 1.6 m) | G83: windows
E84: Height | G84: m
E85: Width | G85: m
E86: Perimeter | F86: =F84 * 2 + F85 * 2 -> 0 | G86: m
E87: Total Perimeter Window type 1 | G87: m
E88: Surface | F88: =F83 * F84 * F85 -> 0 | G88: m²
E90: # Windows type 2 (1.4 * 3.6 m) | G90: windows | H90: =F90 * (1.4 * 3.4) -> 0 | I90: m²
E91: Height | G91: m
E92: Width | G92: m
E93: Perimeter | F93: =F91 * 2 + F92 * 2 -> 0 | G93: m
E94: Total Perimeter Window type 2 | G94: m
E95: Surface | F95: =F90 * F91 * F92 -> 0 | G95: m²
E97: Total Perimeter Windows | F97: =(6.8 * 2 + 9 * 2 + 5.1 * 2 + 34.1 * 4 + 35.3 * 2 + 9.3 * 2) * 2 + 9.2 * 2 + 14.7 * 2 -> 582.6 | G97: m
E98: Total Surface Windows | F98: =SUM(F88, F95) -> 0 | G98: m²
E100: Perimeter - Surface Ratio | F100: =F97 / F98 -> 
A102: Windows
B104: LTA-value Calculation | H104: bron: verbond glas industrie folder (vgi) pagina 7
F106: g-value | G106: LTA-value
E107: single glazing | F107: 0.85 | G107: 0.9
E108: double glazing without coating | F108: 0.75 | G108: 0.8
E109: double glazing high performance | F109: 0.63 | G109: 0.81
E110: double/triple glazing high performance | F110: 0.5 | G110: 0.71
E111: double glazing solar reflectant | F111: 0.4 | G111: 0.7
E112: double glazing solar reflectant | F112: 0.38 | G112: 0.71
E113: double glazing solar reflectant | F113: 0.3 | G113: 0.55
E114: double glazing solar reflectant | F114: 0.2 | G114: 0.4
A116: Air Tightness
B118: Cost Blowerdoor Test | H118: Source: Envicas - Gunter Brems
E120: Heat Loss Surface (m²)
E121: 2500 | F121: 2000 | G121: €
E122: 5000 | F122: 4000 | G122: €
E123: 7500 | F123: 6000 | G123: €
E124: 10000 | F124: 8000 | G124: €
E125: 12500 | F125: 10000 | G125: €
E126: 15000 | F126: 12000 | G126: €
E127: 17500 | F127: 14000 | G127: €
E128: 20000 | F128: 16000 | G128: €
E130: =Etot!$C$318 -> 0 | F130: =FORECAST(E130,F121:F128,E121:E128) -> 0 | G130: €
A131: Criterium for considering ventilation as an emission system
A133: Useable surface area
A135: Water temperatures heating emission systems
A137: I dir, unshad
B139: Oriëntatie
E141: Hoofdoriëntatie
E142: 0
E143: 45
E144: 90
E145: 135
E146: 180
E147: -135
E148: -90
E149: -45
B152: Vensters
E154: I dir, unshad | F154: 1 | G154: 2 | H154: 3 | I154: 4 | J154: 5 | K154: 6 | L154: 7 | M154: 8 | N154: 9 | O154: 10 | P154: 11 | Q154: 12
E155: 0 | F155: 74.25299673 | G155: 102.5609744 | H155: 127.0029283 | I155: 118.8453207 | J155: 100.3341592 | K155: 81.62892212 | L155: 82.75687089 | M155: 116.5520946 | N155: 156.8112966 | O155: 145.6066762 | P155: 94.0858546 | Q155: 62.0508961
E156: 45 | F156: 53.69491407 | G156: 75.7406014 | H156: 102.571089 | I156: 114.1340531 | J156: 117.3011249 | K156: 106.4746069 | L156: 103.2715169 | M156: 121.5389357 | N156: 135.0615965 | O156: 110.9639021 | P156: 68.4904589 | Q156: 44.84072216
E157: 90 | F157: 18.01442561 | G157: 32.16832401 | H157: 56.31135024 | I157: 82.60827437 | J157: 107.024406 | K157: 109.4202988 | L157: 101.0548379 | M157: 97.88276916 | N157: 83.46078034 | O157: 52.63107119 | P157: 25.31372947 | Q157: 14.13986245
E158: 135 | F158: 2.275508435 | G158: 4.632836664 | H158: 14.54009369 | I158: 33.46653218 | J158: 58.03664586 | K158: 67.60937939 | L158: 59.33888885 | M158: 45.35390809 | N158: 26.80466085 | O158: 10.13203243 | P158: 3.324056625 | Q158: 1.910035387
E159: 180 | F159: 1.534975911 | G159: 1.999409075 | H159: 2.508300881 | I159: 4.764218512 | J159: 16.52152927 | K159: 26.66519031 | L159: 20.62675242 | M159: 8.810195405 | N159: 3.712870005 | O159: 3.008878554 | P159: 1.926644697 | Q159: 1.337736621
E160: -135 | F160: 2.275508435 | G160: 4.632836664 | H160: 14.54009369 | I160: 33.46653218 | J160: 58.03664586 | K160: 67.60937939 | L160: 59.33888885 | M160: 45.35390809 | N160: 26.80466085 | O160: 10.13203243 | P160: 3.324056625 | Q160: 1.910035387
E161: -90 | F161: 18.01442561 | G161: 32.16832401 | H161: 56.31135024 | I161: 82.60827437 | J161: 107.024406 | K161: 109.4202988 | L161: 101.0548379 | M161: 97.88276916 | N161: 83.46078034 | O161: 52.63107119 | P161: 25.31372947 | Q161: 14.13986245
E162: -45 | F162: 53.69491407 | G162: 75.7406014 | H162: 102.571089 | I162: 114.1340531 | J162: 117.3011249 | K162: 106.4746069 | L162: 103.2715169 | M162: 121.5389357 | N162: 135.0615965 | O162: 52.63107119 | P162: 68.4904589 | Q162: 44.84072216
B164: Fotovoltaïsche Energie - Helling 15°
E166: I dir, unshad | F166: 1 | G166: 2 | H166: 3 | I166: 4 | J166: 5 | K166: 6 | L166: 7 | M166: 8 | N166: 9 | O166: 10 | P166: 11 | Q166: 12
E167: 0 | F167: 90.15393861 | G167: 152.6356305 | H167: 276.5222674 | I167: 398.3877453 | J167: 527.7364884 | K167: 542.211797 | L167: 529.8721425 | M167: 481.1475061 | N167: 363.4657386 | O167: 230.235469 | P167: 113.2700426 | Q167: 70.38140338
E168: 45 | F168: 84.32206678 | G168: 144.3954721 | H168: 276.5222674 | I168: 388.9330031 | J168: 520.3070621 | K168: 542.211797 | L168: 524.1380659 | M168: 481.1475061 | N168: 350.989818 | O168: 218.8570968 | P168: 105.8513296 | Q168: 70.38140338
E169: 90 | F169: 70.75656084 | G169: 125.4952964 | H169: 242.005481 | I169: 365.3041964 | J169: 500.7936665 | K169: 522.3984413 | L169: 508.2820366 | M169: 448.5881228 | N169: 321.2928913 | O169: 191.9221953 | P169: 88.82259636 | Q169: 54.2815936
E170: 180 | F170: 90.15393861 | G170: 152.6356305 | H170: 276.5222674 | I170: 398.3877453 | J170: 527.7364884 | K170: 542.211797 | L170: 529.8721425 | M170: 481.1475061 | N170: 363.4657386 | O170: 230.235469 | P170: 113.2700426 | Q170: 70.38140338
E171: -90 | F171: 70.75656084 | G171: 125.4952964 | H171: 242.005481 | I171: 365.3041964 | J171: 500.7936665 | K171: 522.3984413 | L171: 508.2820366 | M171: 448.5881228 | N171: 321.2928913 | O171: 191.9221953 | P171: 88.82259636 | Q171: 54.2815936
E172: -45 | F172: 84.32206678 | G172: 144.3954721 | H172: 242.005481 | I172: 388.9330031 | J172: 520.3070621 | K172: 522.3984413 | L172: 524.1380659 | M172: 448.5881228 | N172: 350.989818 | O172: 218.8570968 | P172: 105.8513296 | Q172: 54.2815936
B174: Cm
E176: Cm
E177: 0 | F177: 1.06
E178: 45 | F178: 1
E179: 90 | F179: 0.87
E180: 135 | F180: 0.76
E181: 180 | F181: 0.71
E182: -135 | F182: 0.76
E183: -90 | F183: 0.87
E184: -45 | F184: 1

Sheet Sim (hidden)
A2: 2020
E4: Results Financial Analysis | I4: Building Envelope | M4: Building Envelope Costs | Q4: Dimensioning Calculations | W4: Installations | AA4: Installations Costs
E6: =FA!E$1669 -> Total Investment Cost [€/m²] | F6: =FA!F$1669 ->  | G6: =FA!G$1669 -> €/m² | I6: Protected Volume | J6: =Overview!H$20 -> 0 | K6: m² | M6: Floor Insulation Cost (€/m²) | N6: =IF(Overview!H$43 = "eigen waarden", Overview!H55, Lists!H140) ->  | O6: €/m² | Q6: Total Net Heat Demand | R6: =Etot!$O$611 ->  | S6: MJ | W6: Regulation H/C per space? | X6: Ja | AA6: Power Gas Condensation Boiler | AB6: =SUM(IF(X12 = "Condenserende ketel", T37, 0), IF(X17 = "Condenserende ketel", T38, 0), IF(X53 = "Condenserende ketel", T40, 0), IF(X55 = "Condenserende ketel", T41, 0)) -> 217.2261657 | AC6: kW
E7: =FA!E$1670 -> Total Investment Cost [€/m³] | F7: =FA!F$1670 ->  | G7: =FA!G$1670 -> €/m³ | I7: Usuable Surface | J7: =Overview!H$21 -> 0 | K7: m² | M7: Facade Insulation Cost (€/m²) | N7: =IF(Overview!H$43 = "eigen waarden", Overview!H53, Lists!H138) ->  | O7: €/m² | Q7: Area with Floor Heating | R7: =SUM('E1'!I8:L8) -> 0 | S7: m² | W7: Zones met/zonder regeling | X7: =X46 + R7 * (1 - X88 / 100) / 40 -> 0 | AA7: Power Biomass Boiler | AB7: =IF(X13 = "Hout", T37, 0) + IF(X54 = "Hout", T40, 0) -> 0 | AC7: kW
E8: =FA!E$1683 -> Total Initial Investment Cost [€/m²] | F8: =FA!F$1683 ->  | G8: =FA!G$1683 -> €/m² | I8: Orientation Building | J8: =Overview!H$23 -> noord | M8: Other Facade Cost (€/m²) | N8: 0 | O8: €/m² | Q8: Area with Cooling Panels | R8: ='E1'!J8 -> 0 | S8: m² | W8: P-NP Heat Combination ? | X8: =IF(Overview!H68 = Lists!E289, "Nee", "Ja") -> Nee | AA8: Power Heat Pump Ground-Water | AB8: =IF( AND( X12 = "Warmtepomp", X22 = "bodem"), T37, 0) -> 0 | AC8: kW
E9: =FA!E$2107 -> Maintenance Cost (€/m².year) | F9: =FA!F$2107 ->  | G9: =FA!G$2107 -> €/m².year | I9: Orientation Building (degrees) | J9: =Lists!F54 -> 180 | K9: ° | M9: Roof Adaption Cost (€/m) | N9: 0 | O9: €/m | W9: WKK, Heat ? | X9: =IF(Overview!H66 = "WKK", "Ja", "Nee") -> Nee | AA9: Power Heat Pump Water-Water | AB9: =IF( AND( X12 = "Warmtepomp", X22 = "grondwater" ), T37, 0) -> 0 | AC9: kW
E10: =FA!E$734 -> User Cost (€/m².year) | F10: =FA!F$734 ->  | G10: =FA!G$734 -> €/m².year | M10: Roof Insulation Cost (€/m²) | N10: =IF(Overview!H$43 = "eigen waarden", Overview!H54, Lists!H139) ->  | O10: €/m² | W10: VertrekT WKK | X10: 90 | AA10: Power Heat Pump Air-Water | AB10: =IF( AND( X12 = "Warmtepomp", X22 = "enkel buitenlucht", X23 = "water" ), T37, 0) -> 0 | AC10: kW
E11: =FA!E$758 -> Carbon Cost (€/m².year) | F11: =FA!F$758 ->  | G11: =FA!G$758 -> €/m².year | M11: Other Roof Cost (€/m²) | N11: 0 | O11: €/m² | Q11: =Heatloss!E$26 -> Transmission Heating Power | R11: =Heatloss!F$26 ->  | S11: =Heatloss!G$26 -> kW | T11: 114.0305076 | U11: =IF(R11 <>T11, 1, 0) ->  | W11: Heat Net ? | X11: Nee | AA11: Power Heat Pump Air-Air | AB11: =IF( AND( X12 = "Warmtepomp", X22 = "enkel buitenlucht", X23 = "ruimtelucht" ), MAX(T42, T37 / 0.94), 0) -> 0 | AC11: kW
E12: =FA!E$742 -> User Revenue (€/m².year) | F12: =FA!F$742 ->  | G12: =FA!G$742 -> €/m².year | I12: Total Floor Surface | J12: =Overview!H$39 -> 0 | K12: m² | M12: Raam | N12: =IF(Ramen_Default = "default waarden", SUM(Lists!G162, Lists!G173, Lists!G187, Lists!H197), Overview!H63) -> 429.7 | O12: €/m² | Q12: =Heatloss!E$36 -> Intermittent Heating Power | R12: =Heatloss!F$36 -> 0 | S12: =Heatloss!G$36 -> kW | T12: 104.5 | U12: =IF(R12 <>T12, 1, 0) -> 1 | W12: Gen, Heat, P | X12: =VLOOKUP(Overview!H66, Lists!$E$277:$G$283, 2, FALSE) -> Condenserende ketel | AA12: ="Power " & AA$24 -> Power Cogen | AB12: =IF(X9 = "Ja", T37, 0) + IF(X52 = "Ja", T40, 0) -> 0 | AC12: kWth
E13: =FA!E$612 -> Total Primary Energy Use [MJ/year] | F13: =FA!F$612 ->  | G13: =FA!G$612 -> MJ/year | I13: Vloerplaat Type | J13: =Overview!H$40 -> boven grond | M13: Solar Protection Cost | N13: =Lists!H241 -> 0 | O13: €/m² | Q13: =Heatloss!E$46 -> Infiltration Heating Power | R13: =Heatloss!F$46 -> 0 | S13: =Heatloss!G$46 -> kW | T13: 21.2891229 | U13: 1 | W13: Carrier, Heat, P | X13: =VLOOKUP(Overview!H66, Lists!$E$277:$G$283, 3, FALSE) -> Aardgas | AA13: ="Power " & AA$25 -> Power Compression Cooling Machine | AB13: =IF(X33 = "Compressiekoelmachine",T42,0) + IF(X37 = "Compressiekoelmachine",T43, 0) -> 100.1538542 | AC13: kW
E14: =FA!E$616 -> Total Primary Energy Use [kWh/m²] | F14: =FA!F$616 ->  | G14: =FA!G$616 -> kWh/m² | I14: percentage vloer boven kelder / parking (%) | J14: =Overview!H$41 -> 0 | K14: % | M14: BK facade-window (€) | O14: € | Q14: =Heatloss!E$55 -> Ventilation Heating Power | R14: =Heatloss!F$55 -> 0 | S14: =Heatloss!G$55 -> kW | T14: 158.4643823 | U14: 1 | W14: Heat Emission System | X14: =VLOOKUP(Overview!H70, Lists!$E$313:$F$318, 2, FALSE) -> rad 70/50 | AA14: ="Power " & AA$26 -> Power Heat Pump Summer Mode | AB14: =IF(X33 = "Warmtepomp in zomerbedrijf (in combinatie met koudeopslag)", T42, 0) -> 0 | AC14: kW
E15: Total Primary Energy Use [kWh/m².year] | F15: =F14 / Input_FA!$F$16 ->  | G15: kWh/m².year | I15: geschatte perimeter boven volle grond | J15: =Overview!H$42 -> 0 | K15: m | M15: BK facade-roof (€) | O15: € | Q15: =Heatloss!E$66 -> SWW Heating Power | R15: =Heatloss!F$66 -> 6 | S15: =Heatloss!G$66 -> kW | T15: 70 | U15: 1 | W15: Cost Heat Emission System | X15: =Lists!F303 -> 120 | Y15: €/(kW/m²)
E16: =FA!E$659 -> Total CO2eq Production [ton CO2eq] | F16: =FA!F$659 ->  | G16: =FA!G$659 -> ton CO2eq | I16: U Floor boven volle grond (W/m²K) | J16: =Fixed!I$33 ->  | K16: W/m²K | M16: BK facade-floor (€) | O16: € | Q16: =Heatloss!E$60 -> Total Heating Power | R16: =Heatloss!F$60 ->  | S16: =Heatloss!G$60 -> kW | T16: 398.2840127 | W16: η 30%, P | X16: =IF(X12 <> "Warmtepomp", Overview!H67, "") -> 1 | AA16: Gas Condensation Boiler | AB16: =IFERROR(MAX(1388.5 * AB6 ^ - 0.55, 37.5) * AB6, 0) -> 15637.10475 | AC16: €
E17: =FA!E$663 -> Total CO2eq Production [ton CO2eq/m²] | F17: =FA!F$663 ->  | G17: =FA!G$663 -> ton CO2eq/m² | I17: U Floor boven kelder (W/m²K) | J17: =Fixed!I$44 -> 2.987213416 | K17: W/m²K | M17: Air Tightness Cost Window (€/m²) | O17: €/m² | U17: 0 | W17: Gen, Heat, NP | X17: =VLOOKUP(Overview!H68, Lists!$E$292:$G$293, 2, FALSE) -> 0 | AA17: Biomass Boiler | AB17: =IFERROR(MAX(5224.9 * AB7 ^ (-0.707), 293) * AB7 + 500, 0) -> 0 | AC17: €
E18: =FA!E$2273 -> Total Actualised Cost [€] | F18: =FA!F$2273 ->  | G18: =FA!G$2273 -> € | M18: Air Tightness Cost Facade (€/m²) | O18: €/m² | Q18: =Heatgains!E$15 -> Transmission Cooling Power | R18: =Heatgains!F$15 ->  | S18: =Heatgains!G$15 -> kW | T18: -9.513112421 | W18: Carrier, Heat, NP | X18: =VLOOKUP(Overview!H68, Lists!$E$292:$G$293, 3, FALSE) -> 0 | AA18: Heat Pump Ground-Water | AB18: =IFERROR(IF( $X20 < 4.3, 2767.5 * AB8 ^ -0.606 * AB8, IF(X20>4.8,2080.9 * AB8 ^ -0.448 * AB8,(X20-4.3)/(4.8-4.3)*(2080.9 * AB8 ^ -0.448 * AB8 - 2767.5 * AB8 ^ -0.606 * AB8) + 2767.5 * AB8 ^ -0.606 * AB8)), 0) -> 0 | AC18: €
E19: =FA!E$2277 -> Total Actualised Cost [€/m²] | F19: =FA!F$2277 ->  | G19: =FA!G$2277 -> €/m² | I19: Facade Surface Orientation 1 | J19: =Overview!H$24 -> 0 | K19: m² | Q19: =Heatgains!E$30 -> Solar Radiation Cooling Power | R19: =Heatgains!F$30 -> 0 | S19: =Heatgains!G$30 -> kW | T19: -8.346 | U19: 1 | W19: η 30%, NP | X19: =IF(X17 = "Condenserende ketel", Overview!H69, "") ->  | AA19: Borehole Thermal Energy Storage | AB19: =IF(T45 > 0, 5000 + T45 * 30, 0) -> 108015.3929 | AC19: €
E20: =FA!E$2278 -> Total Actualised Cost [€/m³] | F20: =FA!F$2278 ->  | G20: =FA!G$2278 -> €/m³ | I20: Facade Surface Orientation 2 | J20: =Overview!H$25 -> 0 | K20: m² | M20: Floor Insulation | N20: =N6 * J12 ->  | O20: € | Q20: =Heatgains!E$41 -> Internal Cooling Power | R20: =Heatgains!F$41 -> 0 | S20: =Heatgains!G$41 -> kW | T20: -64.38 | U20: 1 | W20: COP, P | X20: =IF(X12 = "Warmtepomp", Overview!H67, "") ->  | AA20: Heat Pump Water-Water | AB20: =IFERROR(IF( $X20 < 5.1, 1461.9 * AB9 ^ -0.517 * AB9, IF(X20 > 5.6, 1255.2 * AB9 ^ -0.295 * AB9, (X20-5.1)/(5.6 - 5.1) * (1255.2 * AB9 ^ -0.295 * AB9 - 1461.9 * AB9 ^ -0.517 * AB9)+ 1461.9 * AB9 ^ -0.517 * AB9)), 0) -> 0 | AC20: €
I21: Facade Surface Orientation 3 | J21: =Overview!H$26 -> 0 | K21: m² | M21: Facade Insulation | N21: =N7 * J23 ->  | O21: € | Q21: =Heatgains!E$49 -> Intermittent Cooling Power | R21: =Heatgains!F$49 -> 0 | S21: =Heatgains!G$49 -> kW | T21: 0 | U21: 0 | W21: deltaθ test, P | X21: =IF(X12 = "Warmtepomp", 5, "") ->  | AA21: Groundwater Thermal Energy Storage | AB21: =CEILING(T46 / 30,1) * 65000 * 2 -> 0 | AC21: €
E22: EPB Output | I22: Facade Surface Orientation 4 | J22: =Overview!H$27 -> 0 | K22: m² | M22: Roof Insulation | N22: =N10 * J46 ->  | O22: € | Q22: =Heatgains!E$60 -> Infiltration Cooling Power | R22: =Heatgains!F$60 -> 0 | S22: =Heatgains!G$60 -> kW | T22: -2.0602377 | U22: 1 | W22: Heat Source, P | X22: =IF( X12 = "Warmtepomp", VLOOKUP(Overview!H66, Lists!$E$296:$G$299, 2, FALSE), "") ->  | AA22: Heat Pump Air-Water | AB22: =IFERROR(IF( $X20 < 3.5, MAX(2705.3 * AB10 ^ -0.5 * AB10, 186), MAX(3109.8 * AB10 ^ - 0.48 * AB10, 188)), 0) -> 0 | AC22: €
I23: Total Facade Surface | J23: =SUM(J19:J22) -> 0 | K23: m² | M23: Windows | N23: =N12 * J57 -> 0 | O23: € | Q23: =Heatgains!E$69 -> Ventilation Cooling Power | R23: =Heatgains!F$69 -> 0 | S23: =Heatgains!G$69 -> kW | T23: -15.85450411 | U23: 1 | W23: Emission Medium, P | X23: =IF( X12 = "Warmtepomp", VLOOKUP(Overview!H66, Lists!$E$296:$G$299, 3, FALSE), "") ->  | AA23: Heat Pump Air-Air | AB23: =IFERROR(1169.5 * AB11 ^ (-0.104) * AB11, 0) -> 0 | AC23: €
E24: K-level | F24: =Etot!$C$330 -> 0 | I24: U Facade (W/m²K) | J24: =Fixed!I$56 -> 1.643683143 | K24: W/m²K | M24: Solar Protection | N24: =N13 * J70 -> 0 | O24: € | Q24: =Heatgains!E$78 -> Total Cooling Power | R24: =Heatgains!F$78 ->  | S24: =Heatgains!G$78 -> kW | T24: -100.1538542 | W24: Pump to Concensor, P | X24: =IF( OR( X22 = "bodem", X22 = "grondwater"), "Ja", "Nee") -> Nee | AA24: Cogen | AB24: =IFERROR(4647.1 * AB12 ^ (-0.36) * AB12, 0) -> 0 | AC24: €
E25: Gross Electricity Consumption | F25: =Etot!$P$1014 ->  | G25: kWh/year | M25: Building Knots | N25: 0 | O25: € | AA25: Compression Cooling Machine | AB25: =IFERROR(5000 + 491.62 * AB13 ^ -0.23 * AB13, 0) -> 22066.46781 | AC25: €
E26: Electricty Production PV | F26: =Etot!$P$1016 -> 0 | G26: kWh/year | I26: Facade window Surface Orientation 1 | J26: =Overview!H$28 -> 0 | K26: m² | M26: Air Tightness | N26: 0 | O26: € | Q26: Heatloss Demand in Area with Floor Heating | R26: =R39 * 1000 / R7 ->  | S26: W/m² | W26: η Gen, Heat, P | X26: =IFERROR( IF(X9 = "Ja", 'EPU-WKK'!$B$23, 'EPU-pref'!$B$85), 1) -> 0.87867 | AA26: Heat Pump Summer Mode | AB26: =IFERROR(IF( X22 = "bodem", 2080.9 * (0.77 * AB14) ^ -0.448 * (0.77 * AB14), 1461.9 * (0.77 * AB14) ^ -0.517 * (0.77 * AB14)), 0) -> 0 | AC26: €
E27: Electricty Production WKK | F27: =Etot!$P$1017 -> 0 | G27: kWh/year | I27: Facade window Surface Orientation 2 | J27: =Overview!H$29 -> 0 | K27: m² | Q27: Heat Emission System | R27: =Overview!H$70 -> radiatoren regime 70/50°C | W27: η Gen, Heat, NP | X27: =IFERROR( IF(X9 = "Ja", 'EPU-WKK'!$B$126, 'EPU-pref'!$C$85 ), 1) -> 1 | AA27: Heat Exchanger | AB27: =IF( X33 = "Koudeopslag", 50 * T42, 0) -> 0 | AC27: €
E28: Gas Use WKK | F28: =IF($X9 = "Ja", Etot!$P$1027, 0) -> 0 | G28: kWh/year | I28: Facade window Surface Orientation 3 | J28: =Overview!H$30 -> 0 | K28: m² | Q28: θaverage 30% | R28: 30 | S28: °C | W28: η Gen, Elec, WKK | X28: =IF(X9 = "Ja", 'EPU-WKK'!$B$22, 0 ) -> 0 | AA28: Heating / Cooling Regulation | AB28: =IF(X6 = "Ja", 600, 0) * X7 -> 0 | AC28: €
E29: Net Electricity Consumption | F29: =Etot!$P$1021 ->  | G29: kWh/year | I29: Facade window Surface Orientation 4 | J29: =Overview!H$31 -> 0 | K29: m² | Q29: θsupply design | R29: =VLOOKUP(R27, T_Emission_system, 2, FALSE) -> 70 | S29: °C | W29: PEF, Heat, P | X29: =IFERROR( IF(X9 = "Ja", 'EPU-WKK'!$B$128, 'EPU-pref'!$B$86 ), 1) -> 1 | AA29: Radiators | AB29: =IF(AND(X14 <> "VV", X14 <> "ventilatielucht"), X15 * T39, 0) -> 28778.35565 | AC29: €
E30: Gas Consumption | F30: =Etot!$P$1041 ->  | G30: kWh/year | Q30: θretour design | R30: =VLOOKUP(R27, T_Emission_system, 3, FALSE) -> 50 | S30: °C | W30: PEF, Heat, NP | X30: =IFERROR( IF(X9 = "Ja", 'EPU-WKK'!$B$127, 'EPU-pref'!$C$86 ), 1) -> 1 | AA30: Floor Heating | AB30: =IF( X14 = "VV", X15 * $R7, 0) -> 0 | AC30: €
E31: Fuel Consumption | F31: =Etot!$P$1061 -> 0 | G31: kWh/year | I31: Facade window Orientation 1 | J31: =Lists!F$54 -> 180 | K31: ° | Q31: deltaθ design | R31: =R29 - R30 -> 20 | S31: °C | AA31: Fan Coils | AB31: =0 -> 0 | AC31: €
E32: Biomass Consumption | F32: =Etot!$P$1081 -> 0 | G32: kWh/year | I32: Facade window Orientation 2 | J32: =Lists!I$54 -> -90 | K32: ° | W32: P-NP Cool Combination ? | X32: =IF( Overview!H73 = Lists!E472, "Nee", "Ja") -> Nee | AA32: Ceiling Unit | AB32: =IF( AND( X12 = "Warmtepomp", X22 = "enkel buitenlucht", X23 ="ruimtelucht" ), 789.52 * ($T44) ^ (-0.104) * $T44 + 347.71 * (Heatloss!F62) ^ (-0.025) * Heatloss!F62, 0) -> 0 | AC32: €
E33: Gross Electricity Consumption kWh/m².year | F33: =F25 / $J7 ->  | G33: kWh/m².year | I33: Facade window Orientation 3 | J33: =Lists!J$54 -> 0 | K33: ° | Q33: Power, Elec, WKK, Heat | R33: =IF( X9 = "Ja", (R37 - 14.631) / 1.3801, 0) -> 0 | S33: kWe | T33: 0 | U33: =IF(R33 <>T33, 1, 0) -> 0 | W33: Gen, Cool, P | X33: =Overview!H71 -> compressiekoelmachine | AA33: Panel Cooling | AB33: =IF( X34 = Lists!E480, 100 * R8, 0) -> 0 | AC33: €
E34: Electricty Production PV kWh/m².year | F34: =F26 / $J7 ->  | G34: kWh/m².year | I34: Facade window Orientation 4 | J34: =Lists!K$54 -> 90 | K34: ° | Q34: Inhoud buffervat (m³), Heat | R34: =IF(X9 = "Ja", R37, 0) * 60 * 60 / (20 * 4.187 * 1000) -> 0 | S34: m³ | T34: 0 | U34: 0 | W34: Cold Emission System | X34: =Overview!H75 -> koelplafonds | AA34: Ventilation Air Heater | AB34: =IF( X14 = "ventilatielucht", IF( X12 = "Warmtepomp", 250, 167) * T39, 0) -> 0 | AC34: €
E35: Electricty Production WKK kWh/m².year | F35: =F27 / $J7 ->  | G35: kWh/m².year | I35: Ramen default | J35: =Overview!H$56 -> default waarden | Q35: Power, Elec, WKK, Sww | R35: =IF( X52 = "Ja", (R40 - 14.631) / 1.3801, 0) -> 0 | S35: kWe | T35: 40.11955655 | U35: 1 | AA35: Distribution Heating and Cooling | AB35: =IF(AND( X12 = "Warmtepomp", X22 = "enkel buitenlucht", X23 = "ruimtelucht" ), (26 * X89 / 100 + 3 * (1 - X89 / 100)) * J7, 27 * J7 * X89 / 100 + IF(X14 = "VV", 12, 21) * J7) -> 0 | AC35: €
E36: Net Electricity Consumption kWh/m².year | F36: =F29 / $J7 ->  | G36: kWh/m².year | I36: U-waarde glas (W/m²K) | J36: =IF( J35 = "default waarden", Lists!F162,"") -> 1.1 | K36: W/m²K | Q36: Inhoud buffervat (m³), Sww | R36: =IF(X52 = "Ja", R40, 0) * 60 * 60 / (20 * 4.187 * 1000) -> 0 | S36: m³ | T36: 3.009314545 | U36: 1 | W36: EER, P | X36: =IF(X33 = Lists!E462, Overview!H72, "") -> 2.8 | AA36: Morecost Improved Insulation Circulation Piping | AB36: =X71 * X69 * X46 -> 0 | AC36: €
E37: Gas Consumption kWh/m².year | F37: =F30 / $J7 ->  | G37: kWh/m².year | I37: U-waarde kader (W/m²K) | J37: =IF( J35 = "default waarden", Lists!F173, "") -> 3 | K37: W/m²K | Q37: Power, Heat, P | R37: =IF( X8 = "Ja", IF( X9 = "Ja", T16 * 0.2, IF(AND(OR(X22 = "bodem", X22 = "grondwater"), X32 = "nee"), MIN( T16, $R42 * (1 + 1 / (IF($X33 = "Koudeopslag", 20, 5))) / (1 - 1 / X20)), T16 * 0.25)), T16) -> 398.2840127 | S37: kWth | T37: 147.2261657 | U37: 1 | W37: Gen, Cool, NP | X37: =Overview!H73 -> geen | AA37: Cost ducts | AB37: =IF(X77 = "D", 30, 14) * J7 -> 0 | AC37: €
E38: Fuel Consumption kWh/m².year | F38: =F31 / $J7 ->  | G38: kWh/m².year | I38: psi-waarde | J38: =IF( J35 = "default waarden", Lists!F187, "") -> 0.08 | K38: W/mK | Q38: Power, Heat, NP | R38: =T16 - R37 -> 0 | S38: kWth | T38: 251.057847 | U38: 1 | W38: EER, NP | X38: =IF(X37 = Lists!E473, Overview!H74, "") ->  | AA38: Cost AHU | AB38: =IF(X77 = "C", IF(X80 = 0.65, MAX(0.61 * X76, 2500), MAX(0.42 * X76, 1750)), IF(X80 = 0.65, MAX(2.65 * X76, 11000), MAX(2.26 * X76, 14000))) -> 1750 | AC38: €
E39: Biomass Consumption kWh/m².year | F39: =F32 / $J7 ->  | G39: kWh/m².year | I39: U Window (W/m²K) | J39: =IF( J35 = "default waarden", 0.7 * J36 + 0.3 * J37 + 3 * J38, Overview!H61) -> 1.91 | K39: W/m²K | Q39: Power, Heat, Space | R39: =T11 + T12 + T13 + IF(Overview!H89 = Lists!E540, T14, 0) -> 398.2840127 | S39: kWth | T39: 239.8196305 | U39: 1 | W39: Gekoelde Vloeroppervlakte | X39: =Overview!H76 -> 100 | Y39: % | AA39: Ventilation | AB39: =AB37 + AB38 -> 1750 | AC39: €
E40: Net Heating Demand | F40: =Etot!$O$611 / 3.6 / $J7 ->  | G40: kWh/m².year | I40: g-waarde | J40: =IF( J35 = "default waarden", Lists!F197, Overview!H62) -> 0.52 | K40: (-) | Q40: Power, Sww, P | R40: =IF( X51 = "Ja", IF( X52 = "Ja", T15 * 1, T15 * 0.25), T15) -> 70 | S40: kWth | T40: 70 | U40: 0
E41: Net Cooling Demand | F41: =Etot!$O$730 / 3.6 / $J7 ->  | G41: kWh/m².year | I41: LTA Value | J41: =IF( J35 = "default waarden", Lists!G197, Lists!H217) -> 0.7 | K41: (-) | Q41: Power, Sww, NP | R41: =T15 - R40 -> 0 | S41: kWth | T41: 0 | U41: 0 | W41: η Gen, Cool, P | X41: =IFERROR( 'EPU-pref'!$B$133, 5) -> 2.8 | AA41: LED Lighting | AB41: =SUMIF($X$94:$X$99, Lists!$E520, $X$106:$X$111) -> 0 | AC41: €
E42: Ep, Heating | F42: =Etot!$P$893 / $J7 ->  | G42: kWh/m².year | Q42: Power, Cool, P | R42: =IF(X32 = "Ja", MIN((1 - 1 / Overview!H67) / (1 + 1 / (IF(Overview!H71 = "koude-opslag", 20, 5))) * T37, - T24), -T24) -> 100.1538542 | S42: kWth | T42: 100.1538542 | U42: 0 | W42: η Gen, Cool, NP | X42: =IFERROR( 'EPU-pref'!$C$133, 5) -> 5 | AA42: Compact Fluo Lighting | AB42: =SUMIF($X$94:$X$99, Lists!$E521, $X$106:$X$111) -> 0 | AC42: €
E43: Ep, Cooling | F43: =Etot!P$897 / $J7 ->  | G43: kWh/m².year | I43: Daktype | J43: =Overview!H$22 -> plat dak | Q43: Power, Cool, NP | R43: =MAX(0, - T24 - R42) -> 0 | S43: kWth | T43: 0 | U43: 0 | W43: PEF, Cool, P | X43: =IFERROR( 'EPU-pref'!$B$134, 2.5) -> 2.5 | AA43: TL Lighting | AB43: =SUMIF($X$94:$X$99, Lists!$E522, $X$106:$X$111) -> 0 | AC43: €
E44: Ep, Moistening | F44: =Etot!P$899 / $J7 ->  | G44: kWh/m².year | I44: Roof Surface Orientation 1 | J44: =Overview!H$33 - Overview!H35 -> 0 | K44: m² | Q44: Power, Cool, Space | R44: =- (T18 + T19 + T20 + T21 + T22 + IF( Overview!H89 = Lists!E540, T23, 0)) -> 100.1538542 | S44: kWth | T44: 84.29935012 | U44: 1 | W44: PEF, Cool, NP | X44: =IFERROR( 'EPU-pref'!$C$134, 2.5) -> 2.5 | AA44: Halogeen Lighting | AB44: =SUMIF($X$94:$X$99, Lists!$E523, $X$106:$X$111) -> 0 | AC44: €
E45: Ep, Auxiliaries | F45: =Etot!P$901 / $J7 ->  | G45: kWh/m².year | I45: Roof Surface Orientation 2 | J45: =IF( J43 = "zadeldak", Overview!H$34 - Overview!H36, 0) -> 0 | K45: m² | Q45: Length BTES | R45: =IF(X22 = "bodem", MAX(R37 * (1 - 1 / X20), R42 * (1 + 1 / IF(X33 = "koude-opslag", 20, 5))) * 1000 / 35, 0) -> 0 | S45: m | T45: 3433.846431 | U45: 1 | AA45: Lighting Regulation | AB45: =SUM(X112:X117) -> 0 | AC45: €
E46: Ep, Lighting | F46: =Etot!P$903 / $J7 ->  | G46: kWh/m².year | I46: Roof Surface | J46: =SUM(J44:J45) -> 0 | K46: m² | Q46: ground water mass flow | R46: =IF(X22 = "grondwater", MAX(R37 * (1 - 1 / X20), R42 * (1 + 1 / IF(X33 = "Koudeopslag", 20, 5))) * 1000 * 3600 / (1000 * 4187 * 10), 0) -> 0 | S46: m³/h | T46: 0 | U46: 0 | W46: Bedden | X46: =Overview!H$92 -> 0
E47: Ep, PV | F47: =Etot!P$905 / $J7 ->  | G47: kWh/m².year | I47: U Roof (W/m²K) | J47: =Fixed!I$67 -> 2.467206252 | K47: W/m²K | W47: Aanwezigen (ifv interne winst berekening) | X47: =X46 * 1.3 -> 0 | Y47: personen | AA47: Solar Collector Cost | AB47: =IF(X63 = 0, 0,1.15 * 1672 * X63 ^ (1 - 0.1514) - (20.203 * (33 * X63) ^ (1 - 0.3386) + 1000 + 33 * X63)) -> 0 | AC47: €
E48: Ep, Cogen | F48: =Etot!P$907 / $J7 ->  | G48: kWh/m².year | I48: Roof window Orientation 1 | J48: =Lists!E96 -> zuid | Q48: Recalculate? | R48: =SUM(U11:U46) ->  | W48: Oppervlakte keuken | X48: =Overview!H$93 -> 0 | Y48: m² | AA48: Storage Material Cost | AB48: =(20.203 * (X67 * 1000) ^ (1 - 0.3386)) * X66 -> 0 | AC48: €
E49: E-level | F49: =Etot!$O$924 ->  | I49: Roof window Orientation 1 (degrees) | J49: =Lists!I$96 -> 0 | K49: ° | W49: Boiler ? | X49: =Overview!H98 -> ja | AA49: Storage Installation Cost | AB49: =IF(X66 = 0, 0, 1000 + (X66 * X67 * 1000)) -> 0 | AC49: €
I50: Roof window Orientation 2 | J50: =Lists!E97 ->  | AA50: Solar Thermal Installation | AB50: =SUM(AB47:AB49) -> 0 | AC50: €
I51: Roof window Orientation 2 (degrees) | J51: =Lists!I$97 -> 0 | K51: ° | W51: P-NP Sww Combination ? | X51: =IF(Overview!H95 = Lists!E365, "Nee", "Ja") -> Nee
W52: WKK, Sww ? | X52: =IF(Overview!H94 = "WKK", "Ja", "Nee") -> Nee | AA52: PV Installation | AB52: =IFERROR( IF(X125 <= 10000, 2 * X125, IF(X125 >= 50000, 1.6 * X125, 1.8 * X125)), 0) -> 0 | AC52: €
I53: Roof Window Surface Orientation 1 | J53: =Overview!H$35 -> 0 | K53: m² | W53: Gen, Sww, P | X53: =VLOOKUP(Overview!H94, Lists!$E$277:$G$283, 2, FALSE) -> Condenserende ketel
I54: Roof Window Surface Orientation 2 | J54: =IF(J43 = "zadeldak", Overview!H$36, 0) -> 0 | K54: m² | W54: Carrier, Sww, P | X54: =VLOOKUP(Overview!H94, Lists!$E$277:$G$283, 3, FALSE) -> Aardgas
I55: Roof Window Inclination Orientation 1 | J55: =IF(J43 = "plat dak", 0, Overview!H$37) -> 0 | K55: ° | W55: Gen, Sww, NP | X55: =VLOOKUP(Overview!H95, Lists!$E$292:$G$293, 2, FALSE) -> 0
I56: Roof Window Inclination Orientation 2 | J56: =IF(J43 = "plat dak", 0, Overview!H$38) -> 0 | K56: ° | W56: Carrier, Sww, NP | X56: =VLOOKUP(Overview!H95, Lists!$E$292:$G$293, 3, FALSE) -> 0
I57: Total Window Surface | J57: =SUM(J26:J29) + SUM(J53:J54) -> 0 | K57: m²
W58: η Gen, Sww, P | X58: =IFERROR(IF(X52 = "Ja", 'EPU-WKK_sww'!B23, IF(X49 = "ja", IF(X53 = "Condenserende ketel", 0.76, 0.67), IF(X53 = "Condenserende ketel", 0.85, 0.75))), 1) -> 0.76
I59: Type Zonnewering | J59: =Overview!H$64 -> geen | W59: η Gen, Sww, NP | X59: =IFERROR(IF(X49 = "ja", 0.76, 0.85), 1) -> 0.76
I60: Locatie Zonnewering | J60: =Overview!H$65 -> overal | W60: PEF, Sww, P | X60: =IF(X54 = "Elektriciteit", 2.5, 1) -> 1
I61: Solar Blinds from… | J61: =Lists!F254 -> -180 | K61: ° | W61: PEF, Sww, NP | X61: =IF(X56 = "Elektriciteit", 2.5, 1) -> 1
I62: Solar Blinds till… | J62: =Lists!G254 -> 180 | K62: °
I63: Solar Blinds Orientation 1 | J63: =IF(OR(AND(J31 >=$J61, J31 <=0), AND(J31 <=$J62, J31 >= 0)), Lists!F241, 1) -> 1 | K63: Fc | W63: Collector Oppervlak Zonneboiler | X63: =IF(Opwekking_SWW_ZB = Lists!E375, Lists!I373, 0) -> 0 | Y63: m²
I64: Solar Blinds Orientation 2 | J64: =IF(OR(AND(J32 >=$J61, J32 <=0), AND(J32 <=$J62, J32 >= 0)), Lists!F241, 1) -> 1 | K64: Fc | W64: Collector Helling Zonneboiler | X64: =Lists!L373 -> 35 | Y64: °
I65: Solar Blinds Orientation 3 | J65: =IF(OR(AND(J33 >=$J61, J33 <=0), AND(J33 <=$J62, J33 >= 0)), Lists!F241, 1) -> 1 | K65: Fc | W65: Collector Orientation | X65: =Lists!M373 -> 0 | Y65: °
I66: Solar Blinds Orientation 4 | J66: =IF(OR(AND(J34 >=$J61, J34 <=0), AND(J34 <=$J62, J34 >= 0)), Lists!F241, 1) -> 1 | K66: Fc | W66: Number of tanks | X66: =IF(X63 = 0, 0, Lists!F$408) -> 0 | Y66: storage tanks
I67: Solar Blinds Roof Orientation 1 | J67: =IF(OR(AND(J49 >=$J61, J49 <=0), AND(J49 <=$J62, J49 >= 0)), Lists!F241, 1) -> 1 | K67: Fc | W67: Volume per tank | X67: =IF(X63 = 0, 0, Lists!F$410) -> 0 | Y67: m³
I68: Solar Blinds Roof Orientation 2 | J68: =IF(OR(AND(J51 >=$J61, J51 <=0), AND(J51 <=$J62, J51 >= 0)), Lists!F241, 1) -> 1 | K68: Fc
I69: Solar Blinds Regulation | J69: =Lists!G241 -> NA | W69: Lengte circulatieleiding | X69: =Lists!H436 -> 20 | Y69: m/kamer
I70: Total Solar Blinds Surface | J70: =SUM( Etot!$B$117, Etot!$B$137, Etot!$B$157, Etot!$B$177, Etot!$B$197, Etot!B217) -> 0 | K70: m² | W70: Isolatieniveau circulatieleiding | X70: =Lists!I436 -> 5.3 | Y70: R (mK/W)
W71: Meerkost verbeterde isolatie circulatieleiding | X71: =IF(Circulatie = Lists!E452, MAX(1.5, 1.1295 * LN(Sim!X46) - 1.5355), 0) -> 0 | Y71: €/m
I72: Building Knots | J72: =Etot!$C$324 -> 0 | K72: W/K | W72: Lengte tapleiding | X72: =Overview!H102 -> 5 | Y72: m/tappunt
W74: v50 | X74: 4.5 | Y74: m³/(h.m²)
W75: n design | X75: =Etot!n_design -> 0 | Y75: personen
W76: V supply, design | X76: =Etot!V_supply_design -> 0 | Y76: m³/h
W77: Ventilation System | X77: =Lists!F538 -> C
W78: SFP supply | X78: =IF(X77 = "D", 0.347, 0) -> 0
W79: SFP extraction | X79: =IF(X77 = "D", 0.256, 0.186) -> 0.186
W80: f ctrl | X80: =Lists!F546 -> 1
W81: r p | X81: =IF(X77 = "D", Lists!G546, 0) -> 0
W82: η test | X82: =IF(X77 = "D", Overview!H91, 0) -> 0
W83: bypass | X83: =Lists!I538 -> 1
W84: f ctrl, heat | X84: 0.5
W85: f ctrl, cool | X85: 0.5
W86: f vent, cool | X86: 1 | Y86: 1 bij WZC? --> zie EPI rekenblad
W88: =Lists!E33 -> Kamers | X88: =Overview!H14 -> 0 | Y88: %
W89: =Lists!E34 -> Leefruimte / Eetzaal / Inkom | X89: =Overview!H15 -> 0 | Y89: %
W90: =Lists!E35 -> Keuken / Kantoor / Leesruimte | X90: =Overview!H16 -> 0 | Y90: %
W91: =Lists!E36 -> Verpleegruimte / Wasserij / Kine | X91: =Overview!H17 -> 0 | Y91: %
W92: =Lists!E37 -> Gangen / Berging / Technisch | X92: =Overview!H18 -> 0 | Y92: %
W93: =Lists!E38 -> Overige | X93: =Overview!H19 -> 0 | Y93: %
W94: =W88 & " Lichtbron" -> Kamers Lichtbron | X94: =Overview!H77 -> Compact Fluo
W95: =W89 & " Lichtbron" -> Leefruimte / Eetzaal / Inkom Lichtbron | X95: =Overview!H78 -> Compact Fluo
W96: Keuken / Kantoor / Leesruimte Lichtbron | X96: =Overview!H79 -> Compact Fluo
W97: Verpleegruimte / Wasserij / Kine Lichtbron | X97: =Overview!H80 -> Compact Fluo
W98: Gangen / Berging / Technisch Lichtbron | X98: =Overview!H81 -> Compact Fluo
W99: Overige Lichtbron | X99: =Overview!H82 -> Compact Fluo
W100: =W88 & " Regeling" -> Kamers Regeling | X100: =Overview!H83 -> geen regeling
W101: =W89 & " Regeling" -> Leefruimte / Eetzaal / Inkom Regeling | X101: =Overview!H84 -> geen regeling
W102: Keuken / Kantoor / Leesruimte Regeling | X102: =Overview!H85 -> geen regeling
W103: Verpleegruimte / Wasserij / Kine Regeling | X103: =Overview!H86 -> geen regeling
W104: Gangen / Berging / Technisch Regeling | X104: =Overview!H87 -> geen regeling
W105: Overige Regeling | X105: =Overview!H88 -> geen regeling
W106: ="Kostprijs Verlichting " & W88 -> Kostprijs Verlichting Kamers | X106: =$J$7 * $X88 / 100 * 'E1'!I511 * Lists!$J510 -> 0 | Y106: €
W107: ="Kostprijs Verlichting " & W89 -> Kostprijs Verlichting Leefruimte / Eetzaal / Inkom | X107: =$J$7 * $X89 / 100 * 'E1'!J511 * Lists!$J511 -> 0 | Y107: €
W108: Kostprijs Verlichting Keuken / Kantoor / Leesruimte | X108: =$J$7 * $X90 / 100 * 'E1'!K511 * Lists!$J512 -> 0 | Y108: €
W109: Kostprijs Verlichting Verpleegruimte / Wasserij / Kine | X109: =$J$7 * $X91 / 100 * 'E1'!L511 * Lists!$J513 -> 0 | Y109: €
W110: Kostprijs Verlichting Gangen / Berging / Technisch | X110: =$J$7 * $X92 / 100 * 'E1'!M511 * Lists!$J514 -> 0 | Y110: €
W111: Kostprijs Verlichting Overige | X111: =$J$7 * $X93 / 100 * 'E1'!N511 * Lists!$J515 -> 0 | Y111: €
W112: ="Kostprijs Regeling " & W88 -> Kostprijs Regeling Kamers | X112: =$J$7 * $X88 / 100 * 'E1'!I511 * $X118 / 100 / 4 * VLOOKUP($X100, Verlichting_Regeling, 2, FALSE) / VLOOKUP(Sim!$X94, Lichtbron, 3, FALSE) -> 0 | Y112: €
W113: ="Kostprijs Regeling " & W89 -> Kostprijs Regeling Leefruimte / Eetzaal / Inkom | X113: =$J$7 * $X89 / 100 * 'E1'!J511 * $X119 / 100 / 4 * VLOOKUP($X101, Verlichting_Regeling, 2, FALSE) / VLOOKUP(Sim!$X95, Lichtbron, 3, FALSE) -> 0 | Y113: €
W114: Kostprijs Regeling Keuken / Kantoor / Leesruimte | X114: =$J$7 * $X90 / 100 * 'E1'!K511 * $X120 / 100 / 4 * VLOOKUP($X102, Verlichting_Regeling, 2, FALSE) / VLOOKUP(Sim!$X96, Lichtbron, 3, FALSE) -> 0 | Y114: €
W115: Kostprijs Regeling Verpleegruimte / Wasserij / Kine | X115: =$J$7 * $X91 / 100 * 'E1'!L511 * $X121 / 100 / 4 * VLOOKUP($X103, Verlichting_Regeling, 2, FALSE) / VLOOKUP(Sim!$X97, Lichtbron, 3, FALSE) -> 0 | Y115: €
W116: Kostprijs Regeling Gangen / Berging / Technisch | X116: =$J$7 * $X92 / 100 * 'E1'!M511 * $X122 / 100 / 4 * VLOOKUP($X104, Verlichting_Regeling, 2, FALSE) / VLOOKUP(Sim!$X98, Lichtbron, 3, FALSE) -> 0 | Y116: €
W117: Kostprijs Regeling Overige | X117: =$J$7 * $X93 / 100 * 'E1'!N511 * $X123 / 100 / 4 * VLOOKUP($X105, Verlichting_Regeling, 2, FALSE) / VLOOKUP(Sim!$X99, Lichtbron, 3, FALSE) -> 0 | Y117: €
W118: =W88 & " Vermogen" -> Kamers Vermogen | X118: =Lists!H510 -> 2.8 | Y118: W/m².100 lux
W119: =W89 & " Vermogen" -> Leefruimte / Eetzaal / Inkom Vermogen | X119: =Lists!H511 -> 2.8 | Y119: W/m².100 lux
W120: Keuken / Kantoor / Leesruimte Vermogen | X120: =Lists!H512 -> 2.8 | Y120: W/m².100 lux
W121: Verpleegruimte / Wasserij / Kine Vermogen | X121: =Lists!H513 -> 2.8 | Y121: W/m².100 lux
W122: Gangen / Berging / Technisch Vermogen | X122: =Lists!H514 -> 2.8 | Y122: W/m².100 lux
W123: Overige Vermogen | X123: =Lists!H515 -> 2.8 | Y123: W/m².100 lux
W125: PV Installed Power | X125: =Lists!H573 * 1000 -> 0 | Y125: W
W126: PV Inclination | X126: =Lists!G573 -> 0 | Y126: °
W127: PV Orientation | X127: =Lists!I573 -> 0 | Y127: °
W128: PV Installation Year | X128: =IFERROR(Lists!E615 / 1, 2014) -> 2014

Sheet Heatloss (hidden)
E2: Temperature Inside | F2: 23 | G2: °C
E3: Temperature Outside | F3: -8 | G3: °C
E4: Density Air | F4: 1.23 | G4: kg/m³
E5: Heat Capacity Air | F5: 1006 | G5: J/(kg.K)
A7: Transmission
F9: A | G9: U | H9: φ
F10: m² | G10: W/m²K | H10: W/K
E11: Floor above Ground | F11: =IF(Sim!J$13 = "boven kelder / parking", Sim!J$12 - Sim!J$12 * (Sim!J14 / 100), Sim!J$12) -> 0 | G11: =Sim!J16 ->  | H11: =F11 * G11 -> 
E12: Floor above Parking / Basement | F12: =IF(Sim!J$13 = "boven kelder / parking", Sim!J$12 * (Sim!J14 / 100), 0) -> 0 | G12: =Sim!J$17 -> 2.987213416 | H12: =F12 * G12 -> 0
E13: Facade | F13: =Sim!J23 -> 0 | G13: =Sim!J24 -> 1.643683143 | H13: =F13 * G13 -> 0
E14: Roof | F14: =Sim!J46 -> 0 | G14: =Sim!J47 -> 2.467206252 | H14: =F14 * G14 -> 0
E15: Windows | F15: =Sim!J57 -> 0 | G15: =Sim!J39 -> 1.91 | H15: =F15 * G15 -> 0
H17: φ
H18: W/K
E19: Building Knots | H19: =Sim!J72 -> 0
E21: Subtotaal | H21: =SUM(H19, H11:H15) -> 
E24: Factor Building Level | F24: 1.16
E26: Transmission Heating Power | F26: =H21 * (F2 - F3) / 1000 * F24 ->  | G26: kW
E27: Transmission Heating Power (excl. Leefruimten etc.) | F27: =F26* (1-Sim!X89/100) ->  | G27: kW
E28: Transmission Heating Power (rooms) | F28: =F26 * Sim!X88 / 100 ->  | G28: kW
A31: Intermittent heating
E33: Usuable Surface | F33: =Sim!J7 -> 0 | G33: m²
E34: Specific Heating Power | F34: =(6*Sim!X88+13*(100-Sim!X88))/100 -> 13 | G34: W/m²
E36: Intermittent Heating Power | F36: =F34 * F33 / 1000 -> 0 | G36: kW
E37: Intermittent Heating Power (excl. Leefruimten etc.) | F37: =F33*(1-Sim!X89/100) * (6*Sim!X88+13*(100-Sim!X88-Sim!X89))/(100-Sim!X89)/1000 -> 0 | G37: kW
E38: Intermittent Heating Power (rooms) | F38: =F33 * Sim!X88 / 100 * 6 / 1000 -> 0 | G38: kW
A40: Infiltration
E42: Heat Loss Surface | F42: =SUM(Sim!J12, Sim!J23, Sim!J46, Sim!J57) -> 0 | G42: m²
E43: e_i | F43: 0.03 | I43: e en eps goed kiezen: volumegewogen gemiddelde van alle ruimten
E44: ε_i | F44: 1 | I44: constante gebouweigenschap in apart tabblad?
E46: Infiltration Heating Power | F46: =Sim!X74 * 2 * F43 * F44 * F42 * F4 * F5 * (F2 - F3) / 3600 /1000 -> 0 | G46: kW | I46: er zit een fout op omwille van temperatuursverschillen binnen het zelfde gebouw
E47: Infiltration Heating Power (excl. Leefruimten etc.) | F47: =F46*(1-Sim!X89/100) -> 0 | G47: kW
E48: Infiltration Heating Power (rooms) | F48: =F46 * Sim!X88 / 100 -> 0 | G48: kW
A50: Ventilation
E52: V supply, design | F52: =Sim!X76 -> 0 | G52: m³/h | I52: piekdebiet ventilatie | L52: design
E53: η test | F53: =Sim!$X$82 / 100 -> 0 | I53: rendement warmterecuperatie
E55: Ventilation Heating Power | F55: =F52 * F4 * F5 * (F2 - F3) / 3600 / 1000 * (1 - F53 / 1.2) -> 0 | G55: kW
E56: Ventilation Heating Power (excl. Leefruimten etc.) | F56: =(F52-'E1'!J11) * F4 * F5 * (F2 - F3) / 3600 / 1000 * (1 - F53 / 1.2) -> 0 | G56: kW
A58: Total Heating Power
E60: Total Heating Power | F60: =SUM(F26, F36, F46, F55) ->  | G60: kW
E62: Total heating power space (excl. Leefruimten etc.) | F62: =F27 + F37 + F47 + IF(Overview!H89 = Lists!E540, F56, 0) ->  | G62: kW
A64: SWW
E66: SWW Heating Power | F66: =ROUND(0.4294 * Sim!X46 + 5.526, 0) -> 6 | G66: kW

Sheet Heatgains (hidden)
E2: Temperature Inside | F2: 27 | G2: °C | I2: in samenspraak met bouwheer wordt dit meestal op 27°C gezet maar standaard is het 25°C. Bij hogere buitentemperaturen (>30°C) wordt er soms wel mee verschoven en zo wordt bijvoorbeeld tot 27°C gekoeld wanneer buiten 32°C. Dit staat dus ter discussie
E3: Temperature Outside | F3: 32 | G3: °C
E4: Density Air | F4: 1.23 | G4: kg/m³
E5: Heat Capacity Air | F5: 1006 | G5: J/(kg.K)
A9: Transmission
E11: Heat Gains Outside Surface | F11: =Heatloss!H21 / 1000 * (F2 - F3) ->  | G11: kW
E13: Factor Building Level | F13: 1
E15: Transmission Cooling Power | F15: =F11 * F13 * Sim!X39 / 100 ->  | G15: kW
A19: Solar Radiation
E22: Orientation | G22: 1 | H22: 2 | I22: 3 | J22: 4 | K22: 5 | L22: 6 | O22: Orientation | P22: Heat Gains
E23: Glass Surface | F23: m² | G23: =Sim!J26 * Sim!X39 / 100 -> 0 | H23: =Sim!J27 * Sim!X39 / 100 -> 0 | I23: =Sim!J28 * Sim!X39 / 100 -> 0 | J23: =Sim!J29 * Sim!X39 / 100 -> 0 | K23: =Sim!J$53 * Sim!X39 / 100 -> 0 | L23: =Sim!J$54 * Sim!X39 / 100 -> 0 | O23: ° | P23: W/m²
E24: Glass Orientation | F24: ° | G24: =Sim!J$31 -> 180 | H24: =Sim!J$32 -> -90 | I24: =Sim!J$33 -> 0 | J24: =Sim!J$34 -> 90 | K24: =Sim!J$49 -> 0 | L24: =Sim!J$51 -> 0 | N24: N | O24: 180 | P24: 0
E25: Solar Radiation | F25: W/m² | G25: =SUMIF($O$24:$O$31,G24,$P$24:$P$31) -> 0 | H25: -250 | I25: -200 | J25: -300 | K25: -200 | L25: -200 | N25: NO | O25: -135 | P25: -200
E26: Solar Blinds | F26: % | G26: =Sim!$J$40 * Sim!$J63 -> 0.52 | H26: =Sim!$J$40 * Sim!$J64 -> 0.52 | I26: =Sim!$J$40 * Sim!$J65 -> 0.52 | J26: =Sim!$J$40 * Sim!$J66 -> 0.52 | K26: =Sim!$J$40 * Sim!$J67 -> 0.52 | L26: =Sim!$J$40 * Sim!$J68 -> 0.52 | N26: O | O26: -90 | P26: -250
E27: Solar Gains | F27: kW | G27: =G25 * G23 * G26 / 1000 -> 0 | H27: =H25 * H23 * H26 / 1000 -> 0 | I27: 0 | J27: 0 | K27: 0 | L27: 0 | N27: ZO | O27: -45 | P27: -250
N28: Z | O28: 0 | P28: -200
N29: ZW | O29: 45 | P29: -250
E30: Solar Radiation Cooling Power | F30: =SUM(G27:L27) * Sim!X89 / 100 -> 0 | G30: kW | N30: W | O30: 90 | P30: -300
N31: NW | O31: 135 | P31: -180
A33: Internal Gains
F35: Unit | H35: Specific Heat Gain | I35: Heat Gain | P35: Lighting | Q35: ='E1'!I7 -> Kamers | R35: ='E1'!J7 -> Leefruimte / Eetzaal / Inkom | S35: ='E1'!K7 -> Keuken / Kantoor / Leesruimte | T35: ='E1'!L7 -> Verpleegruimte / Wasserij / Kine | U35: ='E1'!M7 -> Gangen / Berging / Technisch | V35: ='E1'!N7 -> Overige
H36: W/unit | I36: kW | P36: m² | Q36: ='E1'!I8 -> 0 | R36: ='E1'!J8 -> 0 | S36: ='E1'!K8 -> 0 | T36: ='E1'!L8 -> 0 | U36: ='E1'!M8 -> 0 | V36: ='E1'!N8 -> 0
E37: Persons | F37: pers | G37: =Sim!X47 -> 0 | H37: -100 | I37: =H37 * G37 / 1000 -> 0 | P37: lux | Q37: ='E1'!I511 -> 300 | R37: ='E1'!J511 -> 200 | S37: ='E1'!K511 -> 500 | T37: ='E1'!L511 -> 300 | U37: ='E1'!M511 -> 100 | V37: ='E1'!N511 -> 100
E38: Equipment | F38: m² | G38: =Sim!J7 * Sim!X39 / 100 -> 0 | H38: -2 | I38: =(H38 * G38) / 1000 -> 0 | K38: constante gebouweigenschap in apart tabblad? | P38: kW | Q38: =Sim!X118 *Q36 * Q37 / 100 / 1000 -> 0 | R38: =Sim!X119 *R36 * R37 / 100 / 1000 -> 0 | S38: =Sim!X120 *S36 * S37 / 100 / 1000 -> 0 | T38: =Sim!X121 *T36 * T37 / 100 / 1000 -> 0 | U38: =Sim!X122 *U36 * U37 / 100 / 1000 -> 0 | V38: =Sim!X123 *V36 * V37 / 100 / 1000 -> 0
E39: Lighting | F39: m² | I39: =IF(Sim!J7 * Sim!X39 / 100 <= R36, - R38, - (R38 + MIN(1, (Sim!J7 * Sim!X39 / 100 - R36) / SUM(Q36, T36)) * SUM(Q38, T38))) -> 0
E41: Internal Cooling Power | F41: =SUM(I37:I39) -> 0 | G41: kW
A44: Intermittent Cooling
E46: Specific Cooling Power | F46: 0 | G46: W/m² | I46: weglaten? Gaat 's nachts niet verder opwarmen afgezien van stralingswarmte
E47: Usuable Surface | F47: =Heatloss!F33 -> 0 | G47: m²
E49: Intermittent Cooling Power | F49: =F46*F47/1000 -> 0 | G49: kW
A54: Infiltration
E56: Heat Loss Surface | F56: =Heatloss!F42 -> 0 | G56: m²
E57: e_i | F57: 0.03 | I57: e en eps goed kiezen: volumegewogen gemiddelde van alle ruimten
E58: ε_i | F58: 1 | I58: constante gebouweigenschap in apart tabblad?
E60: Infiltration Cooling Power | F60: =Sim!X74 * 2 * F57 * F58 * F56 * F4 * F5 * (F2 - F3) / 3600 / 1000 * Sim!X39 / 100 -> 0 | G60: kW | I60: er zit een fout op omwille van temperatuursverschillen binnen het zelfde gebouw
A64: Ventilation
E66: V supply, min | F66: ='E1'!J11 -> 0 | G66: m³/h | I66: obv leefruimte plus resterende oppervlakte om aan vooropgesteld percentage gekoelde oppervlakte te komen | P66: Ventilation | Q66: ='E1'!I$7 -> Kamers | R66: ='E1'!J$7 -> Leefruimte / Eetzaal / Inkom | S66: ='E1'!K$7 -> Keuken / Kantoor / Leesruimte | T66: ='E1'!L$7 -> Verpleegruimte / Wasserij / Kine | U66: ='E1'!M$7 -> Gangen / Berging / Technisch | V66: ='E1'!N$7 -> Overige
E67: η test | F67: =Sim!X82 / 100 -> 0 | I67: rendement warmterecuperatie | P67: m³/h | Q67: ='E1'!I$11 -> 0 | R67: ='E1'!J$11 -> 0 | S67: ='E1'!K$11 -> 0 | T67: ='E1'!L$11 -> 0 | U67: ='E1'!M$11 -> 0 | V67: ='E1'!N$11 -> 0
P68: kW | Q68: =Q67 * $F$4 * $F$5 * ($F$2 - $F$3) / 3600 / 1000 * (1 - $F$67 / 1.2) -> 0 | R68: =R67 * $F$4 * $F$5 * ($F$2 - $F$3) / 3600 / 1000 * (1 - $F$67 / 1.2) -> 0 | S68: 0 | T68: 0 | U68: 0 | V68: 0
E69: Ventilation Cooling Power | F69: =IF(Etot!V_supply_min * Sim!X39 / 100 <= R67, R68, (R68 + (Sim!X39 / 100 - (R67 / SUM(Q67:V67))) * SUM(Q68:V68))) -> 0 | G69: kW
A74: Total Cooling Power
E76: gelijktijdigheidsfactor | F76: 1
E78: Total Cooling Power | F78: =SUM(F15, F30, F41, F49, F60, F69) * F76 ->  | G78: kW

Sheet EPU-WKK (hidden)
A1: WKK in een EPU-volume
A2: Resultaten
A3: Equivalent rendement, verwarming | B3: =IF(B123 = 2,"", O154) -> 
A4: Equivalent rendement, bevochtiging | B4: =IF(B157=2,"",O189) -> 
A5: Equivalent rendement, koeling | B5: =IF(B192=2,"",O215) -> 
A6: 1. Algemene vragen WKK-installatie
A7: Zorgt de gebouwgebonden WKK-installatie voor verwarming? | B7: Ja
A8: Zorgt de gebouwgebonden WKK-installatie voor bevochtiging? | B8: Nee
A9: Zorgt de gebouwgebonden WKK-installatie voor warmtelevering aan één of meerdere absorptiekoelmachines? | B9: Nee
A10: Type WKK | B10: Interne verbrandingsmotor op aardgas
A11: Thermisch vermogen WKK [kW] | B11: =Sim!R$37 -> 398.2840127
A12: Elektrisch vermogen WKK gekend? | B12: Ja
A13: Elektrisch vermogen WKK [kW] | B13: =Sim!R$33 -> 0
A14: Elektrisch vermogen WKK | B14: =IF( B101 = 1, B13, B107 * ( B11 ^ B108 )) -> 0
A15: Energiedrager WKK | B15: =Sim!$X$13 -> Aardgas
A16: Is er een buffervat dat dient voor de opslag van warmte afkomstig van de WKK-installatie | B16: Ja
A17: Inhoud van het buffervat [m³] | B17: =Sim!R$34 -> 0
A18: Temperatuur waarop de WKK warmte aflevert [°C] | B18: =Sim!X$10 -> 90
A19: Ontwerp retourtemperatuur warmteafgiftesysteem gekend? | B19: Ja
A20: Type afgiftesysteem | B20: Andere dan oppervlakteverwarming
A21: Ontwerp retourtemperatuur warmteafgiftesysteem [°C] | B21: =Sim!R$30 -> 50
A22: Conventioneel elektrisch rendement WKK | B22: =IF( B100 = 5, 0.77 * B14 / ( B14 + B11 ), B103 * ( B14 ^ B104 )) -> 
A23: Conventioneel thermisch rendement WKK | B23: =IF( B100 = 5, 0.77 * B11 / ( B14 + B11 ), B105 * ( B14 ^ B106 )) -> 
A25: 2. Verwarmingsinstallatie
A26: De WKK-installatie is altijd de preferente warmte-opwekker
A27: Is er een zonnethermisch systeem dat een deel van de warmtevraag dekt? | B27: Nee
A28: Is er ook een niet-preferente warmte-opwekker voor verwarming? | B28: =Sim!X$8 -> Nee
A29: Type niet-preferente opwekker | B29: =Sim!X$17 -> 0
A30: Energiedrager opwekker | B30: =Sim!X$18 -> 0
A31: Plaats ketel / generator | B31: Binnen het beschermd volume
A32: Wordt de ketel permanent warmgehouden? | B32: Nee
A33: Ketel: deellastrendement bij 30 % belasting | B33: =Sim!X$19 -> 
A34: Gemiddelde ketelwatertemperatuur bij 30 % belasting [°C] | B34: =Sim!R$28 -> 30
A35: Ontwerp retourtemperatuur warmteafgiftesysteem gekend? | B35: =B19 -> Ja
A36: Type afgiftesysteem | B36: =B20 -> Andere dan oppervlakteverwarming
A37: Ontwerp retourtemperatuur warmteafgiftesysteem [°C] | B37: =B21 -> 50
A38: Luchtgenerator deellastrendement bij 30 % belasting | B38: 0.7
A39: Seizoensprestatiefactor warmtepomp (Tabblad Warmtepomp) | B39: =WP!B39 -> 
A40: Opwekkingsrendement externe warmtelevering | B40: 0.9
A41: Primaire energiefactor externe warmtelevering | B41: 1
C43: Jan | D43: Feb | E43: Maa | F43: Apr | G43: Mei | H43: Jun | I43: Jul | J43: Aug | K43: Sep | L43: Okt | M43: Nov | N43: Dec
B44: Aandeel bruto behoefte verwarming, gedekt door zonnethermisch systeem | C44: 0 | D44: 0 | E44: 0 | F44: 0 | G44: 0 | H44: 0 | I44: 0 | J44: 0 | K44: 0 | L44: 0 | M44: 0 | N44: 0
B45: Bruto behoefte voor verwarming waar WKK tussenkomt [MJ] | C45: =Etot!B$618 ->  | D45: =Etot!C$618 ->  | E45: =Etot!D$618 ->  | F45: =Etot!E$618 ->  | G45: =Etot!F$618 ->  | H45: =Etot!G$618 ->  | I45: =Etot!H$618 ->  | J45: =Etot!I$618 ->  | K45: =Etot!J$618 ->  | L45: =Etot!K$618 ->  | M45: =Etot!L$618 ->  | N45: =Etot!M$618 -> 
A48: 3. Bevochtigingsinstallatie
A49: De WKK-installatie is altijd de preferente warmte-opwekker
A50: Zijn de opwekkers voor bevochtiging en voor verwarming hetzelfde (inclusief zonnethermisch systeem)? | B50: Nee
A51: Is er een zonnethermisch systeem dat een deel van de warmtevraag dekt? | B51: Nee
A52: Is er ook een niet-preferente warmte-opwekker voor bevochtiging? | B52: Nee
A53: Thermisch vermogen WKK [kW] | B53: 10
A54: Thermisch vermogen niet-preferente warmte-opwekker [kW] | B54: 10
A55: Type niet-preferente opwekker | B55: Condenserende ketel
A56: Energiedrager opwekker | B56: Aardgas
A57: Plaats ketel / generator | B57: Binnen het beschermd volume
A58: Wordt de ketel permanent warmgehouden? | B58: Nee
A59: Ketel: deellastrendement bij 30 % belasting | B59: 1
A60: Gemiddelde ketelwatertemperatuur bij 30 % belasting [°C] | B60: 30
A61: Ontwerp retourtemperatuur warmteafgiftesysteem [°C] | B61: 70
A62: Luchtgenerator deellastrendement bij 30 % belasting | B62: 0.7
A63: Seizoensprestatiefactor warmtepomp (Tabblad Warmtepomp) | B63: =WP!B39 -> 
A64: Opwekkingsrendement externe warmtelevering | B64: 0.9
A65: Primaire energiefactor externe warmtelevering | B65: 1
C67: Jan | D67: Feb | E67: Maa | F67: Apr | G67: Mei | H67: Jun | I67: Jul | J67: Aug | K67: Sep | L67: Okt | M67: Nov | N67: Dec
B68: Aandeel bruto behoefte verwarming, gedekt door zonnethermisch systeem | C68: 1 | D68: 0 | E68: 0 | F68: 0 | G68: 0 | H68: 0 | I68: 0 | J68: 0 | K68: 0 | L68: 0 | M68: 0 | N68: 0
B69: Netto behoefte voor bevochtiging waar WKK tussenkomt [MJ] | C69: 10273.71422 | D69: 8526.85956 | E69: 7519.829446 | F69: 4379.990457 | G69: 1116.517449 | H69: 17.82981589 | I69: 0 | J69: 0 | K69: 202.5505757 | L69: 3153.224336 | M69: 7324.674207 | N69: 10094.44492
A72: 4. (Absorptie)koeling op warmtekrachtkoppeling
A73: De absorptiekoelmachine is altijd de preferente koudeleverancier
A74: Is er ook een niet-preferente koudeleverancier? | B74: Ja
A75: Type niet-preferente koudeleverancier | B75: Absorptiekoelmachine op externe warmtelevering
A76: Energie-efficiëntieverhouding compressiekoelmachine | B76: 5
A77: Opwekkingsrendement externe warmtelevering | B77: 0.9
A78: Primaire energiefactor externe warmtelevering | B78: 1
A79: Nominale vermogen van de absorptiekoelmachine [kW] | B79: 10
A80: Nominale vermogen van de niet-preferente koudeleverancier(s) [kW] | B80: 10
C82: Jan | D82: Feb | E82: Maa | F82: Apr | G82: Mei | H82: Jun | I82: Jul | J82: Aug | K82: Sep | L82: Okt | M82: Nov | N82: Dec
B83: Bruto behoefte voor koeling waar WKK tussenkomt (MJ) | C83: 670.2278733 | D83: 605.3671114 | E83: 670.2278733 | F83: 648.6076194 | G83: 670.2278733 | H83: 648.6076194 | I83: 670.2278733 | J83: 670.2278733 | K83: 648.6076194 | L83: 670.2278733 | M83: 648.6076194 | N83: 670.2278733
A89: Vanaf hieronder te verbergen
A99: WKK
A100: Index WKK | B100: =VLOOKUP($B$10,TTypeWKK,2,FALSE) -> 1
A101: Index vermogen gekend | B101: =IF($B$100=5,1,VLOOKUP($B$12,T_JaNee,2,FALSE)) -> 1
A102: Index elek vermogen (hulpindex voor kolom a elec, ...) | B102: =IF(B100=5,"nvt",IF(B14<5,3,IF(B14<=5000,4,5))) -> 3
A103: a elec | B103: =IF($B$100=5,"nvt",VLOOKUP($B$10,TTypeWKK,$B$102)) -> 0.251
A104: b elec | B104: =IF($B$100=5,"nvt",VLOOKUP($B$10,TTypeWKK,$B$102+3)) -> 0
A105: a th | B105: =IF($B$100=5,"nvt",VLOOKUP($B$10,TTypeWKK,$B$102+6)) -> 0.573
A106: b th | B106: =IF($B$100=5,"nvt",VLOOKUP($B$10,TTypeWKK,$B$102+9)) -> 0
A107: a | B107: =IF($B$100=5,"nvt",IF($B$101=1,"nvt",VLOOKUP($B$10,TTypeWKK,15))) -> nvt
A108: b | B108: =IF($B$100=5,"nvt",IF($B$101=1,"nvt",VLOOKUP($B$10,TTypeWKK,16))) -> nvt
A109: Index buffer | B109: =VLOOKUP(B16,T_JaNee,2) -> 1
A110: theta cogen | B110: =IF(B109=2,"nvt",B18) -> 90
A111: index ontwerpretourtemp gekend | B111: =IF(B109=2,"nvt",VLOOKUP(B19,T_JaNee,2)) -> 1
A112: theta return,design | B112: =IF(B109=2,"nvt",IF(B111=1,B21,VLOOKUP(B20,Tafgiftesysteem,4))) -> 50
A113: Vstor,30 min | B113: =IF(B109=2,"nvt",0.44*B11/(B110-B112)) -> 4.38112414
A114: Index WKK met opslag (1 = beschouwd als opslag; 2 = niet beschouwd als opslag) | B114: =IF(B109=2,2,IF(B17<B113,2,1)) -> 2
C116: Jan | D116: Feb | E116: Maa | F116: Apr | G116: Mei | H116: Jun | I116: Jul | J116: Aug | K116: Sep | L116: Okt | M116: Nov | N116: Dec
A117: Totale bruto behoefte door WKK+niet-pref gedekt | C117: =IF($B123=1,C145,0)+IF($B157=1,C180,0)+IF($B192=1,C227/eta_sorption_WKK,0) ->  | P117: Formule moet aangepast worden indien de WKK ook instaat voor bevochting en koeling
A118: Xm | C118: =C117/(($B$11*1000)*Constanten!B167) ->  | D118: =D117/(($B$11*1000)*Constanten!C167) ->  | E118: =E117/(($B$11*1000)*Constanten!D167) ->  | F118: =F117/(($B$11*1000)*Constanten!E167) ->  | G118: =G117/(($B$11*1000)*Constanten!F167) ->  | H118: =H117/(($B$11*1000)*Constanten!G167) ->  | I118: =I117/(($B$11*1000)*Constanten!H167) ->  | J118: =J117/(($B$11*1000)*Constanten!I167) ->  | K118: =K117/(($B$11*1000)*Constanten!J167) ->  | L118: =L117/(($B$11*1000)*Constanten!K167) ->  | M118: =M117/(($B$11*1000)*Constanten!L167) ->  | N118: =N117/(($B$11*1000)*Constanten!M167) -> 
A119: fpref (indien WKK niet enige warmteopwekker - te corrigeren indien toch alleen) | C119: =IF($B$114=2,IF(C118<0.2,0,IF(C118<0.6,1.25*C118-0.25,IF(C118<0.92,0.5,0.77/(C118+0.62)))),IF(C118<0.05,0,IF(C118<0.25,2.9*C118-0.145,IF(C118<0.42,0.94*C118+0.345,0.77/(C118+0.62))))) ->  | D119: =IF($B$114=2,IF(D118<0.2,0,IF(D118<0.6,1.25*D118-0.25,IF(D118<0.92,0.5,0.77/(D118+0.62)))),IF(D118<0.05,0,IF(D118<0.25,2.9*D118-0.145,IF(D118<0.42,0.94*D118+0.345,0.77/(D118+0.62))))) -> 
A122: Verwarming
A123: Index verwarming | B123: =VLOOKUP(B7,T_JaNee,2,FALSE) -> 1
A124: Index zonnethermisch systeem, heat | B124: =IF(B123=2,"nvt",VLOOKUP(B27,T_JaNee,2,FALSE)) -> 2
A125: Index niet-preferente warmte-opwekker, heat | B125: =IF(B123=2,"nvt",VLOOKUP(B28,T_JaNee,2,FALSE)) -> 2
A126: Rendement niet-preferente opwekker voor verwarming | B126: =IF(B125=1,B140,"nvt") -> nvt
A127: primaire energiefactor npref | B127: =IF(B125=1,IF(OR(B131=6,B131=4),T_fpelek,IF(B131=5,B41,VLOOKUP(B30,T_Energiedragerzonderelek,3,FALSE))),"nvt") -> nvt
A128: primaire energiefactor WKK | B128: =IF(B123=2,"nvt",IF(B100=5,VLOOKUP(B15,T_Energiedragerzonderelek,3,FALSE),1)) -> 1
A130: Hulpvariabelen productierendement verwarming
A131: Type opwekker verwarming | B131: =IF(B125=1,VLOOKUP(B29,T_Verwarmingtype,2,FALSE),"nvt") -> nvt
A132: Index plaats ketel / generator | B132: =IF(B125=1,IF(B131<5,VLOOKUP(B31,T_PlaatsKetel,2,FALSE),1),"nvt") -> nvt
A133: Vermindering rendement tgv plaats | B133: =IF(B125=1,IF(B132=1,0,0.02),"nvt") -> nvt
A134: Index ontwerpretourtemperatuur gekend | B134: =IF(B125=1,IF(B131=2,IF(B109=1,"nvt",VLOOKUP(B35,T_JaNee,2)),"nvt"),"nvt") -> nvt
A135: Ontwerpretourtemperatuur (in geval van condenserende ketel) | B135: =IF(B125=1,IF(B131=2,IF(B109=1,B112,IF(B134=1,B37,VLOOKUP(B36,Tafgiftesysteem,4))),"nvt"),"nvt") -> nvt
A136: Vermeerdering rendement condenserende ketel | B136: =IF(B125=1,IF(B131=2,0.003*(B34-(6.4+0.63*B135)),0),"nvt") -> nvt
A137: Index ketelwatertemperatuur (0=nvt,1=ct,2=var) | B137: =IF(B125=1,IF(B131<3,VLOOKUP(B32,T_JaNee,2,FALSE),0),"nvt") -> nvt
A138: Vermindering rendement tgv cte temperatuur | B138: =IF(B125=1,IF(B137=1,0.05,0),"nvt") -> nvt
A139: verhouding onderste tot bovenste verbrandingswaarde | B139: =IF(B125=1,IF(OR(B131=4,B131=6),1,VLOOKUP(B30,T_Energiedragerzonderelek,4,FALSE)),"nvt") -> nvt
A140: productierendement npref | B140: =IF(B125=1,IF(B131=6,B39,IF(B131=5,B40,IF(B131=4,1-B133,-B133+IF(B131<3,B139*(B33+B136)-B138,B38*B139)))),"nvt") -> nvt
C142: Jan | D142: Feb | E142: Maa | F142: Apr | G142: Mei | H142: Jun | I142: Jul | J142: Aug | K142: Sep | L142: Okt | M142: Nov | N142: Dec | O142: TOT
A143: fas,heat,seci,m (voor alle i dezelfde) | C143: =IF($B124=1,C44,0) -> 0 | D143: 0 | E143: 0 | F143: 0 | G143: 0 | H143: 0 | I143: 0 | J143: 0 | K143: 0 | L143: 0 | M143: 0 | N143: 0
A144: SUMalli(Qheat,seci,gross) | C144: =IF($B123=1,C45,0) ->  | O144: =SUM(C144:N144) -> 
A145: SUMalli(Qheat,gross,sec i,m*(1-fas,heat,seci,m)) | C145: =C144*(1-C143) ->  | O145: =SUM(C145:N145) -> 
A146: fheat,seci,m,pref (voor alle i dezelfde) | C146: =IF($B125=2,1,C119) -> 1 | D146: =IF($B125=2,1,D119) -> 1 | E146: 1 | F146: 1 | G146: 1 | H146: 1 | I146: 1 | J146: 1 | K146: 1 | L146: 1 | M146: 1 | N146: 1
A147: Qheat,demand,cogen,m (MJ) | C147: =C146*C145 ->  | O147: =SUM(C147:N147) -> 
A148: Wcogen,heat,m (kWh) | C148: =$B$22/3.6*C147/$B$23 ->  | D148: =$B$22/3.6*D147/$B$23 -> 
A149: Ep,cogen,heat,m (MJ) | C149: =C148*3.6*T_fpelekcogen ->  | D149: =D148*3.6*T_fpelekcogen -> 
A150: SUMalli(Qheat,final,seci,m,pref) | C150: =C146*C145/$B$23 ->  | D150: =D146*D145/$B$23 -> 
A151: SUMalli(Qheat,final,seci,m,npref) | C151: =IF($B125=2,0,(1-C146)*C145/$B$126) -> 0 | D151: =IF($B125=2,0,(1-D146)*D145/$B$126) -> 0 | E151: 0 | F151: 0 | G151: 0 | H151: 0 | I151: 0 | J151: 0 | K151: 0 | L151: 0 | M151: 0 | N151: 0 | O151: 0
A152: Ep,heat,m | C152: =$B$128*C150+IF($B125=2,0,$B$127*C151) ->  | D152: =$B$128*D150+IF($B125=2,0,$B$127*D151) -> 
A153: Ep,heat,m-Ep,cogen,heat,m | C153: =C152-C149 -> 
A154: equivalent rendement,heat | C154: =C145/C153 ->  | O154: =O145/O153 -> 
A156: Bevochtiging | B156: Niet up-to-date
A157: Index bevochtiging | B157: =VLOOKUP(B8,T_JaNee,2,FALSE) -> 2
A158: Index heat = bevochtiging | B158: =IF(B123=2,2,IF(B157=2,2,VLOOKUP(B50,T_JaNee,2,FALSE))) -> 2
A159: Index zonnethermisch systeem, bevochtiging | B159: =IF(B157=2,2,IF(B158=1,B124,VLOOKUP(B51,T_JaNee,2,FALSE))) -> 2
A160: Index niet-preferente warmte-opwekker, bevochtiging | B160: =IF(B157=2,2,IF(B158=1,B125,VLOOKUP(B52,T_JaNee,2,FALSE))) -> 2
A161: Aandeel pref,bevochtiging | B161: =IF(B158=1,#REF!,B53/(B53+B54)) -> 0.5
A162: Index aandeel preferente warmte-opwekker, bevochtging | B162: =IF(B161<Constanten!A24,Constanten!B24,IF(B161<Constanten!A25,Constanten!B25,IF(B161<Constanten!A26,Constanten!B26,IF(B161<Constanten!A27,Constanten!B27,IF(B161<Constanten!A28,Constanten!B28,IF(B161<Constanten!A29,Constanten!B29,Constanten!B30)))))) -> 5
A163: Rendement niet-preferente opwekker voor bevochtiging | B163: =IF(B158=1,B126,B175) -> 0.84465
A164: primaire energiefactor npref | B164: =IF(B168=6,T_fpelek,IF(B168=4,T_fpelek,IF(B168=5,B65,VLOOKUP(B56,T_Energiedragerzonderelek,3,FALSE)))) -> 1
A165: primaire energiefactor WKK | B165: =VLOOKUP(B15,T_Energiedragerzonderelek,3,FALSE) -> 1
A167: Hulpvariabelen productierendement bevochtiging (indien verschillend van verwarming)
A168: Type opwekker bevochtiging | B168: =VLOOKUP(B55,T_Verwarmingtype,2,FALSE) -> 2
A169: Index plaats ketel / generator | B169: =IF(B168<5,VLOOKUP(B57,T_PlaatsKetel,2,FALSE),1) -> 1
A170: Vermindering rendement tgv plaats | B170: =IF(B169=1,0,0.02) -> 0
A171: Vermeerdering rendement condenserende ketel | B171: =IF(B168=2,0.003*(B60-(6.4+0.63*B61)),0) -> -0.0615
A172: Index ketelwatertemperatuur (0=nvt,1=ct,2=var) | B172: =IF(B168<3,VLOOKUP(B58,T_JaNee,2,FALSE),0) -> 2
A173: Vermindering rendement tgv cte temperatuur | B173: =IF(B172=1,0.05,0) -> 0
A174: verhouding onderste tot bovenste verbrandingswaarde | B174: =VLOOKUP(B56,T_Energiedragerzonderelek,4,FALSE) -> 0.9
A175: productierendement | B175: =IF(B168=6,B63,IF(B168=5,B64,IF(B168=4,1-B170,-B170+IF(B168<3,B174*(B59+B171)-B173,B62*B174)))) -> 0.84465
C177: Jan | D177: Feb | E177: Maa | F177: Apr | G177: Mei | H177: Jun | I177: Jul | J177: Aug | K177: Sep | L177: Okt | M177: Nov | N177: Dec | O177: TOT
A178: fas,hum,j,m (voor alle j dezelfde) | C178: =IF($B$158=1,C143,IF($B159=1,C68,0)) -> 0 | D178: 0 | E178: 0 | F178: 0 | G178: 0 | H178: 0 | I178: 0 | J178: 0 | K178: 0 | L178: 0 | M178: 0 | N178: 0
A179: SUMallj(Qhum,net,j,m) | C179: =C69 -> 10273.71422 | D179: 8526.85956 | E179: 7519.829446 | F179: 4379.990457 | G179: 1116.517449 | H179: 17.82981589 | I179: 0 | J179: 0 | K179: 202.5505757 | L179: 3153.224336 | M179: 7324.674207 | N179: 10094.44492 | O179: =SUM(C179:N179) -> 52609.63499
A180: fheat,humj,m,pref (voor alle j dezelfde) | C180: =IF($B160=2,1,IF($B158=1,#REF!,VLOOKUP($B$162,T_fprefheatEPU,2,FALSE))) -> 1 | D180: =IF($B160=2,1,IF($B158=1,#REF!,VLOOKUP($B$162,T_fprefheatEPU,2,FALSE))) -> 1 | E180: =IF($B160=2,1,IF($B158=1,#REF!,VLOOKUP($B$162,T_fprefheatEPU,2,FALSE))) -> 1 | F180: =IF($B160=2,1,IF($B158=1,#REF!,VLOOKUP($B$162,T_fprefheatEPU,2,FALSE))) -> 1 | G180: =IF($B160=2,1,IF($B158=1,#REF!,VLOOKUP($B$162,T_fprefheatEPU,2,FALSE))) -> 1 | H180: =IF($B160=2,1,IF($B158=1,#REF!,VLOOKUP($B$162,T_fprefheatEPU,2,FALSE))) -> 1 | I180: =IF($B160=2,1,IF($B158=1,#REF!,VLOOKUP($B$162,T_fprefheatEPU,2,FALSE))) -> 1 | J180: =IF($B160=2,1,IF($B158=1,#REF!,VLOOKUP($B$162,T_fprefheatEPU,2,FALSE))) -> 1 | K180: =IF($B160=2,1,IF($B158=1,#REF!,VLOOKUP($B$162,T_fprefheatEPU,2,FALSE))) -> 1 | L180: =IF($B160=2,1,IF($B158=1,#REF!,VLOOKUP($B$162,T_fprefheatEPU,2,FALSE))) -> 1 | M180: =IF($B160=2,1,IF($B158=1,#REF!,VLOOKUP($B$162,T_fprefheatEPU,2,FALSE))) -> 1 | N180: =IF($B160=2,1,IF($B158=1,#REF!,VLOOKUP($B$162,T_fprefheatEPU,2,FALSE))) -> 1
A181: SUMalli(Qhum,net,j,m*(1-fas,hum,j,m)) | C181: =C179*(1-C178) -> 10273.71422 | D181: 8526.85956 | E181: 7519.829446 | F181: 4379.990457 | G181: 1116.517449 | H181: 17.82981589 | I181: 0 | J181: 0 | K181: 202.5505757 | L181: 3153.224336 | M181: 7324.674207 | N181: 10094.44492 | O181: =SUM(C181:N181) -> 52609.63499
A182: Qhum,demand,cogen,m (MJ) | C182: =C180*C181 -> 10273.71422 | D182: 8526.85956 | E182: 7519.829446 | F182: 4379.990457 | G182: 1116.517449 | H182: 17.82981589 | I182: 0 | J182: 0 | K182: 202.5505757 | L182: 3153.224336 | M182: 7324.674207 | N182: 10094.44492 | O182: =SUM(C182:N182) -> 52609.63499
A183: Wcogen,hum,m (kWh) | C183: =$B$22/3.6*C182/$B$23 ->  | O183: =SUM(C183:N183) -> 
A184: Ep,cogen,hum,m (MJ) | C184: =C183*3.6*T_fpelekcogen ->  | O184: =SUM(C184:N184) -> 
A185: SUMallj(Qhum,final,j,m,pref) | C185: =C180*C181/$B$23 -> 
A186: SUMallj(Qhum,final,j,m,npref) | C186: =(1-C180)*C181/$B$163 -> 0 | D186: 0 | E186: 0 | F186: 0 | G186: 0 | H186: 0 | I186: 0 | J186: 0 | K186: 0 | L186: 0 | M186: 0 | N186: 0
A187: Ep,hum,m | C187: =$B$165*C185+$B$164*C186 ->  | O187: =SUM(C187:N187) -> 
A188: Ep,hum,m-Ep,cogen,hum,m | C188: =C187-C184 ->  | O188: =SUM(C188:N188) -> 
A189: equivalent rendement,hum | C189: =C181/C188 -> 
A191: Koeling | B191: Niet up-to-date
A192: Index koeling | B192: =VLOOKUP(B9,T_JaNee,2,FALSE) -> 2
A193: Index niet-preferente warmte-opwekker, cool | B193: =IF(B192=2,2,VLOOKUP(B74,T_JaNee,2,FALSE)) -> 2
A194: Aandeel pref,cool | B194: =IF(B193=2,1,B79/(B79+B80)) -> 1
A195: Index aandeel preferente warmte-opwekker, cool | B195: =IF(B194<Constanten!A35,Constanten!B35,IF(B194<Constanten!A36,Constanten!B36,IF(B194<Constanten!A37,Constanten!B37,IF(B194<Constanten!A38,Constanten!B38,Constanten!B39)))) -> 5
A196: Rendement niet-preferente koudeleverancier | B196: =B202 -> 0.63
A197: primaire energiefactor npref | B197: =IF(B201=2,B78,2.5) -> 1
A198: primaire energiefactor WKK | B198: =VLOOKUP(B15,T_Energiedragerzonderelek,3,FALSE) -> 1
A200: Hulpvariabelen productierendement koeling
A201: Type niet-preferente koudeleverancier | B201: =VLOOKUP(B75,T_Koudetype,2,FALSE) -> 2
A202: productierendement npref | B202: =IF(B201=1,B76,IF(B201=2,0.7*B77,IF(B201=3,12,5))) -> 0.63
C204: Jan | D204: Feb | E204: Maa | F204: Apr | G204: Mei | H204: Jun | I204: Jul | J204: Aug | K204: Sep | L204: Okt | M204: Nov | N204: Dec | O204: TOT
A205: SUMalli(Qcool,seci,gross,m) | C205: =C83 -> 670.2278733 | D205: 605.3671114 | E205: 670.2278733 | F205: 648.6076194 | G205: 670.2278733 | H205: 648.6076194 | I205: 670.2278733 | J205: 670.2278733 | K205: 648.6076194 | L205: 670.2278733 | M205: 648.6076194 | N205: 670.2278733 | O205: =SUM(C205:N205) -> 7891.392702
A206: fcool,seci,pref (voor alle i dezelfde) | C206: =IF($B193=2,1,VLOOKUP($B$195,T_fprefcoolEPU,2,FALSE)) -> 1 | D206: 1 | E206: 1 | F206: 1 | G206: 1 | H206: 1 | I206: 1 | J206: 1 | K206: 1 | L206: 1 | M206: 1 | N206: 1
A207: Qcool,demand,cogen,m (MJ) | C207: =C206*C205 -> 670.2278733 | D207: 605.3671114 | E207: 670.2278733 | F207: 648.6076194 | G207: 670.2278733 | H207: 648.6076194 | I207: 670.2278733 | J207: 670.2278733 | K207: 648.6076194 | L207: 670.2278733 | M207: 648.6076194 | N207: 670.2278733 | O207: =SUM(C207:N207) -> 7891.392702
A208: Wcogen,cool,m (kWh) | C208: =$B$22/3.6*C207/$B$23 ->  | O208: =SUM(C208:N208) -> 
A209: Ep,cogen,cool,m (MJ) | C209: =C208*3.6*T_fpelekcogen ->  | O209: =SUM(C209:N209) -> 
A210: SUMalli(Qcool,final,seci,m,pref) | C210: =C206*C205/$B$23 -> 
A211: SUMalli(Qcool,final,seci,m,npref) | C211: =(1-C206)*C205/$B$202 -> 0 | D211: 0 | E211: 0 | F211: 0 | G211: 0 | H211: 0 | I211: 0 | J211: 0 | K211: 0 | L211: 0 | M211: 0 | N211: 0
A212: Ep,cool,m | C212: =$B$198*C210+$B$197*C211 ->  | O212: =SUM(C212:N212) -> 
A213: Ep,cool,m-Ep,cogen,cool,m | C213: =C212-C209 ->  | O213: =SUM(C213:N213) -> 
A214: equivalent rendement,cool | C214: =C205/C213 -> 
O215: =O214/0.7 -> 

Sheet WP (hidden)
A2: Berekening warmtepomp
A4: De prestatiecoefficient onder testomstandigheden (COPtest) | B4: 4.7
A5: warmtebron | B5: bodem
A6: afgiftemedium | B6: water
A8: fθ
A9: gebruik waarde bij ontstentenis? | B9: ja
A10: type warmteafgiftesysteem? | B10: Vloer- , muur- en plafondverwarming
A11: vertrektemperatuur naar het systeem van warmte-afgifte bij de ontwerpomstandigheden θsupply,design | B11: 55 | C11: [°C]
A13: fθ | B13: =IF(B44<>1,1,1+0.01*(43-B46)) -> 
A15: fΔθ
A16: gebruik waarde bij ontstentenis? | B16: nee
A17: temperatuurverschil tussen vertrek en retour van het afgiftesysteem bij ontwerpomstandigheden [°C] | B17: 7
A18: temperatuurtoename van het water over de condensor, bij test volgens EN 14511 [°C] | B18: 9.9
A20: fΔθ | B20: =IF(B44<>1,1,IF(B47=1,0.93,1+0.01*(B17-B18))) -> 0.971
A22: fpumps
A23: Is er een pomp voor warmtetoevoer naar de verdamper? | B23: ja
A24: Elektrisch vermogen van de pomp gekend? | B24: ja
A25: Elektrisch vermogen van de pomp [kW] | B25: 7
A26: Elektrisch vermogen van de warmtepomp volgens EN 14511 bij dezelfde testomstandigheden als waarbij COPtest werd bepaald [kW] | B26: 20
A28: fpumps | B28: =IF(B48=2,1,IF(B49=1,1/(1+B25/B26),5/6)) -> 0.7407407407
A30: fAHU
A31: gebruik waarde bij ontstentenis? | B31: nee
A32: ontwerptoevoerdebiet doorheen de installatie [m³/h] | B32: 80
A33: ontwerpafvoerdebiet doorheen de installatie [m³/h] | B33: 20
A34: maximum luchtdebiet doorheen de installatie, zoals opgegeven door de fabrikant [m³/h] | B34: 30
A35: luchtdebiet doorheen de installatie bij de test volgens EN 14511 [m³/h] | B35: 20
A37: fAHU | B37: =IF(AND(B43<4,B44<3),1,IF(B51=1,B71,B64)) -> 1
A39: Seizoensprestatiefactor (SPF) | B39: =B13*B20*B28*B37*B4 -> 
A42: hulpvariabelen
A43: warmtebron | B43: =VLOOKUP(B5,Twarmtebron,2,FALSE) -> 1
A44: afgiftemedium | B44: =VLOOKUP(B6,Tafgiftemedium,2,FALSE) -> 1
A45: vertrekt° naar afgiftesysteem; wbo? | B45: =VLOOKUP(B9,TJaNee,2,FALSE) -> 1
A46: θsupply,design | B46: =IF(B45=1,VLOOKUP(B10,Tafgiftesysteem,3,FALSE),B11) -> 
A47: fΔθ, waarde bij ontstentenis? | B47: =VLOOKUP(B16,TJaNee,2,FALSE) -> 2
A48: is er pomp voor warmtetoevoer naar verdamper? | B48: =IF(B43=2,1,IF(B43>2,2,VLOOKUP(B23,TJaNee,2,FALSE))) -> 1
A49: Elektrisch vermogen van pomp gekend? | B49: =VLOOKUP(B24,TJaNee,2,FALSE) -> 1
A50: gebruik ventilatie afvoer en toevoer, met detailberekening fahu? | B50: =OR(AND(B44=3,OR(B43=4,B43=5)),AND(B43=4,OR(B44=3,B44=4))) -> FALSE
A51: fAHU, gebruik waarde bij ontstentenis? | B51: =VLOOKUP(B31,TJaNee,2,FALSE) -> 2
A53: ontwerptoevoerdebiet nodig in detail? | B53: =IF(B51=1,FALSE,AND(B44=3,OR(B43=4,B43=5))) -> FALSE
A54: ontwerpafvoerdebiet nodig in detail? | B54: =IF(B51=1,FALSE,AND(B43=4,OR(B44=3,B44=4))) -> FALSE
A55: maximum luchtdebiet nodig in detail? | B55: =IF(B51=1,FALSE,OR(B53,B54)) -> FALSE
A56: luchtdebiet doorheen installatie bij test in detail? | B56: =IF(B51=1,FALSE,B55) -> FALSE
A58: ventilatielucht
A59: enige warmtebron, enig afgiftemedium | B59: =IF(B34=0,1,(0.51+0.7*MIN(B32,B33)/B34)/(0.51+0.7*B35/B34)) -> 1
A60: enige warmtebron, niet enig afgiftemedium | B60: =IF(B$34=0,1,(0.75+0.35*B$33/B$34)/(0.75+0.35*B$35/B$34)) -> 1
A61: niet enige warmtebron, enig afgiftemedium | B61: =IF(B34=0,1,(0.75+0.35*B$32/B$34)/(0.75+0.35*B$35/B$34)) -> 1.711864407
A62: andere | B62: 1
A64: fahu | B64: =IF($B43=4,IF($B44=3,B59,IF($B44=4,B60,1)),IF($B43=5,IF($B44=3,B61,B62),1)) -> 1
B66: 0.51
B67: 0.75
B68: 0.75
B69: 1
B71: =IF($B43=4,IF($B44=3,B66,IF($B44=4,B67,1)),IF($B43=5,IF($B44=3,B68,B69),1)) -> 1

Sheet EPU-WKK_sww (hidden)
A1: WKK in een EPU-volume
A2: Resultaten
A3: Equivalent rendement, sww | B3: =IF(B123 = 2,"", O154) -> 
A4: Equivalent rendement, bevochtiging | B4: =IF(B157=2,"",O189) -> 
A5: Equivalent rendement, koeling | B5: =IF(B192=2,"",O215) -> 
A6: 1. Algemene vragen WKK-installatie
A7: Zorgt de gebouwgebonden WKK-installatie voor sww? | B7: Ja
A8: Zorgt de gebouwgebonden WKK-installatie voor bevochtiging? | B8: Nee
A9: Zorgt de gebouwgebonden WKK-installatie voor warmtelevering aan één of meerdere absorptiekoelmachines? | B9: Nee
A10: Type WKK | B10: Interne verbrandingsmotor op aardgas
A11: Thermisch vermogen WKK [kW] | B11: =Sim!R$40 -> 70
A12: Elektrisch vermogen WKK gekend? | B12: Ja
A13: Elektrisch vermogen WKK [kW] | B13: =Sim!R$35 -> 0
A14: Elektrisch vermogen WKK | B14: =IF( B101 = 1, B13, B107 * ( B11 ^ B108 )) -> 0
A15: Energiedrager WKK | B15: =Sim!X$54 -> Aardgas
A16: Is er een buffervat dat dient voor de opslag van warmte afkomstig van de WKK-installatie | B16: Ja
A17: Inhoud van het buffervat [m³] | B17: =Sim!R$36 -> 0
A18: Temperatuur waarop de WKK warmte aflevert [°C] | B18: =Sim!X$10 -> 90 | D18: to check
A19: Ontwerp retourtemperatuur warmteafgiftesysteem gekend? | B19: Nee
A20: Type afgiftesysteem | B20: Andere dan oppervlakteverwarming
A21: Ontwerp retourtemperatuur warmteafgiftesysteem [°C] | B21: 10 | D21: gemiddelde leidingwatertemperatuur
A22: Conventioneel elektrisch rendement WKK | B22: =IF( B100 = 5, 0.77 * B14 / ( B14 + B11 ), B103 * ( B14 ^ B104 )) -> 
A23: Conventioneel thermisch rendement WKK | B23: =IF( B100 = 5, 0.77 * B11 / ( B14 + B11 ), B105 * ( B14 ^ B106 )) -> 
A25: 2. swwsinstallatie
A26: De WKK-installatie is altijd de preferente warmte-opwekker
A27: Is er een zonnethermisch systeem dat een deel van de warmtevraag dekt? | B27: =IF(Sim!X63 > 0, "Ja", "Nee") -> Nee
A28: Is er ook een niet-preferente warmte-opwekker voor sww? | B28: =Sim!X$51 -> Nee
A29: Type niet-preferente opwekker | B29: =Sim!X$55 -> 0
A30: Energiedrager opwekker | B30: =Sim!X$56 -> 0
A31: Plaats ketel / generator | B31: Binnen het beschermd volume
A32: Wordt de ketel permanent warmgehouden? | B32: Nee
A33: Ketel: deellastrendement bij 30 % belasting | B33: 1.07 | D33: in de EPB berekening worden de standaard rendementen beschouwd (0.45/0.5 voor verbrandingsketel met/zonder opslag)
A34: Gemiddelde ketelwatertemperatuur bij 30 % belasting [°C] | B34: =Sim!$R$28 -> 30
A35: Ontwerp retourtemperatuur warmteafgiftesysteem gekend? | B35: =B19 -> Nee
A36: Type afgiftesysteem | B36: =B20 -> Andere dan oppervlakteverwarming
A37: Ontwerp retourtemperatuur warmteafgiftesysteem [°C] | B37: 10 | D37: gemiddelde leidingwatertemperatuur
A38: Luchtgenerator deellastrendement bij 30 % belasting | B38: 0.7
A39: Seizoensprestatiefactor warmtepomp (Tabblad Warmtepomp) | B39: =WP!B39 -> 
A40: Opwekkingsrendement externe warmtelevering | B40: 0.9
A41: Primaire energiefactor externe warmtelevering | B41: 1
C43: Jan | D43: Feb | E43: Maa | F43: Apr | G43: Mei | H43: Jun | I43: Jul | J43: Aug | K43: Sep | L43: Okt | M43: Nov | N43: Dec
B44: Aandeel bruto behoefte sww, gedekt door zonnethermisch systeem | C44: =Etot!B663 / Etot!B656 ->  | D44: =Etot!C663 / Etot!C656 ->  | E44: =Etot!D663 / Etot!D656 ->  | F44: =Etot!E663 / Etot!E656 ->  | G44: =Etot!F663 / Etot!F656 ->  | H44: =Etot!G663 / Etot!G656 ->  | I44: =Etot!H663 / Etot!H656 ->  | J44: =Etot!I663 / Etot!I656 ->  | K44: =Etot!J663 / Etot!J656 ->  | L44: =Etot!K663 / Etot!K656 ->  | M44: =Etot!L663 / Etot!L656 ->  | N44: =Etot!M663 / Etot!M656 -> 
B45: Bruto behoefte voor sww waar WKK tussenkomt [MJ] | C45: =Etot!B$656 -> 0 | D45: =Etot!C$656 -> 0 | E45: =Etot!D$656 -> 0 | F45: =Etot!E$656 -> 0 | G45: =Etot!F$656 -> 0 | H45: =Etot!G$656 -> 0 | I45: =Etot!H$656 -> 0 | J45: =Etot!I$656 -> 0 | K45: =Etot!J$656 -> 0 | L45: =Etot!K$656 -> 0 | M45: =Etot!L$656 -> 0 | N45: =Etot!M$656 -> 0
A48: 3. Bevochtigingsinstallatie
A49: De WKK-installatie is altijd de preferente warmte-opwekker
A50: Zijn de opwekkers voor bevochtiging en voor verwarming hetzelfde (inclusief zonnethermisch systeem)? | B50: Nee
A51: Is er een zonnethermisch systeem dat een deel van de warmtevraag dekt? | B51: Nee
A52: Is er ook een niet-preferente warmte-opwekker voor bevochtiging? | B52: Nee
A53: Thermisch vermogen WKK [kW] | B53: 10
A54: Thermisch vermogen niet-preferente warmte-opwekker [kW] | B54: 10
A55: Type niet-preferente opwekker | B55: Condenserende ketel
A56: Energiedrager opwekker | B56: Aardgas
A57: Plaats ketel / generator | B57: Binnen het beschermd volume
A58: Wordt de ketel permanent warmgehouden? | B58: Nee
A59: Ketel: deellastrendement bij 30 % belasting | B59: 1
A60: Gemiddelde ketelwatertemperatuur bij 30 % belasting [°C] | B60: 30
A61: Ontwerp retourtemperatuur warmteafgiftesysteem [°C] | B61: 70
A62: Luchtgenerator deellastrendement bij 30 % belasting | B62: 0.7
A63: Seizoensprestatiefactor warmtepomp (Tabblad Warmtepomp) | B63: =WP!B39 -> 
A64: Opwekkingsrendement externe warmtelevering | B64: 0.9
A65: Primaire energiefactor externe warmtelevering | B65: 1
C67: Jan | D67: Feb | E67: Maa | F67: Apr | G67: Mei | H67: Jun | I67: Jul | J67: Aug | K67: Sep | L67: Okt | M67: Nov | N67: Dec
B68: Aandeel bruto behoefte verwarming, gedekt door zonnethermisch systeem | C68: 1 | D68: 0 | E68: 0 | F68: 0 | G68: 0 | H68: 0 | I68: 0 | J68: 0 | K68: 0 | L68: 0 | M68: 0 | N68: 0
B69: Netto behoefte voor bevochtiging waar WKK tussenkomt [MJ] | C69: 10273.71422 | D69: 8526.85956 | E69: 7519.829446 | F69: 4379.990457 | G69: 1116.517449 | H69: 17.82981589 | I69: 0 | J69: 0 | K69: 202.5505757 | L69: 3153.224336 | M69: 7324.674207 | N69: 10094.44492
A72: 4. (Absorptie)koeling op warmtekrachtkoppeling
A73: De absorptiekoelmachine is altijd de preferente koudeleverancier
A74: Is er ook een niet-preferente koudeleverancier? | B74: Ja
A75: Type niet-preferente koudeleverancier | B75: Absorptiekoelmachine op externe warmtelevering
A76: Energie-efficiëntieverhouding compressiekoelmachine | B76: 5
A77: Opwekkingsrendement externe warmtelevering | B77: 0.9
A78: Primaire energiefactor externe warmtelevering | B78: 1
A79: Nominale vermogen van de absorptiekoelmachine [kW] | B79: 10
A80: Nominale vermogen van de niet-preferente koudeleverancier(s) [kW] | B80: 10
C82: Jan | D82: Feb | E82: Maa | F82: Apr | G82: Mei | H82: Jun | I82: Jul | J82: Aug | K82: Sep | L82: Okt | M82: Nov | N82: Dec
B83: Bruto behoefte voor koeling waar WKK tussenkomt (MJ) | C83: 670.2278733 | D83: 605.3671114 | E83: 670.2278733 | F83: 648.6076194 | G83: 670.2278733 | H83: 648.6076194 | I83: 670.2278733 | J83: 670.2278733 | K83: 648.6076194 | L83: 670.2278733 | M83: 648.6076194 | N83: 670.2278733
A89: Vanaf hieronder te verbergen
A99: WKK
A100: Index WKK | B100: =VLOOKUP($B$10,TTypeWKK,2,FALSE) -> 1
A101: Index vermogen gekend | B101: =IF($B$100=5,1,VLOOKUP($B$12,T_JaNee,2,FALSE)) -> 1
A102: Index elek vermogen (hulpindex voor kolom a elec, ...) | B102: =IF(B100=5,"nvt",IF(B14<5,3,IF(B14<=5000,4,5))) -> 3
A103: a elec | B103: =IF($B$100=5,"nvt",VLOOKUP($B$10,TTypeWKK,$B$102)) -> 0.251
A104: b elec | B104: =IF($B$100=5,"nvt",VLOOKUP($B$10,TTypeWKK,$B$102+3)) -> 0
A105: a th | B105: =IF($B$100=5,"nvt",VLOOKUP($B$10,TTypeWKK,$B$102+6)) -> 0.573
A106: b th | B106: =IF($B$100=5,"nvt",VLOOKUP($B$10,TTypeWKK,$B$102+9)) -> 0
A107: a | B107: =IF($B$100=5,"nvt",IF($B$101=1,"nvt",VLOOKUP($B$10,TTypeWKK,15))) -> nvt
A108: b | B108: =IF($B$100=5,"nvt",IF($B$101=1,"nvt",VLOOKUP($B$10,TTypeWKK,16))) -> nvt
A109: Index buffer | B109: =VLOOKUP(B16,T_JaNee,2) -> 1
A110: theta cogen | B110: =IF(B109=2,"nvt",B18) -> 90
A111: index ontwerpretourtemp gekend | B111: =IF(B109=2,"nvt",VLOOKUP(B19,T_JaNee,2)) -> 2
A112: theta return,design | B112: =IF(B109=2,"nvt",IF(B111=1,B21,VLOOKUP(B20,Tafgiftesysteem,4))) -> 70
A113: Vstor,30 min | B113: =IF(B109=2,"nvt",0.44*B11/(B110-B112)) -> 1.54
A114: Index WKK met opslag (1 = beschouwd als opslag; 2 = niet beschouwd als opslag) | B114: =IF(B109=2,2,IF(B17<B113,2,1)) -> 2
C116: Jan | D116: Feb | E116: Maa | F116: Apr | G116: Mei | H116: Jun | I116: Jul | J116: Aug | K116: Sep | L116: Okt | M116: Nov | N116: Dec
A117: Totale bruto behoefte door WKK+niet-pref gedekt | C117: =IF($B123=1,C145,0)+IF($B157=1,C180,0)+IF($B192=1,C227/eta_sorption_WKK,0) -> 0 | D117: 0 | E117: 0 | F117: 0 | G117: 0 | H117: 0 | I117: 0 | J117: 0 | K117: 0 | L117: 0 | M117: 0 | N117: 0 | P117: Formule moet aangepast worden indien de WKK ook instaat voor bevochting en koeling
A118: Xm | C118: =C117/(($B$11*1000)*Constanten!B167) -> 0 | D118: =D117/(($B$11*1000)*Constanten!C167) -> 0 | E118: =E117/(($B$11*1000)*Constanten!D167) -> 0 | F118: =F117/(($B$11*1000)*Constanten!E167) -> 0 | G118: =G117/(($B$11*1000)*Constanten!F167) -> 0 | H118: =H117/(($B$11*1000)*Constanten!G167) -> 0 | I118: =I117/(($B$11*1000)*Constanten!H167) -> 0 | J118: =J117/(($B$11*1000)*Constanten!I167) -> 0 | K118: =K117/(($B$11*1000)*Constanten!J167) -> 0 | L118: =L117/(($B$11*1000)*Constanten!K167) -> 0 | M118: =M117/(($B$11*1000)*Constanten!L167) -> 0 | N118: =N117/(($B$11*1000)*Constanten!M167) -> 0
A119: fpref (indien WKK niet enige warmteopwekker - te corrigeren indien toch alleen) | C119: =IF($B$114 = 2,IF(C118 < 0.3, 0, IF(C118 < 0.9, 2/3 * C118 - 0.2, IF(C118 < 1.3, 0.43 * C118 + 0.013, IF(C118 < 8.9, (1.05 * C118 - 0.245) / (C118 + 0.1) ^ 2, 1 / C118)))), IF(C118 < 0.05, 0, IF(C118 < 0.35, 1.66 * C118 - 0.083, IF(C118<0.9, 0.36 * C118 + 0.376, IF(C118 < 8.9, (1.05 * C118 - 0.245) / (C118 + 0.1) ^ 2, 1 / C118))))) -> 0 | D119: =IF($B$114 = 2,IF(D118 < 0.3, 0, IF(D118 < 0.9, 2/3 * D118 - 0.2, IF(D118 < 1.3, 0.43 * D118 + 0.013, IF(D118 < 8.9, (1.05 * D118 - 0.245) / (D118 + 0.1) ^ 2, 1 / D118)))), IF(D118 < 0.05, 0, IF(D118 < 0.35, 1.66 * D118 - 0.083, IF(D118<0.9, 0.36 * D118 + 0.376, IF(D118 < 8.9, (1.05 * D118 - 0.245) / (D118 + 0.1) ^ 2, 1 / D118))))) -> 0 | E119: 0 | F119: 0 | G119: 0 | H119: 0 | I119: 0 | J119: 0 | K119: 0 | L119: 0 | M119: 0 | N119: 0 | P119: aangepast volgens EPW BV tabel 10
A122: sww
A123: Index sww | B123: =VLOOKUP(B7,T_JaNee,2,FALSE) -> 1
A124: Index zonnethermisch systeem, heat | B124: =IF(B123=2,"nvt",VLOOKUP(B27,T_JaNee,2,FALSE)) -> 2
A125: Index niet-preferente warmte-opwekker, heat | B125: =IF(B123=2,"nvt",VLOOKUP(B28,T_JaNee,2,FALSE)) -> 2
A126: Rendement niet-preferente opwekker voor sww | B126: =IF(B125=1,B140,"nvt") -> nvt
A127: primaire energiefactor npref | B127: =IF(B125=1,IF(OR(B131=6,B131=4),T_fpelek,IF(B131=5,B41,VLOOKUP(B30,T_Energiedragerzonderelek,3,FALSE))),"nvt") -> nvt
A128: primaire energiefactor WKK | B128: =IF(B123=2,"nvt",IF(B100=5,VLOOKUP(B15,T_Energiedragerzonderelek,3,FALSE),1)) -> 1
A130: Hulpvariabelen productierendement sww
A131: Type opwekker sww | B131: =IF(B125=1,VLOOKUP(B29,T_Verwarmingtype,2,FALSE),"nvt") -> nvt
A132: Index plaats ketel / generator | B132: =IF(B125=1,IF(B131<5,VLOOKUP(B31,T_PlaatsKetel,2,FALSE),1),"nvt") -> nvt
A133: Vermindering rendement tgv plaats | B133: =IF(B125=1,IF(B132=1,0,0.02),"nvt") -> nvt
A134: Index ontwerpretourtemperatuur gekend | B134: =IF(B125=1,IF(B131=2,IF(B109=1,"nvt",VLOOKUP(B35,T_JaNee,2)),"nvt"),"nvt") -> nvt
A135: Ontwerpretourtemperatuur (in geval van condenserende ketel) | B135: =IF(B125=1,IF(B131=2,IF(B109=1,B112,IF(B134=1,B37,VLOOKUP(B36,Tafgiftesysteem,4))),"nvt"),"nvt") -> nvt
A136: Vermeerdering rendement condenserende ketel | B136: =IF(B125=1,IF(B131=2,0.003*(B34-(6.4+0.63*B135)),0),"nvt") -> nvt
A137: Index ketelwatertemperatuur (0=nvt,1=ct,2=var) | B137: =IF(B125=1,IF(B131<3,VLOOKUP(B32,T_JaNee,2,FALSE),0),"nvt") -> nvt
A138: Vermindering rendement tgv cte temperatuur | B138: =IF(B125=1,IF(B137=1,0.05,0),"nvt") -> nvt
A139: verhouding onderste tot bovenste verbrandingswaarde | B139: =IF(B125=1,IF(OR(B131=4,B131=6),1,VLOOKUP(B30,T_Energiedragerzonderelek,4,FALSE)),"nvt") -> nvt
A140: productierendement npref | B140: =IF(B125=1,IF(B131=6,B39,IF(B131=5,B40,IF(B131=4,1-B133,-B133+IF(B131<3,B139*(B33+B136)-B138,B38*B139)))),"nvt") -> nvt
C142: Jan | D142: Feb | E142: Maa | F142: Apr | G142: Mei | H142: Jun | I142: Jul | J142: Aug | K142: Sep | L142: Okt | M142: Nov | N142: Dec | O142: TOT
A143: fas,heat,seci,m (voor alle i dezelfde) | C143: =IF($B124=1,C44,0) -> 0 | D143: 0 | E143: 0 | F143: 0 | G143: 0 | H143: 0 | I143: 0 | J143: 0 | K143: 0 | L143: 0 | M143: 0 | N143: 0
A144: SUMalli(Qheat,seci,gross) | C144: =IF($B123=1,C45,0) -> 0 | D144: 0 | E144: 0 | F144: 0 | G144: 0 | H144: 0 | I144: 0 | J144: 0 | K144: 0 | L144: 0 | M144: 0 | N144: 0 | O144: =SUM(C144:N144) -> 0
A145: SUMalli(Qheat,gross,sec i,m*(1-fas,heat,seci,m)) | C145: =C144*(1-C143) -> 0 | D145: 0 | E145: 0 | F145: 0 | G145: 0 | H145: 0 | I145: 0 | J145: 0 | K145: 0 | L145: 0 | M145: 0 | N145: 0 | O145: =SUM(C145:N145) -> 0
A146: fheat,seci,m,pref (voor alle i dezelfde) | C146: =IF($B125=2,1,C119) -> 1 | D146: =IF($B125=2,1,D119) -> 1 | E146: 1 | F146: 1 | G146: 1 | H146: 1 | I146: 1 | J146: 1 | K146: 1 | L146: 1 | M146: 1 | N146: 1
A147: Qheat,demand,cogen,m (MJ) | C147: =C146*C145 -> 0 | D147: 0 | E147: 0 | F147: 0 | G147: 0 | H147: 0 | I147: 0 | J147: 0 | K147: 0 | L147: 0 | M147: 0 | N147: 0 | O147: =SUM(C147:N147) -> 0
A148: Wcogen,heat,m (kWh) | C148: =$B$22/3.6*C147/$B$23 ->  | D148: =$B$22/3.6*D147/$B$23 -> 
A149: Ep,cogen,heat,m (MJ) | C149: =C148*3.6*T_fpelekcogen ->  | D149: =D148*3.6*T_fpelekcogen -> 
A150: SUMalli(Qheat,final,seci,m,pref) | C150: =C146*C145/$B$23 ->  | D150: =D146*D145/$B$23 -> 
A151: SUMalli(Qheat,final,seci,m,npref) | C151: =IF($B125=2,0,(1-C146)*C145/$B$126) -> 0 | D151: =IF($B125=2,0,(1-D146)*D145/$B$126) -> 0 | E151: 0 | F151: 0 | G151: 0 | H151: 0 | I151: 0 | J151: 0 | K151: 0 | L151: 0 | M151: 0 | N151: 0 | O151: 0
A152: Ep,heat,m | C152: =$B$128*C150+IF($B125=2,0,$B$127*C151) ->  | D152: =$B$128*D150+IF($B125=2,0,$B$127*D151) -> 
A153: Ep,heat,m-Ep,cogen,heat,m | C153: =C152-C149 -> 
A154: equivalent rendement,heat | C154: =C145/C153 ->  | O154: =O145/O153 -> 
A156: Bevochtiging | B156: Niet up-to-date
A157: Index bevochtiging | B157: =VLOOKUP(B8,T_JaNee,2,FALSE) -> 2
A158: Index heat = bevochtiging | B158: =IF(B123=2,2,IF(B157=2,2,VLOOKUP(B50,T_JaNee,2,FALSE))) -> 2
A159: Index zonnethermisch systeem, bevochtiging | B159: =IF(B157=2,2,IF(B158=1,B124,VLOOKUP(B51,T_JaNee,2,FALSE))) -> 2
A160: Index niet-preferente warmte-opwekker, bevochtiging | B160: =IF(B157=2,2,IF(B158=1,B125,VLOOKUP(B52,T_JaNee,2,FALSE))) -> 2
A161: Aandeel pref,bevochtiging | B161: =IF(B158=1,#REF!,B53/(B53+B54)) -> 0.5
A162: Index aandeel preferente warmte-opwekker, bevochtging | B162: =IF(B161<Constanten!A24,Constanten!B24,IF(B161<Constanten!A25,Constanten!B25,IF(B161<Constanten!A26,Constanten!B26,IF(B161<Constanten!A27,Constanten!B27,IF(B161<Constanten!A28,Constanten!B28,IF(B161<Constanten!A29,Constanten!B29,Constanten!B30)))))) -> 5
A163: Rendement niet-preferente opwekker voor bevochtiging | B163: =IF(B158=1,B126,B175) -> 0.84465
A164: primaire energiefactor npref | B164: =IF(B168=6,T_fpelek,IF(B168=4,T_fpelek,IF(B168=5,B65,VLOOKUP(B56,T_Energiedragerzonderelek,3,FALSE)))) -> 1
A165: primaire energiefactor WKK | B165: =VLOOKUP(B15,T_Energiedragerzonderelek,3,FALSE) -> 1
A167: Hulpvariabelen productierendement bevochtiging (indien verschillend van verwarming)
A168: Type opwekker bevochtiging | B168: =VLOOKUP(B55,T_Verwarmingtype,2,FALSE) -> 2
A169: Index plaats ketel / generator | B169: =IF(B168<5,VLOOKUP(B57,T_PlaatsKetel,2,FALSE),1) -> 1
A170: Vermindering rendement tgv plaats | B170: =IF(B169=1,0,0.02) -> 0
A171: Vermeerdering rendement condenserende ketel | B171: =IF(B168=2,0.003*(B60-(6.4+0.63*B61)),0) -> -0.0615
A172: Index ketelwatertemperatuur (0=nvt,1=ct,2=var) | B172: =IF(B168<3,VLOOKUP(B58,T_JaNee,2,FALSE),0) -> 2
A173: Vermindering rendement tgv cte temperatuur | B173: =IF(B172=1,0.05,0) -> 0
A174: verhouding onderste tot bovenste verbrandingswaarde | B174: =VLOOKUP(B56,T_Energiedragerzonderelek,4,FALSE) -> 0.9
A175: productierendement | B175: =IF(B168=6,B63,IF(B168=5,B64,IF(B168=4,1-B170,-B170+IF(B168<3,B174*(B59+B171)-B173,B62*B174)))) -> 0.84465
C177: Jan | D177: Feb | E177: Maa | F177: Apr | G177: Mei | H177: Jun | I177: Jul | J177: Aug | K177: Sep | L177: Okt | M177: Nov | N177: Dec | O177: TOT
A178: fas,hum,j,m (voor alle j dezelfde) | C178: =IF($B$158=1,C143,IF($B159=1,C68,0)) -> 0 | D178: 0 | E178: 0 | F178: 0 | G178: 0 | H178: 0 | I178: 0 | J178: 0 | K178: 0 | L178: 0 | M178: 0 | N178: 0
A179: SUMallj(Qhum,net,j,m) | C179: =C69 -> 10273.71422 | D179: 8526.85956 | E179: 7519.829446 | F179: 4379.990457 | G179: 1116.517449 | H179: 17.82981589 | I179: 0 | J179: 0 | K179: 202.5505757 | L179: 3153.224336 | M179: 7324.674207 | N179: 10094.44492 | O179: =SUM(C179:N179) -> 52609.63499
A180: fheat,humj,m,pref (voor alle j dezelfde) | C180: =IF($B160=2,1,IF($B158=1,#REF!,VLOOKUP($B$162,T_fprefheatEPU,2,FALSE))) -> 1 | D180: =IF($B160=2,1,IF($B158=1,#REF!,VLOOKUP($B$162,T_fprefheatEPU,2,FALSE))) -> 1 | E180: =IF($B160=2,1,IF($B158=1,#REF!,VLOOKUP($B$162,T_fprefheatEPU,2,FALSE))) -> 1 | F180: =IF($B160=2,1,IF($B158=1,#REF!,VLOOKUP($B$162,T_fprefheatEPU,2,FALSE))) -> 1 | G180: =IF($B160=2,1,IF($B158=1,#REF!,VLOOKUP($B$162,T_fprefheatEPU,2,FALSE))) -> 1 | H180: =IF($B160=2,1,IF($B158=1,#REF!,VLOOKUP($B$162,T_fprefheatEPU,2,FALSE))) -> 1 | I180: =IF($B160=2,1,IF($B158=1,#REF!,VLOOKUP($B$162,T_fprefheatEPU,2,FALSE))) -> 1 | J180: =IF($B160=2,1,IF($B158=1,#REF!,VLOOKUP($B$162,T_fprefheatEPU,2,FALSE))) -> 1 | K180: =IF($B160=2,1,IF($B158=1,#REF!,VLOOKUP($B$162,T_fprefheatEPU,2,FALSE))) -> 1 | L180: =IF($B160=2,1,IF($B158=1,#REF!,VLOOKUP($B$162,T_fprefheatEPU,2,FALSE))) -> 1 | M180: =IF($B160=2,1,IF($B158=1,#REF!,VLOOKUP($B$162,T_fprefheatEPU,2,FALSE))) -> 1 | N180: =IF($B160=2,1,IF($B158=1,#REF!,VLOOKUP($B$162,T_fprefheatEPU,2,FALSE))) -> 1
A181: SUMalli(Qhum,net,j,m*(1-fas,hum,j,m)) | C181: =C179*(1-C178) -> 10273.71422 | D181: 8526.85956 | E181: 7519.829446 | F181: 4379.990457 | G181: 1116.517449 | H181: 17.82981589 | I181: 0 | J181: 0 | K181: 202.5505757 | L181: 3153.224336 | M181: 7324.674207 | N181: 10094.44492 | O181: =SUM(C181:N181) -> 52609.63499
A182: Qhum,demand,cogen,m (MJ) | C182: =C180*C181 -> 10273.71422 | D182: 8526.85956 | E182: 7519.829446 | F182: 4379.990457 | G182: 1116.517449 | H182: 17.82981589 | I182: 0 | J182: 0 | K182: 202.5505757 | L182: 3153.224336 | M182: 7324.674207 | N182: 10094.44492 | O182: =SUM(C182:N182) -> 52609.63499
A183: Wcogen,hum,m (kWh) | C183: =$B$22/3.6*C182/$B$23 ->  | O183: =SUM(C183:N183) -> 
A184: Ep,cogen,hum,m (MJ) | C184: =C183*3.6*T_fpelekcogen ->  | O184: =SUM(C184:N184) -> 
A185: SUMallj(Qhum,final,j,m,pref) | C185: =C180*C181/$B$23 -> 
A186: SUMallj(Qhum,final,j,m,npref) | C186: =(1-C180)*C181/$B$163 -> 0 | D186: 0 | E186: 0 | F186: 0 | G186: 0 | H186: 0 | I186: 0 | J186: 0 | K186: 0 | L186: 0 | M186: 0 | N186: 0
A187: Ep,hum,m | C187: =$B$165*C185+$B$164*C186 ->  | O187: =SUM(C187:N187) -> 
A188: Ep,hum,m-Ep,cogen,hum,m | C188: =C187-C184 ->  | O188: =SUM(C188:N188) -> 
A189: equivalent rendement,hum | C189: =C181/C188 -> 
A191: Koeling | B191: Niet up-to-date
A192: Index koeling | B192: =VLOOKUP(B9,T_JaNee,2,FALSE) -> 2
A193: Index niet-preferente warmte-opwekker, cool | B193: =IF(B192=2,2,VLOOKUP(B74,T_JaNee,2,FALSE)) -> 2
A194: Aandeel pref,cool | B194: =IF(B193=2,1,B79/(B79+B80)) -> 1
A195: Index aandeel preferente warmte-opwekker, cool | B195: =IF(B194<Constanten!A35,Constanten!B35,IF(B194<Constanten!A36,Constanten!B36,IF(B194<Constanten!A37,Constanten!B37,IF(B194<Constanten!A38,Constanten!B38,Constanten!B39)))) -> 5
A196: Rendement niet-preferente koudeleverancier | B196: =B202 -> 0.63
A197: primaire energiefactor npref | B197: =IF(B201=2,B78,2.5) -> 1
A198: primaire energiefactor WKK | B198: =VLOOKUP(B15,T_Energiedragerzonderelek,3,FALSE) -> 1
A200: Hulpvariabelen productierendement koeling
A201: Type niet-preferente koudeleverancier | B201: =VLOOKUP(B75,T_Koudetype,2,FALSE) -> 2
A202: productierendement npref | B202: =IF(B201=1,B76,IF(B201=2,0.7*B77,IF(B201=3,12,5))) -> 0.63
C204: Jan | D204: Feb | E204: Maa | F204: Apr | G204: Mei | H204: Jun | I204: Jul | J204: Aug | K204: Sep | L204: Okt | M204: Nov | N204: Dec | O204: TOT
A205: SUMalli(Qcool,seci,gross,m) | C205: =C83 -> 670.2278733 | D205: 605.3671114 | E205: 670.2278733 | F205: 648.6076194 | G205: 670.2278733 | H205: 648.6076194 | I205: 670.2278733 | J205: 670.2278733 | K205: 648.6076194 | L205: 670.2278733 | M205: 648.6076194 | N205: 670.2278733 | O205: =SUM(C205:N205) -> 7891.392702
A206: fcool,seci,pref (voor alle i dezelfde) | C206: =IF($B193=2,1,VLOOKUP($B$195,T_fprefcoolEPU,2,FALSE)) -> 1 | D206: 1 | E206: 1 | F206: 1 | G206: 1 | H206: 1 | I206: 1 | J206: 1 | K206: 1 | L206: 1 | M206: 1 | N206: 1
A207: Qcool,demand,cogen,m (MJ) | C207: =C206*C205 -> 670.2278733 | D207: 605.3671114 | E207: 670.2278733 | F207: 648.6076194 | G207: 670.2278733 | H207: 648.6076194 | I207: 670.2278733 | J207: 670.2278733 | K207: 648.6076194 | L207: 670.2278733 | M207: 648.6076194 | N207: 670.2278733 | O207: =SUM(C207:N207) -> 7891.392702
A208: Wcogen,cool,m (kWh) | C208: =$B$22/3.6*C207/$B$23 ->  | O208: =SUM(C208:N208) -> 
A209: Ep,cogen,cool,m (MJ) | C209: =C208*3.6*T_fpelekcogen ->  | O209: =SUM(C209:N209) -> 
A210: SUMalli(Qcool,final,seci,m,pref) | C210: =C206*C205/$B$23 -> 
A211: SUMalli(Qcool,final,seci,m,npref) | C211: =(1-C206)*C205/$B$202 -> 0 | D211: 0 | E211: 0 | F211: 0 | G211: 0 | H211: 0 | I211: 0 | J211: 0 | K211: 0 | L211: 0 | M211: 0 | N211: 0
A212: Ep,cool,m | C212: =$B$198*C210+$B$197*C211 ->  | O212: =SUM(C212:N212) -> 
A213: Ep,cool,m-Ep,cogen,cool,m | C213: =C212-C209 ->  | O213: =SUM(C213:N213) -> 
A214: equivalent rendement,cool | C214: =C205/C213 -> 
O215: =O214/0.7 -> 

Sheet EPU-pref (hidden)
A1: Preferent/niet-preferent in een EPU-volume
A2: Resultaten
A3: Equivalent rendement, verwarming | B3: =IF(B72 = 2, B85, IF( ROUND(N96, 3) = ROUND(N97, 3), N96,"Fout in het XL rekenblad. Neem contact op met de administratie.")) -> 0.87867
A4: Equivalent rendement, bevochtiging | B4: =IF(B99=2,"",IF(N124=N125,N124,"Fout in het XL rekenblad. Neem contact op met de administratie.")) -> 
A5: Equivalent rendement, koeling | B5: =IF(B127 = 2, B133, IF( ROUND(N142, 3) = ROUND(N144, 3), N143, "Fout in het XL rekenblad. Neem contact op met de administratie.")) -> 2.8
A6: 1. Algemene vragen installatie
A7: Gebeurt de warmte-opwekking voor ruimteverwarming met een combinatie van een preferente en niet-preferente opwekker? | B7: =Sim!X8 -> Nee
A8: Gebeurt de warmte-opwekking voor bevochtiging met een combinatie van een preferente en niet-preferente opwekker? | B8: Nee
A9: Wordt de koude geleverd door een combinatie van preferente en niet-preferente koudeleverancier? | B9: =IF(Overview!H73 = Lists!E472, "Nee", "Ja") -> Nee
A11: 2. Verwarmingsinstallatie
A12: Is er een zonnethermisch systeem dat een deel van de warmtevraag dekt? | B12: Ja
B13: Preferente opwekker | C13: Niet-preferente opwekker
A14: Type opwekker | B14: =Sim!$X$12 -> Condenserende ketel | C14: =Sim!$X$17 -> 0 | D14: =IF(B78=6,"",IF(C78=6,"De warmtepomp moet in dit geval de preferente opwekker zijn! Gelieve dit aan te passen.","")) -> 
A15: Thermisch vermogen [kW] | B15: =Sim!$R$37 -> 398.2840127 | C15: =Sim!$R$38 -> 0
A16: Energiedrager opwekker | B16: =Sim!$X$13 -> Aardgas | C16: =Sim!$X$18 -> 0
A17: Plaats ketel / generator | B17: Binnen het beschermd volume | C17: Binnen het beschermd volume
A18: Wordt de ketel permanent warmgehouden? | B18: Nee | C18: Nee
A19: Ketel: deellastrendement bij 30 % belasting | B19: =Sim!$X$16 -> 1 | C19: =Sim!$X$19 -> 
A20: Gemiddelde ketelwatertemperatuur bij 30 % belasting | B20: =Sim!$R$28 -> 30 | C20: =Sim!$R$28 -> 30
A21: Ontwerp retourtemperatuur warmteafgiftesysteem [°C] | B21: =Sim!$R$30 -> 50 | C21: =Sim!$R$30 -> 50
A22: Luchtgenerator deellastrendement bij 30 % belasting | B22: 0.7 | C22: 0.7
A23: Seizoensprestatiefactor warmtepomp (Tabblad Warmtepomp pref) | B23: =WP_Pref!B39 ->  | C23: =WP_Pref!C39 -> 
A24: Opwekkingsrendement externe warmtelevering | B24: 0.9 | C24: 0.9
A25: Primaire energiefactor externe warmtelevering | B25: 1 | C25: 1
D27: Jan | E27: Feb | F27: Maa | G27: Apr | H27: Mei | I27: Jun | J27: Jul | K27: Aug | L27: Sep | M27: Okt | N27: Nov | O27: Dec
C28: Aandeel bruto behoefte verwarming, gedekt door zonnethermisch systeem | D28: 0 | E28: 0 | F28: 0 | G28: 0 | H28: 0 | I28: 0 | J28: 0 | K28: 0 | L28: 0 | M28: 0 | N28: 0 | O28: 0
C29: Bruto behoefte voor verwarming waarvoor de combinatie van het preferente en niet-preferente toestel warmte opwekken [MJ] | D29: =Etot!B$618 ->  | E29: =Etot!C$618 ->  | F29: =Etot!D$618 ->  | G29: =Etot!E$618 ->  | H29: =Etot!F$618 ->  | I29: =Etot!G$618 ->  | J29: =Etot!H$618 ->  | K29: =Etot!I$618 ->  | L29: =Etot!J$618 ->  | M29: =Etot!K$618 ->  | N29: =Etot!L$618 ->  | O29: =Etot!M$618 -> 
A32: 3. Bevochtigingsinstallatie
A33: Zijn de opwekkers voor bevochtiging en voor verwarming hetzelfde (inclusief zonnethermisch systeem)? | B33: Nee
A34: Is er een zonnethermisch systeem dat een deel van de warmtevraag dekt? | B34: Ja
B35: Preferente opwekker | C35: Niet-preferente opwekker
A36: Type opwekker | B36: Niet condenserende ketel | C36: Condenserende ketel | D36: =IF(B106=6,"",IF(C106=6,"De warmtepomp moet in dit geval de preferente opwekker zijn! Gelieve dit aan te passen.","")) -> 
A37: Thermisch vermogen [kW] | B37: 10 | C37: 10
A38: Energiedrager opwekker | B38: Aardgas | C38: Aardgas
A39: Plaats ketel / generator | B39: Binnen het beschermd volume | C39: Binnen het beschermd volume
A40: Wordt de ketel permanent warmgehouden? | B40: Nee | C40: Nee
A41: Ketel: deellastrendement bij 30 % belasting | B41: 1 | C41: 1
A42: Gemiddelde ketelwatertemperatuur bij 30 % belasting | B42: 30 | C42: 30
A43: Ontwerp retourtemperatuur warmteafgiftesysteem [°C] | B43: 70 | C43: 70
A44: Luchtgenerator deellastrendement bij 30 % belasting | B44: 0.7 | C44: 0.7
A45: Seizoensprestatiefactor warmtepomp (Tabblad Warmtepomp pref) | B45: =WP_Pref!B39 ->  | C45: =WP_Pref!C39 -> 
A46: Opwekkingsrendement externe warmtelevering | B46: 0.9 | C46: 0.9
A47: Primaire energiefactor externe warmtelevering | B47: 1 | C47: 1
D49: Jan | E49: Feb | F49: Maa | G49: Apr | H49: Mei | I49: Jun | J49: Jul | K49: Aug | L49: Sep | M49: Okt | N49: Nov | O49: Dec
C50: Aandeel bruto behoefte verwarming, gedekt door zonnethermisch systeem | D50: 0 | E50: 0 | F50: 0 | G50: 0 | H50: 0 | I50: 0 | J50: 0 | K50: 0 | L50: 0 | M50: 0 | N50: 0 | O50: 0
C51: Netto behoefte voor bevochtiging waarvoor de combinatie van het preferente en niet-preferente toestel warmte opwekken [MJ] | D51: 10273.71422 | E51: 8526.85956 | F51: 7519.829446 | G51: 4379.990457 | H51: 1116.517449 | I51: 17.82981589 | J51: 0 | K51: 0 | L51: 202.5505757 | M51: 3153.224336 | N51: 7324.674207 | O51: 10094.44492
A54: 4. Koelingsinstallatie
B55: Preferente koudeleverancier(s) | C55: Niet-preferente koudeleverancier(s)
A56: Type koudeleverancier | B56: =Sim!$X$33 -> compressiekoelmachine | C56: =Sim!$X$37 -> geen
A57: Energie-efficiëntieverhouding compressiekoelmachine | B57: =Sim!$X$36 -> 2.8 | C57: =Sim!$X$38 -> 
A58: Opwekkingsrendement externe warmtelevering | B58: 0.9 | C58: 0.9
A59: Primaire energiefactor externe warmtelevering | B59: 1 | C59: 1
A60: Nominale vermogen van de koudeleverancier(s) | B60: =Sim!$R$42 -> 100.1538542 | C60: =Sim!$R$43 -> 0
D62: Jan | E62: Feb | F62: Maa | G62: Apr | H62: Mei | I62: Jun | J62: Jul | K62: Aug | L62: Sep | M62: Okt | N62: Nov | O62: Dec
C63: Bruto behoefte voor koeling die geleverd wordt door combinatie van preferente en niet-preferente koudeleverancier(s) (MJ) | D63: =Etot!B$737 ->  | E63: =Etot!C$737 ->  | F63: =Etot!D$737 ->  | G63: =Etot!E$737 ->  | H63: =Etot!F$737 ->  | I63: =Etot!G$737 ->  | J63: =Etot!H$737 ->  | K63: =Etot!I$737 ->  | L63: =Etot!J$737 ->  | M63: =Etot!K$737 ->  | N63: =Etot!L$737 ->  | O63: =Etot!M$737 -> 
A69: Vanaf hieronder te verbergen
A71: Verwarming
A72: Index verwarming | B72: =VLOOKUP(B7,T_JaNee,2,FALSE) -> 2
A73: Index zonnethermisch systeem, heat | B73: =IF(B72=2,2,VLOOKUP(B12,T_JaNee,2,FALSE)) -> 2
A74: Aandeel pref,heat | B74: =B15/(B15+C15) -> 1
A75: Index aandeel preferente warmte-opwekker, heat | B75: =IF(B74<Constanten!A24,Constanten!B24,IF(B74<Constanten!A25,Constanten!B25,IF(B74<Constanten!A26,Constanten!B26,IF(B74<Constanten!A27,Constanten!B27,IF(B74<Constanten!A28,Constanten!B28,IF(B74<Constanten!A29,Constanten!B29,Constanten!B30)))))) -> 7
A77: Hulpvariabelen productierendement verwarming | B77: pref | C77: niet-pref | D77: Voor zwarte vakken (conditional formating)
A78: Type opwekker verwarming | B78: =VLOOKUP(B14,T_Verwarmingtype,2,FALSE) -> 2 | C78: =VLOOKUP(C14,T_Verwarmingtype,2,FALSE) ->  | D78: =IF(OR(B78<4,C78<4),1,0) ->  | E78: energiebron
A79: Index plaats ketel / generator | B79: =IF(B78<5,VLOOKUP(B17,T_PlaatsKetel,2,FALSE),1) -> 1 | C79: =IF(C78<5,VLOOKUP(C17,T_PlaatsKetel,2,FALSE),1) ->  | D79: =IF(OR(B78<5,C78<5),1,0) ->  | E79: binnen buiten BV
A80: Vermindering rendement tgv plaats | B80: =IF(B79=1,0,0.02) -> 0 | C80: =IF(C79=1,0,0.02) ->  | D80: =IF(OR(B78<3,C78<3),1,0) ->  | E80: Warmhouden
A81: Vermeerdering rendement condenserende ketel | B81: =IF(B78=2,0.003*(B20-(6.4+0.63*B21)),0) -> -0.0237 | C81: =IF(C78=2,0.003*(C20-(6.4+0.63*C21)),0) ->  | D81: =IF(OR(B78=2,C78=2),1,0) ->  | E81: Condenserend
A82: Index ketelwatertemperatuur (0=nvt,1=ct,2=var) | B82: =IF(B78<3,VLOOKUP(B18,T_JaNee,2,FALSE),0) -> 2 | C82: =IF(C78<3,VLOOKUP(C18,T_JaNee,2,FALSE),0) ->  | D82: =IF(OR(B78=3,C78=3),1,0) ->  | E82: Luchtgenerator
A83: Vermindering rendement tgv cte temperatuur | B83: =IF(B82=1,0.05,0) -> 0 | C83: =IF(C82=1,0.05,0) ->  | D83: =IF(OR(B78=6,C78=6),1,0) ->  | E83: Warmtepomp
A84: verhouding onderste tot bovenste verbrandingswaarde | B84: =VLOOKUP(B16,T_Energiedragerzonderelek,4,FALSE) -> 0.9 | C84: =VLOOKUP(C16,T_Energiedragerzonderelek,4,FALSE) ->  | D84: =IF(OR(B78=5,C78=5),1,0) ->  | E84: Externe warmtelevering
A85: productierendement | B85: =IF(B78=6,B23,IF(B78=5,B24,IF(B78=4,1-B80,-B80+IF(B78<3,B84*(B19+B81)-B83,B22*B84)))) -> 0.87867 | C85: =IF(C78=6,C23,IF(C78=5,C24,IF(C78=4,1-C80,-C80+IF(C78<3,C84*(C19+C81)-C83,C22*C84)))) -> 
A86: primaire energiefactor | B86: =IF(B78=6,T_fpelek,IF(B78=4,T_fpelek,IF(B78=5,B25,VLOOKUP(B16,T_Energiedragerzonderelek,3,FALSE)))) -> 1 | C86: =IF(C78=6,T_fpelek,IF(C78=4,T_fpelek,IF(C78=5,C25,VLOOKUP(C16,T_Energiedragerzonderelek,3,FALSE)))) -> 
B88: Jan | C88: Feb | D88: Maa | E88: Apr | F88: Mei | G88: Jun | H88: Jul | I88: Aug | J88: Sep | K88: Okt | L88: Nov | M88: Dec | N88: TOT
A89: fas,heat,seci,m (voor alle i dezelfde) | B89: =IF($B73=1,D28,0) -> 0 | C89: 0 | D89: 0 | E89: 0 | F89: 0 | G89: 0 | H89: 0 | I89: 0 | J89: 0 | K89: 0 | L89: 0 | M89: 0
A90: SUMalli(Qheat,seci,gross) | B90: =D29 ->  | N90: =SUM(B90:M90) -> 
A91: fheat,seci,m,pref (voor alle i dezelfde) | B91: =IF($B$78=6,VLOOKUP($B$75,T_fprefheatEPU,3,FALSE),VLOOKUP($B$75,T_fprefheatEPU,4,FALSE)) -> 1 | C91: 1 | D91: 1 | E91: 1 | F91: 1 | G91: 1 | H91: 1 | I91: 1 | J91: 1 | K91: 1 | L91: 1 | M91: 1
A92: SUMalli(Qheat,gross,sec i,m*(1-fas,heat,seci,m)) | B92: =B90*(1-B89) ->  | L92: =L90*(1-L89) ->  | N92: =SUM(B92:M92) -> 
A93: SUMalli(Qheat,final,seci,m,pref) | B93: =B92*B91/$B$85 -> 
A94: SUMalli(Qheat,final,seci,m,npref) | B94: =B92*(1-B91)/$C$85 -> 
A95: Ep,heat,m | B95: =$B$86*B93+$C$86*B94 ->  | N95: =SUM(B95:M95) -> 
A96: equivalent rendement,heat | B96: =B92/B95 ->  | C96: =C92/C95 -> 
N97: =SUM(B92:M92)/((B86/B85)*SUMPRODUCT(B91:M91,B92:M92)+(C86/C85)*SUMPRODUCT((1-B91:M91),B92:M92)) ->  | O97: Check
A98: Bevochtiging
A99: Index bevochtiging | B99: =VLOOKUP(B8,T_JaNee,2,FALSE) -> 2
A100: Index heat = bevochtiging | B100: =IF(B72=2,2,IF(B99=2,2,VLOOKUP(B33,T_JaNee,2,FALSE))) -> 2
A101: Index zonnethermisch systeem, bevochtiging | B101: =IF(B99=2,2,IF(B100=1,B73,VLOOKUP(B34,T_JaNee,2,FALSE))) -> 2
A102: Aandeel pref,bevochtiging | B102: =IF(B100=1,B74,B37/(C37+B37)) -> 0.5
A103: Index aandeel preferente warmte-opwekker, bevochtging | B103: =IF(B102<Constanten!A24,Constanten!B24,IF(B102<Constanten!A25,Constanten!B25,IF(B102<Constanten!A26,Constanten!B26,IF(B102<Constanten!A27,Constanten!B27,IF(B102<Constanten!A28,Constanten!B28,IF(B102<Constanten!A29,Constanten!B29,Constanten!B30)))))) -> 5
A105: Hulpvariabelen productierendement bevochtiging (indien verschillend van verwarming) | B105: pref | C105: niet-pref | D105: Voor zwarte vakken (conditional formating)
A106: Type opwekker bevochtiging | B106: =VLOOKUP(B36,T_Verwarmingtype,2,FALSE) -> 1 | C106: =VLOOKUP(C36,T_Verwarmingtype,2,FALSE) -> 2 | D106: =IF(OR(B106<4,C106<4),1,0) -> 1 | E106: energiebron
A107: Index plaats ketel / generator | B107: =IF(B106<5,VLOOKUP(B39,T_PlaatsKetel,2,FALSE),1) -> 1 | C107: =IF(C106<5,VLOOKUP(C39,T_PlaatsKetel,2,FALSE),1) -> 1 | D107: =IF(OR(B106<5,C106<5),1,0) -> 1 | E107: binnen buiten BV
A108: Vermindering rendement tgv plaats | B108: =IF(B107=1,0,0.02) -> 0 | C108: =IF(C107=1,0,0.02) -> 0 | D108: =IF(OR(B106<3,C106<3),1,0) -> 1 | E108: Warmhouden
A109: Vermeerdering rendement condenserende ketel | B109: =IF(B106=2,0.003*(B42-(6.4+0.63*B43)),0) -> 0 | C109: =IF(C106=2,0.003*(C42-(6.4+0.63*C43)),0) -> -0.0615 | D109: =IF(OR(B106=2,C106=2),1,0) -> 1 | E109: Condenserend
A110: Index ketelwatertemperatuur (0=nvt,1=ct,2=var) | B110: =IF(B106<3,VLOOKUP(B40,T_JaNee,2,FALSE),0) -> 2 | C110: =IF(C106<3,VLOOKUP(C40,T_JaNee,2,FALSE),0) -> 2 | D110: =IF(OR(B106=3,C106=3),1,0) -> 0 | E110: Luchtgenerator
A111: Vermindering rendement tgv cte temperatuur | B111: =IF(B110=1,0.05,0) -> 0 | C111: =IF(C110=1,0.05,0) -> 0 | D111: =IF(OR(B106=6,C106=6),1,0) -> 0 | E111: Warmtepomp
A112: verhouding onderste tot bovenste verbrandingswaarde | B112: =VLOOKUP(B38,T_Energiedragerzonderelek,4,FALSE) -> 0.9 | C112: =VLOOKUP(C38,T_Energiedragerzonderelek,4,FALSE) -> 0.9 | D112: =IF(OR(B106=5,C106=5),1,0) -> 0 | E112: Externe warmtelevering
A113: productierendement | B113: =IF($B$100=1,B85,IF(B106=6,B45,IF(B106=5,B46,IF(B106=4,1-B108,-B108+IF(B106<3,B112*(B41+B109)-B111,B44*B112))))) -> 0.9 | C113: =IF($B$100=1,C85,IF(C106=6,C45,IF(C106=5,C46,IF(C106=4,1-C108,-C108+IF(C106<3,C112*(C41+C109)-C111,C44*C112))))) -> 0.84465
A114: primaire energiefactor | B114: =IF($B$100=1,B86,IF(B106=6,T_fpelek,IF(B106=4,T_fpelek,IF(B106=5,B47,VLOOKUP(B38,T_Energiedragerzonderelek,3,FALSE))))) -> 1 | C114: =IF($B$100=1,C86,IF(C106=6,T_fpelek,IF(C106=4,T_fpelek,IF(C106=5,C47,VLOOKUP(C38,T_Energiedragerzonderelek,3,FALSE))))) -> 1
B116: Jan | C116: Feb | D116: Maa | E116: Apr | F116: Mei | G116: Jun | H116: Jul | I116: Aug | J116: Sep | K116: Okt | L116: Nov | M116: Dec | N116: TOT
A117: fas,hum,j,m (voor alle j dezelfde) | B117: =IF($B$100=1,B89,IF($B101=1,D50,0)) -> 0 | C117: 0 | D117: 0 | E117: 0 | F117: 0 | G117: 0 | H117: 0 | I117: 0 | J117: 0 | K117: 0 | L117: 0 | M117: 0
A118: SUMallj(Qhum,net,j,m) | B118: =D51 -> 10273.71422 | C118: 8526.85956 | D118: 7519.829446 | E118: 4379.990457 | F118: 1116.517449 | G118: 17.82981589 | H118: 0 | I118: 0 | J118: 202.5505757 | K118: 3153.224336 | L118: 7324.674207 | M118: 10094.44492 | N118: =SUM(B118:M118) -> 52609.63499
A119: fheat,humj,m,pref (voor alle j dezelfde) | B119: =IF($B100=1,B91,IF($B$106=6,VLOOKUP($B$103,T_fprefheatEPU,3,FALSE),VLOOKUP($B$103,T_fprefheatEPU,4,FALSE))) -> 1 | C119: 1 | D119: 1 | E119: 1 | F119: 1 | G119: 1 | H119: 1 | I119: 1 | J119: 1 | K119: 1 | L119: 1 | M119: 1
A120: SUMalli(Qhum,net,j,m*(1-fas,hum,j,m)) | B120: =B118*(1-B117) -> 10273.71422 | C120: 8526.85956 | D120: 7519.829446 | E120: 4379.990457 | F120: 1116.517449 | G120: 17.82981589 | H120: 0 | I120: 0 | J120: 202.5505757 | K120: 3153.224336 | L120: 7324.674207 | M120: 10094.44492 | N120: =SUM(B120:M120) -> 52609.63499
A121: SUMallj(Qhum,final,j,m,pref) | B121: =B119*B120/$B$113 -> 11415.23802 | C121: 9474.2884 | D121: 8355.366051 | E121: 4866.656063 | F121: 1240.574944 | G121: 19.81090654 | H121: 0 | I121: 0 | J121: 225.0561953 | K121: 3503.582596 | L121: 8138.526897 | M121: 11216.04991
A122: SUMallj(Qhum,final,j,m,npref) | B122: =(1-B119)*B120/$C$113 -> 0 | C122: 0 | D122: 0 | E122: 0 | F122: 0 | G122: 0 | H122: 0 | I122: 0 | J122: 0 | K122: 0 | L122: 0 | M122: 0
A123: Ep,hum,m | B123: =$B$114*B121+$C$114*B122 -> 11415.23802 | C123: 9474.2884 | D123: 8355.366051 | E123: 4866.656063 | F123: 1240.574944 | G123: 19.81090654 | H123: 0 | I123: 0 | J123: 225.0561953 | K123: 3503.582596 | L123: 8138.526897 | M123: 11216.04991 | N123: =SUM(B123:M123) -> 58455.14999
A124: equivalent rendement,hum | B124: =B120/B123 -> 0.9 | C124: 0.9 | D124: 0.9 | E124: 0.9 | F124: 0.9 | G124: 0.9 | J124: 0.9 | K124: 0.9 | L124: 0.9 | M124: 0.9 | N124: 0.9
N125: =SUM(B120:M120)/((B114/B113)*SUMPRODUCT(B119:M119,B120:M120)+(C114/C113)*SUMPRODUCT((1-B119:M119),B120:M120)) -> 0.9 | O125: Check
A126: Koeling
A127: Index koeling | B127: =VLOOKUP(B9,T_JaNee,2,FALSE) -> 2
A128: Aandeel pref,cool | B128: =B60/(B60+C60) -> 1
A129: Index aandeel preferente koudeleverancier, cool | B129: =IF(B128<Constanten!A35,Constanten!B35,IF(B128<Constanten!A36,Constanten!B36,IF(B128<Constanten!A37,Constanten!B37,IF(B128<Constanten!A38,Constanten!B38,Constanten!B39)))) -> 5
A131: Hulpvariabelen productierendement koeling | B131: pref | C131: niet-pref | D131: Voor zwarte vakken (conditional formating)
A132: Type koudeleverancier | B132: =VLOOKUP(B56,T_Koudetype,2,FALSE) -> 1 | C132: =VLOOKUP(C56,T_Koudetype,2,FALSE) ->  | D132: =IF(OR(B132=1,C132=1),1,0) ->  | E132: Compressiekoelmachine
A133: productierendement | B133: =IF(B132=1,B57,IF(B132=2,0.7*B58,IF(B132=3,20,5))) -> 2.8 | C133: =IF(C132=1,C57,IF(C132=2,0.7*C58,IF(C132=3,12,5))) ->  | D133: =IF(OR(B132=2,C132=2),1,0) ->  | E133: externe warmtelevering
A134: primaire energiefactor | B134: =IF(B132=2,B59,2.5) -> 2.5 | C134: =IF(C132=2,C59,2.5) -> 
B136: Jan | C136: Feb | D136: Maa | E136: Apr | F136: Mei | G136: Jun | H136: Jul | I136: Aug | J136: Sep | K136: Okt | L136: Nov | M136: Dec | N136: TOT
A137: SUMalli(Qcool,seci,gross,m) | B137: =D63 ->  | N137: =SUM(B137:M137) -> 
A138: fcool,seci,pref (voor alle i dezelfde) | B138: =VLOOKUP($B$129,T_fprefcoolEPU,2,FALSE) -> 1 | C138: 1 | D138: 1 | E138: 1 | F138: 1 | G138: 1 | H138: 1 | I138: 1 | J138: 1 | K138: 1 | L138: 1 | M138: 1
A139: SUMalli(Qcool,final,seci,m,pref) | B139: =B138*B137/$B$133 -> 
A140: SUMalli(Qcool,final,seci,m,npref) | B140: =(1-B138)*B137/$C$133 -> 
A141: Ep,cool,m | B141: =$B$134*B139+$C$134*B140 ->  | N141: =SUM(B141:M141) -> 
A142: equivalent rendement,cool | B142: =B137/B141 -> 
N143: =N142/0.7 -> 
N144: =SUM(B137:M137)/((B134/B133)*SUMPRODUCT(B138:M138,B137:M137)+(C134/C133)*SUMPRODUCT((1-B138:M138),B137:M137)) ->  | O144: Check

Sheet WP_Pref (hidden)
A2: Berekening warmtepomp | B2: Preferent toestel | C2: Niet-preferent toestel
A4: De prestatiecoefficient onder testomstandigheden (COPtest) | B4: =Sim!$X$20 ->  | C4: =Sim!#REF! -> 
A5: warmtebron | B5: =Sim!$X$22 ->  | C5: =Sim!#REF! -> 
A6: afgiftemedium | B6: =Sim!$X$23 ->  | C6: =Sim!#REF! -> 
A8: fθ
A9: gebruik waarde bij ontstentenis? | B9: nee | C9: nee
A10: type warmteafgiftesysteem? | B10: Vloer- , muur- en plafondverwarming | C10: Vloer- , muur- en plafondverwarming
A11: vertrektemperatuur naar het systeem van warmte-afgifte bij de ontwerpomstandigheden θsupply,design [°C] | B11: =Sim!$R$29 -> 70 | C11: =Sim!#REF! -> 
A13: fθ | B13: =IF(B44<>1,1,1+0.01*(43-B46)) ->  | C13: =IF(C44<>1,1,1+0.01*(43-C46)) -> 
A15: fΔθ
A16: gebruik waarde bij ontstentenis? | B16: nee | C16: nee
A17: temperatuurverschil tussen vertrek en retour van het afgiftesysteem bij ontwerpomstandigheden [°C] | B17: =Sim!$R$31 -> 20 | C17: =Sim!#REF! -> 
A18: temperatuurtoename van het water over de condensor, bij test volgens EN 14511 [°C] | B18: =Sim!$X$21 ->  | C18: =Sim!#REF! -> 
A20: fΔθ | B20: =IF(B44<>1,1,IF(B47=1,0.93,1+0.01*(B17-B18))) ->  | C20: =IF(C44<>1,1,IF(C47=1,0.93,1+0.01*(C17-C18))) -> 
A22: fpumps
A23: Is er een pomp voor warmtetoevoer naar de verdamper? | B23: =Sim!$X$24 -> Nee | C23: =Sim!#REF! -> 
A24: Elektrisch vermogen van de pomp gekend? | B24: nee | C24: nee
A25: Elektrisch vermogen van de pomp [kW] | B25: =Sim!#REF! ->  | C25: =Sim!#REF! -> 
A26: Elektrisch vermogen van de warmtepomp volgens EN 14511 bij dezelfde testomstandigheden als waarbij COPtest werd bepaald [kW] | B26: =Sim!#REF! ->  | C26: =Sim!#REF! -> 
A28: fpumps | B28: =IF(B48=2,1,IF(B49=1,1/(1+B25/B26),5/6)) ->  | C28: =IF(C48=2,1,IF(C49=1,1/(1+C25/C26),5/6)) -> 
A30: fAHU
A31: gebruik waarde bij ontstentenis? | B31: nee | C31: nee
A32: ontwerptoevoerdebiet doorheen de installatie [m³/h] | B32: =Sim!#REF! ->  | C32: =Sim!#REF! -> 
A33: ontwerpafvoerdebiet doorheen de installatie [m³/h] | B33: =Sim!#REF! ->  | C33: =Sim!#REF! -> 
A34: maximum luchtdebiet doorheen de installatie, zoals opgegeven door de fabrikant [m³/h] | B34: =Sim!#REF! ->  | C34: =Sim!#REF! -> 
A35: luchtdebiet doorheen de installatie bij de test volgens EN 14511 [m³/h] | B35: =Sim!#REF! ->  | C35: =Sim!#REF! -> 
A37: fAHU | B37: =IF(AND(B43<4,B44<3),1,IF(B51=1,B71,B64)) ->  | C37: =IF(AND(C43<4,C44<3),1,IF(C51=1,C71,C64)) -> 
A39: Seizoensprestatiefactor (SPF) | B39: =B13*B20*B28*B37*B4 ->  | C39: =C13*C20*C28*C37*C4 -> 
A42: hulpvariabelen
A43: warmtebron | B43: =VLOOKUP(B5,Twarmtebron,2,FALSE) ->  | C43: =VLOOKUP(C5,Twarmtebron,2,FALSE) -> 
A44: afgiftemedium | B44: =VLOOKUP(B6,Tafgiftemedium,2,FALSE) ->  | C44: =VLOOKUP(C6,Tafgiftemedium,2,FALSE) -> 
A45: vertrekt° naar afgiftesysteem; wbo? | B45: =IF(B44=1,VLOOKUP(B9,TJaNee,2,FALSE),3) ->  | C45: =IF(C44=1,VLOOKUP(C9,TJaNee,2,FALSE),3) -> 
A46: θsupply,design | B46: =IF(B45=1,VLOOKUP(B10,Tafgiftesysteem,3,FALSE),B11) ->  | C46: =IF(C45=1,VLOOKUP(C10,Tafgiftesysteem,3,FALSE),C11) -> 
A47: fΔθ, waarde bij ontstentenis? | B47: =IF(B44=1,VLOOKUP(B16,TJaNee,2,FALSE),3) ->  | C47: =IF(C44=1,VLOOKUP(C16,TJaNee,2,FALSE),3) -> 
A48: is er pomp voor warmtetoevoer naar verdamper? | B48: =IF(B43=2,1,IF(B43>2,2,VLOOKUP(B23,TJaNee,2,FALSE))) ->  | C48: =IF(C43=2,1,IF(C43>2,2,VLOOKUP(C23,TJaNee,2,FALSE))) -> 
A49: Elektrisch vermogen van pomp gekend? | B49: =IF(B48=2,2,VLOOKUP(B24,TJaNee,2,FALSE)) ->  | C49: =IF(C48=2,2,VLOOKUP(C24,TJaNee,2,FALSE)) -> 
A50: gebruik ventilatie afvoer en toevoer, met detailberekening fahu? | B50: =OR(AND(B44=3,OR(B43=4,B43=5)),AND(B43=4,OR(B44=3,B44=4))) ->  | C50: =OR(AND(C44=3,OR(C43=4,C43=5)),AND(C43=4,OR(C44=3,C44=4))) -> 
A51: fAHU, gebruik waarde bij ontstentenis? | B51: =VLOOKUP(B31,TJaNee,2,FALSE) -> 2 | C51: =VLOOKUP(C31,TJaNee,2,FALSE) -> 2
A53: ontwerptoevoerdebiet nodig in detail? | B53: =IF(B51=1,FALSE,AND(B44=3,OR(B43=4,B43=5))) ->  | C53: =IF(C51=1,FALSE,AND(C44=3,OR(C43=4,C43=5))) -> 
A54: ontwerpafvoerdebiet nodig in detail? | B54: =IF(B51=1,FALSE,AND(B43=4,OR(B44=3,B44=4))) ->  | C54: =IF(C51=1,FALSE,AND(C43=4,OR(C44=3,C44=4))) -> 
A55: maximum luchtdebiet nodig in detail? | B55: =IF(B51=1,FALSE,OR(B53,B54)) ->  | C55: =IF(C51=1,FALSE,OR(C53,C54)) -> 
A56: luchtdebiet doorheen installatie bij test in detail? | B56: =IF(B51=1,FALSE,B55) ->  | C56: =IF(C51=1,FALSE,C55) -> 
A58: ventilatielucht
A59: enige warmtebron, enig afgiftemedium | B59: =IF(B34=0,1,(0.51+0.7*MIN(B32,B33)/B34)/(0.51+0.7*B35/B34)) ->  | C59: =IF(C34=0,1,(0.51+0.7*MIN(C32,C33)/C34)/(0.51+0.7*C35/C34)) -> 
A60: enige warmtebron, niet enig afgiftemedium | B60: =IF(B$34=0,1,(0.75+0.35*B$33/B$34)/(0.75+0.35*B$35/B$34)) ->  | C60: =IF(C$34=0,1,(0.75+0.35*C$33/C$34)/(0.75+0.35*C$35/C$34)) -> 
A61: niet enige warmtebron, enig afgiftemedium | B61: =IF(B34=0,1,(0.75+0.35*B$32/B$34)/(0.75+0.35*B$35/B$34)) ->  | C61: =IF(C34=0,1,(0.75+0.35*C$32/C$34)/(0.75+0.35*C$35/C$34)) -> 
A62: andere | B62: 1 | C62: 1
A64: fahu | B64: =IF($B43=4,IF($B44=3,B59,IF($B44=4,B60,1)),IF($B43=5,IF($B44=3,B61,B62),1)) ->  | C64: =IF($B43=4,IF($B44=3,C59,IF($B44=4,C60,1)),IF($B43=5,IF($B44=3,C61,C62),1)) -> 
B66: 0.51 | C66: 0.51
B67: 0.75 | C67: 0.75
B68: 0.75 | C68: 0.75
B69: 1 | C69: 1
B71: =IF($B43=4,IF($B44=3,B66,IF($B44=4,B67,1)),IF($B43=5,IF($B44=3,B68,B69),1)) ->  | C71: =IF($B43=4,IF($B44=3,C66,IF($B44=4,C67,1)),IF($B43=5,IF($B44=3,C68,C69),1)) -> 
A75: Nietpref WP aanwezig? | B75: =IF(#REF!=2,IF(#REF!=6,1,0),IF('EPU-pref'!C78=6,1,0)) -> 

Sheet Constanten (hidden)
A1: Dit tabblad bevat gegevens ter ondersteuning van de programmatie die niet gewijzigd mogen worden!!
A3: Tabel 1: Fractie gedekt door opwekker- EPW (niet WP en WKK)
A4: Bovengrens aandeel | B4: Index | C4: Jan | D4: Feb | E4: Maa | F4: Apr | G4: Mei | H4: Jun | I4: Jul | J4: Aug | K4: Sep | L4: Okt | M4: Nov | N4: Dec
A5: 0.2 | B5: 1 | C5: 0 | D5: 0 | E5: 0 | F5: 0 | G5: 0 | H5: 0 | I5: 0 | J5: 0 | K5: 0 | L5: 0 | M5: 0 | N5: 0
A6: 0.3 | B6: 2 | C6: 0.44 | D6: 0.46 | E6: 0.55 | F6: 0.72 | G6: 1 | H6: 1 | I6: 1 | J6: 1 | K6: 1 | L6: 0.89 | M6: 0.54 | N6: 0.42
A7: 0.4 | B7: 3 | C7: 0.68 | D7: 0.74 | E7: 0.88 | F7: 1 | G7: 1 | H7: 1 | I7: 1 | J7: 1 | K7: 1 | L7: 1 | M7: 0.87 | N7: 0.67
A8: 1 | B8: 4 | C8: 1 | D8: 1 | E8: 1 | F8: 1 | G8: 1 | H8: 1 | I8: 1 | J8: 1 | K8: 1 | L8: 1 | M8: 1 | N8: 1
A11: Tabel 2: Fractie gedekt door opwekker - EPW (WKK en WP)
A12: Bovengrens aandeel | B12: Index | C12: Jan | D12: Feb | E12: Maa | F12: Apr | G12: Mei | H12: Jun | I12: Jul | J12: Aug | K12: Sep | L12: Okt | M12: Nov | N12: Dec
A13: 0.1 | B13: 1 | C13: 0 | D13: 0 | E13: 0 | F13: 0 | G13: 0 | H13: 0 | I13: 0 | J13: 0 | K13: 0 | L13: 0 | M13: 0 | N13: 0
A14: 0.2 | B14: 2 | C14: 0.42 | D14: 0.44 | E14: 0.53 | F14: 0.7 | G14: 1 | H14: 1 | I14: 1 | J14: 1 | K14: 1 | L14: 0.86 | M14: 0.52 | N14: 0.4
A15: 0.3 | B15: 3 | C15: 0.69 | D15: 0.73 | E15: 0.86 | F15: 1 | G15: 1 | H15: 1 | I15: 1 | J15: 1 | K15: 1 | L15: 1 | M15: 0.86 | N15: 0.66
A16: 0.4 | B16: 4 | C16: 0.81 | D16: 0.86 | E16: 1 | F16: 1 | G16: 1 | H16: 1 | I16: 1 | J16: 1 | K16: 1 | L16: 1 | M16: 1 | N16: 0.78
A17: 0.6 | B17: 5 | C17: 0.85 | D17: 0.9 | E17: 1 | F17: 1 | G17: 1 | H17: 1 | I17: 1 | J17: 1 | K17: 1 | L17: 1 | M17: 1 | N17: 0.81
A18: 0.8 | B18: 6 | C18: 0.86 | D18: 0.91 | E18: 1 | F18: 1 | G18: 1 | H18: 1 | I18: 1 | J18: 1 | K18: 1 | L18: 1 | M18: 1 | N18: 0.82
A19: 1 | B19: 7 | C19: 1 | D19: 1 | E19: 1 | F19: 1 | G19: 1 | H19: 1 | I19: 1 | J19: 1 | K19: 1 | L19: 1 | M19: 1 | N19: 1
A22: Tabel 3: Fractie gedekt door opwekker - EPU (verwarming)
A23: Bovengrens aandeel | B23: Index | C23: WKK | D23: WP | E23: Ander
A24: 0.1 | B24: 1 | C24: 0.15 | D24: 0 | E24: 0
A25: 0.2 | B25: 2 | C25: 0.45 | D25: 0.48 | E25: 0
A26: 0.3 | B26: 3 | C26: 0.6 | D26: 0.79 | E26: 0.5
A27: 0.4 | B27: 4 | C27: 0.6 | D27: 0.93 | E27: 0.8
A28: 0.6 | B28: 5 | C28: 0.6 | D28: 0.97 | E28: 1
A29: 0.8 | B29: 6 | C29: 0.6 | D29: 0.98 | E29: 1
A30: 1 | B30: 7 | C30: 0.6 | D30: 1 | E30: 1
A33: Tabel 4: Fractie gedekt door opwekker - EPU (koeling)
A34: Bovengrens aandeel | B34: Index | C34: Alles
A35: 0.1 | B35: 1 | C35: 0.1
A36: 0.2 | B36: 2 | C36: 0.2
A37: 0.3 | B37: 3 | C37: 0.5
A38: 0.5 | B38: 4 | C38: 0.8
A39: 1 | B39: 5 | C39: 1
A42: Tabel 5: Ja/nee (nieuw)
A43: Ja | B43: 1
A44: Nee | B44: 2
A47: Tabel 6: Type opwekker verwarming
A48: Keteltype | B48: Index | D48: Keteltype | E48: Index
A49: Niet condenserende ketel | B49: 1 | D49: Niet condenserende ketel | E49: 1
A50: Condenserende ketel | B50: 2 | D50: Condenserende ketel | E50: 2
A51: Luchtgenerator | B51: 3 | D51: Luchtgenerator | E51: 3
A52: Elektrische weerstandsverwarming | B52: 4 | D52: Elektrische weerstandsverwarming | E52: 4
A53: Externe warmtelevering | B53: 5
A54: Warmtepomp | B54: 6 | D54: Warmtepomp | E54: 6
A58: Tabel 7: Plaats ketel/generator
A59: Plaats ketel / generator | B59: Index
A60: Binnen het beschermd volume | B60: 1
A61: Buiten het beschermd volume | B61: 2
A64: Tabel 8: Type opwekker warm tapwater
A65: Type opwekker | B65: Index | D65: Type opwekker | E65: Index
A66: Verbrandingstoestel | B66: 1 | D66: Verbrandingstoestel | E66: 1
A67: Warmtepomp | B67: 2
A68: Elektrische weerstandsverwarming | B68: 3 | D68: Elektrische weerstandsverwarming | E68: 3
A69: Externe warmtelevering | B69: 4 | D69: Externe warmtelevering | E69: 4
A73: Tabel 9: Opslag/Geen opslag
A74: Met warmteopslag | B74: 1
A75: Zonder warmteopslag | B75: 2
A78: Tabel 10: Hulptabel warm tapwater
A79: Boilertype | B79: Index | C79: Rendement
A80: Verbrandingstoestel, met opslag | B80: 1 | C80: 0.45
A81: Verbrandingstoestel, zonder opslag | B81: 2 | C81: 0.5
A82: Warmtepomp, met opslag | B82: 3 | C82: 1.4
A83: Warmtepomp, zonder opslag | B83: 4 | C83: 1.45
A84: Elektrische weerstandsverwarming, met opslag | B84: 5 | C84: 0.7
A85: Elektrische weerstandsverwarming, zonder opslag | B85: 6 | C85: 0.75
A86: Externe warmtelevering, met opslag | B86: 7 | C86: te bepalen
A87: Externe warmtelevering, zonder opslag | B87: 8 | C87: te bepalen
A91: Tabel 11: Type koudeleverancier
A92: Type koudeleveranctier | B92: Index
A93: Compressiekoelmachine | B93: 1
A94: Absorptiekoelmachine op externe warmtelevering | B94: 2
A95: Koudeopslag | B95: 3
A96: Warmtepomp in zomerbedrijf (in combinatie met koudeopslag) | B96: 4
A100: Tabel 12: Rendementen WKK
A101: Elektrisch vermogen WKK | B101: index | C101: elek | D101: therm
A102: Tussen 5 en 20 kW | B102: 1 | C102: 0.26 | D102: 0.57
A103: Tussen 20 en 200 kW | B103: 2 | C103: 0.27 | D103: 0.54
A104: Tussen 200 en 500 kW | B104: 3 | C104: 0.32 | D104: 0.5
A105: Tussen 500 en 1000 kW | B105: 4 | C105: 0.35 | D105: 0.44
A106: Tussen 1000 en 25000 kW | B106: 5 | C106: 0.36 | D106: 0.4
A110: Tabel 13: warmtebron WP
A111: warmtebron | B111: Index
A112: bodem | B112: 1
A113: grondwater | B113: 2
A114: enkel buitenlucht | B114: 3
A115: enkel afgevoerde ventilatielucht | B115: 4
A116: afgevoerde ventilatielucht vermengd met buitenlucht | B116: 5
A120: Tabel 14: warmteafgiftemedium WP
A121: afgiftemedium | B121: Index
A122: water | B122: 1
A123: ruimtelucht | B123: 2
A124: enkel toegevoerde ventilatielucht | B124: 3
A125: toegevoerde ventilatielucht + gerecirculeerde ruimtelucht | B125: 4
A129: Tabel 15: Ja/nee (oud)
A130: Ja | B130: 1
A131: Nee | B131: 2
A134: Tabel 16: Afgiftesysteem
A135: afgiftesysteem | B135: Index | C135: Ontwerpvertrek-temperatuur | D135: Ontwerpretour-temperatuur
A136: Andere dan oppervlakteverwarming | B136: 1 | C136: 90 | D136: 70
A137: Oppervlakteverwarming | B137: 2 | C137: 55 | D137: 45
A141: Tabel 17: Energiedragers
A142: Energiedrager | B142: index | C142: fp | D142: fl/h | E142: fCO2
A143: Aardgas | B143: 1 | C143: 1 | D143: 0.9 | E143: 0.056
A144: propaan | B144: 2 | C144: 1 | D144: 0.92 | E144: 0.062
A145: butaan | B145: 3 | C145: 1 | D145: 0.92 | E145: 0.062
A146: LPG | B146: 4 | C146: 1 | D146: 0.92 | E146: 0.062
A147: Gasolie | B147: 5 | C147: 1 | D147: 0.94 | E147: 0.073
A148: Kolen | B148: 6 | C148: 1 | D148: 0.96 | E148: 0.093
A149: Hout | B149: 7 | C149: 1 | D149: 0.93 | E149: 0
A150: Elektriciteit | B150: 8 | C150: 2.5 | D150: 1 | E150: 0.198
A151: Elektriciteit (productie WKK) | B151: 9 | C151: 1.8 | D151: 1 | E151: 0.198
A155: Tabel 18 (nieuw): Types WKK | C155: a elec | F155: b elec | I155: a th | L155: b th
A156: Type WKK | B156: Index | C156: x < 5 kW | D156: 5 kW < x < 5 MW | E156: 5000 MW < x | F156: x < 5 kW | G156: 5 kW < x < 5 MW | H156: 5000 MW < x | I156: x < 5 kW | J156: 5 kW < x < 5 MW | K156: 5000 MW < x | L156: x < 5 kW | M156: 5 kW < x < 5 MW | N156: 5000 MW < x | O156: a | P156: b | Q156: fp
A157: Interne verbrandingsmotor op aardgas | B157: 1 | C157: 0.251 | D157: 0.228 | E157: 0.384 | F157: 0 | G157: 0.061 | H157: 0 | I157: 0.573 | J157: 0.623 | K157: 0.396 | L157: 0 | M157: -0.053 | N157: 0 | O157: 0.3323 | P157: 1.123 | Q157: 1
A158: Interne verbrandingsmotor op gas afkomstig van biomassa | B158: 2 | C158: 0.248 | D158: 0.222 | E158: 0.4 | F158: 0 | G158: 0.069 | H158: 0 | I158: 0.542 | J158: 0.601 | K158: 0.345 | L158: 0 | M158: -0.065 | N158: 0 | O158: 0.3305 | P158: 1.147 | Q158: 1
A159: Interne verbrandingsmotor op gasolie | B159: 3 | C159: 0.279 | D159: 0.253 | E159: 0.433 | F159: 0 | G159: 0.063 | H159: 0 | I159: 0.536 | J159: 0.587 | K159: 0.361 | L159: 0 | M159: -0.057 | N159: 0 | O159: 0.3947 | P159: 1.131 | Q159: 1
A160: Interne verbrandingsmotor op plantaardige olie | B160: 4 | C160: 0.268 | D160: 0.24 | E160: 0.436 | F160: 0 | G160: 0.07 | H160: 0 | I160: 0.573 | J160: 0.637 | K160: 0.363 | L160: 0 | M160: -0.066 | N160: 0 | O160: 0.3306 | P160: 1.152 | Q160: 1
A161: Ander | B161: 5
A165: Tabel 19 (nieuw) duur van de maand
A166: Maand | B166: Jan | C166: Feb | D166: Maa | E166: Apr | F166: Mei | G166: Jun | H166: Jul | I166: Aug | J166: Sep | K166: Okt | L166: Nov | M166: Dec
A167: Duur (Ms) | B167: 2.6784 | C167: 2.4192 | D167: 2.6784 | E167: 2.592 | F167: 2.6784 | G167: 2.592 | H167: 2.6784 | I167: 2.6784 | J167: 2.592 | K167: 2.6784 | L167: 2.592 | M167: 2.6784
A171: Tabel 20 eta sorption
A172: WKK | B172: 1
A173: Externe warmtelevering | B173: 0.7

Sheet E1 (hidden)
A1: VL | B1: WZC
A2: B+
A4: ALGEMENE GEGEVENS VAN DE ENERGIESECTOR
A7: beschermd volume BV | B7: =Overview!H20 -> 0 | C7: m³ | D7: BVI | I7: =Lists!E$33 -> Kamers | J7: =Lists!E$34 -> Leefruimte / Eetzaal / Inkom | K7: =Lists!E$35 -> Keuken / Kantoor / Leesruimte | L7: =Lists!E$36 -> Verpleegruimte / Wasserij / Kine | M7: =Lists!E$37 -> Gangen / Berging / Technisch | N7: =Lists!E$38 -> Overige
A8: gebruiksoppervlakte Af | B8: =SUM(I8:P8) -> 0 | C8: m² | D8: BVI | I8: =Overview!$H$21 * (Overview!H14/100) -> 0 | J8: =Overview!$H$21 * (Overview!H15/100) -> 0 | K8: =Overview!$H$21 * (Overview!H16/100) -> 0 | L8: =Overview!$H$21 * (Overview!H17/100) -> 0 | M8: =Overview!$H$21 * (Overview!H18/100) -> 0 | N8: =Overview!$H$21 * (Overview!H19/100) -> 0 | R8: IDA 3 ≥ 22 m³/h.pers
C9: m²/pers | D9: BX (Tabel 1) | E9: NBN D 50-001 tabel 1 en tabel 11 en 12 van EN 13779 | I9: 10 | J9: 1.75 | K9: 10 | L9: 5 | M9: 0 | N9: 0 | R9: IDA 2 ≥ 36 m³/h.pers
A10: n design | B10: =SUM(I10:P10) -> 0 | C10: pers | D10: BVI | E10: n design: op basis van ventilatie-eisen | I10: =IFERROR(ROUNDUP( I8 / I9, 0), 0) -> 0 | J10: =IFERROR(ROUNDUP( J8 / J9, 0), 0) -> 0 | K10: 0 | L10: 0 | M10: 0 | N10: 0 | R10: IDA 1 ≥ 54 m³/h.pers?
A11: V supply, min | B11: =SUM(I11:P11) -> 0 | C11: m³/h | D11: BVI | E11: V supply, min: op basis van ventilatie-eisen | I11: =I10 * 22 -> 0 | J11: =J10 * 22 -> 0 | K11: 0 | L11: 0 | M11: 0 | N11: 0
A13: specifieke effectieve thermische warmtecapaciteit Dj | B13: 55 | C13: kJ/(m²K) | D13: BXI (Tabel 9) (waarde BVj ontstentenis = 55 kJ/(m²K)
A15: effectieve warmte capaciteit C | B15: =B8*B13 -> 0 | C15: kJ/K | D15: BVI
A18: OPBOUW VAN DE BOUWDELEN
A21: DELEN IN CONTACT MET DE GROND
A23: VLOEREN IN CONTACT MET DE GROND
A25: VLOER IN DIRECT CONTACT MET DE GROND
A26: oppervlakte | B26: =IF(Sim!J$13 = "boven kelder / parking", Sim!J$12 - Sim!J$12 * (Sim!J14 / 100), Sim!J$12) -> 0 | C26: m²
A27: Indicatieve U-waarde | B27: =Sim!J$16 ->  | C27: W/m²K | D27: TR p.35 | E27: U ind = U eff * 1/(U eff + 1); U eff = 1/(0.0 + Rf + 0.17)
A29: VLOER BOVEN KELDER/KRUIPRUIMTE
A30: oppervlakte | B30: =IF(Sim!J$13 = "boven kelder / parking", Sim!J$12 * (Sim!J14 / 100), 0) -> 0 | C30: m²
A31: Indicatieve U-waarde | B31: =Sim!J$17 -> 2.987213416 | C31: W/m²K | D31: TR p.36 | E31: U ind = U eff * b; U eff = 1/(0.17 + Rf + 0.17)
E32: b = | F32: 0.5 | G32: kelderruimte zonder buitenvenster of buitendeur
F33: 0.8 | G33: kelderruimte met buitenvenster of buitendeur
F34: 1 | G34: kruipruimte sterk geventileerd (niet luchtdicht of permanente ventilatieopeningen)
F35: 0.8 | G35: kruipruimte niet of zwak geventileerd (luchtdicht, geen of kleine ventilatieopeningen)
A37: MUREN IN CONTACT MET DE GROND
A39: MUUR INGEGRAVEN
A40: oppervlakte | C40: m² | AJ40: BV EPW Tabellen C1 - verticaal (90°)
A41: Indicatieve U-waarde | C41: W/m²K | D41: TR p.59 | AJ41: Oriëntatie | AL41: jan | AM41: feb | AN41: mar | AO41: apr | AP41: may | AQ41: jun | AR41: jul | AS41: aug | AT41: sep | AU41: oct | AV41: nov | AW41: dec
AJ42: 180 | AK42: noord | AL42: 0 | AM42: 0 | AN42: 0 | AO42: 0 | AP42: 0 | AQ42: 0 | AR42: 0 | AS42: 0 | AT42: 0 | AU42: 0 | AV42: 0 | AW42: 0
A43: OPAKE DELEN IN CONTACT MET DE BUITENOMGEVING | AJ43: -135 | AK43: noord-oost | AL43: 0 | AM43: 0 | AN43: 0 | AO43: 0.03 | AP43: 0.25 | AQ43: 0.28 | AR43: 0.2 | AS43: 0.13 | AT43: 0 | AU43: 0 | AV43: 0 | AW43: 0
AJ44: -90 | AK44: oost | AL44: 0.09 | AM44: 0.29 | AN44: 0.33 | AO44: 0.37 | AP44: 0.46 | AQ44: 0.49 | AR44: 0.42 | AS44: 0.39 | AT44: 0.33 | AU44: 0.18 | AV44: 0 | AW44: 0
A45: referentie oppervlakte gevel + venster | C45: m² | AJ45: -45 | AK45: zuid-oost | AL45: 0.33 | AM45: 0.51 | AN45: 0.53 | AO45: 0.49 | AP45: 0.49 | AQ45: 0.5 | AR45: 0.42 | AS45: 0.44 | AT45: 0.5 | AU45: 0.54 | AV45: 0.27 | AW45: 0.28
AJ46: 0 | AK46: zuid | AL46: 0.53 | AM46: 0.59 | AN46: 0.62 | AO46: 0.53 | AP46: 0.45 | AQ46: 0.42 | AR46: 0.33 | AS46: 0.46 | AT46: 0.56 | AU46: 0.72 | AV46: 0.49 | AW46: 0.42
A47: GEVELS | AJ47: 45 | AK47: zuid-west | AL47: 0.45 | AM47: 0.6 | AN47: 0.61 | AO47: 0.6 | AP47: 0.53 | AQ47: 0.51 | AR47: 0.37 | AS47: 0.54 | AT47: 0.63 | AU47: 0.75 | AV47: 0.52 | AW47: 0.29
AJ48: 90 | AK48: west | AL48: 0.12 | AM48: 0.32 | AN48: 0.44 | AO48: 0.51 | AP48: 0.54 | AQ48: 0.56 | AR48: 0.38 | AS48: 0.5 | AT48: 0.52 | AU48: 0.64 | AV48: 0.37 | AW48: 0.03
A49: GEVEL TYPE 1 | AJ49: 135 | AK49: noord-west | AL49: 0 | AM49: 0 | AN49: 0.04 | AO49: 0.2 | AP49: 0.34 | AQ49: 0.4 | AR49: 0.23 | AS49: 0.25 | AT49: 0.11 | AU49: 0.1 | AV49: 0 | AW49: 0
A50: oppervlakte | B50: =Sim!J$19 -> 0 | C50: m²
A51: U-waarde | B51: =Sim!J$24 -> 1.643683143 | C51: W/m²K | D51: TR | E51: U = 1/(0.04 + Rf + 0.13) | AJ51: BV EPW Tabellen C1 - horizontaal (0°)
AJ52: Oriëntatie | AL52: jan | AM52: feb | AN52: mar | AO52: apr | AP52: may | AQ52: jun | AR52: jul | AS52: aug | AT52: sep | AU52: oct | AV52: nov | AW52: dec
A53: GEVEL TYPE 2 | AJ53: 180 | AK53: noord | AL53: 0 | AM53: 0.1 | AN53: 0.46 | AO53: 0.57 | AP53: 0.67 | AQ53: 0.7 | AR53: 0.66 | AS53: 0.63 | AT53: 0.49 | AU53: 0.33 | AV53: 0 | AW53: 0
A54: oppervlakte | B54: =Sim!J$20 -> 0 | C54: m² | AJ54: -135 | AK54: noord-oost | AL54: 0 | AM54: 0.1 | AN54: 0.46 | AO54: 0.57 | AP54: 0.67 | AQ54: 0.7 | AR54: 0.66 | AS54: 0.63 | AT54: 0.49 | AU54: 0.33 | AV54: 0 | AW54: 0
A55: U-waarde | B55: =Sim!J$24 -> 1.643683143 | C55: W/m²K | D55: TR | E55: U = 1/(0.04 + Rf + 0.13) | AJ55: -90 | AK55: oost | AL55: 0 | AM55: 0.1 | AN55: 0.46 | AO55: 0.57 | AP55: 0.67 | AQ55: 0.7 | AR55: 0.66 | AS55: 0.63 | AT55: 0.49 | AU55: 0.33 | AV55: 0 | AW55: 0
AJ56: -45 | AK56: zuid-oost | AL56: 0 | AM56: 0.1 | AN56: 0.46 | AO56: 0.57 | AP56: 0.67 | AQ56: 0.7 | AR56: 0.66 | AS56: 0.63 | AT56: 0.49 | AU56: 0.33 | AV56: 0 | AW56: 0
A57: GEVEL TYPE 3 | AJ57: 0 | AK57: zuid | AL57: 0 | AM57: 0.1 | AN57: 0.46 | AO57: 0.57 | AP57: 0.67 | AQ57: 0.7 | AR57: 0.66 | AS57: 0.63 | AT57: 0.49 | AU57: 0.33 | AV57: 0 | AW57: 0
A58: oppervlakte | B58: =Sim!J$21 -> 0 | C58: m² | AJ58: 45 | AK58: zuid-west | AL58: 0 | AM58: 0.1 | AN58: 0.46 | AO58: 0.57 | AP58: 0.67 | AQ58: 0.7 | AR58: 0.66 | AS58: 0.63 | AT58: 0.49 | AU58: 0.33 | AV58: 0 | AW58: 0
A59: U-waarde | B59: =Sim!J$24 -> 1.643683143 | C59: W/m²K | D59: TR | E59: U = 1/(0.04 + Rf + 0.13) | AJ59: 90 | AK59: west | AL59: 0 | AM59: 0.1 | AN59: 0.46 | AO59: 0.57 | AP59: 0.67 | AQ59: 0.7 | AR59: 0.66 | AS59: 0.63 | AT59: 0.49 | AU59: 0.33 | AV59: 0 | AW59: 0
AJ60: 135 | AK60: noord-west | AL60: 0 | AM60: 0.1 | AN60: 0.46 | AO60: 0.57 | AP60: 0.67 | AQ60: 0.7 | AR60: 0.66 | AS60: 0.63 | AT60: 0.49 | AU60: 0.33 | AV60: 0 | AW60: 0
A61: GEVEL TYPE 4
A62: oppervlakte | B62: =Sim!J$22 -> 0 | C62: m² | AJ62: BV EPW Tabellen C3 - verticaal (90°)
A63: U-waarde | B63: =Sim!J$24 -> 1.643683143 | C63: W/m²K | D63: TR | E63: U = 1/(0.04 + Rf + 0.13) | AJ63: Oriëntatie | AL63: jan | AM63: feb | AN63: mar | AO63: apr | AP63: may | AQ63: jun | AR63: jul | AS63: aug | AT63: sep | AU63: oct | AV63: nov | AW63: dec
AJ64: 180 | AK64: noord | AL64: 0 | AM64: 0 | AN64: 0 | AO64: 0 | AP64: 0.01 | AQ64: 0.02 | AR64: 0.01 | AS64: 0 | AT64: 0 | AU64: 0 | AV64: 0 | AW64: 0
A65: DAKEN | AJ65: -135 | AK65: noord-oost | AL65: 0 | AM65: 0 | AN65: 0.02 | AO65: 0.19 | AP65: 0.35 | AQ65: 0.42 | AR65: 0.35 | AS65: 0.26 | AT65: 0.07 | AU65: 0 | AV65: 0 | AW65: 0
AJ66: -90 | AK66: oost | AL66: 0.21 | AM66: 0.4 | AN66: 0.46 | AO66: 0.5 | AP66: 0.59 | AQ66: 0.62 | AR66: 0.57 | AS66: 0.53 | AT66: 0.48 | AU66: 0.38 | AV66: 0.1 | AW66: 0
A67: DAK TYPE 1 | AJ67: -45 | AK67: zuid-oost | AL67: 0.49 | AM67: 0.63 | AN67: 0.68 | AO67: 0.62 | AP67: 0.65 | AQ67: 0.64 | AR67: 0.63 | AS67: 0.64 | AT67: 0.68 | AU67: 0.68 | AV67: 0.56 | AW67: 0.47
A68: oppervlakte | B68: =Sim!J$44 -> 0 | C68: m² | AJ68: 0 | AK68: zuid | AL68: 0.69 | AM68: 0.75 | AN68: 0.76 | AO68: 0.68 | AP68: 0.65 | AQ68: 0.61 | AR68: 0.63 | AS68: 0.68 | AT68: 0.74 | AU68: 0.83 | AV68: 0.69 | AW68: 0.65
A69: U-waarde | B69: =Sim!J$47 -> 2.467206252 | C69: W/m²K | D69: TR | E69: U = 1/(0.04 + Rf + 0.10) voor horizontaal of schuin (0°<= alfa <60°) | AJ69: 45 | AK69: zuid-west | AL69: 0.63 | AM69: 0.72 | AN69: 0.74 | AO69: 0.7 | AP69: 0.68 | AQ69: 0.68 | AR69: 0.62 | AS69: 0.68 | AT69: 0.75 | AU69: 0.84 | AV69: 0.65 | AW69: 0.55
D70: =IF(B70="","",VerticaalZoeken(A70,#REF!,IF(B70="buiten",3,4),0)) ->  | E70: U = 1/(0.04 + Rf + 0.13) voor verticaal (60°<= alfa <=90°) | AJ70: 90 | AK70: west | AL70: 0.37 | AM70: 0.54 | AN70: 0.6 | AO70: 0.62 | AP70: 0.63 | AQ70: 0.65 | AR70: 0.53 | AS70: 0.6 | AT70: 0.64 | AU70: 0.71 | AV70: 0.5 | AW70: 0.18
AJ71: 135 | AK71: noord-west | AL71: 0 | AM71: 0 | AN71: 0.15 | AO71: 0.32 | AP71: 0.44 | AQ71: 0.48 | AR71: 0.32 | AS71: 0.38 | AT71: 0.27 | AU71: 0.22 | AV71: 0 | AW71: 0
A72: DAK TYPE 2
A73: oppervlakte | B73: =Sim!J$45 -> 0 | C73: m² | AJ73: BV EPW Tabellen C3 - horizontaal (0°)
A74: U-waarde | B74: =Sim!J$47 -> 2.467206252 | C74: W/m²K | D74: TR | E74: U = 1/(0.04 + Rf + 0.10) voor horizontaal of schuin (0°<= alfa <60°) | AJ74: Oriëntatie | AL74: jan | AM74: feb | AN74: mar | AO74: apr | AP74: may | AQ74: jun | AR74: jul | AS74: aug | AT74: sep | AU74: oct | AV74: nov | AW74: dec
E75: U = 1/(0.04 + Rf + 0.13) voor verticaal (60°<= alfa <=90°) | AJ75: 180 | AK75: noord | AL75: 0.06 | AM75: 0.39 | AN75: 0.7 | AO75: 0.77 | AP75: 0.81 | AQ75: 0.84 | AR75: 0.84 | AS75: 0.84 | AT75: 0.75 | AU75: 0.62 | AV75: 0.14 | AW75: 0
AJ76: -135 | AK76: noord-oost | AL76: 0.06 | AM76: 0.39 | AN76: 0.7 | AO76: 0.77 | AP76: 0.81 | AQ76: 0.84 | AR76: 0.84 | AS76: 0.84 | AT76: 0.75 | AU76: 0.62 | AV76: 0.14 | AW76: 0
A77: DAK TYPE 3 | AJ77: -90 | AK77: oost | AL77: 0.06 | AM77: 0.39 | AN77: 0.7 | AO77: 0.77 | AP77: 0.81 | AQ77: 0.84 | AR77: 0.84 | AS77: 0.84 | AT77: 0.75 | AU77: 0.62 | AV77: 0.14 | AW77: 0
A78: oppervlakte | C78: m² | AJ78: -45 | AK78: zuid-oost | AL78: 0.06 | AM78: 0.39 | AN78: 0.7 | AO78: 0.77 | AP78: 0.81 | AQ78: 0.84 | AR78: 0.84 | AS78: 0.84 | AT78: 0.75 | AU78: 0.62 | AV78: 0.14 | AW78: 0
A79: U-waarde | B79: =Sim!J$47 -> 2.467206252 | C79: W/m²K | D79: TR | E79: U = 1/(0.04 + Rf + 0.10) voor horizontaal of schuin (0°<= alfa <60°) | AJ79: 0 | AK79: zuid | AL79: 0.06 | AM79: 0.39 | AN79: 0.7 | AO79: 0.77 | AP79: 0.81 | AQ79: 0.84 | AR79: 0.84 | AS79: 0.84 | AT79: 0.75 | AU79: 0.62 | AV79: 0.14 | AW79: 0
E80: U = 1/(0.04 + Rf + 0.13) voor verticaal (60°<= alfa <=90°) | AJ80: 45 | AK80: zuid-west | AL80: 0.06 | AM80: 0.39 | AN80: 0.7 | AO80: 0.77 | AP80: 0.81 | AQ80: 0.84 | AR80: 0.84 | AS80: 0.84 | AT80: 0.75 | AU80: 0.62 | AV80: 0.14 | AW80: 0
AJ81: 90 | AK81: west | AL81: 0.06 | AM81: 0.39 | AN81: 0.7 | AO81: 0.77 | AP81: 0.81 | AQ81: 0.84 | AR81: 0.84 | AS81: 0.84 | AT81: 0.75 | AU81: 0.62 | AV81: 0.14 | AW81: 0
A82: DAK TYPE 4 | AJ82: 135 | AK82: noord-west | AL82: 0.06 | AM82: 0.39 | AN82: 0.7 | AO82: 0.77 | AP82: 0.81 | AQ82: 0.84 | AR82: 0.84 | AS82: 0.84 | AT82: 0.75 | AU82: 0.62 | AV82: 0.14 | AW82: 0
A83: oppervlakte | C83: m²
A84: U-waarde | B84: =Sim!J$47 -> 2.467206252 | C84: W/m²K | D84: TR | E84: U = 1/(0.04 + Rf + 0.10) voor horizontaal of schuin (0°<= alfa <60°)
E85: U = 1/(0.04 + Rf + 0.13) voor verticaal (60°<= alfa <=90°)
AM86: oriëntatie | AN86: (phi)
A87: VLOEREN | AM87: -180 | AN87: -157.5 | AO87: -135 | AP87: -112.5 | AQ87: -90 | AR87: -67.5 | AS87: -45 | AT87: -22.5 | AU87: 0 | AV87: 22.5 | AW87: 45 | AX87: 67.5 | AY87: 90 | AZ87: 112.5 | BA87: 135 | BB87: 157.5 | BC87: 180
AL88: index | AM88: -8 | AN88: -7 | AO88: -6 | AP88: -5 | AQ88: -4 | AR88: -3 | AS88: -2 | AT88: -1 | AU88: 0 | AV88: 1 | AW88: 2 | AX88: 3 | AY88: 4 | AZ88: 5 | BA88: 6 | BB88: 7 | BC88: 8
A89: VLOER (BOVEN BUITENOMGEVING) | AJ89: helling | AK89: 0 | AL89: 0 | AM89: 1 | AN89: 1 | AO89: 1 | AP89: 1 | AQ89: 1 | AR89: 1 | AS89: 1 | AT89: 1 | AU89: 1 | AV89: 1 | AW89: 1 | AX89: 1 | AY89: 1 | AZ89: 1 | BA89: 1 | BB89: 1 | BC89: 1
A90: oppervlakte | C90: m² | AJ90: (tèta) | AK90: 22.5 | AL90: 1 | AM90: 0.96 | AN90: 0.97 | AO90: 0.98 | AP90: 0.99 | AQ90: 1 | AR90: 1.01 | AS90: 1.02 | AT90: 1.03 | AU90: 1.03 | AV90: 1.03 | AW90: 1.02 | AX90: 1.01 | AY90: 1 | AZ90: 0.99 | BA90: 0.98 | BB90: 0.97 | BC90: 0.96
A91: U-waarde | C91: W/m²K | D91: TR | E91: U = 1/(0.04 + Rf + 0.17) | AK91: 45 | AL91: 2 | AM91: 0.92 | AN91: 0.92 | AO91: 0.94 | AP91: 0.96 | AQ91: 0.99 | AR91: 1.01 | AS91: 1.03 | AT91: 1.04 | AU91: 1.05 | AV91: 1.04 | AW91: 1.03 | AX91: 1.01 | AY91: 0.99 | AZ91: 0.96 | BA91: 0.94 | BB91: 0.92 | BC91: 0.92
AK92: 67.5 | AL92: 3 | AM92: 0.83 | AN92: 0.84 | AO92: 0.86 | AP92: 0.9 | AQ92: 0.94 | AR92: 0.99 | AS92: 1.03 | AT92: 1.05 | AU92: 1.06 | AV92: 1.05 | AW92: 1.03 | AX92: 0.99 | AY92: 0.94 | AZ92: 0.9 | BA92: 0.86 | BB92: 0.84 | BC92: 0.83
A93: DEUREN EN POORTEN | AK93: 90 | AL93: 4 | AM93: 0.71 | AN93: 0.73 | AO93: 0.76 | AP93: 0.81 | AQ93: 0.87 | AR93: 0.94 | AS93: 1 | AT93: 1.04 | AU93: 1.06 | AV93: 1.04 | AW93: 1 | AX93: 0.94 | AY93: 0.87 | AZ93: 0.81 | BA93: 0.76 | BB93: 0.73 | BC93: 0.71
AK94: 112.5 | AL94: 5 | AM94: 0.6 | AN94: 0.6 | AO94: 0.63 | AP94: 0.68 | AQ94: 0.76 | AR94: 0.85 | AS94: 0.92 | AT94: 0.97 | AU94: 0.98 | AV94: 0.97 | AW94: 0.92 | AX94: 0.85 | AY94: 0.76 | AZ94: 0.68 | BA94: 0.63 | BB94: 0.6 | BC94: 0.6
A95: DEUR OPAAK | AK95: 135 | AL95: 6 | AM95: 0.47 | AN95: 0.47 | AO95: 0.49 | AP95: 0.53 | AQ95: 0.59 | AR95: 0.67 | AS95: 0.74 | AT95: 0.78 | AU95: 0.8 | AV95: 0.78 | AW95: 0.74 | AX95: 0.67 | AY95: 0.59 | AZ95: 0.53 | BA95: 0.49 | BB95: 0.47 | BC95: 0.47
A96: oppervlakte | C96: m² | AK96: 157.5 | AL96: 7 | AM96: 0.34 | AN96: 0.4 | AO96: 0.41 | AP96: 0.43 | AQ96: 0.46 | AR96: 0.48 | AS96: 0.51 | AT96: 0.56 | AU96: 0.58 | AV96: 0.56 | AW96: 0.51 | AX96: 0.48 | AY96: 0.46 | AZ96: 0.43 | BA96: 0.41 | BB96: 0.4 | BC96: 0.34
A97: U-waarde | C97: W/m²K | AK97: 180 | AL97: 8 | AM97: 0 | AN97: 0 | AO97: 0 | AP97: 0 | AQ97: 0 | AR97: 0 | AS97: 0 | AT97: 0 | AU97: 0 | AV97: 0 | AW97: 0 | AX97: 0 | AY97: 0 | AZ97: 0 | BA97: 0 | BB97: 0 | BC97: 0
AK99: maandnummer | AL99: 1 | AM99: 2 | AN99: 3 | AO99: 4 | AP99: 5 | AQ99: 6 | AR99: 7 | AS99: 8 | AT99: 9 | AU99: 10 | AV99: 11 | AW99: 12
A100: TRANSPARANTE DELEN IN CONTACT MET DE BUITENOMGEVING | AK100: karakteristieke dag | AL100: 15 | AM100: 46 | AN100: 74 | AO100: 105 | AP100: 135 | AQ100: 166 | AR100: 196 | AS100: 227 | AT100: 258 | AU100: 288 | AV100: 319 | AW100: 349
AK101: I s, tot, hor | AL101: 71.4 | AM101: 127 | AN101: 245.5 | AO101: 371.5 | AP101: 510 | AQ101: 532.4 | AR101: 517.8 | AS101: 456.4 | AT101: 326.2 | AU101: 194.2 | AV101: 89.6 | AW101: 54.7
A102: VENSTERS | AK102: I s, dif, hor | AL102: 51.3 | AM102: 82.7 | AN102: 155.1 | AO102: 219.2 | AP102: 293.5 | AQ102: 298.1 | AR102: 305.8 | AS102: 266.7 | AT102: 183.6 | AU102: 118.3 | AV102: 60.5 | AW102: 40.2
A104: effectieve oppervlakte venster | C104: m²
A105: percentage vensters in gevel | B105: 1 | C105: % | E105: sensitiviteit, enkel bij nieuwbouw
A106: oriëntatie gebouw | B106: =Sim!J$9 -> 180 | C106: ° | E106: nieuwbouw | F106: 0/45/90/135/180/-135/-90/-45
E107: renovatie | F107: 0/90/180/-90
A108: VENSTER VOOR | AJ108: =A108 -> VENSTER VOOR
A109: referentie oppervlakte venster | C109: m²
A110: oppervlakte venster voor | B110: =Sim!J$26 -> 0 | C110: m²
A111: oppervlakte glas | B111: =B110 * 0.7 -> 0 | C111: m²
A112: U-waarde venster | B112: =Sim!J$39 -> 1.91 | C112: W/m²K | D112: TR | E112: U = 0.3*U profiel + 0.7*U glas (+3*phi afstandhouder) | AK112: I dir, unshad | AL112: =(AL$101-AL$102)*DirecteZonnewinstenQuotiënt(AL$100,AL$99,$B114,$B115) -> 1.534975911 | AM112: =(AM$101-AM$102)*DirecteZonnewinstenQuotiënt(AM$100,AM$99,$B114,$B115) -> 1.999409075 | AN112: 2.508300881 | AO112: 4.764218512 | AP112: 16.52152927 | AQ112: 26.66519031 | AR112: 20.62675242 | AS112: 8.810195405 | AT112: 3.712870005 | AU112: 3.008878554 | AV112: 1.926644697 | AW112: 1.337736621
A113: g normaal | B113: =Sim!J$40 -> 0.52 | AK113: I dif, unshad | AL113: =AL$102*$M114*((1+COS(RADIANS($B114)))/2) -> 18.2115 | AM113: =AM$102*$M114*((1+COS(RADIANS($B114)))/2) -> 29.3585 | AN113: 55.0605 | AO113: 77.816 | AP113: 104.1925 | AQ113: 105.8255 | AR113: 108.559 | AS113: 94.6785 | AT113: 65.178 | AU113: 41.9965 | AV113: 21.4775 | AW113: 14.271
A114: helling (θ) | B114: 90 | C114: ° | L114: cm | M114: =InterpoleerCm(B114,B115,cmmatrix) -> 0.71 | AK114: I refl, unshad | AL114: =0.2*AL$101*((1-COS(RADIANS($B114)))/2) -> 7.14 | AM114: 12.7 | AN114: 24.55 | AO114: 37.15 | AP114: 51 | AQ114: 53.24 | AR114: 51.78 | AS114: 45.64 | AT114: 32.62 | AU114: 19.42 | AV114: 8.96 | AW114: 5.47
A115: oriëntatie (Φ) venster voor | B115: =Sim!J31 -> 180 | C115: ° | F115: noord = 180° / oost = -90° / zuid = 0° / west = 90°
A116: zonwering (Fc) | B116: =Sim!J$63 -> 1 | D116: BV 7.10.3.4 | E116: 0.5 | F116: buitenzonwering | AK116: I unshad | AL116: =SUM(AL112:AL114) -> 26.88647591 | AM116: =SUM(AM112:AM114) -> 44.05790907 | AN116: 82.11880088 | AO116: 119.7302185 | AP116: 171.7140293 | AQ116: 185.7306903 | AR116: 180.9657524 | AS116: 149.1286954 | AT116: 101.51087 | AU116: 64.42537855 | AV116: 32.3641447 | AW116: 21.07873662
A117: oppervlakte met zonwering | B117: =IF( NOT(B116 = 1), B110, 0) -> 0 | C117: m² | E117: 0.6 | F117: ongeventileerde tussenzonwering | AK117: I shad, heat | AL117: =AL116*0.6 -> 16.13188555 | AM117: =AM116*0.6 -> 26.43474544 | AN117: 49.27128053 | AO117: 71.83813111 | AP117: 103.0284176 | AQ117: 111.4384142 | AR117: 108.5794515 | AS117: 89.47721724 | AT117: 60.906522 | AU117: 38.65522713 | AV117: 19.41848682 | AW117: 12.64724197
A118: bediending | B118: =IF( NOT(B116 = 1), Sim!J$69, "NA") -> NA | E118: 0.9 | F118: binnenzonwering | AK118: I shad, cool | AL118: =AL116*0.8*1.1 -> 23.6600988 | AM118: 38.77095999 | AN118: 72.26454478 | AO118: 105.3625923 | AP118: 151.1083458 | AQ118: 163.4430075 | AR118: 159.2498621 | AS118: 131.233252 | AT118: 89.3295656 | AU118: 56.69433313 | AV118: 28.48044733 | AW118: 18.54928823
E119: 1 | F119: andere gevallen | AK119: ac, m, heat | AL119: =IF($B118 = "NA", 0, IF($B114 = 90, VLOOKUP($B115, $AJ$40:$AW$49, AL$99 + 2, FALSE), VLOOKUP($B115, $AJ$51:$AW$60, AL$99 + 2, FALSE))) -> 0 | AM119: =IF($B118 = "NA", 0, IF($B114 = 90, VLOOKUP($B115, $AJ$40:$AW$49, AM$99 + 2, FALSE), VLOOKUP($B115, $AJ$51:$AW$60, AM$99 + 2, FALSE))) -> 0 | AN119: 0 | AO119: 0 | AP119: 0 | AQ119: 0 | AR119: 0 | AS119: 0 | AT119: 0 | AU119: 0 | AV119: 0 | AW119: 0 | AY119: BV EPW Bijlage C.5, maar indien geen 90° helling, dan direct horizontaal (0°)
AK120: ac, m, cool | AL120: =IF($B118 = "NA", 0, IF( $B118 = "manual", IF($B114 = 90, MAX(0, VLOOKUP($B115, $AJ$40:$AW$49, AL$99 + 2, FALSE) - 0.1), MAX(0, VLOOKUP($B115, $AJ$51:$AW$60, AL$99 + 2, FALSE) - 0.1)), IF($B114 = 90, VLOOKUP($B115, $AJ$62:$AW$71, AL$99 + 2, FALSE), VLOOKUP($B115, $AJ$73:$AW$82, AL$99 + 2, FALSE)))) -> 0 | AM120: =IF($B118 = "NA", 0, IF( $B118 = "manual", IF($B114 = 90, MAX(0, VLOOKUP($B115, $AJ$40:$AW$49, AM$99 + 2, FALSE) - 0.1), MAX(0, VLOOKUP($B115, $AJ$51:$AW$60, AM$99 + 2, FALSE) - 0.1)), IF($B114 = 90, VLOOKUP($B115, $AJ$62:$AW$71, AM$99 + 2, FALSE), VLOOKUP($B115, $AJ$73:$AW$82, AM$99 + 2, FALSE)))) -> 0 | AN120: 0 | AO120: 0 | AP120: 0 | AQ120: 0 | AR120: 0 | AS120: 0 | AT120: 0 | AU120: 0 | AV120: 0 | AW120: 0 | AY120: BV EPW Bijlage C.5, maar indien geen 90° helling, dan direct horizontaal (0°)
AK121: Q s, heat | AL121: =0.95 * (0.9 * (AL119 * $B116 + (1 - AL119)) * $B113) * $B111 * AL117 -> 0 | AM121: =0.95 * (0.9 * (AM119 * $B116 + (1 - AM119)) * $B113) * $B111 * AM117 -> 0 | AN121: 0 | AO121: 0 | AP121: 0 | AQ121: 0 | AR121: 0 | AS121: 0 | AT121: 0 | AU121: 0 | AV121: 0 | AW121: 0 | AY121: aangepast volgens EPN Tabel 8
AK122: Q s, cool | AL122: =0.95 * (0.9 * (AL120 * $B116 + (1 - AL120)) * $B113) * $B111 * AL118 -> 0 | AM122: =0.95 * (0.9 * (AM120 * $B116 + (1 - AM120)) * $B113) * $B111 * AM118 -> 0 | AN122: =0.95 * (0.9 * (AN120 * $B116 + (1 - AN120)) * $B113) * $B111 * AN118 -> 0 | AO122: 0 | AP122: 0 | AQ122: 0 | AR122: 0 | AS122: 0 | AT122: 0 | AU122: 0 | AV122: 0 | AW122: 0 | AY122: aangepast volgens EPN Tabel 8
A124: lengte bouwknoop gevel-raam | C124: m
A128: VENSTER ACHTER | AJ128: =A128 -> VENSTER ACHTER
A129: referentie oppervlakte venster | C129: m²
A130: oppervlakte venster achter | B130: =Sim!J$28 -> 0 | C130: m²
A131: oppervlakte glas | B131: =B130 * 0.7 -> 0 | C131: m²
A132: U-waarde venster | B132: =Sim!J$39 -> 1.91 | C132: W/m²K | D132: TR | E132: U = 0.3*U profiel + 0.7*U glas (+3*phi afstandhouder) | AK132: I dir, unshad | AL132: =(AL$101-AL$102)*DirecteZonnewinstenQuotiënt(AL$100,AL$99,$B134,$B135) -> 74.25299673 | AM132: =(AM$101-AM$102)*DirecteZonnewinstenQuotiënt(AM$100,AM$99,$B134,$B135) -> 102.5609744 | AN132: 127.0029283 | AO132: 118.8453207 | AP132: 100.3341592 | AQ132: 81.62892212 | AR132: 82.75687089 | AS132: 116.5520946 | AT132: 156.8112966 | AU132: 145.6066762 | AV132: 94.0858546 | AW132: 62.0508961
A133: g normaal | B133: =Sim!J$40 -> 0.52 | AK133: I dif, unshad | AL133: =AL$102*$M134*((1+COS(RADIANS($B134)))/2) -> 27.189 | AM133: =AM$102*$M134*((1+COS(RADIANS($B134)))/2) -> 43.831 | AN133: 82.203 | AO133: 116.176 | AP133: 155.555 | AQ133: 157.993 | AR133: 162.074 | AS133: 141.351 | AT133: 97.308 | AU133: 62.699 | AV133: 32.065 | AW133: 21.306
A134: helling (θ) | B134: 90 | C134: ° | L134: cm | M134: =InterpoleerCm(B134,B135,cmmatrix) -> 1.06 | AK134: I refl, unshad | AL134: =0.2*AL$101*((1-COS(RADIANS($B134)))/2) -> 7.14 | AM134: 12.7 | AN134: 24.55 | AO134: 37.15 | AP134: 51 | AQ134: 53.24 | AR134: 51.78 | AS134: 45.64 | AT134: 32.62 | AU134: 19.42 | AV134: 8.96 | AW134: 5.47
A135: oriëntatie (Φ) venster achter | B135: =Sim!J33 -> 0 | C135: ° | F135: noord = 180° / oost = -90° / zuid = 0° / west = 90°
A136: zonwering (Fc) | B136: =Sim!J$65 -> 1 | D136: BV 7.10.3.4 | E136: 0.5 | F136: buitenzonwering | AK136: I unshad | AL136: =SUM(AL132:AL134) -> 108.5819967 | AM136: =SUM(AM132:AM134) -> 159.0919744 | AN136: 233.7559283 | AO136: 272.1713207 | AP136: 306.8891592 | AQ136: 292.8619221 | AR136: 296.6108709 | AS136: 303.5430946 | AT136: 286.7392966 | AU136: 227.7256762 | AV136: 135.1108546 | AW136: 88.8268961
A137: oppervlakte met zonwering | B137: =IF( NOT(B136 = 1), B130, 0) -> 0 | C137: m² | E137: 0.6 | F137: ongeventileerde tussenzonwering | AK137: I shad, heat | AL137: =AL136*0.6 -> 65.14919804 | AM137: 95.45518461 | AN137: 140.253557 | AO137: 163.3027924 | AP137: 184.1334955 | AQ137: 175.7171533 | AR137: 177.9665225 | AS137: 182.1258568 | AT137: 172.043578 | AU137: 136.6354057 | AV137: 81.06651276 | AW137: 53.29613766
A138: bediending | B138: =IF( NOT(B136 = 1), Sim!J$69, "NA") -> NA | E138: 0.9 | F138: binnenzonwering | AK138: I shad, cool | AL138: =AL136*0.8*1.1 -> 95.55215712 | AM138: 140.0009374 | AN138: 205.7052169 | AO138: 239.5107622 | AP138: 270.0624601 | AQ138: 257.7184915 | AR138: 261.0175664 | AS138: 267.1179233 | AT138: 252.330581 | AU138: 200.398595 | AV138: 118.8975521 | AW138: 78.16766857
E139: 1 | F139: andere gevallen | AL139: =IF($B138 = "NA", 0, IF($B134 = 90, VLOOKUP($B135, $AJ$40:$AW$49, AL$99 + 2, FALSE), VLOOKUP($B135, $AJ$51:$AW$60, AL$99 + 2, FALSE))) -> 0 | AM139: =IF($B138 = "NA", 0, IF($B134 = 90, VLOOKUP($B135, $AJ$40:$AW$49, AM$99 + 2, FALSE), VLOOKUP($B135, $AJ$51:$AW$60, AM$99 + 2, FALSE))) -> 0 | AN139: =IF($B138 = "NA", 0, IF($B134 = 90, VLOOKUP($B135, $AJ$40:$AW$49, AN$99 + 2, FALSE), VLOOKUP($B135, $AJ$51:$AW$60, AN$99 + 2, FALSE))) -> 0 | AO139: =IF($B138 = "NA", 0, IF($B134 = 90, VLOOKUP($B135, $AJ$40:$AW$49, AO$99 + 2, FALSE), VLOOKUP($B135, $AJ$51:$AW$60, AO$99 + 2, FALSE))) -> 0 | AP139: =IF($B138 = "NA", 0, IF($B134 = 90, VLOOKUP($B135, $AJ$40:$AW$49, AP$99 + 2, FALSE), VLOOKUP($B135, $AJ$51:$AW$60, AP$99 + 2, FALSE))) -> 0 | AQ139: =IF($B138 = "NA", 0, IF($B134 = 90, VLOOKUP($B135, $AJ$40:$AW$49, AQ$99 + 2, FALSE), VLOOKUP($B135, $AJ$51:$AW$60, AQ$99 + 2, FALSE))) -> 0 | AR139: =IF($B138 = "NA", 0, IF($B134 = 90, VLOOKUP($B135, $AJ$40:$AW$49, AR$99 + 2, FALSE), VLOOKUP($B135, $AJ$51:$AW$60, AR$99 + 2, FALSE))) -> 0 | AS139: =IF($B138 = "NA", 0, IF($B134 = 90, VLOOKUP($B135, $AJ$40:$AW$49, AS$99 + 2, FALSE), VLOOKUP($B135, $AJ$51:$AW$60, AS$99 + 2, FALSE))) -> 0 | AT139: =IF($B138 = "NA", 0, IF($B134 = 90, VLOOKUP($B135, $AJ$40:$AW$49, AT$99 + 2, FALSE), VLOOKUP($B135, $AJ$51:$AW$60, AT$99 + 2, FALSE))) -> 0 | AU139: =IF($B138 = "NA", 0, IF($B134 = 90, VLOOKUP($B135, $AJ$40:$AW$49, AU$99 + 2, FALSE), VLOOKUP($B135, $AJ$51:$AW$60, AU$99 + 2, FALSE))) -> 0 | AV139: =IF($B138 = "NA", 0, IF($B134 = 90, VLOOKUP($B135, $AJ$40:$AW$49, AV$99 + 2, FALSE), VLOOKUP($B135, $AJ$51:$AW$60, AV$99 + 2, FALSE))) -> 0 | AW139: =IF($B138 = "NA", 0, IF($B134 = 90, VLOOKUP($B135, $AJ$40:$AW$49, AW$99 + 2, FALSE), VLOOKUP($B135, $AJ$51:$AW$60, AW$99 + 2, FALSE))) -> 0 | AY139: BV EPW Bijlage C.5, maar indien geen 90° helling, dan direct horizontaal (0°)
AL140: =IF($B138 = "NA", 0, IF( $B138 = "manual", IF($B134 = 90, MAX(0, VLOOKUP($B135, $AJ$40:$AW$49, AL$99 + 2, FALSE) - 0.1), MAX(0, VLOOKUP($B135, $AJ$51:$AW$60, AL$99 + 2, FALSE) - 0.1)), IF($B134 = 90, VLOOKUP($B135, $AJ$62:$AW$71, AL$99 + 2, FALSE), VLOOKUP($B135, $AJ$73:$AW$82, AL$99 + 2, FALSE)))) -> 0 | AM140: =IF($B138 = "NA", 0, IF( $B138 = "manual", IF($B134 = 90, MAX(0, VLOOKUP($B135, $AJ$40:$AW$49, AM$99 + 2, FALSE) - 0.1), MAX(0, VLOOKUP($B135, $AJ$51:$AW$60, AM$99 + 2, FALSE) - 0.1)), IF($B134 = 90, VLOOKUP($B135, $AJ$62:$AW$71, AM$99 + 2, FALSE), VLOOKUP($B135, $AJ$73:$AW$82, AM$99 + 2, FALSE)))) -> 0 | AN140: 0 | AO140: 0 | AP140: 0 | AQ140: 0 | AR140: 0 | AS140: 0 | AT140: 0 | AU140: 0 | AV140: 0 | AW140: 0 | AY140: BV EPW Bijlage C.5, maar indien geen 90° helling, dan direct horizontaal (0°)
AK141: Q s, heat | AL141: =0.95 * (0.9 * (AL139 * $B136 + (1 - AL139)) * $B133) * $B131 * AL137 -> 0 | AM141: =0.95 * (0.9 * (AM139 * $B136 + (1 - AM139)) * $B133) * $B131 * AM137 -> 0 | AN141: 0 | AO141: 0 | AP141: 0 | AQ141: 0 | AR141: 0 | AS141: 0 | AT141: 0 | AU141: 0 | AV141: 0 | AW141: 0 | AY141: aangepast volgens EPN Tabel 8
AK142: Q s, cool | AL142: =0.95 * (0.9 * (AL140 * $B136 + (1 - AL140)) * $B133) * $B131 * AL138 -> 0 | AM142: =0.95 * (0.9 * (AM140 * $B136 + (1 - AM140)) * $B133) * $B131 * AM138 -> 0 | AN142: =0.95 * (0.9 * (AN140 * $B136 + (1 - AN140)) * $B133) * $B131 * AN138 -> 0 | AO142: 0 | AP142: 0 | AQ142: 0 | AR142: 0 | AS142: 0 | AT142: 0 | AU142: 0 | AV142: 0 | AW142: 0 | AY142: aangepast volgens EPN Tabel 8
A144: lengte bouwknoop gevel-raam | C144: m
A148: VENSTER LINKS | AJ148: =A148 -> VENSTER LINKS
A149: referentie oppervlakte venster | C149: m²
A150: oppervlakte venster links | B150: =Sim!J$27 -> 0 | C150: m²
A151: oppervlakte glas | B151: =B150 * 0.7 -> 0 | C151: m²
A152: U-waarde venster | B152: =Sim!J$39 -> 1.91 | C152: W/m²K | D152: TR | E152: U = 0.3*U profiel + 0.7*U glas (+3*phi afstandhouder) | AK152: I dir, unshad | AL152: =(AL$101-AL$102)*DirecteZonnewinstenQuotiënt(AL$100,AL$99,$B154,$B155) -> 18.01442561 | AM152: =(AM$101-AM$102)*DirecteZonnewinstenQuotiënt(AM$100,AM$99,$B154,$B155) -> 32.16832401 | AN152: 56.31135024 | AO152: 82.60827437 | AP152: 107.024406 | AQ152: 109.4202988 | AR152: 101.0548379 | AS152: 97.88276916 | AT152: 83.46078034 | AU152: 52.63107119 | AV152: 25.31372947 | AW152: 14.13986245
A153: g normaal | B153: =Sim!J$40 -> 0.52 | AK153: I dif, unshad | AL153: =AL$102*$M154*((1+COS(RADIANS($B154)))/2) -> 22.3155 | AM153: 35.9745 | AN153: 67.4685 | AO153: 95.352 | AP153: 127.6725 | AQ153: 129.6735 | AR153: 133.023 | AS153: 116.0145 | AT153: 79.866 | AU153: 51.4605 | AV153: 26.3175 | AW153: 17.487
A154: helling (θ) | B154: 90 | C154: ° | L154: cm | M154: =InterpoleerCm(B154,B155,cmmatrix) -> 0.87 | AK154: I refl, unshad | AL154: =0.2*AL$101*((1-COS(RADIANS($B154)))/2) -> 7.14 | AM154: 12.7 | AN154: 24.55 | AO154: 37.15 | AP154: 51 | AQ154: 53.24 | AR154: 51.78 | AS154: 45.64 | AT154: 32.62 | AU154: 19.42 | AV154: 8.96 | AW154: 5.47
A155: oriëntatie (Φ) venster links | B155: =Sim!J32 -> -90 | C155: ° | F155: noord = 180° / oost = -90° / zuid = 0° / west = 90°
A156: zonwering (Fc) | B156: =Sim!J$64 -> 1 | D156: BV 7.10.3.4 | E156: 0.5 | F156: buitenzonwering | AK156: I unshad | AL156: =SUM(AL152:AL154) -> 47.46992561 | AM156: =SUM(AM152:AM154) -> 80.84282401 | AN156: 148.3298502 | AO156: 215.1102744 | AP156: 285.696906 | AQ156: 292.3337988 | AR156: 285.8578379 | AS156: 259.5372692 | AT156: 195.9467803 | AU156: 123.5115712 | AV156: 60.59122947 | AW156: 37.09686245
A157: oppervlakte met zonwering | B157: =IF( NOT(B156 = 1), B150, 0) -> 0 | C157: m² | E157: 0.6 | F157: ongeventileerde tussenzonwering | AK157: I shad, heat | AL157: =AL156*0.6 -> 28.48195536 | AM157: 48.50569441 | AN157: 88.99791014 | AO157: 129.0661646 | AP157: 171.4181436 | AQ157: 175.4002793 | AR157: 171.5147027 | AS157: 155.7223615 | AT157: 117.5680682 | AU157: 74.10694271 | AV157: 36.35473768 | AW157: 22.25811747
A158: bediending | B158: =IF( NOT(B156 = 1), Sim!J$69, "NA") -> NA | E158: 0.9 | F158: binnenzonwering | AK158: I shad, cool | AL158: =AL156*0.8*1.1 -> 41.77353453 | AM158: 71.14168513 | AN158: 130.5302682 | AO158: 189.2970414 | AP158: 251.4132773 | AQ158: 257.253743 | AR158: 251.5548974 | AS158: 228.3927969 | AT158: 172.4331667 | AU158: 108.6901826 | AV158: 53.32028194 | AW158: 32.64523896
E159: 1 | F159: andere gevallen | AL159: =IF($B158 = "NA", 0, IF($B154 = 90, VLOOKUP($B155, $AJ$40:$AW$49, AL$99 + 2, FALSE), VLOOKUP($B155, $AJ$51:$AW$60, AL$99 + 2, FALSE))) -> 0 | AM159: =IF($B158 = "NA", 0, IF($B154 = 90, VLOOKUP($B155, $AJ$40:$AW$49, AM$99 + 2, FALSE), VLOOKUP($B155, $AJ$51:$AW$60, AM$99 + 2, FALSE))) -> 0 | AN159: =IF($B158 = "NA", 0, IF($B154 = 90, VLOOKUP($B155, $AJ$40:$AW$49, AN$99 + 2, FALSE), VLOOKUP($B155, $AJ$51:$AW$60, AN$99 + 2, FALSE))) -> 0 | AO159: =IF($B158 = "NA", 0, IF($B154 = 90, VLOOKUP($B155, $AJ$40:$AW$49, AO$99 + 2, FALSE), VLOOKUP($B155, $AJ$51:$AW$60, AO$99 + 2, FALSE))) -> 0 | AP159: =IF($B158 = "NA", 0, IF($B154 = 90, VLOOKUP($B155, $AJ$40:$AW$49, AP$99 + 2, FALSE), VLOOKUP($B155, $AJ$51:$AW$60, AP$99 + 2, FALSE))) -> 0 | AQ159: =IF($B158 = "NA", 0, IF($B154 = 90, VLOOKUP($B155, $AJ$40:$AW$49, AQ$99 + 2, FALSE), VLOOKUP($B155, $AJ$51:$AW$60, AQ$99 + 2, FALSE))) -> 0 | AR159: =IF($B158 = "NA", 0, IF($B154 = 90, VLOOKUP($B155, $AJ$40:$AW$49, AR$99 + 2, FALSE), VLOOKUP($B155, $AJ$51:$AW$60, AR$99 + 2, FALSE))) -> 0 | AS159: =IF($B158 = "NA", 0, IF($B154 = 90, VLOOKUP($B155, $AJ$40:$AW$49, AS$99 + 2, FALSE), VLOOKUP($B155, $AJ$51:$AW$60, AS$99 + 2, FALSE))) -> 0 | AT159: =IF($B158 = "NA", 0, IF($B154 = 90, VLOOKUP($B155, $AJ$40:$AW$49, AT$99 + 2, FALSE), VLOOKUP($B155, $AJ$51:$AW$60, AT$99 + 2, FALSE))) -> 0 | AU159: =IF($B158 = "NA", 0, IF($B154 = 90, VLOOKUP($B155, $AJ$40:$AW$49, AU$99 + 2, FALSE), VLOOKUP($B155, $AJ$51:$AW$60, AU$99 + 2, FALSE))) -> 0 | AV159: =IF($B158 = "NA", 0, IF($B154 = 90, VLOOKUP($B155, $AJ$40:$AW$49, AV$99 + 2, FALSE), VLOOKUP($B155, $AJ$51:$AW$60, AV$99 + 2, FALSE))) -> 0 | AW159: =IF($B158 = "NA", 0, IF($B154 = 90, VLOOKUP($B155, $AJ$40:$AW$49, AW$99 + 2, FALSE), VLOOKUP($B155, $AJ$51:$AW$60, AW$99 + 2, FALSE))) -> 0 | AY159: BV EPW Bijlage C.5, maar indien geen 90° helling, dan direct horizontaal (0°)
AL160: =IF($B158 = "NA", 0, IF( $B158 = "manual", IF($B154 = 90, MAX(0, VLOOKUP($B155, $AJ$40:$AW$49, AL$99 + 2, FALSE) - 0.1), MAX(0, VLOOKUP($B155, $AJ$51:$AW$60, AL$99 + 2, FALSE) - 0.1)), IF($B154 = 90, VLOOKUP($B155, $AJ$62:$AW$71, AL$99 + 2, FALSE), VLOOKUP($B155, $AJ$73:$AW$82, AL$99 + 2, FALSE)))) -> 0 | AM160: =IF($B158 = "NA", 0, IF( $B158 = "manual", IF($B154 = 90, MAX(0, VLOOKUP($B155, $AJ$40:$AW$49, AM$99 + 2, FALSE) - 0.1), MAX(0, VLOOKUP($B155, $AJ$51:$AW$60, AM$99 + 2, FALSE) - 0.1)), IF($B154 = 90, VLOOKUP($B155, $AJ$62:$AW$71, AM$99 + 2, FALSE), VLOOKUP($B155, $AJ$73:$AW$82, AM$99 + 2, FALSE)))) -> 0 | AN160: 0 | AO160: 0 | AP160: 0 | AQ160: 0 | AR160: 0 | AS160: 0 | AT160: 0 | AU160: 0 | AV160: 0 | AW160: 0 | AY160: BV EPW Bijlage C.5, maar indien geen 90° helling, dan direct horizontaal (0°)
AK161: Q s, heat | AL161: =0.95 * (0.9 * (AL159 * $B156 + (1 - AL159)) * $B153) * $B151 * AL157 -> 0 | AM161: =0.95 * (0.9 * (AM159 * $B156 + (1 - AM159)) * $B153) * $B151 * AM157 -> 0 | AN161: 0 | AO161: 0 | AP161: 0 | AQ161: 0 | AR161: 0 | AS161: 0 | AT161: 0 | AU161: 0 | AV161: 0 | AW161: 0 | AY161: aangepast volgens EPN Tabel 8
AK162: Q s, cool | AL162: =0.95 * (0.9 * (AL160 * $B156 + (1 - AL160)) * $B153) * $B151 * AL158 -> 0 | AM162: =0.95 * (0.9 * (AM160 * $B156 + (1 - AM160)) * $B153) * $B151 * AM158 -> 0 | AN162: =0.95 * (0.9 * (AN160 * $B156 + (1 - AN160)) * $B153) * $B151 * AN158 -> 0 | AO162: 0 | AP162: 0 | AQ162: 0 | AR162: 0 | AS162: 0 | AT162: 0 | AU162: 0 | AV162: 0 | AW162: 0 | AY162: aangepast volgens EPN Tabel 8
A164: lengte bouwknoop gevel-raam | C164: m
A168: VENSTER RECHTS | AJ168: =A168 -> VENSTER RECHTS
A169: referentie oppervlakte venster | C169: m²
A170: oppervlakte venster rechts | B170: =Sim!J$29 -> 0 | C170: m²
A171: oppervlakte glas | B171: =B170 * 0.7 -> 0 | C171: m²
A172: U-waarde venster | B172: =Sim!J$39 -> 1.91 | C172: W/m²K | D172: TR | E172: U = 0.3*U profiel + 0.7*U glas (+3*phi afstandhouder) | AK172: I dir, unshad | AL172: =(AL$101-AL$102)*DirecteZonnewinstenQuotiënt(AL$100,AL$99,$B174,$B175) -> 18.01442561 | AM172: =(AM$101-AM$102)*DirecteZonnewinstenQuotiënt(AM$100,AM$99,$B174,$B175) -> 32.16832401 | AN172: 56.31135024 | AO172: 82.60827437 | AP172: 107.024406 | AQ172: 109.4202988 | AR172: 101.0548379 | AS172: 97.88276916 | AT172: 83.46078034 | AU172: 52.63107119 | AV172: 25.31372947 | AW172: 14.13986245
A173: g normaal | B173: =Sim!J$40 -> 0.52 | AK173: I dif, unshad | AL173: =AL$102*$M174*((1+COS(RADIANS($B174)))/2) -> 22.3155 | AM173: 35.9745 | AN173: 67.4685 | AO173: 95.352 | AP173: 127.6725 | AQ173: 129.6735 | AR173: 133.023 | AS173: 116.0145 | AT173: 79.866 | AU173: 51.4605 | AV173: 26.3175 | AW173: 17.487
A174: helling (θ) | B174: 90 | C174: ° | L174: cm | M174: =InterpoleerCm(B174,B175,cmmatrix) -> 0.87 | AK174: I refl, unshad | AL174: =0.2*AL$101*((1-COS(RADIANS($B174)))/2) -> 7.14 | AM174: 12.7 | AN174: 24.55 | AO174: 37.15 | AP174: 51 | AQ174: 53.24 | AR174: 51.78 | AS174: 45.64 | AT174: 32.62 | AU174: 19.42 | AV174: 8.96 | AW174: 5.47
A175: oriëntatie (Φ) venster rechts | B175: =Sim!J34 -> 90 | C175: ° | F175: noord = 180° / oost = -90° / zuid = 0° / west = 90°
A176: zonwering (Fc) | B176: =Sim!J$66 -> 1 | D176: BV 7.10.3.4 | E176: 0.5 | F176: buitenzonwering | AK176: I unshad | AL176: =SUM(AL172:AL174) -> 47.46992561 | AM176: =SUM(AM172:AM174) -> 80.84282401 | AN176: 148.3298502 | AO176: 215.1102744 | AP176: 285.696906 | AQ176: 292.3337988 | AR176: 285.8578379 | AS176: 259.5372692 | AT176: 195.9467803 | AU176: 123.5115712 | AV176: 60.59122947 | AW176: 37.09686245
A177: oppervlakte met zonwering | B177: =IF( NOT(B176 = 1), B170, 0) -> 0 | C177: m² | E177: 0.6 | F177: ongeventileerde tussenzonwering | AK177: I shad, heat | AL177: =AL176*0.6 -> 28.48195536 | AM177: 48.50569441 | AN177: 88.99791014 | AO177: 129.0661646 | AP177: 171.4181436 | AQ177: 175.4002793 | AR177: 171.5147027 | AS177: 155.7223615 | AT177: 117.5680682 | AU177: 74.10694271 | AV177: 36.35473768 | AW177: 22.25811747
A178: bediending | B178: =IF( NOT(B176 = 1), Sim!J$69, "NA") -> NA | E178: 0.9 | F178: binnenzonwering | AK178: I shad, cool | AL178: =AL176*0.8*1.1 -> 41.77353453 | AM178: 71.14168513 | AN178: 130.5302682 | AO178: 189.2970414 | AP178: 251.4132773 | AQ178: 257.253743 | AR178: 251.5548974 | AS178: 228.3927969 | AT178: 172.4331667 | AU178: 108.6901826 | AV178: 53.32028194 | AW178: 32.64523896
E179: 1 | F179: andere gevallen | AL179: =IF($B178 = "NA", 0, IF($B174 = 90, VLOOKUP($B175, $AJ$40:$AW$49, AL$99 + 2, FALSE), VLOOKUP($B175, $AJ$51:$AW$60, AL$99 + 2, FALSE))) -> 0 | AM179: =IF($B178 = "NA", 0, IF($B174 = 90, VLOOKUP($B175, $AJ$40:$AW$49, AM$99 + 2, FALSE), VLOOKUP($B175, $AJ$51:$AW$60, AM$99 + 2, FALSE))) -> 0 | AN179: =IF($B178 = "NA", 0, IF($B174 = 90, VLOOKUP($B175, $AJ$40:$AW$49, AN$99 + 2, FALSE), VLOOKUP($B175, $AJ$51:$AW$60, AN$99 + 2, FALSE))) -> 0 | AO179: =IF($B178 = "NA", 0, IF($B174 = 90, VLOOKUP($B175, $AJ$40:$AW$49, AO$99 + 2, FALSE), VLOOKUP($B175, $AJ$51:$AW$60, AO$99 + 2, FALSE))) -> 0 | AP179: =IF($B178 = "NA", 0, IF($B174 = 90, VLOOKUP($B175, $AJ$40:$AW$49, AP$99 + 2, FALSE), VLOOKUP($B175, $AJ$51:$AW$60, AP$99 + 2, FALSE))) -> 0 | AQ179: =IF($B178 = "NA", 0, IF($B174 = 90, VLOOKUP($B175, $AJ$40:$AW$49, AQ$99 + 2, FALSE), VLOOKUP($B175, $AJ$51:$AW$60, AQ$99 + 2, FALSE))) -> 0 | AR179: =IF($B178 = "NA", 0, IF($B174 = 90, VLOOKUP($B175, $AJ$40:$AW$49, AR$99 + 2, FALSE), VLOOKUP($B175, $AJ$51:$AW$60, AR$99 + 2, FALSE))) -> 0 | AS179: =IF($B178 = "NA", 0, IF($B174 = 90, VLOOKUP($B175, $AJ$40:$AW$49, AS$99 + 2, FALSE), VLOOKUP($B175, $AJ$51:$AW$60, AS$99 + 2, FALSE))) -> 0 | AT179: =IF($B178 = "NA", 0, IF($B174 = 90, VLOOKUP($B175, $AJ$40:$AW$49, AT$99 + 2, FALSE), VLOOKUP($B175, $AJ$51:$AW$60, AT$99 + 2, FALSE))) -> 0 | AU179: =IF($B178 = "NA", 0, IF($B174 = 90, VLOOKUP($B175, $AJ$40:$AW$49, AU$99 + 2, FALSE), VLOOKUP($B175, $AJ$51:$AW$60, AU$99 + 2, FALSE))) -> 0 | AV179: =IF($B178 = "NA", 0, IF($B174 = 90, VLOOKUP($B175, $AJ$40:$AW$49, AV$99 + 2, FALSE), VLOOKUP($B175, $AJ$51:$AW$60, AV$99 + 2, FALSE))) -> 0 | AW179: =IF($B178 = "NA", 0, IF($B174 = 90, VLOOKUP($B175, $AJ$40:$AW$49, AW$99 + 2, FALSE), VLOOKUP($B175, $AJ$51:$AW$60, AW$99 + 2, FALSE))) -> 0 | AY179: BV EPW Bijlage C.5, maar indien geen 90° helling, dan direct horizontaal (0°)
AL180: =IF($B178 = "NA", 0, IF( $B178 = "manual", IF($B174 = 90, MAX(0, VLOOKUP($B175, $AJ$40:$AW$49, AL$99 + 2, FALSE) - 0.1), MAX(0, VLOOKUP($B175, $AJ$51:$AW$60, AL$99 + 2, FALSE) - 0.1)), IF($B174 = 90, VLOOKUP($B175, $AJ$62:$AW$71, AL$99 + 2, FALSE), VLOOKUP($B175, $AJ$73:$AW$82, AL$99 + 2, FALSE)))) -> 0 | AM180: =IF($B178 = "NA", 0, IF( $B178 = "manual", IF($B174 = 90, MAX(0, VLOOKUP($B175, $AJ$40:$AW$49, AM$99 + 2, FALSE) - 0.1), MAX(0, VLOOKUP($B175, $AJ$51:$AW$60, AM$99 + 2, FALSE) - 0.1)), IF($B174 = 90, VLOOKUP($B175, $AJ$62:$AW$71, AM$99 + 2, FALSE), VLOOKUP($B175, $AJ$73:$AW$82, AM$99 + 2, FALSE)))) -> 0 | AN180: 0 | AO180: 0 | AP180: 0 | AQ180: 0 | AR180: 0 | AS180: 0 | AT180: 0 | AU180: 0 | AV180: 0 | AW180: 0 | AY180: BV EPW Bijlage C.5, maar indien geen 90° helling, dan direct horizontaal (0°)
AK181: Q s, heat | AL181: =0.95 * (0.9 * (AL179 * $B176 + (1 - AL179)) * $B173) * $B171 * AL177 -> 0 | AM181: =0.95 * (0.9 * (AM179 * $B176 + (1 - AM179)) * $B173) * $B171 * AM177 -> 0 | AN181: 0 | AO181: 0 | AP181: 0 | AQ181: 0 | AR181: 0 | AS181: 0 | AT181: 0 | AU181: 0 | AV181: 0 | AW181: 0 | AY181: aangepast volgens EPN Tabel 8
AK182: Q s, cool | AL182: =0.95 * (0.9 * (AL180 * $B176 + (1 - AL180)) * $B173) * $B171 * AL178 -> 0 | AM182: =0.95 * (0.9 * (AM180 * $B176 + (1 - AM180)) * $B173) * $B171 * AM178 -> 0 | AN182: =0.95 * (0.9 * (AN180 * $B176 + (1 - AN180)) * $B173) * $B171 * AN178 -> 0 | AO182: 0 | AP182: 0 | AQ182: 0 | AR182: 0 | AS182: 0 | AT182: 0 | AU182: 0 | AV182: 0 | AW182: 0 | AY182: aangepast volgens EPN Tabel 8
A184: lengte bouwknoop gevel-raam | C184: m
A188: DAK VENSTER 1 | AJ188: =A188 -> DAK VENSTER 1
A189: referentie oppervlakte venster | C189: m²
A190: oppervlakte venster rechts | B190: =Sim!J53 -> 0 | C190: m²
A191: oppervlakte glas | B191: =B190 * 0.7 -> 0 | C191: m²
A192: U-waarde venster | B192: =Sim!J$39 -> 1.91 | C192: W/m²K | D192: TR | E192: U = 0.3*U profiel + 0.7*U glas (+3*phi afstandhouder) | AK192: I dir, unshad | AL192: =(AL$101-AL$102)*DirecteZonnewinstenQuotiënt(AL$100,AL$99,$B194,$B195) -> 20.09623556 | AM192: =(AM$101-AM$102)*DirecteZonnewinstenQuotiënt(AM$100,AM$99,$B194,$B195) -> 44.29518166 | AN192: 90.39487671 | AO192: 152.2969794 | AP192: 216.500306 | AQ192: 234.302438 | AR192: 212.0014591 | AS192: 189.6982528 | AT192: 142.5944424 | AU192: 75.89345148 | AV192: 29.09531094 | AW192: 14.49683385
A193: g normaal | B193: =Sim!J$40 -> 0.52 | AK193: I dif, unshad | AL193: =AL$102*$M194*((1+COS(RADIANS($B194)))/2) -> 51.3 | AM193: 82.7 | AN193: 155.1 | AO193: 219.2 | AP193: 293.5 | AQ193: 298.1 | AR193: 305.8 | AS193: 266.7 | AT193: 183.6 | AU193: 118.3 | AV193: 60.5 | AW193: 40.2
A194: helling (θ) | B194: =Sim!J55 -> 0 | C194: ° | L194: cm | M194: =InterpoleerCm(B194,B195,cmmatrix) -> 1 | AK194: I refl, unshad | AL194: =0.2*AL$101*((1-COS(RADIANS($B194)))/2) -> 0 | AM194: 0 | AN194: 0 | AO194: 0 | AP194: 0 | AQ194: 0 | AR194: 0 | AS194: 0 | AT194: 0 | AU194: 0 | AV194: 0 | AW194: 0
A195: oriëntatie (Φ) dak venster 1 | B195: =Sim!J49 -> 0 | C195: ° | F195: noord = 180° / oost = -90° / zuid = 0° / west = 90°
A196: zonwering (Fc) | B196: =Sim!J$67 -> 1 | D196: BV 7.10.3.4 | E196: 0.5 | F196: buitenzonwering | AK196: I unshad | AL196: =SUM(AL192:AL194) -> 71.39623556 | AM196: =SUM(AM192:AM194) -> 126.9951817 | AN196: 245.4948767 | AO196: 371.4969794 | AP196: 510.000306 | AQ196: 532.402438 | AR196: 517.8014591 | AS196: 456.3982528 | AT196: 326.1944424 | AU196: 194.1934515 | AV196: 89.59531094 | AW196: 54.69683385
A197: oppervlakte met zonwering | B197: =IF( NOT(B196 = 1), B190, 0) -> 0 | C197: m² | E197: 0.6 | F197: ongeventileerde tussenzonwering | AK197: I shad, heat | AL197: =AL196*0.6 -> 42.83774134 | AM197: 76.19710899 | AN197: 147.296926 | AO197: 222.8981877 | AP197: 306.0001836 | AQ197: 319.4414628 | AR197: 310.6808754 | AS197: 273.8389517 | AT197: 195.7166655 | AU197: 116.5160709 | AV197: 53.75718656 | AW197: 32.81810031
A198: bediending | B198: =IF( NOT(B196 = 1), Sim!J$69, "NA") -> NA | E198: 0.9 | F198: binnenzonwering | AK198: I shad, cool | AL198: =AL196*0.8*1.1 -> 62.82868729 | AM198: 111.7557599 | AN198: 216.0354915 | AO198: 326.9173419 | AP198: 448.8002693 | AQ198: 468.5141454 | AR198: 455.665284 | AS198: 401.6304625 | AT198: 287.0511093 | AU198: 170.8902373 | AV198: 78.84387363 | AW198: 48.13321379
E199: 1 | F199: andere gevallen | AL199: =IF($B198 = "NA", 0, IF($B194 = 90, VLOOKUP($B195, $AJ$40:$AW$49, AL$99 + 2, FALSE), VLOOKUP($B195, $AJ$51:$AW$60, AL$99 + 2, FALSE))) -> 0 | AM199: =IF($B198 = "NA", 0, IF($B194 = 90, VLOOKUP($B195, $AJ$40:$AW$49, AM$99 + 2, FALSE), VLOOKUP($B195, $AJ$51:$AW$60, AM$99 + 2, FALSE))) -> 0 | AN199: =IF($B198 = "NA", 0, IF($B194 = 90, VLOOKUP($B195, $AJ$40:$AW$49, AN$99 + 2, FALSE), VLOOKUP($B195, $AJ$51:$AW$60, AN$99 + 2, FALSE))) -> 0 | AO199: =IF($B198 = "NA", 0, IF($B194 = 90, VLOOKUP($B195, $AJ$40:$AW$49, AO$99 + 2, FALSE), VLOOKUP($B195, $AJ$51:$AW$60, AO$99 + 2, FALSE))) -> 0 | AP199: =IF($B198 = "NA", 0, IF($B194 = 90, VLOOKUP($B195, $AJ$40:$AW$49, AP$99 + 2, FALSE), VLOOKUP($B195, $AJ$51:$AW$60, AP$99 + 2, FALSE))) -> 0 | AQ199: =IF($B198 = "NA", 0, IF($B194 = 90, VLOOKUP($B195, $AJ$40:$AW$49, AQ$99 + 2, FALSE), VLOOKUP($B195, $AJ$51:$AW$60, AQ$99 + 2, FALSE))) -> 0 | AR199: =IF($B198 = "NA", 0, IF($B194 = 90, VLOOKUP($B195, $AJ$40:$AW$49, AR$99 + 2, FALSE), VLOOKUP($B195, $AJ$51:$AW$60, AR$99 + 2, FALSE))) -> 0 | AS199: =IF($B198 = "NA", 0, IF($B194 = 90, VLOOKUP($B195, $AJ$40:$AW$49, AS$99 + 2, FALSE), VLOOKUP($B195, $AJ$51:$AW$60, AS$99 + 2, FALSE))) -> 0 | AT199: =IF($B198 = "NA", 0, IF($B194 = 90, VLOOKUP($B195, $AJ$40:$AW$49, AT$99 + 2, FALSE), VLOOKUP($B195, $AJ$51:$AW$60, AT$99 + 2, FALSE))) -> 0 | AU199: =IF($B198 = "NA", 0, IF($B194 = 90, VLOOKUP($B195, $AJ$40:$AW$49, AU$99 + 2, FALSE), VLOOKUP($B195, $AJ$51:$AW$60, AU$99 + 2, FALSE))) -> 0 | AV199: =IF($B198 = "NA", 0, IF($B194 = 90, VLOOKUP($B195, $AJ$40:$AW$49, AV$99 + 2, FALSE), VLOOKUP($B195, $AJ$51:$AW$60, AV$99 + 2, FALSE))) -> 0 | AW199: =IF($B198 = "NA", 0, IF($B194 = 90, VLOOKUP($B195, $AJ$40:$AW$49, AW$99 + 2, FALSE), VLOOKUP($B195, $AJ$51:$AW$60, AW$99 + 2, FALSE))) -> 0 | AY199: BV EPW Bijlage C.5, maar indien geen 90° helling, dan direct horizontaal (0°)
AL200: =IF($B198 = "NA", 0, IF( $B198 = "manual", IF($B194 = 90, MAX(0, VLOOKUP($B195, $AJ$40:$AW$49, AL$99 + 2, FALSE) - 0.1), MAX(0, VLOOKUP($B195, $AJ$51:$AW$60, AL$99 + 2, FALSE) - 0.1)), IF($B194 = 90, VLOOKUP($B195, $AJ$62:$AW$71, AL$99 + 2, FALSE), VLOOKUP($B195, $AJ$73:$AW$82, AL$99 + 2, FALSE)))) -> 0 | AM200: =IF($B198 = "NA", 0, IF( $B198 = "manual", IF($B194 = 90, MAX(0, VLOOKUP($B195, $AJ$40:$AW$49, AM$99 + 2, FALSE) - 0.1), MAX(0, VLOOKUP($B195, $AJ$51:$AW$60, AM$99 + 2, FALSE) - 0.1)), IF($B194 = 90, VLOOKUP($B195, $AJ$62:$AW$71, AM$99 + 2, FALSE), VLOOKUP($B195, $AJ$73:$AW$82, AM$99 + 2, FALSE)))) -> 0 | AN200: 0 | AO200: 0 | AP200: 0 | AQ200: 0 | AR200: 0 | AS200: 0 | AT200: 0 | AU200: 0 | AV200: 0 | AW200: 0 | AY200: BV EPW Bijlage C.5, maar indien geen 90° helling, dan direct horizontaal (0°)
AK201: Q s, heat | AL201: =0.95 * (0.9 * (AL199 * $B196 + (1 - AL199)) * $B193) * $B191 * AL197 -> 0 | AM201: =0.95 * (0.9 * (AM199 * $B196 + (1 - AM199)) * $B193) * $B191 * AM197 -> 0 | AN201: 0 | AO201: 0 | AP201: 0 | AQ201: 0 | AR201: 0 | AS201: 0 | AT201: 0 | AU201: 0 | AV201: 0 | AW201: 0 | AY201: aangepast volgens EPN Tabel 8
AK202: Q s, cool | AL202: =0.95 * (0.9 * (AL200 * $B196 + (1 - AL200)) * $B193) * $B191 * AL198 -> 0 | AM202: =0.95 * (0.9 * (AM200 * $B196 + (1 - AM200)) * $B193) * $B191 * AM198 -> 0 | AN202: =0.95 * (0.9 * (AN200 * $B196 + (1 - AN200)) * $B193) * $B191 * AN198 -> 0 | AO202: 0 | AP202: 0 | AQ202: 0 | AR202: 0 | AS202: 0 | AT202: 0 | AU202: 0 | AV202: 0 | AW202: 0 | AY202: aangepast volgens EPN Tabel 8
A204: lengte bouwknoop gevel-raam | C204: m | AL204: 2666.392372 | AM204: 4742.812852 | AN204: 9168.349863 | AO204: 13874.07479 | AP204: 19046.67543 | AQ204: 19883.31441 | AR204: 19338.02041 | AS204: 17044.83171 | AT204: 12182.18812 | AU204: 7252.426316 | AV204: 3346.06232 | AW204: 2042.729836
AL205: 3910.708812 | AM205: 6956.125517 | AN205: 13446.91313 | AO205: 20348.64303 | AP205: 27935.12396 | AQ205: 29162.19447 | AR205: 28362.42994 | AS205: 24999.08651 | AT205: 17867.20925 | AU205: 10636.89193 | AV205: 4907.55807 | AW205: 2996.003759
A208: DAK VENSTER 2 | AJ208: =A208 -> DAK VENSTER 2
A209: referentie oppervlakte venster | C209: m²
A210: oppervlakte venster rechts | B210: =Sim!J54 -> 0 | C210: m²
A211: oppervlakte glas | B211: =B210 * 0.7 -> 0 | C211: m²
A212: U-waarde venster | B212: =Sim!J$39 -> 1.91 | C212: W/m²K | D212: TR | E212: U = 0.3*U profiel + 0.7*U glas (+3*phi afstandhouder) | AK212: I dir, unshad | AL212: =(AL$101-AL$102)*DirecteZonnewinstenQuotiënt(AL$100,AL$99,$B214,$B215) -> 20.09623556 | AM212: =(AM$101-AM$102)*DirecteZonnewinstenQuotiënt(AM$100,AM$99,$B214,$B215) -> 44.29518166 | AN212: 90.39487671 | AO212: 152.2969794 | AP212: 216.500306 | AQ212: 234.302438 | AR212: 212.0014591 | AS212: 189.6982528 | AT212: 142.5944424 | AU212: 75.89345148 | AV212: 29.09531094 | AW212: 14.49683385
A213: g normaal | B213: =Sim!J$40 -> 0.52 | AK213: I dif, unshad | AL213: =AL$102*$M214*((1+COS(RADIANS($B214)))/2) -> 51.3 | AM213: 82.7 | AN213: 155.1 | AO213: 219.2 | AP213: 293.5 | AQ213: 298.1 | AR213: 305.8 | AS213: 266.7 | AT213: 183.6 | AU213: 118.3 | AV213: 60.5 | AW213: 40.2
A214: helling (θ) | B214: =Sim!J56 -> 0 | C214: ° | L214: cm | M214: =InterpoleerCm(B214,B215,cmmatrix) -> 1 | AK214: I refl, unshad | AL214: =0.2*AL$101*((1-COS(RADIANS($B214)))/2) -> 0 | AM214: 0 | AN214: 0 | AO214: 0 | AP214: 0 | AQ214: 0 | AR214: 0 | AS214: 0 | AT214: 0 | AU214: 0 | AV214: 0 | AW214: 0
A215: oriëntatie (Φ) dak venster 2 | B215: =Sim!J51 -> 0 | C215: ° | F215: noord = 180° / oost = -90° / zuid = 0° / west = 90°
A216: zonwering (Fc) | B216: =Sim!J$68 -> 1 | D216: BV 7.10.3.4 | E216: 0.5 | F216: buitenzonwering | AK216: I unshad | AL216: =SUM(AL212:AL214) -> 71.39623556 | AM216: =SUM(AM212:AM214) -> 126.9951817 | AN216: 245.4948767 | AO216: 371.4969794 | AP216: 510.000306 | AQ216: 532.402438 | AR216: 517.8014591 | AS216: 456.3982528 | AT216: 326.1944424 | AU216: 194.1934515 | AV216: 89.59531094 | AW216: 54.69683385
A217: oppervlakte met zonwering | B217: =IF( NOT(B216 = 1), B210, 0) -> 0 | C217: m² | E217: 0.6 | F217: ongeventileerde tussenzonwering | AK217: I shad, heat | AL217: =AL216*0.6 -> 42.83774134 | AM217: 76.19710899 | AN217: 147.296926 | AO217: 222.8981877 | AP217: 306.0001836 | AQ217: 319.4414628 | AR217: 310.6808754 | AS217: 273.8389517 | AT217: 195.7166655 | AU217: 116.5160709 | AV217: 53.75718656 | AW217: 32.81810031
A218: bediending | B218: =IF( NOT(B216 = 1), Sim!J$69, "NA") -> NA | E218: 0.9 | F218: binnenzonwering | AK218: I shad, cool | AL218: =AL216*0.8*1.1 -> 62.82868729 | AM218: 111.7557599 | AN218: 216.0354915 | AO218: 326.9173419 | AP218: 448.8002693 | AQ218: 468.5141454 | AR218: 455.665284 | AS218: 401.6304625 | AT218: 287.0511093 | AU218: 170.8902373 | AV218: 78.84387363 | AW218: 48.13321379
E219: 1 | F219: andere gevallen | AL219: =IF($B218 = "NA", 0, IF($B214 = 90, VLOOKUP($B215, $AJ$40:$AW$49, AL$99 + 2, FALSE), VLOOKUP($B215, $AJ$51:$AW$60, AL$99 + 2, FALSE))) -> 0 | AM219: =IF($B218 = "NA", 0, IF($B214 = 90, VLOOKUP($B215, $AJ$40:$AW$49, AM$99 + 2, FALSE), VLOOKUP($B215, $AJ$51:$AW$60, AM$99 + 2, FALSE))) -> 0 | AN219: =IF($B218 = "NA", 0, IF($B214 = 90, VLOOKUP($B215, $AJ$40:$AW$49, AN$99 + 2, FALSE), VLOOKUP($B215, $AJ$51:$AW$60, AN$99 + 2, FALSE))) -> 0 | AO219: =IF($B218 = "NA", 0, IF($B214 = 90, VLOOKUP($B215, $AJ$40:$AW$49, AO$99 + 2, FALSE), VLOOKUP($B215, $AJ$51:$AW$60, AO$99 + 2, FALSE))) -> 0 | AP219: =IF($B218 = "NA", 0, IF($B214 = 90, VLOOKUP($B215, $AJ$40:$AW$49, AP$99 + 2, FALSE), VLOOKUP($B215, $AJ$51:$AW$60, AP$99 + 2, FALSE))) -> 0 | AQ219: =IF($B218 = "NA", 0, IF($B214 = 90, VLOOKUP($B215, $AJ$40:$AW$49, AQ$99 + 2, FALSE), VLOOKUP($B215, $AJ$51:$AW$60, AQ$99 + 2, FALSE))) -> 0 | AR219: =IF($B218 = "NA", 0, IF($B214 = 90, VLOOKUP($B215, $AJ$40:$AW$49, AR$99 + 2, FALSE), VLOOKUP($B215, $AJ$51:$AW$60, AR$99 + 2, FALSE))) -> 0 | AS219: =IF($B218 = "NA", 0, IF($B214 = 90, VLOOKUP($B215, $AJ$40:$AW$49, AS$99 + 2, FALSE), VLOOKUP($B215, $AJ$51:$AW$60, AS$99 + 2, FALSE))) -> 0 | AT219: =IF($B218 = "NA", 0, IF($B214 = 90, VLOOKUP($B215, $AJ$40:$AW$49, AT$99 + 2, FALSE), VLOOKUP($B215, $AJ$51:$AW$60, AT$99 + 2, FALSE))) -> 0 | AU219: =IF($B218 = "NA", 0, IF($B214 = 90, VLOOKUP($B215, $AJ$40:$AW$49, AU$99 + 2, FALSE), VLOOKUP($B215, $AJ$51:$AW$60, AU$99 + 2, FALSE))) -> 0 | AV219: =IF($B218 = "NA", 0, IF($B214 = 90, VLOOKUP($B215, $AJ$40:$AW$49, AV$99 + 2, FALSE), VLOOKUP($B215, $AJ$51:$AW$60, AV$99 + 2, FALSE))) -> 0 | AW219: =IF($B218 = "NA", 0, IF($B214 = 90, VLOOKUP($B215, $AJ$40:$AW$49, AW$99 + 2, FALSE), VLOOKUP($B215, $AJ$51:$AW$60, AW$99 + 2, FALSE))) -> 0 | AY219: BV EPW Bijlage C.5, maar indien geen 90° helling, dan direct horizontaal (0°)
AL220: =IF($B218 = "NA", 0, IF( $B218 = "manual", IF($B214 = 90, MAX(0, VLOOKUP($B215, $AJ$40:$AW$49, AL$99 + 2, FALSE) - 0.1), MAX(0, VLOOKUP($B215, $AJ$51:$AW$60, AL$99 + 2, FALSE) - 0.1)), IF($B214 = 90, VLOOKUP($B215, $AJ$62:$AW$71, AL$99 + 2, FALSE), VLOOKUP($B215, $AJ$73:$AW$82, AL$99 + 2, FALSE)))) -> 0 | AM220: =IF($B218 = "NA", 0, IF( $B218 = "manual", IF($B214 = 90, MAX(0, VLOOKUP($B215, $AJ$40:$AW$49, AM$99 + 2, FALSE) - 0.1), MAX(0, VLOOKUP($B215, $AJ$51:$AW$60, AM$99 + 2, FALSE) - 0.1)), IF($B214 = 90, VLOOKUP($B215, $AJ$62:$AW$71, AM$99 + 2, FALSE), VLOOKUP($B215, $AJ$73:$AW$82, AM$99 + 2, FALSE)))) -> 0 | AN220: 0 | AO220: 0 | AP220: 0 | AQ220: 0 | AR220: 0 | AS220: 0 | AT220: 0 | AU220: 0 | AV220: 0 | AW220: 0 | AY220: BV EPW Bijlage C.5, maar indien geen 90° helling, dan direct horizontaal (0°)
AK221: Q s, heat | AL221: =0.95 * (0.9 * (AL219 * $B216 + (1 - AL219)) * $B213) * $B211 * AL217 -> 0 | AM221: =0.95 * (0.9 * (AM219 * $B216 + (1 - AM219)) * $B213) * $B211 * AM217 -> 0 | AN221: 0 | AO221: 0 | AP221: 0 | AQ221: 0 | AR221: 0 | AS221: 0 | AT221: 0 | AU221: 0 | AV221: 0 | AW221: 0 | AY221: aangepast volgens EPN Tabel 8
AK222: Q s, cool | AL222: =0.95 * (0.9 * (AL220 * $B216 + (1 - AL220)) * $B213) * $B211 * AL218 -> 0 | AM222: =0.95 * (0.9 * (AM220 * $B216 + (1 - AM220)) * $B213) * $B211 * AM218 -> 0 | AN222: =0.95 * (0.9 * (AN220 * $B216 + (1 - AN220)) * $B213) * $B211 * AN218 -> 0 | AO222: 0 | AP222: 0 | AQ222: 0 | AR222: 0 | AS222: 0 | AT222: 0 | AU222: 0 | AV222: 0 | AW222: 0 | AY222: aangepast volgens EPN Tabel 8
A224: lengte bouwknoop gevel-raam | C224: m
A228: GORDIJNGEVELS | AJ228: TOTAAL ZONNEWINSTEN
A230: GLASBOUWSTEENWANDEN | AK230: Q s, heat | AL230: =SUMIF($AK$112:$AK$222,$AK230,AL$112:AL$222) -> 0 | AM230: =SUMIF($AK$112:$AK$222,$AK230,AM$112:AM$222) -> 0 | AN230: 0 | AO230: 0 | AP230: 0 | AQ230: 0 | AR230: 0 | AS230: 0 | AT230: 0 | AU230: 0 | AV230: 0 | AW230: 0
AK231: Q s, cool | AL231: =SUMIF($AK$112:$AK$222,$AK231,AL$112:AL$222) -> 0 | AM231: 0 | AN231: 0 | AO231: 0 | AP231: 0 | AQ231: 0 | AR231: 0 | AS231: 0 | AT231: 0 | AU231: 0 | AV231: 0 | AW231: 0
A232: AANGRENZENDE ONVERWARMDE RUIMTEN (AOR)
A234: AANGRENZENDE VERWARMDE RUIMTEN (AVR)
A236: BOUWKNOPEN
A261: K-PEIL BEREKENING | B261: =$C$330 -> 0 | C261: =$A$2 -> B+
D263: PRESTATIES
C264: A | D264: U | E264: U x A
A265: DELEN IN CONTACT MET DE GROND
A267: ='E1'!A25 -> VLOER IN DIRECT CONTACT MET DE GROND | C267: ='E1'!B26 -> 0 | D267: ='E1'!B27 ->  | E267: =D267*C267 -> 
A268: ='E1'!A29 -> VLOER BOVEN KELDER/KRUIPRUIMTE | C268: ='E1'!B30 -> 0 | D268: ='E1'!B31 -> 2.987213416 | E268: =D268*C268 -> 0
... 428 more rows

Sheet E2 (hidden)
A1: VL
A2: ='E1'!A2 -> B+
A4: ALGEMENE GEGEVENS VAN DE ENERGIESECTOR
A7: beschermd volume BV | C7: m³ | D7: BVI | I7: Ruimte 1 | J7: Ruimte 2 | K7: Ruimte 3 | L7: Ruimte 4 | M7: Ruimte 5 | N7: Ruimte 6 | O7: Ruimte 7 | P7: Ruimte 8
A8: gebruiksoppervlakte Af | B8: =SUM(I8:P8) -> 0 | C8: m² | D8: BVI
C9: m²/pers | D9: BX (Tabel 1) | E9: NBN D 50-001 tabel 1 en tabel 11 en 12 van EN 13779
A10: n design | B10: =SUM(I10:P10) -> 0 | C10: pers | D10: BVI | E10: n design: op basis van ventilatie-eisen
A11: V supply, min | B11: =SUM(I11:P11) -> 0 | C11: m³/h | D11: BVI | E11: V supply, min: op basis van ventilatie-eisen
A13: specifieke effectieve thermische warmtecapaciteit Dj | B13: 55 | C13: kJ/(m²K) | D13: BVI (Tabel 6) (waarde BVj ontstentenis = 55 kJ/(m²K)
A15: effectieve warmte capaciteit C | B15: =B8*B13 -> 0 | C15: kJ/K | D15: BVI
A18: OPBOUW VAN DE BOUWDELEN
A21: DELEN IN CONTACT MET DE GROND
A23: VLOEREN IN CONTACT MET DE GROND
A25: VLOER IN DIRECT CONTACT MET DE GROND
A26: oppervlakte | C26: m²
A27: Indicatieve U-waarde | B27: =Sim!$J$16 ->  | C27: W/m²K | D27: TR p.35 | E27: U ind = U eff * 1/(U eff + 1); U eff = 1/(0.0 + Rf + 0.17)
A29: VLOER BOVEN KELDER/KRUIPRUIMTE
A30: oppervlakte | C30: m²
A31: Indicatieve U-waarde | B31: =Fixed!A$44 -> 0 | C31: W/m²K | D31: TR p.36 | E31: U ind = U eff * b; U eff = 1/(0.17 + Rf + 0.17)
E32: b = | F32: 0.5 | G32: kelderruimte zonder buitenvenster of buitendeur
F33: 0.8 | G33: kelderruimte met buitenvenster of buitendeur
F34: 1 | G34: kruipruimte sterk geventileerd (niet luchtdicht of permanente ventilatieopeningen)
F35: 0.8 | G35: kruipruimte niet of zwak geventileerd (luchtdicht, geen of kleine ventilatieopeningen)
A37: MUREN IN CONTACT MET DE GROND
A39: MUUR INGEGRAVEN
A40: oppervlakte | C40: m²
A41: Indicatieve U-waarde | C41: W/m²K | D41: TR p.59
A43: OPAKE DELEN IN CONTACT MET DE BUITENOMGEVING
A45: referentie oppervlakte gevel + venster | C45: m²
A47: GEVELS
A49: GEVEL TYPE 1
A50: oppervlakte | C50: m²
A51: U-waarde | B51: =Sim!J$24 -> 1.643683143 | C51: W/m²K | D51: TR | E51: U = 1/(0.04 + Rf + 0.13)
A53: GEVEL TYPE 2
A54: oppervlakte | C54: m²
A55: U-waarde | B55: =Sim!J$24 -> 1.643683143 | C55: W/m²K | D55: TR | E55: U = 1/(0.04 + Rf + 0.13)
A57: GEVEL TYPE 3
A58: oppervlakte | C58: m²
A59: U-waarde | B59: =Sim!J$24 -> 1.643683143 | C59: W/m²K | D59: TR | E59: U = 1/(0.04 + Rf + 0.13)
A61: GEVEL TYPE 4
A62: oppervlakte | C62: m²
A63: U-waarde | B63: =Sim!J$24 -> 1.643683143 | C63: W/m²K | D63: TR | E63: U = 1/(0.04 + Rf + 0.13)
A65: DAKEN
A67: DAK TYPE 1
A68: oppervlakte dak | C68: m²
A69: U-waarde | B69: =Sim!$J$47 -> 2.467206252 | C69: W/m²K | D69: TR | E69: U = 1/(0.04 + Rf + 0.10) voor horizontaal of schuin (0°<= alfa <60°)
D70: =IF(B70="","",VerticaalZoeken(A70,#REF!,IF(B70="buiten",3,4),0)) ->  | E70: U = 1/(0.04 + Rf + 0.13) voor verticaal (60°<= alfa <=90°)
A72: DAK TYPE 2
A73: oppervlakte | C73: m²
A74: U-waarde | B74: =Sim!$J$47 -> 2.467206252 | C74: W/m²K | D74: TR | E74: U = 1/(0.04 + Rf + 0.10) voor horizontaal of schuin (0°<= alfa <60°)
E75: U = 1/(0.04 + Rf + 0.13) voor verticaal (60°<= alfa <=90°)
A77: DAK TYPE 3
A78: oppervlakte | C78: m²
A79: U-waarde | B79: =Sim!$J$47 -> 2.467206252 | C79: W/m²K | D79: TR | E79: U = 1/(0.04 + Rf + 0.10) voor horizontaal of schuin (0°<= alfa <60°)
E80: U = 1/(0.04 + Rf + 0.13) voor verticaal (60°<= alfa <=90°)
A82: DAK TYPE 4
A83: oppervlakte | C83: m²
A84: U-waarde | B84: =Sim!$J$47 -> 2.467206252 | C84: W/m²K | D84: TR | E84: U = 1/(0.04 + Rf + 0.10) voor horizontaal of schuin (0°<= alfa <60°)
E85: U = 1/(0.04 + Rf + 0.13) voor verticaal (60°<= alfa <=90°)
AM86: oriëntatie | AN86: (phi)
A87: VLOEREN | AM87: -180 | AN87: -157.5 | AO87: -135 | AP87: -112.5 | AQ87: -90 | AR87: -67.5 | AS87: -45 | AT87: -22.5 | AU87: 0 | AV87: 22.5 | AW87: 45 | AX87: 67.5 | AY87: 90 | AZ87: 112.5 | BA87: 135 | BB87: 157.5 | BC87: 180
AL88: index | AM88: -8 | AN88: -7 | AO88: -6 | AP88: -5 | AQ88: -4 | AR88: -3 | AS88: -2 | AT88: -1 | AU88: 0 | AV88: 1 | AW88: 2 | AX88: 3 | AY88: 4 | AZ88: 5 | BA88: 6 | BB88: 7 | BC88: 8
A89: VLOER (BOVEN BUITENOMGEVING) | AJ89: helling | AK89: 0 | AL89: 0 | AM89: 1 | AN89: 1 | AO89: 1 | AP89: 1 | AQ89: 1 | AR89: 1 | AS89: 1 | AT89: 1 | AU89: 1 | AV89: 1 | AW89: 1 | AX89: 1 | AY89: 1 | AZ89: 1 | BA89: 1 | BB89: 1 | BC89: 1
A90: oppervlakte | C90: m² | AJ90: (tèta) | AK90: 22.5 | AL90: 1 | AM90: 0.96 | AN90: 0.97 | AO90: 0.98 | AP90: 0.99 | AQ90: 1 | AR90: 1.01 | AS90: 1.02 | AT90: 1.03 | AU90: 1.03 | AV90: 1.03 | AW90: 1.02 | AX90: 1.01 | AY90: 1 | AZ90: 0.99 | BA90: 0.98 | BB90: 0.97 | BC90: 0.96
A91: U-waarde | C91: W/m²K | D91: TR | E91: U = 1/(0.04 + Rf + 0.17) | AK91: 45 | AL91: 2 | AM91: 0.92 | AN91: 0.92 | AO91: 0.94 | AP91: 0.96 | AQ91: 0.99 | AR91: 1.01 | AS91: 1.03 | AT91: 1.04 | AU91: 1.05 | AV91: 1.04 | AW91: 1.03 | AX91: 1.01 | AY91: 0.99 | AZ91: 0.96 | BA91: 0.94 | BB91: 0.92 | BC91: 0.92
AK92: 67.5 | AL92: 3 | AM92: 0.83 | AN92: 0.84 | AO92: 0.86 | AP92: 0.9 | AQ92: 0.94 | AR92: 0.99 | AS92: 1.03 | AT92: 1.05 | AU92: 1.06 | AV92: 1.05 | AW92: 1.03 | AX92: 0.99 | AY92: 0.94 | AZ92: 0.9 | BA92: 0.86 | BB92: 0.84 | BC92: 0.83
A93: DEUREN EN POORTEN | AK93: 90 | AL93: 4 | AM93: 0.71 | AN93: 0.73 | AO93: 0.76 | AP93: 0.81 | AQ93: 0.87 | AR93: 0.94 | AS93: 1 | AT93: 1.04 | AU93: 1.06 | AV93: 1.04 | AW93: 1 | AX93: 0.94 | AY93: 0.87 | AZ93: 0.81 | BA93: 0.76 | BB93: 0.73 | BC93: 0.71
AK94: 112.5 | AL94: 5 | AM94: 0.6 | AN94: 0.6 | AO94: 0.63 | AP94: 0.68 | AQ94: 0.76 | AR94: 0.85 | AS94: 0.92 | AT94: 0.97 | AU94: 0.98 | AV94: 0.97 | AW94: 0.92 | AX94: 0.85 | AY94: 0.76 | AZ94: 0.68 | BA94: 0.63 | BB94: 0.6 | BC94: 0.6
A95: DEUR OPAAK | AK95: 135 | AL95: 6 | AM95: 0.47 | AN95: 0.47 | AO95: 0.49 | AP95: 0.53 | AQ95: 0.59 | AR95: 0.67 | AS95: 0.74 | AT95: 0.78 | AU95: 0.8 | AV95: 0.78 | AW95: 0.74 | AX95: 0.67 | AY95: 0.59 | AZ95: 0.53 | BA95: 0.49 | BB95: 0.47 | BC95: 0.47
A96: oppervlakte | C96: m² | AK96: 157.5 | AL96: 7 | AM96: 0.34 | AN96: 0.4 | AO96: 0.41 | AP96: 0.43 | AQ96: 0.46 | AR96: 0.48 | AS96: 0.51 | AT96: 0.56 | AU96: 0.58 | AV96: 0.56 | AW96: 0.51 | AX96: 0.48 | AY96: 0.46 | AZ96: 0.43 | BA96: 0.41 | BB96: 0.4 | BC96: 0.34
A97: U-waarde | C97: W/m²K | AK97: 180 | AL97: 8 | AM97: 0 | AN97: 0 | AO97: 0 | AP97: 0 | AQ97: 0 | AR97: 0 | AS97: 0 | AT97: 0 | AU97: 0 | AV97: 0 | AW97: 0 | AX97: 0 | AY97: 0 | AZ97: 0 | BA97: 0 | BB97: 0 | BC97: 0
AK99: maandnummer | AL99: 1 | AM99: 2 | AN99: 3 | AO99: 4 | AP99: 5 | AQ99: 6 | AR99: 7 | AS99: 8 | AT99: 9 | AU99: 10 | AV99: 11 | AW99: 12
A100: TRANSPARANTE DELEN IN CONTACT MET DE BUITENOMGEVING | AK100: karakteristieke dag | AL100: 15 | AM100: 46 | AN100: 74 | AO100: 105 | AP100: 135 | AQ100: 166 | AR100: 196 | AS100: 227 | AT100: 258 | AU100: 288 | AV100: 319 | AW100: 349
AK101: I s, tot, hor | AL101: 71.4 | AM101: 127 | AN101: 245.5 | AO101: 371.5 | AP101: 510 | AQ101: 532.4 | AR101: 517.8 | AS101: 456.4 | AT101: 326.2 | AU101: 194.2 | AV101: 89.6 | AW101: 54.7
A102: VENSTERS | AK102: I s, dif, hor | AL102: 51.3 | AM102: 82.7 | AN102: 155.1 | AO102: 219.2 | AP102: 293.5 | AQ102: 298.1 | AR102: 305.8 | AS102: 266.7 | AT102: 183.6 | AU102: 118.3 | AV102: 60.5 | AW102: 40.2
A104: effectieve oppervlakte venster | B104: =SUM( B110, B130, B150, B170) -> 0 | C104: m²
A105: percentage vensters in gevel | B105: ='E1'!B105 -> 1 | C105: % | E105: sensitiviteit, enkel bij nieuwbouw
A106: oriëntatie gebouw | B106: ='E1'!B106 -> 180 | C106: ° | E106: nieuwbouw | F106: 0/45/90/135/180/-135/-90/-45
E107: renovatie | F107: 0/90/180/-90
A108: VENSTER VOOR | AJ108: =A108 -> VENSTER VOOR
A109: referentie oppervlakte venster | C109: m²
A110: oppervlakte venster voor | B110: =B$105 * B109 -> 0 | C110: m²
A111: oppervlakte glas | B111: =B110 * 0.7 -> 0 | C111: m²
A112: U-waarde venster | B112: =Sim!J$39 -> 1.91 | C112: W/m²K | D112: TR | E112: U = 0.3*U profiel + 0.7*U glas (+3*phi afstandhouder) | AK112: I dir, unshad | AL112: =VLOOKUP($B115, Fixed!$E$154:$Q$162, AL99 + 1, FALSE) -> 1.534975911 | AM112: =VLOOKUP($B115, Fixed!$E$154:$Q$162, AM99 + 1, FALSE) -> 1.999409075 | AN112: =VLOOKUP($B115, Fixed!$E$154:$Q$162, AN99 + 1, FALSE) -> 2.508300881 | AO112: =VLOOKUP($B115, Fixed!$E$154:$Q$162, AO99 + 1, FALSE) -> 4.764218512 | AP112: =VLOOKUP($B115, Fixed!$E$154:$Q$162, AP99 + 1, FALSE) -> 16.52152927 | AQ112: =VLOOKUP($B115, Fixed!$E$154:$Q$162, AQ99 + 1, FALSE) -> 26.66519031 | AR112: =VLOOKUP($B115, Fixed!$E$154:$Q$162, AR99 + 1, FALSE) -> 20.62675242 | AS112: =VLOOKUP($B115, Fixed!$E$154:$Q$162, AS99 + 1, FALSE) -> 8.810195405 | AT112: =VLOOKUP($B115, Fixed!$E$154:$Q$162, AT99 + 1, FALSE) -> 3.712870005 | AU112: =VLOOKUP($B115, Fixed!$E$154:$Q$162, AU99 + 1, FALSE) -> 3.008878554 | AV112: =VLOOKUP($B115, Fixed!$E$154:$Q$162, AV99 + 1, FALSE) -> 1.926644697 | AW112: =VLOOKUP($B115, Fixed!$E$154:$Q$162, AW99 + 1, FALSE) -> 1.337736621
A113: g normaal | B113: =Sim!J$40 -> 0.52 | AK113: I dif, unshad | AL113: =AL$102*$M114*((1+COS(RADIANS($B114)))/2) -> 18.2115 | AM113: 29.3585 | AN113: 55.0605 | AO113: 77.816 | AP113: 104.1925 | AQ113: 105.8255 | AR113: 108.559 | AS113: 94.6785 | AT113: 65.178 | AU113: 41.9965 | AV113: 21.4775 | AW113: 14.271
A114: helling (θ) | B114: 90 | C114: ° | L114: cm | M114: =VLOOKUP(B115, Fixed!$E$177:$F$184, 2, FALSE) -> 0.71 | AK114: I refl, unshad | AL114: =0.2*AL$101*((1-COS(RADIANS($B114)))/2) -> 7.14 | AM114: 12.7 | AN114: 24.55 | AO114: 37.15 | AP114: 51 | AQ114: 53.24 | AR114: 51.78 | AS114: 45.64 | AT114: 32.62 | AU114: 19.42 | AV114: 8.96 | AW114: 5.47
A115: oriëntatie (Φ) venster voor | B115: =VLOOKUP($B$106, Lists!$F$57:$K$64, 1, FALSE) -> 180 | C115: ° | F115: noord = 180° / oost = -90° / zuid = 0° / west = 90°
A116: zonwering (Fc) | B116: =Sim!J$63 -> 1 | D116: BV 7.10.3.4 | E116: 0.5 | F116: buitenzonwering | AK116: I unshad | AL116: =SUM(AL112:AL114) -> 26.88647591 | AM116: =SUM(AM112:AM114) -> 44.05790907 | AN116: 82.11880088 | AO116: 119.7302185 | AP116: 171.7140293 | AQ116: 185.7306903 | AR116: 180.9657524 | AS116: 149.1286954 | AT116: 101.51087 | AU116: 64.42537855 | AV116: 32.3641447 | AW116: 21.07873662
A117: oppervlakte met zonwering | B117: =IF( AND( NOT(B116 = 1), B115 >= -120, B115 <= 120), B110, 0) -> 0 | C117: m² | E117: 0.6 | F117: ongeventileerde tussenzonwering | AK117: I shad, heat | AL117: =AL116*0.6 -> 16.13188555 | AM117: =AM116*0.6 -> 26.43474544 | AN117: 49.27128053 | AO117: 71.83813111 | AP117: 103.0284176 | AQ117: 111.4384142 | AR117: 108.5794515 | AS117: 89.47721724 | AT117: 60.906522 | AU117: 38.65522713 | AV117: 19.41848682 | AW117: 12.64724197
A118: bediending | B118: =IF( NOT(B116 = 1), Sim!J$69, "NA") -> NA | E118: 0.9 | F118: binnenzonwering | AK118: I shad, cool | AL118: =AL116*0.8*1.1 -> 23.6600988 | AM118: 38.77095999 | AN118: 72.26454478 | AO118: 105.3625923 | AP118: 151.1083458 | AQ118: 163.4430075 | AR118: 159.2498621 | AS118: 131.233252 | AT118: 89.3295656 | AU118: 56.69433313 | AV118: 28.48044733 | AW118: 18.54928823
E119: 1 | F119: andere gevallen
A120: zonwering ac, heat | B120: 0.4 | D120: BVI 5.7 | E120: 1 | F120: vaste zonwering
E121: 0.4 | F121: andere gevallen | AK121: Q s, heat | AL121: =0.95*(0.9*($B120*$B116+(1-$B120))*$B113)*$B111*AL117 -> 0 | AM121: 0 | AN121: 0 | AO121: 0 | AP121: 0 | AQ121: 0 | AR121: 0 | AS121: 0 | AT121: 0 | AU121: 0 | AV121: 0 | AW121: 0
A122: zonwering ac, cool | B122: =IF( B118 = "manual", IF( B$360 = "ja", 0.4, 0.5), IF(B118 = "automatic", 0.7, 1)) -> 1 | D122: BVI 5.7 | E122: 1 | F122: vaste zonwering | AK122: Q s, cool | AL122: =0.95*(0.9*($B122*$B116+(1-$B122))*$B113)*$B111*AL118 -> 0 | AM122: 0 | AN122: 0 | AO122: 0 | AP122: 0 | AQ122: 0 | AR122: 0 | AS122: 0 | AT122: 0 | AU122: 0 | AV122: 0 | AW122: 0
E123: 0.4 | F123: handbediend + koelinstallatie aanwezig
A124: lengte bouwknoop gevel-raam | B124: =(B110^ (1/2)) * 4 -> 0 | C124: m | E124: 0.5 | F124: handbediend + geen koelinstallatie aanwezig
E125: 0.6 | F125: automatische zonwering
E126: 0.7 | F126: automatische zonwering altijd gesloten als gebouw niet in gebruik is
A128: VENSTER ACHTER | AJ128: =A128 -> VENSTER ACHTER
A129: referentie oppervlakte venster | C129: m²
A130: oppervlakte venster achter | B130: =B$105 * B129 -> 0 | C130: m²
A131: oppervlakte glas | B131: =B130 * 0.7 -> 0 | C131: m²
A132: U-waarde venster | B132: =Sim!J$39 -> 1.91 | C132: W/m²K | D132: TR | E132: U = 0.3*U profiel + 0.7*U glas (+3*phi afstandhouder) | AK132: I dir, unshad | AL132: =VLOOKUP($B135, Fixed!$E$154:$Q$162, AL99 + 1, FALSE) -> 74.25299673 | AM132: =VLOOKUP($B135, Fixed!$E$154:$Q$162, AM99 + 1, FALSE) -> 102.5609744 | AN132: =VLOOKUP($B135, Fixed!$E$154:$Q$162, AN99 + 1, FALSE) -> 127.0029283 | AO132: =VLOOKUP($B135, Fixed!$E$154:$Q$162, AO99 + 1, FALSE) -> 118.8453207 | AP132: =VLOOKUP($B135, Fixed!$E$154:$Q$162, AP99 + 1, FALSE) -> 100.3341592 | AQ132: =VLOOKUP($B135, Fixed!$E$154:$Q$162, AQ99 + 1, FALSE) -> 81.62892212 | AR132: =VLOOKUP($B135, Fixed!$E$154:$Q$162, AR99 + 1, FALSE) -> 82.75687089 | AS132: =VLOOKUP($B135, Fixed!$E$154:$Q$162, AS99 + 1, FALSE) -> 116.5520946 | AT132: =VLOOKUP($B135, Fixed!$E$154:$Q$162, AT99 + 1, FALSE) -> 156.8112966 | AU132: =VLOOKUP($B135, Fixed!$E$154:$Q$162, AU99 + 1, FALSE) -> 145.6066762 | AV132: =VLOOKUP($B135, Fixed!$E$154:$Q$162, AV99 + 1, FALSE) -> 94.0858546 | AW132: =VLOOKUP($B135, Fixed!$E$154:$Q$162, AW99 + 1, FALSE) -> 62.0508961
A133: g normaal | B133: =Sim!J$40 -> 0.52 | AK133: I dif, unshad | AL133: =AL$102*$M134*((1+COS(RADIANS($B134)))/2) -> 27.189 | AM133: 43.831 | AN133: 82.203 | AO133: 116.176 | AP133: 155.555 | AQ133: 157.993 | AR133: 162.074 | AS133: 141.351 | AT133: 97.308 | AU133: 62.699 | AV133: 32.065 | AW133: 21.306
A134: helling (θ) | B134: 90 | C134: ° | L134: cm | M134: =VLOOKUP(B135, Fixed!$E$177:$F$184, 2, FALSE) -> 1.06 | AK134: I refl, unshad | AL134: =0.2*AL$101*((1-COS(RADIANS($B134)))/2) -> 7.14 | AM134: 12.7 | AN134: 24.55 | AO134: 37.15 | AP134: 51 | AQ134: 53.24 | AR134: 51.78 | AS134: 45.64 | AT134: 32.62 | AU134: 19.42 | AV134: 8.96 | AW134: 5.47
A135: oriëntatie (Φ) venster achter | B135: =VLOOKUP($B$106, Lists!$F$57:$K$64, 5, FALSE) -> 0 | C135: ° | F135: noord = 180° / oost = -90° / zuid = 0° / west = 90°
A136: zonwering (Fc) | B136: =Sim!J$65 -> 1 | D136: BV 7.10.3.4 | E136: 0.5 | F136: buitenzonwering | AK136: I unshad | AL136: =SUM(AL132:AL134) -> 108.5819967 | AM136: =SUM(AM132:AM134) -> 159.0919744 | AN136: 233.7559283 | AO136: 272.1713207 | AP136: 306.8891592 | AQ136: 292.8619221 | AR136: 296.6108709 | AS136: 303.5430946 | AT136: 286.7392966 | AU136: 227.7256762 | AV136: 135.1108546 | AW136: 88.8268961
A137: oppervlakte met zonwering | B137: =IF( AND( NOT(B136 = 1), B135 >= -120, B135 <= 120), B130, 0) -> 0 | C137: m² | E137: 0.6 | F137: ongeventileerde tussenzonwering | AK137: I shad, heat | AL137: =AL136*0.6 -> 65.14919804 | AM137: 95.45518461 | AN137: 140.253557 | AO137: 163.3027924 | AP137: 184.1334955 | AQ137: 175.7171533 | AR137: 177.9665225 | AS137: 182.1258568 | AT137: 172.043578 | AU137: 136.6354057 | AV137: 81.06651276 | AW137: 53.29613766
A138: bediending | B138: =IF( NOT(B136 = 1), Sim!J$69, "NA") -> NA | E138: 0.9 | F138: binnenzonwering | AK138: I shad, cool | AL138: =AL136*0.8*1.1 -> 95.55215712 | AM138: 140.0009374 | AN138: 205.7052169 | AO138: 239.5107622 | AP138: 270.0624601 | AQ138: 257.7184915 | AR138: 261.0175664 | AS138: 267.1179233 | AT138: 252.330581 | AU138: 200.398595 | AV138: 118.8975521 | AW138: 78.16766857
E139: 1 | F139: andere gevallen
A140: zonwering ac, heat | B140: 0.4 | D140: BVI 5.7 | E140: 1 | F140: vaste zonwering
E141: 0.4 | F141: andere gevallen | AK141: Q s, heat | AL141: =0.95*(0.9*($B140*$B136+(1-$B140))*$B133)*$B131*AL137 -> 0 | AM141: 0 | AN141: 0 | AO141: 0 | AP141: 0 | AQ141: 0 | AR141: 0 | AS141: 0 | AT141: 0 | AU141: 0 | AV141: 0 | AW141: 0
A142: zonwering ac, cool | B142: =IF( B138 = "manual", IF( B$360 = "ja", 0.4, 0.5), IF(B138 = "automatic", 0.7, 1)) -> 1 | D142: BVI 5.7 | E142: 1 | F142: vaste zonwering | AK142: Q s, cool | AL142: =0.95*(0.9*($B142*$B136+(1-$B142))*$B133)*$B131*AL138 -> 0 | AM142: 0 | AN142: 0 | AO142: 0 | AP142: 0 | AQ142: 0 | AR142: 0 | AS142: 0 | AT142: 0 | AU142: 0 | AV142: 0 | AW142: 0
E143: 0.4 | F143: handbediend + koelinstallatie aanwezig
A144: lengte bouwknoop gevel-raam | B144: =(B130^ (1/2)) * 4 -> 0 | C144: m | E144: 0.5 | F144: handbediend + geen koelinstallatie aanwezig
E145: 0.6 | F145: automatische zonwering
E146: 0.7 | F146: automatische zonwering altijd gesloten als gebouw niet in gebruik is
A148: VENSTER LINKS | AJ148: =A148 -> VENSTER LINKS
A149: referentie oppervlakte venster | C149: m²
A150: oppervlakte venster links | B150: =B$105 * B149 -> 0 | C150: m²
A151: oppervlakte glas | B151: =B150 * 0.7 -> 0 | C151: m²
A152: U-waarde venster | B152: =Sim!J$39 -> 1.91 | C152: W/m²K | D152: TR | E152: U = 0.3*U profiel + 0.7*U glas (+3*phi afstandhouder) | AK152: I dir, unshad | AL152: =VLOOKUP($B155, Fixed!$E$154:$Q$162, AL99 + 1, FALSE) -> 18.01442561 | AM152: =VLOOKUP($B155, Fixed!$E$154:$Q$162, AM99 + 1, FALSE) -> 32.16832401 | AN152: =VLOOKUP($B155, Fixed!$E$154:$Q$162, AN99 + 1, FALSE) -> 56.31135024 | AO152: =VLOOKUP($B155, Fixed!$E$154:$Q$162, AO99 + 1, FALSE) -> 82.60827437 | AP152: =VLOOKUP($B155, Fixed!$E$154:$Q$162, AP99 + 1, FALSE) -> 107.024406 | AQ152: =VLOOKUP($B155, Fixed!$E$154:$Q$162, AQ99 + 1, FALSE) -> 109.4202988 | AR152: =VLOOKUP($B155, Fixed!$E$154:$Q$162, AR99 + 1, FALSE) -> 101.0548379 | AS152: =VLOOKUP($B155, Fixed!$E$154:$Q$162, AS99 + 1, FALSE) -> 97.88276916 | AT152: =VLOOKUP($B155, Fixed!$E$154:$Q$162, AT99 + 1, FALSE) -> 83.46078034 | AU152: =VLOOKUP($B155, Fixed!$E$154:$Q$162, AU99 + 1, FALSE) -> 52.63107119 | AV152: =VLOOKUP($B155, Fixed!$E$154:$Q$162, AV99 + 1, FALSE) -> 25.31372947 | AW152: =VLOOKUP($B155, Fixed!$E$154:$Q$162, AW99 + 1, FALSE) -> 14.13986245
A153: g normaal | B153: =Sim!J$40 -> 0.52 | AK153: I dif, unshad | AL153: =AL$102*$M154*((1+COS(RADIANS($B154)))/2) -> 22.3155 | AM153: 35.9745 | AN153: 67.4685 | AO153: 95.352 | AP153: 127.6725 | AQ153: 129.6735 | AR153: 133.023 | AS153: 116.0145 | AT153: 79.866 | AU153: 51.4605 | AV153: 26.3175 | AW153: 17.487
A154: helling (θ) | B154: 90 | C154: ° | L154: cm | M154: =VLOOKUP(B155, Fixed!$E$177:$F$184, 2, FALSE) -> 0.87 | AK154: I refl, unshad | AL154: =0.2*AL$101*((1-COS(RADIANS($B154)))/2) -> 7.14 | AM154: 12.7 | AN154: 24.55 | AO154: 37.15 | AP154: 51 | AQ154: 53.24 | AR154: 51.78 | AS154: 45.64 | AT154: 32.62 | AU154: 19.42 | AV154: 8.96 | AW154: 5.47
A155: oriëntatie (Φ) venster links | B155: =VLOOKUP($B$106, Lists!$F$57:$K$64, 4, FALSE) -> -90 | C155: ° | F155: noord = 180° / oost = -90° / zuid = 0° / west = 90°
A156: zonwering (Fc) | B156: =Sim!J$64 -> 1 | D156: BV 7.10.3.4 | E156: 0.5 | F156: buitenzonwering | AK156: I unshad | AL156: =SUM(AL152:AL154) -> 47.46992561 | AM156: =SUM(AM152:AM154) -> 80.84282401 | AN156: 148.3298502 | AO156: 215.1102744 | AP156: 285.696906 | AQ156: 292.3337988 | AR156: 285.8578379 | AS156: 259.5372692 | AT156: 195.9467803 | AU156: 123.5115712 | AV156: 60.59122947 | AW156: 37.09686245
A157: oppervlakte met zonwering | B157: =IF( AND( NOT(B156 = 1), B155 >= -120, B155 <= 120), B150, 0) -> 0 | C157: m² | E157: 0.6 | F157: ongeventileerde tussenzonwering | AK157: I shad, heat | AL157: =AL156*0.6 -> 28.48195536 | AM157: 48.50569441 | AN157: 88.99791014 | AO157: 129.0661646 | AP157: 171.4181436 | AQ157: 175.4002793 | AR157: 171.5147027 | AS157: 155.7223615 | AT157: 117.5680682 | AU157: 74.10694271 | AV157: 36.35473768 | AW157: 22.25811747
A158: bediending | B158: =IF( NOT(B156 = 1), Sim!J$69, "NA") -> NA | E158: 0.9 | F158: binnenzonwering | AK158: I shad, cool | AL158: =AL156*0.8*1.1 -> 41.77353453 | AM158: 71.14168513 | AN158: 130.5302682 | AO158: 189.2970414 | AP158: 251.4132773 | AQ158: 257.253743 | AR158: 251.5548974 | AS158: 228.3927969 | AT158: 172.4331667 | AU158: 108.6901826 | AV158: 53.32028194 | AW158: 32.64523896
E159: 1 | F159: andere gevallen
A160: zonwering ac, heat | B160: 0.4 | D160: BVI 5.7 | E160: 1 | F160: vaste zonwering
E161: 0.4 | F161: andere gevallen | AK161: Q s, heat | AL161: =0.95*(0.9*($B160*$B156+(1-$B160))*$B153)*$B151*AL157 -> 0 | AM161: =0.95*(0.9*($B160*$B156+(1-$B160))*$B153)*$B151*AM157 -> 0 | AN161: 0 | AO161: 0 | AP161: 0 | AQ161: 0 | AR161: 0 | AS161: 0 | AT161: 0 | AU161: 0 | AV161: 0 | AW161: 0
A162: zonwering ac, cool | B162: =IF( B158 = "manual", IF( B$360 = "ja", 0.4, 0.5), IF(B158 = "automatic", 0.7, 1)) -> 1 | D162: BVI 5.7 | E162: 1 | F162: vaste zonwering | AK162: Q s, cool | AL162: =0.95*(0.9*($B162*$B156+(1-$B162))*$B153)*$B151*AL158 -> 0 | AM162: =0.95*(0.9*($B162*$B156+(1-$B162))*$B153)*$B151*AM158 -> 0 | AN162: 0 | AO162: 0 | AP162: 0 | AQ162: 0 | AR162: 0 | AS162: 0 | AT162: 0 | AU162: 0 | AV162: 0 | AW162: 0
E163: 0.4 | F163: handbediend + koelinstallatie aanwezig
A164: lengte bouwknoop gevel-raam | B164: =(B150^ (1/2)) * 4 -> 0 | C164: m | E164: 0.5 | F164: handbediend + geen koelinstallatie aanwezig
E165: 0.6 | F165: automatische zonwering
E166: 0.7 | F166: automatische zonwering altijd gesloten als gebouw niet in gebruik is
A168: VENSTER RECHTS | AJ168: =A168 -> VENSTER RECHTS
A169: referentie oppervlakte venster | C169: m²
A170: oppervlakte venster rechts | B170: =B$105 * B169 -> 0 | C170: m²
A171: oppervlakte glas | B171: =B170 * 0.7 -> 0 | C171: m²
A172: U-waarde venster | B172: =Sim!J$39 -> 1.91 | C172: W/m²K | D172: TR | E172: U = 0.3*U profiel + 0.7*U glas (+3*phi afstandhouder) | AK172: I dir, unshad | AL172: =VLOOKUP($B175, Fixed!$E$154:$Q$162, AL99 + 1, FALSE) -> 18.01442561 | AM172: =VLOOKUP($B175, Fixed!$E$154:$Q$162, AM99 + 1, FALSE) -> 32.16832401 | AN172: =VLOOKUP($B175, Fixed!$E$154:$Q$162, AN99 + 1, FALSE) -> 56.31135024 | AO172: =VLOOKUP($B175, Fixed!$E$154:$Q$162, AO99 + 1, FALSE) -> 82.60827437 | AP172: =VLOOKUP($B175, Fixed!$E$154:$Q$162, AP99 + 1, FALSE) -> 107.024406 | AQ172: =VLOOKUP($B175, Fixed!$E$154:$Q$162, AQ99 + 1, FALSE) -> 109.4202988 | AR172: =VLOOKUP($B175, Fixed!$E$154:$Q$162, AR99 + 1, FALSE) -> 101.0548379 | AS172: =VLOOKUP($B175, Fixed!$E$154:$Q$162, AS99 + 1, FALSE) -> 97.88276916 | AT172: =VLOOKUP($B175, Fixed!$E$154:$Q$162, AT99 + 1, FALSE) -> 83.46078034 | AU172: =VLOOKUP($B175, Fixed!$E$154:$Q$162, AU99 + 1, FALSE) -> 52.63107119 | AV172: =VLOOKUP($B175, Fixed!$E$154:$Q$162, AV99 + 1, FALSE) -> 25.31372947 | AW172: =VLOOKUP($B175, Fixed!$E$154:$Q$162, AW99 + 1, FALSE) -> 14.13986245
A173: g normaal | B173: =Sim!J$40 -> 0.52 | AK173: I dif, unshad | AL173: =AL$102*$M174*((1+COS(RADIANS($B174)))/2) -> 22.3155 | AM173: 35.9745 | AN173: 67.4685 | AO173: 95.352 | AP173: 127.6725 | AQ173: 129.6735 | AR173: 133.023 | AS173: 116.0145 | AT173: 79.866 | AU173: 51.4605 | AV173: 26.3175 | AW173: 17.487
A174: helling (θ) | B174: 90 | C174: ° | L174: cm | M174: =VLOOKUP(B175, Fixed!$E$177:$F$184, 2, FALSE) -> 0.87 | AK174: I refl, unshad | AL174: =0.2*AL$101*((1-COS(RADIANS($B174)))/2) -> 7.14 | AM174: 12.7 | AN174: 24.55 | AO174: 37.15 | AP174: 51 | AQ174: 53.24 | AR174: 51.78 | AS174: 45.64 | AT174: 32.62 | AU174: 19.42 | AV174: 8.96 | AW174: 5.47
A175: oriëntatie (Φ) venster rechts | B175: =VLOOKUP($B$106, Lists!$F$57:$K$64, 6, FALSE) -> 90 | C175: ° | F175: noord = 180° / oost = -90° / zuid = 0° / west = 90°
A176: zonwering (Fc) | B176: =Sim!J$66 -> 1 | D176: BV 7.10.3.4 | E176: 0.5 | F176: buitenzonwering | AK176: I unshad | AL176: =SUM(AL172:AL174) -> 47.46992561 | AM176: =SUM(AM172:AM174) -> 80.84282401 | AN176: 148.3298502 | AO176: 215.1102744 | AP176: 285.696906 | AQ176: 292.3337988 | AR176: 285.8578379 | AS176: 259.5372692 | AT176: 195.9467803 | AU176: 123.5115712 | AV176: 60.59122947 | AW176: 37.09686245
A177: oppervlakte met zonwering | B177: =IF( AND( NOT(B176 = 1), B175 >= -120, B175 <= 120), B170, 0) -> 0 | C177: m² | E177: 0.6 | F177: ongeventileerde tussenzonwering | AK177: I shad, heat | AL177: =AL176*0.6 -> 28.48195536 | AM177: 48.50569441 | AN177: 88.99791014 | AO177: 129.0661646 | AP177: 171.4181436 | AQ177: 175.4002793 | AR177: 171.5147027 | AS177: 155.7223615 | AT177: 117.5680682 | AU177: 74.10694271 | AV177: 36.35473768 | AW177: 22.25811747
A178: bediending | B178: =IF( NOT(B176 = 1), Sim!J$69, "NA") -> NA | E178: 0.9 | F178: binnenzonwering | AK178: I shad, cool | AL178: =AL176*0.8*1.1 -> 41.77353453 | AM178: 71.14168513 | AN178: 130.5302682 | AO178: 189.2970414 | AP178: 251.4132773 | AQ178: 257.253743 | AR178: 251.5548974 | AS178: 228.3927969 | AT178: 172.4331667 | AU178: 108.6901826 | AV178: 53.32028194 | AW178: 32.64523896
E179: 1 | F179: andere gevallen
A180: zonwering ac, heat | B180: 0.4 | D180: BVI 5.7 | E180: 1 | F180: vaste zonwering
E181: 0.4 | F181: andere gevallen | AK181: Q s, heat | AL181: =0.95*(0.9*($B180*$B176+(1-$B180))*$B173)*$B171*AL177 -> 0 | AM181: =0.95*(0.9*($B180*$B176+(1-$B180))*$B173)*$B171*AM177 -> 0 | AN181: 0 | AO181: 0 | AP181: 0 | AQ181: 0 | AR181: 0 | AS181: 0 | AT181: 0 | AU181: 0 | AV181: 0 | AW181: 0
A182: zonwering ac, cool | B182: =IF( B178 = "manual", IF( B$360 = "ja", 0.4, 0.5), IF(B178 = "automatic", 0.7, 1)) -> 1 | D182: BVI 5.7 | E182: 1 | F182: vaste zonwering | AK182: Q s, cool | AL182: =0.95*(0.9*($B182*$B176+(1-$B182))*$B173)*$B171*AL178 -> 0 | AM182: =0.95*(0.9*($B182*$B176+(1-$B182))*$B173)*$B171*AM178 -> 0 | AN182: 0 | AO182: 0 | AP182: 0 | AQ182: 0 | AR182: 0 | AS182: 0 | AT182: 0 | AU182: 0 | AV182: 0 | AW182: 0
E183: 0.4 | F183: handbediend + koelinstallatie aanwezig
A184: lengte bouwknoop gevel-raam | B184: =(B170^ (1/2)) * 4 -> 0 | C184: m | E184: 0.5 | F184: handbediend + geen koelinstallatie aanwezig
E185: 0.6 | F185: automatische zonwering
E186: 0.7 | F186: automatische zonwering altijd gesloten als gebouw niet in gebruik is
A188: DAK VENSTER 1 | AJ188: =A188 -> DAK VENSTER 1
A189: referentie oppervlakte venster | C189: m²
A190: oppervlakte venster rechts | B190: =B$105 * B189 -> 0 | C190: m²
A191: oppervlakte glas | B191: =B190 * 0.7 -> 0 | C191: m²
A192: U-waarde venster | B192: =Sim!J$39 -> 1.91 | C192: W/m²K | D192: TR | E192: U = 0.3*U profiel + 0.7*U glas (+3*phi afstandhouder) | AK192: I dir, unshad | AL192: =VLOOKUP($B195, Fixed!$E$154:$Q$162, AL119 + 1, FALSE) -> 90 | AM192: =VLOOKUP($B195, Fixed!$E$154:$Q$162, AM119 + 1, FALSE) -> 90 | AN192: =VLOOKUP($B195, Fixed!$E$154:$Q$162, AN119 + 1, FALSE) -> 90 | AO192: =VLOOKUP($B195, Fixed!$E$154:$Q$162, AO119 + 1, FALSE) -> 90 | AP192: =VLOOKUP($B195, Fixed!$E$154:$Q$162, AP119 + 1, FALSE) -> 90 | AQ192: =VLOOKUP($B195, Fixed!$E$154:$Q$162, AQ119 + 1, FALSE) -> 90 | AR192: =VLOOKUP($B195, Fixed!$E$154:$Q$162, AR119 + 1, FALSE) -> 90 | AS192: =VLOOKUP($B195, Fixed!$E$154:$Q$162, AS119 + 1, FALSE) -> 90 | AT192: =VLOOKUP($B195, Fixed!$E$154:$Q$162, AT119 + 1, FALSE) -> 90 | AU192: =VLOOKUP($B195, Fixed!$E$154:$Q$162, AU119 + 1, FALSE) -> 90 | AV192: =VLOOKUP($B195, Fixed!$E$154:$Q$162, AV119 + 1, FALSE) -> 90 | AW192: =VLOOKUP($B195, Fixed!$E$154:$Q$162, AW119 + 1, FALSE) -> 90
A193: g normaal | B193: =Sim!J$40 -> 0.52 | AK193: I dif, unshad | AL193: =AL$102*$M194*((1+COS(RADIANS($B194)))/2) -> 22.3155 | AM193: 35.9745 | AN193: 67.4685 | AO193: 95.352 | AP193: 127.6725 | AQ193: 129.6735 | AR193: 133.023 | AS193: 116.0145 | AT193: 79.866 | AU193: 51.4605 | AV193: 26.3175 | AW193: 17.487
A194: helling (θ) | B194: 90 | C194: ° | L194: cm | M194: =VLOOKUP(B195, Fixed!$E$177:$F$184, 2, FALSE) -> 0.87 | AK194: I refl, unshad | AL194: =0.2*AL$101*((1-COS(RADIANS($B194)))/2) -> 7.14 | AM194: 12.7 | AN194: 24.55 | AO194: 37.15 | AP194: 51 | AQ194: 53.24 | AR194: 51.78 | AS194: 45.64 | AT194: 32.62 | AU194: 19.42 | AV194: 8.96 | AW194: 5.47
A195: oriëntatie (Φ) dak venster 1 | B195: =VLOOKUP($B$106, Lists!$F$57:$K$64, 6, FALSE) -> 90 | C195: ° | F195: noord = 180° / oost = -90° / zuid = 0° / west = 90°
A196: zonwering (Fc) | B196: =Sim!J$66 -> 1 | D196: BV 7.10.3.4 | E196: 0.5 | F196: buitenzonwering | AK196: I unshad | AL196: =SUM(AL192:AL194) -> 119.4555 | AM196: =SUM(AM192:AM194) -> 138.6745 | AN196: 182.0185 | AO196: 222.502 | AP196: 268.6725 | AQ196: 272.9135 | AR196: 274.803 | AS196: 251.6545 | AT196: 202.486 | AU196: 160.8805 | AV196: 125.2775 | AW196: 112.957
A197: oppervlakte met zonwering | B197: =IF( AND( NOT(B196 = 1), B195 >= -120, B195 <= 120), B190, 0) -> 0 | C197: m² | E197: 0.6 | F197: ongeventileerde tussenzonwering | AK197: I shad, heat | AL197: =AL196*0.6 -> 71.6733 | AM197: 83.2047 | AN197: 109.2111 | AO197: 133.5012 | AP197: 161.2035 | AQ197: 163.7481 | AR197: 164.8818 | AS197: 150.9927 | AT197: 121.4916 | AU197: 96.5283 | AV197: 75.1665 | AW197: 67.7742
A198: bediending | B198: =IF( NOT(B196 = 1), Sim!J$69, "NA") -> NA | E198: 0.9 | F198: binnenzonwering | AK198: I shad, cool | AL198: =AL196*0.8*1.1 -> 105.12084 | AM198: 122.03356 | AN198: 160.17628 | AO198: 195.80176 | AP198: 236.4318 | AQ198: 240.16388 | AR198: 241.82664 | AS198: 221.45596 | AT198: 178.18768 | AU198: 141.57484 | AV198: 110.2442 | AW198: 99.40216
E199: 1 | F199: andere gevallen
A200: zonwering ac, heat | B200: 0.4 | D200: BVI 5.7 | E200: 1 | F200: vaste zonwering
E201: 0.4 | F201: andere gevallen | AK201: Q s, heat | AL201: =0.95*(0.9*($B200*$B196+(1-$B200))*$B193)*$B191*AL197 -> 0 | AM201: =0.95*(0.9*($B200*$B196+(1-$B200))*$B193)*$B191*AM197 -> 0 | AN201: 0 | AO201: 0 | AP201: 0 | AQ201: 0 | AR201: 0 | AS201: 0 | AT201: 0 | AU201: 0 | AV201: 0 | AW201: 0
A202: zonwering ac, cool | B202: =IF( B198 = "manual", IF( B$360 = "ja", 0.4, 0.5), IF(B198 = "automatic", 0.7, 1)) -> 1 | D202: BVI 5.7 | E202: 1 | F202: vaste zonwering | AK202: Q s, cool | AL202: =0.95*(0.9*($B202*$B196+(1-$B202))*$B193)*$B191*AL198 -> 0 | AM202: =0.95*(0.9*($B202*$B196+(1-$B202))*$B193)*$B191*AM198 -> 0 | AN202: 0 | AO202: 0 | AP202: 0 | AQ202: 0 | AR202: 0 | AS202: 0 | AT202: 0 | AU202: 0 | AV202: 0 | AW202: 0
E203: 0.4 | F203: handbediend + koelinstallatie aanwezig
A204: lengte bouwknoop gevel-raam | B204: =(B190^ (1/2)) * 4 -> 0 | C204: m | E204: 0.5 | F204: handbediend + geen koelinstallatie aanwezig
E205: 0.6 | F205: automatische zonwering
E206: 0.7 | F206: automatische zonwering altijd gesloten als gebouw niet in gebruik is
A208: DAK VENSTER 2 | AJ208: =A208 -> DAK VENSTER 2
A209: referentie oppervlakte venster | C209: m²
A210: oppervlakte venster rechts | B210: =B$105 * B209 -> 0 | C210: m²
A211: oppervlakte glas | B211: =B210 * 0.7 -> 0 | C211: m²
A212: U-waarde venster | B212: =Sim!J$39 -> 1.91 | C212: W/m²K | D212: TR | E212: U = 0.3*U profiel + 0.7*U glas (+3*phi afstandhouder) | AK212: I dir, unshad | AL212: =VLOOKUP($B215, Fixed!$E$154:$Q$162, AL139 + 1, FALSE) -> 90 | AM212: =VLOOKUP($B215, Fixed!$E$154:$Q$162, AM139 + 1, FALSE) -> 90 | AN212: =VLOOKUP($B215, Fixed!$E$154:$Q$162, AN139 + 1, FALSE) -> 90 | AO212: =VLOOKUP($B215, Fixed!$E$154:$Q$162, AO139 + 1, FALSE) -> 90 | AP212: =VLOOKUP($B215, Fixed!$E$154:$Q$162, AP139 + 1, FALSE) -> 90 | AQ212: =VLOOKUP($B215, Fixed!$E$154:$Q$162, AQ139 + 1, FALSE) -> 90 | AR212: =VLOOKUP($B215, Fixed!$E$154:$Q$162, AR139 + 1, FALSE) -> 90 | AS212: =VLOOKUP($B215, Fixed!$E$154:$Q$162, AS139 + 1, FALSE) -> 90 | AT212: =VLOOKUP($B215, Fixed!$E$154:$Q$162, AT139 + 1, FALSE) -> 90 | AU212: =VLOOKUP($B215, Fixed!$E$154:$Q$162, AU139 + 1, FALSE) -> 90 | AV212: =VLOOKUP($B215, Fixed!$E$154:$Q$162, AV139 + 1, FALSE) -> 90 | AW212: =VLOOKUP($B215, Fixed!$E$154:$Q$162, AW139 + 1, FALSE) -> 90
A213: g normaal | B213: =Sim!J$40 -> 0.52 | AK213: I dif, unshad | AL213: =AL$102*$M214*((1+COS(RADIANS($B214)))/2) -> 22.3155 | AM213: 35.9745 | AN213: 67.4685 | AO213: 95.352 | AP213: 127.6725 | AQ213: 129.6735 | AR213: 133.023 | AS213: 116.0145 | AT213: 79.866 | AU213: 51.4605 | AV213: 26.3175 | AW213: 17.487
A214: helling (θ) | B214: 90 | C214: ° | L214: cm | M214: =VLOOKUP(B215, Fixed!$E$177:$F$184, 2, FALSE) -> 0.87 | AK214: I refl, unshad | AL214: =0.2*AL$101*((1-COS(RADIANS($B214)))/2) -> 7.14 | AM214: 12.7 | AN214: 24.55 | AO214: 37.15 | AP214: 51 | AQ214: 53.24 | AR214: 51.78 | AS214: 45.64 | AT214: 32.62 | AU214: 19.42 | AV214: 8.96 | AW214: 5.47
A215: oriëntatie (Φ) dak venster 2 | B215: =VLOOKUP($B$106, Lists!$F$57:$K$64, 6, FALSE) -> 90 | C215: ° | F215: noord = 180° / oost = -90° / zuid = 0° / west = 90°
A216: zonwering (Fc) | B216: =Sim!J$66 -> 1 | D216: BV 7.10.3.4 | E216: 0.5 | F216: buitenzonwering | AK216: I unshad | AL216: =SUM(AL212:AL214) -> 119.4555 | AM216: =SUM(AM212:AM214) -> 138.6745 | AN216: 182.0185 | AO216: 222.502 | AP216: 268.6725 | AQ216: 272.9135 | AR216: 274.803 | AS216: 251.6545 | AT216: 202.486 | AU216: 160.8805 | AV216: 125.2775 | AW216: 112.957
A217: oppervlakte met zonwering | B217: =IF( AND( NOT(B216 = 1), B215 >= -120, B215 <= 120), B210, 0) -> 0 | C217: m² | E217: 0.6 | F217: ongeventileerde tussenzonwering | AK217: I shad, heat | AL217: =AL216*0.6 -> 71.6733 | AM217: 83.2047 | AN217: 109.2111 | AO217: 133.5012 | AP217: 161.2035 | AQ217: 163.7481 | AR217: 164.8818 | AS217: 150.9927 | AT217: 121.4916 | AU217: 96.5283 | AV217: 75.1665 | AW217: 67.7742
A218: bediending | B218: =IF( NOT(B216 = 1), Sim!J$69, "NA") -> NA | E218: 0.9 | F218: binnenzonwering | AK218: I shad, cool | AL218: =AL216*0.8*1.1 -> 105.12084 | AM218: 122.03356 | AN218: 160.17628 | AO218: 195.80176 | AP218: 236.4318 | AQ218: 240.16388 | AR218: 241.82664 | AS218: 221.45596 | AT218: 178.18768 | AU218: 141.57484 | AV218: 110.2442 | AW218: 99.40216
E219: 1 | F219: andere gevallen
A220: zonwering ac, heat | B220: 0.4 | D220: BVI 5.7 | E220: 1 | F220: vaste zonwering
E221: 0.4 | F221: andere gevallen | AK221: Q s, heat | AL221: =0.95*(0.9*($B220*$B216+(1-$B220))*$B213)*$B211*AL217 -> 0 | AM221: =0.95*(0.9*($B220*$B216+(1-$B220))*$B213)*$B211*AM217 -> 0 | AN221: 0 | AO221: 0 | AP221: 0 | AQ221: 0 | AR221: 0 | AS221: 0 | AT221: 0 | AU221: 0 | AV221: 0 | AW221: 0
A222: zonwering ac, cool | B222: =IF( B218 = "manual", IF( B$360 = "ja", 0.4, 0.5), IF(B218 = "automatic", 0.7, 1)) -> 1 | D222: BVI 5.7 | E222: 1 | F222: vaste zonwering | AK222: Q s, cool | AL222: =0.95*(0.9*($B222*$B216+(1-$B222))*$B213)*$B211*AL218 -> 0 | AM222: =0.95*(0.9*($B222*$B216+(1-$B222))*$B213)*$B211*AM218 -> 0 | AN222: 0 | AO222: 0 | AP222: 0 | AQ222: 0 | AR222: 0 | AS222: 0 | AT222: 0 | AU222: 0 | AV222: 0 | AW222: 0
E223: 0.4 | F223: handbediend + koelinstallatie aanwezig
A224: lengte bouwknoop gevel-raam | B224: =(B210^ (1/2)) * 4 -> 0 | C224: m | E224: 0.5 | F224: handbediend + geen koelinstallatie aanwezig
E225: 0.6 | F225: automatische zonwering
E226: 0.7 | F226: automatische zonwering altijd gesloten als gebouw niet in gebruik is
A228: GORDIJNGEVELS | AJ228: TOTAAL ZONNEWINSTEN
A230: GLASBOUWSTEENWANDEN | AK230: Q s, heat | AL230: =SUMIF($AK$112:$AK$185,$AK230,AL$112:AL$185) -> 0 | AM230: 0 | AN230: 0 | AO230: 0 | AP230: 0 | AQ230: 0 | AR230: 0 | AS230: 0 | AT230: 0 | AU230: 0 | AV230: 0 | AW230: 0
AK231: Q s, cool | AL231: 0 | AM231: 0 | AN231: 0 | AO231: 0 | AP231: 0 | AQ231: 0 | AR231: 0 | AS231: 0 | AT231: 0 | AU231: 0 | AV231: 0 | AW231: 0
A232: AANGRENZENDE ONVERWARMDE RUIMTEN (AOR)
A234: AANGRENZENDE VERWARMDE RUIMTEN (AVR)
A236: BOUWKNOPEN
A261: K-PEIL BEREKENING | B261: =$C$330 -> 0 | C261: =$A$2 -> B+
... 378 more rows

Sheet E3 (hidden)
A1: VL
A2: ='E1'!A2 -> B+
A4: ALGEMENE GEGEVENS VAN DE ENERGIESECTOR
A7: beschermd volume BV | C7: m³ | D7: BVI | I7: Ruimte 1 | J7: Ruimte 2 | K7: Ruimte 3 | L7: Ruimte 4 | M7: Ruimte 5 | N7: Ruimte 6 | O7: Ruimte 7 | P7: Ruimte 8
A8: gebruiksoppervlakte Af | B8: =SUM(I8:P8) -> 0 | C8: m² | D8: BVI
C9: m²/pers | D9: BX (Tabel 1) | E9: NBN D 50-001 tabel 1 en tabel 11 en 12 van EN 13779
A10: n design | B10: =SUM(I10:P10) -> 0 | C10: pers | D10: BVI | E10: n design: op basis van ventilatie-eisen
A11: V supply, min | B11: =SUM(I11:P11) -> 0 | C11: m³/h | D11: BVI | E11: V supply, min: op basis van ventilatie-eisen
A13: specifieke effectieve thermische warmtecapaciteit Dj | B13: 55 | C13: kJ/(m²K) | D13: BVI (Tabel 6) (waarde BVj ontstentenis = 55 kJ/(m²K)
A15: effectieve warmte capaciteit C | B15: =B8*B13 -> 0 | C15: kJ/K | D15: BVI
A18: OPBOUW VAN DE BOUWDELEN
A21: DELEN IN CONTACT MET DE GROND
A23: VLOEREN IN CONTACT MET DE GROND
A25: VLOER IN DIRECT CONTACT MET DE GROND
A26: oppervlakte | C26: m²
A27: Indicatieve U-waarde | B27: =Sim!$J$16 ->  | C27: W/m²K | D27: TR p.35 | E27: U ind = U eff * 1/(U eff + 1); U eff = 1/(0.0 + Rf + 0.17)
A29: VLOER BOVEN KELDER/KRUIPRUIMTE
A30: oppervlakte | C30: m²
A31: Indicatieve U-waarde | B31: =Fixed!A$44 -> 0 | C31: W/m²K | D31: TR p.36 | E31: U ind = U eff * b; U eff = 1/(0.17 + Rf + 0.17)
E32: b = | F32: 0.5 | G32: kelderruimte zonder buitenvenster of buitendeur
F33: 0.8 | G33: kelderruimte met buitenvenster of buitendeur
F34: 1 | G34: kruipruimte sterk geventileerd (niet luchtdicht of permanente ventilatieopeningen)
F35: 0.8 | G35: kruipruimte niet of zwak geventileerd (luchtdicht, geen of kleine ventilatieopeningen)
A37: MUREN IN CONTACT MET DE GROND
A39: MUUR INGEGRAVEN
A40: oppervlakte | C40: m²
A41: Indicatieve U-waarde | C41: W/m²K | D41: TR p.59
A43: OPAKE DELEN IN CONTACT MET DE BUITENOMGEVING
A45: referentie oppervlakte gevel + venster | C45: m²
A47: GEVELS
A49: GEVEL TYPE 1
A50: oppervlakte | C50: m²
A51: U-waarde | B51: =Sim!J$24 -> 1.643683143 | C51: W/m²K | D51: TR | E51: U = 1/(0.04 + Rf + 0.13)
A53: GEVEL TYPE 2
A54: oppervlakte | C54: m²
A55: U-waarde | B55: =Sim!J$24 -> 1.643683143 | C55: W/m²K | D55: TR | E55: U = 1/(0.04 + Rf + 0.13)
A57: GEVEL TYPE 3
A58: oppervlakte | C58: m²
A59: U-waarde | B59: =Sim!J$24 -> 1.643683143 | C59: W/m²K | D59: TR | E59: U = 1/(0.04 + Rf + 0.13)
A61: GEVEL TYPE 4
A62: oppervlakte | C62: m²
A63: U-waarde | B63: =Sim!J$24 -> 1.643683143 | C63: W/m²K | D63: TR | E63: U = 1/(0.04 + Rf + 0.13)
A65: DAKEN
A67: DAK TYPE 1
A68: oppervlakte dak | C68: m²
A69: U-waarde | B69: =Sim!$J$47 -> 2.467206252 | C69: W/m²K | D69: TR | E69: U = 1/(0.04 + Rf + 0.10) voor horizontaal of schuin (0°<= alfa <60°)
D70: =IF(B70="","",VerticaalZoeken(A70,#REF!,IF(B70="buiten",3,4),0)) ->  | E70: U = 1/(0.04 + Rf + 0.13) voor verticaal (60°<= alfa <=90°)
A72: DAK TYPE 2
A73: oppervlakte | C73: m²
A74: U-waarde | B74: =Sim!$J$47 -> 2.467206252 | C74: W/m²K | D74: TR | E74: U = 1/(0.04 + Rf + 0.10) voor horizontaal of schuin (0°<= alfa <60°)
E75: U = 1/(0.04 + Rf + 0.13) voor verticaal (60°<= alfa <=90°)
A77: DAK TYPE 3
A78: oppervlakte | C78: m²
A79: U-waarde | B79: =Sim!$J$47 -> 2.467206252 | C79: W/m²K | D79: TR | E79: U = 1/(0.04 + Rf + 0.10) voor horizontaal of schuin (0°<= alfa <60°)
E80: U = 1/(0.04 + Rf + 0.13) voor verticaal (60°<= alfa <=90°)
A82: DAK TYPE 4
A83: oppervlakte | C83: m²
A84: U-waarde | B84: =Sim!$J$47 -> 2.467206252 | C84: W/m²K | D84: TR | E84: U = 1/(0.04 + Rf + 0.10) voor horizontaal of schuin (0°<= alfa <60°)
E85: U = 1/(0.04 + Rf + 0.13) voor verticaal (60°<= alfa <=90°)
AM86: oriëntatie | AN86: (phi)
A87: VLOEREN | AM87: -180 | AN87: -157.5 | AO87: -135 | AP87: -112.5 | AQ87: -90 | AR87: -67.5 | AS87: -45 | AT87: -22.5 | AU87: 0 | AV87: 22.5 | AW87: 45 | AX87: 67.5 | AY87: 90 | AZ87: 112.5 | BA87: 135 | BB87: 157.5 | BC87: 180
AL88: index | AM88: -8 | AN88: -7 | AO88: -6 | AP88: -5 | AQ88: -4 | AR88: -3 | AS88: -2 | AT88: -1 | AU88: 0 | AV88: 1 | AW88: 2 | AX88: 3 | AY88: 4 | AZ88: 5 | BA88: 6 | BB88: 7 | BC88: 8
A89: VLOER (BOVEN BUITENOMGEVING) | AJ89: helling | AK89: 0 | AL89: 0 | AM89: 1 | AN89: 1 | AO89: 1 | AP89: 1 | AQ89: 1 | AR89: 1 | AS89: 1 | AT89: 1 | AU89: 1 | AV89: 1 | AW89: 1 | AX89: 1 | AY89: 1 | AZ89: 1 | BA89: 1 | BB89: 1 | BC89: 1
A90: oppervlakte | C90: m² | AJ90: (tèta) | AK90: 22.5 | AL90: 1 | AM90: 0.96 | AN90: 0.97 | AO90: 0.98 | AP90: 0.99 | AQ90: 1 | AR90: 1.01 | AS90: 1.02 | AT90: 1.03 | AU90: 1.03 | AV90: 1.03 | AW90: 1.02 | AX90: 1.01 | AY90: 1 | AZ90: 0.99 | BA90: 0.98 | BB90: 0.97 | BC90: 0.96
A91: U-waarde | C91: W/m²K | D91: TR | E91: U = 1/(0.04 + Rf + 0.17) | AK91: 45 | AL91: 2 | AM91: 0.92 | AN91: 0.92 | AO91: 0.94 | AP91: 0.96 | AQ91: 0.99 | AR91: 1.01 | AS91: 1.03 | AT91: 1.04 | AU91: 1.05 | AV91: 1.04 | AW91: 1.03 | AX91: 1.01 | AY91: 0.99 | AZ91: 0.96 | BA91: 0.94 | BB91: 0.92 | BC91: 0.92
AK92: 67.5 | AL92: 3 | AM92: 0.83 | AN92: 0.84 | AO92: 0.86 | AP92: 0.9 | AQ92: 0.94 | AR92: 0.99 | AS92: 1.03 | AT92: 1.05 | AU92: 1.06 | AV92: 1.05 | AW92: 1.03 | AX92: 0.99 | AY92: 0.94 | AZ92: 0.9 | BA92: 0.86 | BB92: 0.84 | BC92: 0.83
A93: DEUREN EN POORTEN | AK93: 90 | AL93: 4 | AM93: 0.71 | AN93: 0.73 | AO93: 0.76 | AP93: 0.81 | AQ93: 0.87 | AR93: 0.94 | AS93: 1 | AT93: 1.04 | AU93: 1.06 | AV93: 1.04 | AW93: 1 | AX93: 0.94 | AY93: 0.87 | AZ93: 0.81 | BA93: 0.76 | BB93: 0.73 | BC93: 0.71
AK94: 112.5 | AL94: 5 | AM94: 0.6 | AN94: 0.6 | AO94: 0.63 | AP94: 0.68 | AQ94: 0.76 | AR94: 0.85 | AS94: 0.92 | AT94: 0.97 | AU94: 0.98 | AV94: 0.97 | AW94: 0.92 | AX94: 0.85 | AY94: 0.76 | AZ94: 0.68 | BA94: 0.63 | BB94: 0.6 | BC94: 0.6
A95: DEUR OPAAK | AK95: 135 | AL95: 6 | AM95: 0.47 | AN95: 0.47 | AO95: 0.49 | AP95: 0.53 | AQ95: 0.59 | AR95: 0.67 | AS95: 0.74 | AT95: 0.78 | AU95: 0.8 | AV95: 0.78 | AW95: 0.74 | AX95: 0.67 | AY95: 0.59 | AZ95: 0.53 | BA95: 0.49 | BB95: 0.47 | BC95: 0.47
A96: oppervlakte | C96: m² | AK96: 157.5 | AL96: 7 | AM96: 0.34 | AN96: 0.4 | AO96: 0.41 | AP96: 0.43 | AQ96: 0.46 | AR96: 0.48 | AS96: 0.51 | AT96: 0.56 | AU96: 0.58 | AV96: 0.56 | AW96: 0.51 | AX96: 0.48 | AY96: 0.46 | AZ96: 0.43 | BA96: 0.41 | BB96: 0.4 | BC96: 0.34
A97: U-waarde | C97: W/m²K | AK97: 180 | AL97: 8 | AM97: 0 | AN97: 0 | AO97: 0 | AP97: 0 | AQ97: 0 | AR97: 0 | AS97: 0 | AT97: 0 | AU97: 0 | AV97: 0 | AW97: 0 | AX97: 0 | AY97: 0 | AZ97: 0 | BA97: 0 | BB97: 0 | BC97: 0
AK99: maandnummer | AL99: 1 | AM99: 2 | AN99: 3 | AO99: 4 | AP99: 5 | AQ99: 6 | AR99: 7 | AS99: 8 | AT99: 9 | AU99: 10 | AV99: 11 | AW99: 12
A100: TRANSPARANTE DELEN IN CONTACT MET DE BUITENOMGEVING | AK100: karakteristieke dag | AL100: 15 | AM100: 46 | AN100: 74 | AO100: 105 | AP100: 135 | AQ100: 166 | AR100: 196 | AS100: 227 | AT100: 258 | AU100: 288 | AV100: 319 | AW100: 349
AK101: I s, tot, hor | AL101: 71.4 | AM101: 127 | AN101: 245.5 | AO101: 371.5 | AP101: 510 | AQ101: 532.4 | AR101: 517.8 | AS101: 456.4 | AT101: 326.2 | AU101: 194.2 | AV101: 89.6 | AW101: 54.7
A102: VENSTERS | AK102: I s, dif, hor | AL102: 51.3 | AM102: 82.7 | AN102: 155.1 | AO102: 219.2 | AP102: 293.5 | AQ102: 298.1 | AR102: 305.8 | AS102: 266.7 | AT102: 183.6 | AU102: 118.3 | AV102: 60.5 | AW102: 40.2
A104: effectieve oppervlakte venster | B104: =SUM( B110, B130, B150, B170) -> 0 | C104: m²
A105: percentage vensters in gevel | B105: ='E1'!B105 -> 1 | C105: % | E105: sensitiviteit, enkel bij nieuwbouw
A106: oriëntatie gebouw | B106: ='E1'!B106 -> 180 | C106: ° | E106: nieuwbouw | F106: 0/45/90/135/180/-135/-90/-45
E107: renovatie | F107: 0/90/180/-90
A108: VENSTER VOOR | AJ108: =A108 -> VENSTER VOOR
A109: referentie oppervlakte venster | C109: m²
A110: oppervlakte venster voor | B110: =B$105 * B109 -> 0 | C110: m²
A111: oppervlakte glas | B111: =B110 * 0.7 -> 0 | C111: m²
A112: U-waarde venster | B112: =Sim!J$39 -> 1.91 | C112: W/m²K | D112: TR | E112: U = 0.3*U profiel + 0.7*U glas (+3*phi afstandhouder) | AK112: I dir, unshad | AL112: =VLOOKUP($B115, Fixed!$E$154:$Q$162, AL99 + 1, FALSE) -> 1.534975911 | AM112: =VLOOKUP($B115, Fixed!$E$154:$Q$162, AM99 + 1, FALSE) -> 1.999409075 | AN112: =VLOOKUP($B115, Fixed!$E$154:$Q$162, AN99 + 1, FALSE) -> 2.508300881 | AO112: =VLOOKUP($B115, Fixed!$E$154:$Q$162, AO99 + 1, FALSE) -> 4.764218512 | AP112: =VLOOKUP($B115, Fixed!$E$154:$Q$162, AP99 + 1, FALSE) -> 16.52152927 | AQ112: =VLOOKUP($B115, Fixed!$E$154:$Q$162, AQ99 + 1, FALSE) -> 26.66519031 | AR112: =VLOOKUP($B115, Fixed!$E$154:$Q$162, AR99 + 1, FALSE) -> 20.62675242 | AS112: =VLOOKUP($B115, Fixed!$E$154:$Q$162, AS99 + 1, FALSE) -> 8.810195405 | AT112: =VLOOKUP($B115, Fixed!$E$154:$Q$162, AT99 + 1, FALSE) -> 3.712870005 | AU112: =VLOOKUP($B115, Fixed!$E$154:$Q$162, AU99 + 1, FALSE) -> 3.008878554 | AV112: =VLOOKUP($B115, Fixed!$E$154:$Q$162, AV99 + 1, FALSE) -> 1.926644697 | AW112: =VLOOKUP($B115, Fixed!$E$154:$Q$162, AW99 + 1, FALSE) -> 1.337736621
A113: g normaal | B113: =Sim!J$40 -> 0.52 | AK113: I dif, unshad | AL113: =AL$102*$M114*((1+COS(RADIANS($B114)))/2) -> 18.2115 | AM113: 29.3585 | AN113: 55.0605 | AO113: 77.816 | AP113: 104.1925 | AQ113: 105.8255 | AR113: 108.559 | AS113: 94.6785 | AT113: 65.178 | AU113: 41.9965 | AV113: 21.4775 | AW113: 14.271
A114: helling (θ) | B114: 90 | C114: ° | L114: cm | M114: =VLOOKUP(B115, Fixed!$E$177:$F$184, 2, FALSE) -> 0.71 | AK114: I refl, unshad | AL114: =0.2*AL$101*((1-COS(RADIANS($B114)))/2) -> 7.14 | AM114: 12.7 | AN114: 24.55 | AO114: 37.15 | AP114: 51 | AQ114: 53.24 | AR114: 51.78 | AS114: 45.64 | AT114: 32.62 | AU114: 19.42 | AV114: 8.96 | AW114: 5.47
A115: oriëntatie (Φ) venster voor | B115: =VLOOKUP($B$106, Lists!$F$57:$K$64, 1, FALSE) -> 180 | C115: ° | F115: noord = 180° / oost = -90° / zuid = 0° / west = 90°
A116: zonwering (Fc) | B116: =Sim!J$63 -> 1 | D116: BV 7.10.3.4 | E116: 0.5 | F116: buitenzonwering | AK116: I unshad | AL116: =SUM(AL112:AL114) -> 26.88647591 | AM116: =SUM(AM112:AM114) -> 44.05790907 | AN116: 82.11880088 | AO116: 119.7302185 | AP116: 171.7140293 | AQ116: 185.7306903 | AR116: 180.9657524 | AS116: 149.1286954 | AT116: 101.51087 | AU116: 64.42537855 | AV116: 32.3641447 | AW116: 21.07873662
A117: oppervlakte met zonwering | B117: =IF( AND( NOT(B116 = 1), B115 >= -120, B115 <= 120), B110, 0) -> 0 | C117: m² | E117: 0.6 | F117: ongeventileerde tussenzonwering | AK117: I shad, heat | AL117: =AL116*0.6 -> 16.13188555 | AM117: =AM116*0.6 -> 26.43474544 | AN117: 49.27128053 | AO117: 71.83813111 | AP117: 103.0284176 | AQ117: 111.4384142 | AR117: 108.5794515 | AS117: 89.47721724 | AT117: 60.906522 | AU117: 38.65522713 | AV117: 19.41848682 | AW117: 12.64724197
A118: bediending | B118: =IF( NOT(B116 = 1), Sim!J$69, "NA") -> NA | E118: 0.9 | F118: binnenzonwering | AK118: I shad, cool | AL118: =AL116*0.8*1.1 -> 23.6600988 | AM118: 38.77095999 | AN118: 72.26454478 | AO118: 105.3625923 | AP118: 151.1083458 | AQ118: 163.4430075 | AR118: 159.2498621 | AS118: 131.233252 | AT118: 89.3295656 | AU118: 56.69433313 | AV118: 28.48044733 | AW118: 18.54928823
E119: 1 | F119: andere gevallen
A120: zonwering ac, heat | B120: 0.4 | D120: BVI 5.7 | E120: 1 | F120: vaste zonwering
E121: 0.4 | F121: andere gevallen | AK121: Q s, heat | AL121: =0.95*(0.9*($B120*$B116+(1-$B120))*$B113)*$B111*AL117 -> 0 | AM121: 0 | AN121: 0 | AO121: 0 | AP121: 0 | AQ121: 0 | AR121: 0 | AS121: 0 | AT121: 0 | AU121: 0 | AV121: 0 | AW121: 0
A122: zonwering ac, cool | B122: =IF( B118 = "manual", IF( B$360 = "ja", 0.4, 0.5), IF(B118 = "automatic", 0.7, 1)) -> 1 | D122: BVI 5.7 | E122: 1 | F122: vaste zonwering | AK122: Q s, cool | AL122: =0.95*(0.9*($B122*$B116+(1-$B122))*$B113)*$B111*AL118 -> 0 | AM122: 0 | AN122: 0 | AO122: 0 | AP122: 0 | AQ122: 0 | AR122: 0 | AS122: 0 | AT122: 0 | AU122: 0 | AV122: 0 | AW122: 0
E123: 0.4 | F123: handbediend + koelinstallatie aanwezig
A124: lengte bouwknoop gevel-raam | B124: =(B110^ (1/2)) * 4 -> 0 | C124: m | E124: 0.5 | F124: handbediend + geen koelinstallatie aanwezig
E125: 0.6 | F125: automatische zonwering
E126: 0.7 | F126: automatische zonwering altijd gesloten als gebouw niet in gebruik is
A128: VENSTER ACHTER | AJ128: =A128 -> VENSTER ACHTER
A129: referentie oppervlakte venster | C129: m²
A130: oppervlakte venster achter | B130: =B$105 * B129 -> 0 | C130: m²
A131: oppervlakte glas | B131: =B130 * 0.7 -> 0 | C131: m²
A132: U-waarde venster | B132: =Sim!J$39 -> 1.91 | C132: W/m²K | D132: TR | E132: U = 0.3*U profiel + 0.7*U glas (+3*phi afstandhouder) | AK132: I dir, unshad | AL132: =VLOOKUP($B135, Fixed!$E$154:$Q$162, AL99 + 1, FALSE) -> 74.25299673 | AM132: =VLOOKUP($B135, Fixed!$E$154:$Q$162, AM99 + 1, FALSE) -> 102.5609744 | AN132: =VLOOKUP($B135, Fixed!$E$154:$Q$162, AN99 + 1, FALSE) -> 127.0029283 | AO132: =VLOOKUP($B135, Fixed!$E$154:$Q$162, AO99 + 1, FALSE) -> 118.8453207 | AP132: =VLOOKUP($B135, Fixed!$E$154:$Q$162, AP99 + 1, FALSE) -> 100.3341592 | AQ132: =VLOOKUP($B135, Fixed!$E$154:$Q$162, AQ99 + 1, FALSE) -> 81.62892212 | AR132: =VLOOKUP($B135, Fixed!$E$154:$Q$162, AR99 + 1, FALSE) -> 82.75687089 | AS132: =VLOOKUP($B135, Fixed!$E$154:$Q$162, AS99 + 1, FALSE) -> 116.5520946 | AT132: =VLOOKUP($B135, Fixed!$E$154:$Q$162, AT99 + 1, FALSE) -> 156.8112966 | AU132: =VLOOKUP($B135, Fixed!$E$154:$Q$162, AU99 + 1, FALSE) -> 145.6066762 | AV132: =VLOOKUP($B135, Fixed!$E$154:$Q$162, AV99 + 1, FALSE) -> 94.0858546 | AW132: =VLOOKUP($B135, Fixed!$E$154:$Q$162, AW99 + 1, FALSE) -> 62.0508961
A133: g normaal | B133: =Sim!J$40 -> 0.52 | AK133: I dif, unshad | AL133: =AL$102*$M134*((1+COS(RADIANS($B134)))/2) -> 27.189 | AM133: 43.831 | AN133: 82.203 | AO133: 116.176 | AP133: 155.555 | AQ133: 157.993 | AR133: 162.074 | AS133: 141.351 | AT133: 97.308 | AU133: 62.699 | AV133: 32.065 | AW133: 21.306
A134: helling (θ) | B134: 90 | C134: ° | L134: cm | M134: =VLOOKUP(B135, Fixed!$E$177:$F$184, 2, FALSE) -> 1.06 | AK134: I refl, unshad | AL134: =0.2*AL$101*((1-COS(RADIANS($B134)))/2) -> 7.14 | AM134: 12.7 | AN134: 24.55 | AO134: 37.15 | AP134: 51 | AQ134: 53.24 | AR134: 51.78 | AS134: 45.64 | AT134: 32.62 | AU134: 19.42 | AV134: 8.96 | AW134: 5.47
A135: oriëntatie (Φ) venster achter | B135: =VLOOKUP($B$106, Lists!$F$57:$K$64, 5, FALSE) -> 0 | C135: ° | F135: noord = 180° / oost = -90° / zuid = 0° / west = 90°
A136: zonwering (Fc) | B136: =Sim!J$65 -> 1 | D136: BV 7.10.3.4 | E136: 0.5 | F136: buitenzonwering | AK136: I unshad | AL136: =SUM(AL132:AL134) -> 108.5819967 | AM136: =SUM(AM132:AM134) -> 159.0919744 | AN136: 233.7559283 | AO136: 272.1713207 | AP136: 306.8891592 | AQ136: 292.8619221 | AR136: 296.6108709 | AS136: 303.5430946 | AT136: 286.7392966 | AU136: 227.7256762 | AV136: 135.1108546 | AW136: 88.8268961
A137: oppervlakte met zonwering | B137: =IF( AND( NOT(B136 = 1), B135 >= -120, B135 <= 120), B130, 0) -> 0 | C137: m² | E137: 0.6 | F137: ongeventileerde tussenzonwering | AK137: I shad, heat | AL137: =AL136*0.6 -> 65.14919804 | AM137: 95.45518461 | AN137: 140.253557 | AO137: 163.3027924 | AP137: 184.1334955 | AQ137: 175.7171533 | AR137: 177.9665225 | AS137: 182.1258568 | AT137: 172.043578 | AU137: 136.6354057 | AV137: 81.06651276 | AW137: 53.29613766
A138: bediending | B138: =IF( NOT(B136 = 1), Sim!J$69, "NA") -> NA | E138: 0.9 | F138: binnenzonwering | AK138: I shad, cool | AL138: =AL136*0.8*1.1 -> 95.55215712 | AM138: 140.0009374 | AN138: 205.7052169 | AO138: 239.5107622 | AP138: 270.0624601 | AQ138: 257.7184915 | AR138: 261.0175664 | AS138: 267.1179233 | AT138: 252.330581 | AU138: 200.398595 | AV138: 118.8975521 | AW138: 78.16766857
E139: 1 | F139: andere gevallen
A140: zonwering ac, heat | B140: 0.4 | D140: BVI 5.7 | E140: 1 | F140: vaste zonwering
E141: 0.4 | F141: andere gevallen | AK141: Q s, heat | AL141: =0.95*(0.9*($B140*$B136+(1-$B140))*$B133)*$B131*AL137 -> 0 | AM141: 0 | AN141: 0 | AO141: 0 | AP141: 0 | AQ141: 0 | AR141: 0 | AS141: 0 | AT141: 0 | AU141: 0 | AV141: 0 | AW141: 0
A142: zonwering ac, cool | B142: =IF( B138 = "manual", IF( B$360 = "ja", 0.4, 0.5), IF(B138 = "automatic", 0.7, 1)) -> 1 | D142: BVI 5.7 | E142: 1 | F142: vaste zonwering | AK142: Q s, cool | AL142: =0.95*(0.9*($B142*$B136+(1-$B142))*$B133)*$B131*AL138 -> 0 | AM142: 0 | AN142: 0 | AO142: 0 | AP142: 0 | AQ142: 0 | AR142: 0 | AS142: 0 | AT142: 0 | AU142: 0 | AV142: 0 | AW142: 0
E143: 0.4 | F143: handbediend + koelinstallatie aanwezig
A144: lengte bouwknoop gevel-raam | B144: =(B130^ (1/2)) * 4 -> 0 | C144: m | E144: 0.5 | F144: handbediend + geen koelinstallatie aanwezig
E145: 0.6 | F145: automatische zonwering
E146: 0.7 | F146: automatische zonwering altijd gesloten als gebouw niet in gebruik is
A148: VENSTER LINKS | AJ148: =A148 -> VENSTER LINKS
A149: referentie oppervlakte venster | C149: m²
A150: oppervlakte venster links | B150: =B$105 * B149 -> 0 | C150: m²
A151: oppervlakte glas | B151: =B150 * 0.7 -> 0 | C151: m²
A152: U-waarde venster | B152: =Sim!J$39 -> 1.91 | C152: W/m²K | D152: TR | E152: U = 0.3*U profiel + 0.7*U glas (+3*phi afstandhouder) | AK152: I dir, unshad | AL152: =VLOOKUP($B155, Fixed!$E$154:$Q$162, AL99 + 1, FALSE) -> 18.01442561 | AM152: =VLOOKUP($B155, Fixed!$E$154:$Q$162, AM99 + 1, FALSE) -> 32.16832401 | AN152: =VLOOKUP($B155, Fixed!$E$154:$Q$162, AN99 + 1, FALSE) -> 56.31135024 | AO152: =VLOOKUP($B155, Fixed!$E$154:$Q$162, AO99 + 1, FALSE) -> 82.60827437 | AP152: =VLOOKUP($B155, Fixed!$E$154:$Q$162, AP99 + 1, FALSE) -> 107.024406 | AQ152: =VLOOKUP($B155, Fixed!$E$154:$Q$162, AQ99 + 1, FALSE) -> 109.4202988 | AR152: =VLOOKUP($B155, Fixed!$E$154:$Q$162, AR99 + 1, FALSE) -> 101.0548379 | AS152: =VLOOKUP($B155, Fixed!$E$154:$Q$162, AS99 + 1, FALSE) -> 97.88276916 | AT152: =VLOOKUP($B155, Fixed!$E$154:$Q$162, AT99 + 1, FALSE) -> 83.46078034 | AU152: =VLOOKUP($B155, Fixed!$E$154:$Q$162, AU99 + 1, FALSE) -> 52.63107119 | AV152: =VLOOKUP($B155, Fixed!$E$154:$Q$162, AV99 + 1, FALSE) -> 25.31372947 | AW152: =VLOOKUP($B155, Fixed!$E$154:$Q$162, AW99 + 1, FALSE) -> 14.13986245
A153: g normaal | B153: =Sim!J$40 -> 0.52 | AK153: I dif, unshad | AL153: =AL$102*$M154*((1+COS(RADIANS($B154)))/2) -> 22.3155 | AM153: 35.9745 | AN153: 67.4685 | AO153: 95.352 | AP153: 127.6725 | AQ153: 129.6735 | AR153: 133.023 | AS153: 116.0145 | AT153: 79.866 | AU153: 51.4605 | AV153: 26.3175 | AW153: 17.487
A154: helling (θ) | B154: 90 | C154: ° | L154: cm | M154: =VLOOKUP(B155, Fixed!$E$177:$F$184, 2, FALSE) -> 0.87 | AK154: I refl, unshad | AL154: =0.2*AL$101*((1-COS(RADIANS($B154)))/2) -> 7.14 | AM154: 12.7 | AN154: 24.55 | AO154: 37.15 | AP154: 51 | AQ154: 53.24 | AR154: 51.78 | AS154: 45.64 | AT154: 32.62 | AU154: 19.42 | AV154: 8.96 | AW154: 5.47
A155: oriëntatie (Φ) venster links | B155: =VLOOKUP($B$106, Lists!$F$57:$K$64, 4, FALSE) -> -90 | C155: ° | F155: noord = 180° / oost = -90° / zuid = 0° / west = 90°
A156: zonwering (Fc) | B156: =Sim!J$64 -> 1 | D156: BV 7.10.3.4 | E156: 0.5 | F156: buitenzonwering | AK156: I unshad | AL156: =SUM(AL152:AL154) -> 47.46992561 | AM156: =SUM(AM152:AM154) -> 80.84282401 | AN156: 148.3298502 | AO156: 215.1102744 | AP156: 285.696906 | AQ156: 292.3337988 | AR156: 285.8578379 | AS156: 259.5372692 | AT156: 195.9467803 | AU156: 123.5115712 | AV156: 60.59122947 | AW156: 37.09686245
A157: oppervlakte met zonwering | B157: =IF( AND( NOT(B156 = 1), B155 >= -120, B155 <= 120), B150, 0) -> 0 | C157: m² | E157: 0.6 | F157: ongeventileerde tussenzonwering | AK157: I shad, heat | AL157: =AL156*0.6 -> 28.48195536 | AM157: 48.50569441 | AN157: 88.99791014 | AO157: 129.0661646 | AP157: 171.4181436 | AQ157: 175.4002793 | AR157: 171.5147027 | AS157: 155.7223615 | AT157: 117.5680682 | AU157: 74.10694271 | AV157: 36.35473768 | AW157: 22.25811747
A158: bediending | B158: =IF( NOT(B156 = 1), Sim!J$69, "NA") -> NA | E158: 0.9 | F158: binnenzonwering | AK158: I shad, cool | AL158: =AL156*0.8*1.1 -> 41.77353453 | AM158: 71.14168513 | AN158: 130.5302682 | AO158: 189.2970414 | AP158: 251.4132773 | AQ158: 257.253743 | AR158: 251.5548974 | AS158: 228.3927969 | AT158: 172.4331667 | AU158: 108.6901826 | AV158: 53.32028194 | AW158: 32.64523896
E159: 1 | F159: andere gevallen
A160: zonwering ac, heat | B160: 0.4 | D160: BVI 5.7 | E160: 1 | F160: vaste zonwering
E161: 0.4 | F161: andere gevallen | AK161: Q s, heat | AL161: =0.95*(0.9*($B160*$B156+(1-$B160))*$B153)*$B151*AL157 -> 0 | AM161: =0.95*(0.9*($B160*$B156+(1-$B160))*$B153)*$B151*AM157 -> 0 | AN161: 0 | AO161: 0 | AP161: 0 | AQ161: 0 | AR161: 0 | AS161: 0 | AT161: 0 | AU161: 0 | AV161: 0 | AW161: 0
A162: zonwering ac, cool | B162: =IF( B158 = "manual", IF( B$360 = "ja", 0.4, 0.5), IF(B158 = "automatic", 0.7, 1)) -> 1 | D162: BVI 5.7 | E162: 1 | F162: vaste zonwering | AK162: Q s, cool | AL162: =0.95*(0.9*($B162*$B156+(1-$B162))*$B153)*$B151*AL158 -> 0 | AM162: =0.95*(0.9*($B162*$B156+(1-$B162))*$B153)*$B151*AM158 -> 0 | AN162: 0 | AO162: 0 | AP162: 0 | AQ162: 0 | AR162: 0 | AS162: 0 | AT162: 0 | AU162: 0 | AV162: 0 | AW162: 0
E163: 0.4 | F163: handbediend + koelinstallatie aanwezig
A164: lengte bouwknoop gevel-raam | B164: =(B150^ (1/2)) * 4 -> 0 | C164: m | E164: 0.5 | F164: handbediend + geen koelinstallatie aanwezig
E165: 0.6 | F165: automatische zonwering
E166: 0.7 | F166: automatische zonwering altijd gesloten als gebouw niet in gebruik is
A168: VENSTER RECHTS | AJ168: =A168 -> VENSTER RECHTS
A169: referentie oppervlakte venster | C169: m²
A170: oppervlakte venster rechts | B170: =B$105 * B169 -> 0 | C170: m²
A171: oppervlakte glas | B171: =B170 * 0.7 -> 0 | C171: m²
A172: U-waarde venster | B172: =Sim!J$39 -> 1.91 | C172: W/m²K | D172: TR | E172: U = 0.3*U profiel + 0.7*U glas (+3*phi afstandhouder) | AK172: I dir, unshad | AL172: =VLOOKUP($B175, Fixed!$E$154:$Q$162, AL99 + 1, FALSE) -> 18.01442561 | AM172: =VLOOKUP($B175, Fixed!$E$154:$Q$162, AM99 + 1, FALSE) -> 32.16832401 | AN172: =VLOOKUP($B175, Fixed!$E$154:$Q$162, AN99 + 1, FALSE) -> 56.31135024 | AO172: =VLOOKUP($B175, Fixed!$E$154:$Q$162, AO99 + 1, FALSE) -> 82.60827437 | AP172: =VLOOKUP($B175, Fixed!$E$154:$Q$162, AP99 + 1, FALSE) -> 107.024406 | AQ172: =VLOOKUP($B175, Fixed!$E$154:$Q$162, AQ99 + 1, FALSE) -> 109.4202988 | AR172: =VLOOKUP($B175, Fixed!$E$154:$Q$162, AR99 + 1, FALSE) -> 101.0548379 | AS172: =VLOOKUP($B175, Fixed!$E$154:$Q$162, AS99 + 1, FALSE) -> 97.88276916 | AT172: =VLOOKUP($B175, Fixed!$E$154:$Q$162, AT99 + 1, FALSE) -> 83.46078034 | AU172: =VLOOKUP($B175, Fixed!$E$154:$Q$162, AU99 + 1, FALSE) -> 52.63107119 | AV172: =VLOOKUP($B175, Fixed!$E$154:$Q$162, AV99 + 1, FALSE) -> 25.31372947 | AW172: =VLOOKUP($B175, Fixed!$E$154:$Q$162, AW99 + 1, FALSE) -> 14.13986245
A173: g normaal | B173: =Sim!J$40 -> 0.52 | AK173: I dif, unshad | AL173: =AL$102*$M174*((1+COS(RADIANS($B174)))/2) -> 22.3155 | AM173: 35.9745 | AN173: 67.4685 | AO173: 95.352 | AP173: 127.6725 | AQ173: 129.6735 | AR173: 133.023 | AS173: 116.0145 | AT173: 79.866 | AU173: 51.4605 | AV173: 26.3175 | AW173: 17.487
A174: helling (θ) | B174: 90 | C174: ° | L174: cm | M174: =VLOOKUP(B175, Fixed!$E$177:$F$184, 2, FALSE) -> 0.87 | AK174: I refl, unshad | AL174: =0.2*AL$101*((1-COS(RADIANS($B174)))/2) -> 7.14 | AM174: 12.7 | AN174: 24.55 | AO174: 37.15 | AP174: 51 | AQ174: 53.24 | AR174: 51.78 | AS174: 45.64 | AT174: 32.62 | AU174: 19.42 | AV174: 8.96 | AW174: 5.47
A175: oriëntatie (Φ) venster rechts | B175: =VLOOKUP($B$106, Lists!$F$57:$K$64, 6, FALSE) -> 90 | C175: ° | F175: noord = 180° / oost = -90° / zuid = 0° / west = 90°
A176: zonwering (Fc) | B176: =Sim!J$66 -> 1 | D176: BV 7.10.3.4 | E176: 0.5 | F176: buitenzonwering | AK176: I unshad | AL176: =SUM(AL172:AL174) -> 47.46992561 | AM176: =SUM(AM172:AM174) -> 80.84282401 | AN176: 148.3298502 | AO176: 215.1102744 | AP176: 285.696906 | AQ176: 292.3337988 | AR176: 285.8578379 | AS176: 259.5372692 | AT176: 195.9467803 | AU176: 123.5115712 | AV176: 60.59122947 | AW176: 37.09686245
A177: oppervlakte met zonwering | B177: =IF( AND( NOT(B176 = 1), B175 >= -120, B175 <= 120), B170, 0) -> 0 | C177: m² | E177: 0.6 | F177: ongeventileerde tussenzonwering | AK177: I shad, heat | AL177: =AL176*0.6 -> 28.48195536 | AM177: 48.50569441 | AN177: 88.99791014 | AO177: 129.0661646 | AP177: 171.4181436 | AQ177: 175.4002793 | AR177: 171.5147027 | AS177: 155.7223615 | AT177: 117.5680682 | AU177: 74.10694271 | AV177: 36.35473768 | AW177: 22.25811747
A178: bediending | B178: =IF( NOT(B176 = 1), Sim!J$69, "NA") -> NA | E178: 0.9 | F178: binnenzonwering | AK178: I shad, cool | AL178: =AL176*0.8*1.1 -> 41.77353453 | AM178: 71.14168513 | AN178: 130.5302682 | AO178: 189.2970414 | AP178: 251.4132773 | AQ178: 257.253743 | AR178: 251.5548974 | AS178: 228.3927969 | AT178: 172.4331667 | AU178: 108.6901826 | AV178: 53.32028194 | AW178: 32.64523896
E179: 1 | F179: andere gevallen
A180: zonwering ac, heat | B180: 0.4 | D180: BVI 5.7 | E180: 1 | F180: vaste zonwering
E181: 0.4 | F181: andere gevallen | AK181: Q s, heat | AL181: =0.95*(0.9*($B180*$B176+(1-$B180))*$B173)*$B171*AL177 -> 0 | AM181: =0.95*(0.9*($B180*$B176+(1-$B180))*$B173)*$B171*AM177 -> 0 | AN181: 0 | AO181: 0 | AP181: 0 | AQ181: 0 | AR181: 0 | AS181: 0 | AT181: 0 | AU181: 0 | AV181: 0 | AW181: 0
A182: zonwering ac, cool | B182: =IF( B178 = "manual", IF( B$360 = "ja", 0.4, 0.5), IF(B178 = "automatic", 0.7, 1)) -> 1 | D182: BVI 5.7 | E182: 1 | F182: vaste zonwering | AK182: Q s, cool | AL182: =0.95*(0.9*($B182*$B176+(1-$B182))*$B173)*$B171*AL178 -> 0 | AM182: =0.95*(0.9*($B182*$B176+(1-$B182))*$B173)*$B171*AM178 -> 0 | AN182: 0 | AO182: 0 | AP182: 0 | AQ182: 0 | AR182: 0 | AS182: 0 | AT182: 0 | AU182: 0 | AV182: 0 | AW182: 0
E183: 0.4 | F183: handbediend + koelinstallatie aanwezig
A184: lengte bouwknoop gevel-raam | B184: =(B170^ (1/2)) * 4 -> 0 | C184: m | E184: 0.5 | F184: handbediend + geen koelinstallatie aanwezig
E185: 0.6 | F185: automatische zonwering
E186: 0.7 | F186: automatische zonwering altijd gesloten als gebouw niet in gebruik is
A188: DAK VENSTER 1 | AJ188: =A188 -> DAK VENSTER 1
A189: referentie oppervlakte venster | C189: m²
A190: oppervlakte venster rechts | B190: =B$105 * B189 -> 0 | C190: m²
A191: oppervlakte glas | B191: =B190 * 0.7 -> 0 | C191: m²
A192: U-waarde venster | B192: =Sim!J$39 -> 1.91 | C192: W/m²K | D192: TR | E192: U = 0.3*U profiel + 0.7*U glas (+3*phi afstandhouder) | AK192: I dir, unshad | AL192: =VLOOKUP($B195, Fixed!$E$154:$Q$162, AL119 + 1, FALSE) -> 90 | AM192: =VLOOKUP($B195, Fixed!$E$154:$Q$162, AM119 + 1, FALSE) -> 90 | AN192: =VLOOKUP($B195, Fixed!$E$154:$Q$162, AN119 + 1, FALSE) -> 90 | AO192: =VLOOKUP($B195, Fixed!$E$154:$Q$162, AO119 + 1, FALSE) -> 90 | AP192: =VLOOKUP($B195, Fixed!$E$154:$Q$162, AP119 + 1, FALSE) -> 90 | AQ192: =VLOOKUP($B195, Fixed!$E$154:$Q$162, AQ119 + 1, FALSE) -> 90 | AR192: =VLOOKUP($B195, Fixed!$E$154:$Q$162, AR119 + 1, FALSE) -> 90 | AS192: =VLOOKUP($B195, Fixed!$E$154:$Q$162, AS119 + 1, FALSE) -> 90 | AT192: =VLOOKUP($B195, Fixed!$E$154:$Q$162, AT119 + 1, FALSE) -> 90 | AU192: =VLOOKUP($B195, Fixed!$E$154:$Q$162, AU119 + 1, FALSE) -> 90 | AV192: =VLOOKUP($B195, Fixed!$E$154:$Q$162, AV119 + 1, FALSE) -> 90 | AW192: =VLOOKUP($B195, Fixed!$E$154:$Q$162, AW119 + 1, FALSE) -> 90
A193: g normaal | B193: =Sim!J$40 -> 0.52 | AK193: I dif, unshad | AL193: =AL$102*$M194*((1+COS(RADIANS($B194)))/2) -> 22.3155 | AM193: 35.9745 | AN193: 67.4685 | AO193: 95.352 | AP193: 127.6725 | AQ193: 129.6735 | AR193: 133.023 | AS193: 116.0145 | AT193: 79.866 | AU193: 51.4605 | AV193: 26.3175 | AW193: 17.487
A194: helling (θ) | B194: 90 | C194: ° | L194: cm | M194: =VLOOKUP(B195, Fixed!$E$177:$F$184, 2, FALSE) -> 0.87 | AK194: I refl, unshad | AL194: =0.2*AL$101*((1-COS(RADIANS($B194)))/2) -> 7.14 | AM194: 12.7 | AN194: 24.55 | AO194: 37.15 | AP194: 51 | AQ194: 53.24 | AR194: 51.78 | AS194: 45.64 | AT194: 32.62 | AU194: 19.42 | AV194: 8.96 | AW194: 5.47
A195: oriëntatie (Φ) dak venster 1 | B195: =VLOOKUP($B$106, Lists!$F$57:$K$64, 6, FALSE) -> 90 | C195: ° | F195: noord = 180° / oost = -90° / zuid = 0° / west = 90°
A196: zonwering (Fc) | B196: =Sim!J$66 -> 1 | D196: BV 7.10.3.4 | E196: 0.5 | F196: buitenzonwering | AK196: I unshad | AL196: =SUM(AL192:AL194) -> 119.4555 | AM196: =SUM(AM192:AM194) -> 138.6745 | AN196: 182.0185 | AO196: 222.502 | AP196: 268.6725 | AQ196: 272.9135 | AR196: 274.803 | AS196: 251.6545 | AT196: 202.486 | AU196: 160.8805 | AV196: 125.2775 | AW196: 112.957
A197: oppervlakte met zonwering | B197: =IF( AND( NOT(B196 = 1), B195 >= -120, B195 <= 120), B190, 0) -> 0 | C197: m² | E197: 0.6 | F197: ongeventileerde tussenzonwering | AK197: I shad, heat | AL197: =AL196*0.6 -> 71.6733 | AM197: 83.2047 | AN197: 109.2111 | AO197: 133.5012 | AP197: 161.2035 | AQ197: 163.7481 | AR197: 164.8818 | AS197: 150.9927 | AT197: 121.4916 | AU197: 96.5283 | AV197: 75.1665 | AW197: 67.7742
A198: bediending | B198: =IF( NOT(B196 = 1), Sim!J$69, "NA") -> NA | E198: 0.9 | F198: binnenzonwering | AK198: I shad, cool | AL198: =AL196*0.8*1.1 -> 105.12084 | AM198: 122.03356 | AN198: 160.17628 | AO198: 195.80176 | AP198: 236.4318 | AQ198: 240.16388 | AR198: 241.82664 | AS198: 221.45596 | AT198: 178.18768 | AU198: 141.57484 | AV198: 110.2442 | AW198: 99.40216
E199: 1 | F199: andere gevallen
A200: zonwering ac, heat | B200: 0.4 | D200: BVI 5.7 | E200: 1 | F200: vaste zonwering
E201: 0.4 | F201: andere gevallen | AK201: Q s, heat | AL201: =0.95*(0.9*($B200*$B196+(1-$B200))*$B193)*$B191*AL197 -> 0 | AM201: =0.95*(0.9*($B200*$B196+(1-$B200))*$B193)*$B191*AM197 -> 0 | AN201: 0 | AO201: 0 | AP201: 0 | AQ201: 0 | AR201: 0 | AS201: 0 | AT201: 0 | AU201: 0 | AV201: 0 | AW201: 0
A202: zonwering ac, cool | B202: =IF( B198 = "manual", IF( B$360 = "ja", 0.4, 0.5), IF(B198 = "automatic", 0.7, 1)) -> 1 | D202: BVI 5.7 | E202: 1 | F202: vaste zonwering | AK202: Q s, cool | AL202: =0.95*(0.9*($B202*$B196+(1-$B202))*$B193)*$B191*AL198 -> 0 | AM202: =0.95*(0.9*($B202*$B196+(1-$B202))*$B193)*$B191*AM198 -> 0 | AN202: 0 | AO202: 0 | AP202: 0 | AQ202: 0 | AR202: 0 | AS202: 0 | AT202: 0 | AU202: 0 | AV202: 0 | AW202: 0
E203: 0.4 | F203: handbediend + koelinstallatie aanwezig
A204: lengte bouwknoop gevel-raam | B204: =(B190^ (1/2)) * 4 -> 0 | C204: m | E204: 0.5 | F204: handbediend + geen koelinstallatie aanwezig
E205: 0.6 | F205: automatische zonwering
E206: 0.7 | F206: automatische zonwering altijd gesloten als gebouw niet in gebruik is
A208: DAK VENSTER 2 | AJ208: =A208 -> DAK VENSTER 2
A209: referentie oppervlakte venster | C209: m²
A210: oppervlakte venster rechts | B210: =B$105 * B209 -> 0 | C210: m²
A211: oppervlakte glas | B211: =B210 * 0.7 -> 0 | C211: m²
A212: U-waarde venster | B212: =Sim!J$39 -> 1.91 | C212: W/m²K | D212: TR | E212: U = 0.3*U profiel + 0.7*U glas (+3*phi afstandhouder) | AK212: I dir, unshad | AL212: =VLOOKUP($B215, Fixed!$E$154:$Q$162, AL139 + 1, FALSE) -> 90 | AM212: =VLOOKUP($B215, Fixed!$E$154:$Q$162, AM139 + 1, FALSE) -> 90 | AN212: =VLOOKUP($B215, Fixed!$E$154:$Q$162, AN139 + 1, FALSE) -> 90 | AO212: =VLOOKUP($B215, Fixed!$E$154:$Q$162, AO139 + 1, FALSE) -> 90 | AP212: =VLOOKUP($B215, Fixed!$E$154:$Q$162, AP139 + 1, FALSE) -> 90 | AQ212: =VLOOKUP($B215, Fixed!$E$154:$Q$162, AQ139 + 1, FALSE) -> 90 | AR212: =VLOOKUP($B215, Fixed!$E$154:$Q$162, AR139 + 1, FALSE) -> 90 | AS212: =VLOOKUP($B215, Fixed!$E$154:$Q$162, AS139 + 1, FALSE) -> 90 | AT212: =VLOOKUP($B215, Fixed!$E$154:$Q$162, AT139 + 1, FALSE) -> 90 | AU212: =VLOOKUP($B215, Fixed!$E$154:$Q$162, AU139 + 1, FALSE) -> 90 | AV212: =VLOOKUP($B215, Fixed!$E$154:$Q$162, AV139 + 1, FALSE) -> 90 | AW212: =VLOOKUP($B215, Fixed!$E$154:$Q$162, AW139 + 1, FALSE) -> 90
A213: g normaal | B213: =Sim!J$40 -> 0.52 | AK213: I dif, unshad | AL213: =AL$102*$M214*((1+COS(RADIANS($B214)))/2) -> 22.3155 | AM213: 35.9745 | AN213: 67.4685 | AO213: 95.352 | AP213: 127.6725 | AQ213: 129.6735 | AR213: 133.023 | AS213: 116.0145 | AT213: 79.866 | AU213: 51.4605 | AV213: 26.3175 | AW213: 17.487
A214: helling (θ) | B214: 90 | C214: ° | L214: cm | M214: =VLOOKUP(B215, Fixed!$E$177:$F$184, 2, FALSE) -> 0.87 | AK214: I refl, unshad | AL214: =0.2*AL$101*((1-COS(RADIANS($B214)))/2) -> 7.14 | AM214: 12.7 | AN214: 24.55 | AO214: 37.15 | AP214: 51 | AQ214: 53.24 | AR214: 51.78 | AS214: 45.64 | AT214: 32.62 | AU214: 19.42 | AV214: 8.96 | AW214: 5.47
A215: oriëntatie (Φ) dak venster 2 | B215: =VLOOKUP($B$106, Lists!$F$57:$K$64, 6, FALSE) -> 90 | C215: ° | F215: noord = 180° / oost = -90° / zuid = 0° / west = 90°
A216: zonwering (Fc) | B216: =Sim!J$66 -> 1 | D216: BV 7.10.3.4 | E216: 0.5 | F216: buitenzonwering | AK216: I unshad | AL216: =SUM(AL212:AL214) -> 119.4555 | AM216: =SUM(AM212:AM214) -> 138.6745 | AN216: 182.0185 | AO216: 222.502 | AP216: 268.6725 | AQ216: 272.9135 | AR216: 274.803 | AS216: 251.6545 | AT216: 202.486 | AU216: 160.8805 | AV216: 125.2775 | AW216: 112.957
A217: oppervlakte met zonwering | B217: =IF( AND( NOT(B216 = 1), B215 >= -120, B215 <= 120), B210, 0) -> 0 | C217: m² | E217: 0.6 | F217: ongeventileerde tussenzonwering | AK217: I shad, heat | AL217: =AL216*0.6 -> 71.6733 | AM217: 83.2047 | AN217: 109.2111 | AO217: 133.5012 | AP217: 161.2035 | AQ217: 163.7481 | AR217: 164.8818 | AS217: 150.9927 | AT217: 121.4916 | AU217: 96.5283 | AV217: 75.1665 | AW217: 67.7742
A218: bediending | B218: =IF( NOT(B216 = 1), Sim!J$69, "NA") -> NA | E218: 0.9 | F218: binnenzonwering | AK218: I shad, cool | AL218: =AL216*0.8*1.1 -> 105.12084 | AM218: 122.03356 | AN218: 160.17628 | AO218: 195.80176 | AP218: 236.4318 | AQ218: 240.16388 | AR218: 241.82664 | AS218: 221.45596 | AT218: 178.18768 | AU218: 141.57484 | AV218: 110.2442 | AW218: 99.40216
E219: 1 | F219: andere gevallen
A220: zonwering ac, heat | B220: 0.4 | D220: BVI 5.7 | E220: 1 | F220: vaste zonwering
E221: 0.4 | F221: andere gevallen | AK221: Q s, heat | AL221: =0.95*(0.9*($B220*$B216+(1-$B220))*$B213)*$B211*AL217 -> 0 | AM221: =0.95*(0.9*($B220*$B216+(1-$B220))*$B213)*$B211*AM217 -> 0 | AN221: 0 | AO221: 0 | AP221: 0 | AQ221: 0 | AR221: 0 | AS221: 0 | AT221: 0 | AU221: 0 | AV221: 0 | AW221: 0
A222: zonwering ac, cool | B222: =IF( B218 = "manual", IF( B$360 = "ja", 0.4, 0.5), IF(B218 = "automatic", 0.7, 1)) -> 1 | D222: BVI 5.7 | E222: 1 | F222: vaste zonwering | AK222: Q s, cool | AL222: =0.95*(0.9*($B222*$B216+(1-$B222))*$B213)*$B211*AL218 -> 0 | AM222: =0.95*(0.9*($B222*$B216+(1-$B222))*$B213)*$B211*AM218 -> 0 | AN222: 0 | AO222: 0 | AP222: 0 | AQ222: 0 | AR222: 0 | AS222: 0 | AT222: 0 | AU222: 0 | AV222: 0 | AW222: 0
E223: 0.4 | F223: handbediend + koelinstallatie aanwezig
A224: lengte bouwknoop gevel-raam | B224: =(B210^ (1/2)) * 4 -> 0 | C224: m | E224: 0.5 | F224: handbediend + geen koelinstallatie aanwezig
E225: 0.6 | F225: automatische zonwering
E226: 0.7 | F226: automatische zonwering altijd gesloten als gebouw niet in gebruik is
A228: GORDIJNGEVELS | AJ228: TOTAAL ZONNEWINSTEN
A230: GLASBOUWSTEENWANDEN | AK230: Q s, heat | AL230: =SUMIF($AK$112:$AK$185,$AK230,AL$112:AL$185) -> 0 | AM230: 0 | AN230: 0 | AO230: 0 | AP230: 0 | AQ230: 0 | AR230: 0 | AS230: 0 | AT230: 0 | AU230: 0 | AV230: 0 | AW230: 0
AK231: Q s, cool | AL231: 0 | AM231: 0 | AN231: 0 | AO231: 0 | AP231: 0 | AQ231: 0 | AR231: 0 | AS231: 0 | AT231: 0 | AU231: 0 | AV231: 0 | AW231: 0
A232: AANGRENZENDE ONVERWARMDE RUIMTEN (AOR)
A234: AANGRENZENDE VERWARMDE RUIMTEN (AVR)
A236: BOUWKNOPEN
A261: K-PEIL BEREKENING | B261: =$C$330 -> 0 | C261: =$A$2 -> B+
... 377 more rows

Sheet E4 (hidden)
A1: VL
A2: ='E1'!A2 -> B+
A4: ALGEMENE GEGEVENS VAN DE ENERGIESECTOR
A7: beschermd volume BV | C7: m³ | D7: BVI | I7: Ruimte 1 | J7: Ruimte 2 | K7: Ruimte 3 | L7: Ruimte 4 | M7: Ruimte 5 | N7: Ruimte 6 | O7: Ruimte 7 | P7: Ruimte 8
A8: gebruiksoppervlakte Af | B8: =SUM(I8:P8) -> 0 | C8: m² | D8: BVI
C9: m²/pers | D9: BX (Tabel 1) | E9: NBN D 50-001 tabel 1 en tabel 11 en 12 van EN 13779
A10: n design | B10: =SUM(I10:P10) -> 0 | C10: pers | D10: BVI | E10: n design: op basis van ventilatie-eisen
A11: V supply, min | B11: =SUM(I11:P11) -> 0 | C11: m³/h | D11: BVI | E11: V supply, min: op basis van ventilatie-eisen
A13: specifieke effectieve thermische warmtecapaciteit Dj | B13: 55 | C13: kJ/(m²K) | D13: BVI (Tabel 6) (waarde BVj ontstentenis = 55 kJ/(m²K)
A15: effectieve warmte capaciteit C | B15: =B8*B13 -> 0 | C15: kJ/K | D15: BVI
A18: OPBOUW VAN DE BOUWDELEN
A21: DELEN IN CONTACT MET DE GROND
A23: VLOEREN IN CONTACT MET DE GROND
A25: VLOER IN DIRECT CONTACT MET DE GROND
A26: oppervlakte | C26: m²
A27: Indicatieve U-waarde | B27: =Sim!$J$16 ->  | C27: W/m²K | D27: TR p.35 | E27: U ind = U eff * 1/(U eff + 1); U eff = 1/(0.0 + Rf + 0.17)
A29: VLOER BOVEN KELDER/KRUIPRUIMTE
A30: oppervlakte | C30: m²
A31: Indicatieve U-waarde | B31: =Fixed!A$44 -> 0 | C31: W/m²K | D31: TR p.36 | E31: U ind = U eff * b; U eff = 1/(0.17 + Rf + 0.17)
E32: b = | F32: 0.5 | G32: kelderruimte zonder buitenvenster of buitendeur
F33: 0.8 | G33: kelderruimte met buitenvenster of buitendeur
F34: 1 | G34: kruipruimte sterk geventileerd (niet luchtdicht of permanente ventilatieopeningen)
F35: 0.8 | G35: kruipruimte niet of zwak geventileerd (luchtdicht, geen of kleine ventilatieopeningen)
A37: MUREN IN CONTACT MET DE GROND
A39: MUUR INGEGRAVEN
A40: oppervlakte | C40: m²
A41: Indicatieve U-waarde | C41: W/m²K | D41: TR p.59
A43: OPAKE DELEN IN CONTACT MET DE BUITENOMGEVING
A45: referentie oppervlakte gevel + venster | C45: m²
A47: GEVELS
A49: GEVEL TYPE 1
A50: oppervlakte | C50: m²
A51: U-waarde | B51: =Sim!J$24 -> 1.643683143 | C51: W/m²K | D51: TR | E51: U = 1/(0.04 + Rf + 0.13)
A53: GEVEL TYPE 2
A54: oppervlakte | C54: m²
A55: U-waarde | B55: =Sim!J$24 -> 1.643683143 | C55: W/m²K | D55: TR | E55: U = 1/(0.04 + Rf + 0.13)
A57: GEVEL TYPE 3
A58: oppervlakte | C58: m²
A59: U-waarde | B59: =Sim!J$24 -> 1.643683143 | C59: W/m²K | D59: TR | E59: U = 1/(0.04 + Rf + 0.13)
A61: GEVEL TYPE 4
A62: oppervlakte | C62: m²
A63: U-waarde | B63: =Sim!J$24 -> 1.643683143 | C63: W/m²K | D63: TR | E63: U = 1/(0.04 + Rf + 0.13)
A65: DAKEN
A67: DAK TYPE 1
A68: oppervlakte dak | C68: m²
A69: U-waarde | B69: =Sim!$J$47 -> 2.467206252 | C69: W/m²K | D69: TR | E69: U = 1/(0.04 + Rf + 0.10) voor horizontaal of schuin (0°<= alfa <60°)
D70: =IF(B70="","",VerticaalZoeken(A70,#REF!,IF(B70="buiten",3,4),0)) ->  | E70: U = 1/(0.04 + Rf + 0.13) voor verticaal (60°<= alfa <=90°)
A72: DAK TYPE 2
A73: oppervlakte | C73: m²
A74: U-waarde | B74: =Sim!$J$47 -> 2.467206252 | C74: W/m²K | D74: TR | E74: U = 1/(0.04 + Rf + 0.10) voor horizontaal of schuin (0°<= alfa <60°)
E75: U = 1/(0.04 + Rf + 0.13) voor verticaal (60°<= alfa <=90°)
A77: DAK TYPE 3
A78: oppervlakte | C78: m²
A79: U-waarde | B79: =Sim!$J$47 -> 2.467206252 | C79: W/m²K | D79: TR | E79: U = 1/(0.04 + Rf + 0.10) voor horizontaal of schuin (0°<= alfa <60°)
E80: U = 1/(0.04 + Rf + 0.13) voor verticaal (60°<= alfa <=90°)
A82: DAK TYPE 4
A83: oppervlakte | C83: m²
A84: U-waarde | B84: =Sim!$J$47 -> 2.467206252 | C84: W/m²K | D84: TR | E84: U = 1/(0.04 + Rf + 0.10) voor horizontaal of schuin (0°<= alfa <60°)
E85: U = 1/(0.04 + Rf + 0.13) voor verticaal (60°<= alfa <=90°)
AM86: oriëntatie | AN86: (phi)
A87: VLOEREN | AM87: -180 | AN87: -157.5 | AO87: -135 | AP87: -112.5 | AQ87: -90 | AR87: -67.5 | AS87: -45 | AT87: -22.5 | AU87: 0 | AV87: 22.5 | AW87: 45 | AX87: 67.5 | AY87: 90 | AZ87: 112.5 | BA87: 135 | BB87: 157.5 | BC87: 180
AL88: index | AM88: -8 | AN88: -7 | AO88: -6 | AP88: -5 | AQ88: -4 | AR88: -3 | AS88: -2 | AT88: -1 | AU88: 0 | AV88: 1 | AW88: 2 | AX88: 3 | AY88: 4 | AZ88: 5 | BA88: 6 | BB88: 7 | BC88: 8
A89: VLOER (BOVEN BUITENOMGEVING) | AJ89: helling | AK89: 0 | AL89: 0 | AM89: 1 | AN89: 1 | AO89: 1 | AP89: 1 | AQ89: 1 | AR89: 1 | AS89: 1 | AT89: 1 | AU89: 1 | AV89: 1 | AW89: 1 | AX89: 1 | AY89: 1 | AZ89: 1 | BA89: 1 | BB89: 1 | BC89: 1
A90: oppervlakte | C90: m² | AJ90: (tèta) | AK90: 22.5 | AL90: 1 | AM90: 0.96 | AN90: 0.97 | AO90: 0.98 | AP90: 0.99 | AQ90: 1 | AR90: 1.01 | AS90: 1.02 | AT90: 1.03 | AU90: 1.03 | AV90: 1.03 | AW90: 1.02 | AX90: 1.01 | AY90: 1 | AZ90: 0.99 | BA90: 0.98 | BB90: 0.97 | BC90: 0.96
A91: U-waarde | C91: W/m²K | D91: TR | E91: U = 1/(0.04 + Rf + 0.17) | AK91: 45 | AL91: 2 | AM91: 0.92 | AN91: 0.92 | AO91: 0.94 | AP91: 0.96 | AQ91: 0.99 | AR91: 1.01 | AS91: 1.03 | AT91: 1.04 | AU91: 1.05 | AV91: 1.04 | AW91: 1.03 | AX91: 1.01 | AY91: 0.99 | AZ91: 0.96 | BA91: 0.94 | BB91: 0.92 | BC91: 0.92
AK92: 67.5 | AL92: 3 | AM92: 0.83 | AN92: 0.84 | AO92: 0.86 | AP92: 0.9 | AQ92: 0.94 | AR92: 0.99 | AS92: 1.03 | AT92: 1.05 | AU92: 1.06 | AV92: 1.05 | AW92: 1.03 | AX92: 0.99 | AY92: 0.94 | AZ92: 0.9 | BA92: 0.86 | BB92: 0.84 | BC92: 0.83
A93: DEUREN EN POORTEN | AK93: 90 | AL93: 4 | AM93: 0.71 | AN93: 0.73 | AO93: 0.76 | AP93: 0.81 | AQ93: 0.87 | AR93: 0.94 | AS93: 1 | AT93: 1.04 | AU93: 1.06 | AV93: 1.04 | AW93: 1 | AX93: 0.94 | AY93: 0.87 | AZ93: 0.81 | BA93: 0.76 | BB93: 0.73 | BC93: 0.71
AK94: 112.5 | AL94: 5 | AM94: 0.6 | AN94: 0.6 | AO94: 0.63 | AP94: 0.68 | AQ94: 0.76 | AR94: 0.85 | AS94: 0.92 | AT94: 0.97 | AU94: 0.98 | AV94: 0.97 | AW94: 0.92 | AX94: 0.85 | AY94: 0.76 | AZ94: 0.68 | BA94: 0.63 | BB94: 0.6 | BC94: 0.6
A95: DEUR OPAAK | AK95: 135 | AL95: 6 | AM95: 0.47 | AN95: 0.47 | AO95: 0.49 | AP95: 0.53 | AQ95: 0.59 | AR95: 0.67 | AS95: 0.74 | AT95: 0.78 | AU95: 0.8 | AV95: 0.78 | AW95: 0.74 | AX95: 0.67 | AY95: 0.59 | AZ95: 0.53 | BA95: 0.49 | BB95: 0.47 | BC95: 0.47
A96: oppervlakte | C96: m² | AK96: 157.5 | AL96: 7 | AM96: 0.34 | AN96: 0.4 | AO96: 0.41 | AP96: 0.43 | AQ96: 0.46 | AR96: 0.48 | AS96: 0.51 | AT96: 0.56 | AU96: 0.58 | AV96: 0.56 | AW96: 0.51 | AX96: 0.48 | AY96: 0.46 | AZ96: 0.43 | BA96: 0.41 | BB96: 0.4 | BC96: 0.34
A97: U-waarde | C97: W/m²K | AK97: 180 | AL97: 8 | AM97: 0 | AN97: 0 | AO97: 0 | AP97: 0 | AQ97: 0 | AR97: 0 | AS97: 0 | AT97: 0 | AU97: 0 | AV97: 0 | AW97: 0 | AX97: 0 | AY97: 0 | AZ97: 0 | BA97: 0 | BB97: 0 | BC97: 0
AK99: maandnummer | AL99: 1 | AM99: 2 | AN99: 3 | AO99: 4 | AP99: 5 | AQ99: 6 | AR99: 7 | AS99: 8 | AT99: 9 | AU99: 10 | AV99: 11 | AW99: 12
A100: TRANSPARANTE DELEN IN CONTACT MET DE BUITENOMGEVING | AK100: karakteristieke dag | AL100: 15 | AM100: 46 | AN100: 74 | AO100: 105 | AP100: 135 | AQ100: 166 | AR100: 196 | AS100: 227 | AT100: 258 | AU100: 288 | AV100: 319 | AW100: 349
AK101: I s, tot, hor | AL101: 71.4 | AM101: 127 | AN101: 245.5 | AO101: 371.5 | AP101: 510 | AQ101: 532.4 | AR101: 517.8 | AS101: 456.4 | AT101: 326.2 | AU101: 194.2 | AV101: 89.6 | AW101: 54.7
A102: VENSTERS | AK102: I s, dif, hor | AL102: 51.3 | AM102: 82.7 | AN102: 155.1 | AO102: 219.2 | AP102: 293.5 | AQ102: 298.1 | AR102: 305.8 | AS102: 266.7 | AT102: 183.6 | AU102: 118.3 | AV102: 60.5 | AW102: 40.2
A104: effectieve oppervlakte venster | B104: =SUM( B110, B130, B150, B170) -> 0 | C104: m²
A105: percentage vensters in gevel | B105: ='E1'!B105 -> 1 | C105: % | E105: sensitiviteit, enkel bij nieuwbouw
A106: oriëntatie gebouw | B106: ='E1'!B106 -> 180 | C106: ° | E106: nieuwbouw | F106: 0/45/90/135/180/-135/-90/-45
E107: renovatie | F107: 0/90/180/-90
A108: VENSTER VOOR | AJ108: =A108 -> VENSTER VOOR
A109: referentie oppervlakte venster | C109: m²
A110: oppervlakte venster voor | B110: =B$105 * B109 -> 0 | C110: m²
A111: oppervlakte glas | B111: =B110 * 0.7 -> 0 | C111: m²
A112: U-waarde venster | B112: =Sim!J$39 -> 1.91 | C112: W/m²K | D112: TR | E112: U = 0.3*U profiel + 0.7*U glas (+3*phi afstandhouder) | AK112: I dir, unshad | AL112: =VLOOKUP($B115, Fixed!$E$154:$Q$162, AL99 + 1, FALSE) -> 1.534975911 | AM112: =VLOOKUP($B115, Fixed!$E$154:$Q$162, AM99 + 1, FALSE) -> 1.999409075 | AN112: =VLOOKUP($B115, Fixed!$E$154:$Q$162, AN99 + 1, FALSE) -> 2.508300881 | AO112: =VLOOKUP($B115, Fixed!$E$154:$Q$162, AO99 + 1, FALSE) -> 4.764218512 | AP112: =VLOOKUP($B115, Fixed!$E$154:$Q$162, AP99 + 1, FALSE) -> 16.52152927 | AQ112: =VLOOKUP($B115, Fixed!$E$154:$Q$162, AQ99 + 1, FALSE) -> 26.66519031 | AR112: =VLOOKUP($B115, Fixed!$E$154:$Q$162, AR99 + 1, FALSE) -> 20.62675242 | AS112: =VLOOKUP($B115, Fixed!$E$154:$Q$162, AS99 + 1, FALSE) -> 8.810195405 | AT112: =VLOOKUP($B115, Fixed!$E$154:$Q$162, AT99 + 1, FALSE) -> 3.712870005 | AU112: =VLOOKUP($B115, Fixed!$E$154:$Q$162, AU99 + 1, FALSE) -> 3.008878554 | AV112: =VLOOKUP($B115, Fixed!$E$154:$Q$162, AV99 + 1, FALSE) -> 1.926644697 | AW112: =VLOOKUP($B115, Fixed!$E$154:$Q$162, AW99 + 1, FALSE) -> 1.337736621
A113: g normaal | B113: =Sim!J$40 -> 0.52 | AK113: I dif, unshad | AL113: =AL$102*$M114*((1+COS(RADIANS($B114)))/2) -> 18.2115 | AM113: 29.3585 | AN113: 55.0605 | AO113: 77.816 | AP113: 104.1925 | AQ113: 105.8255 | AR113: 108.559 | AS113: 94.6785 | AT113: 65.178 | AU113: 41.9965 | AV113: 21.4775 | AW113: 14.271
A114: helling (θ) | B114: 90 | C114: ° | L114: cm | M114: =VLOOKUP(B115, Fixed!$E$177:$F$184, 2, FALSE) -> 0.71 | AK114: I refl, unshad | AL114: =0.2*AL$101*((1-COS(RADIANS($B114)))/2) -> 7.14 | AM114: 12.7 | AN114: 24.55 | AO114: 37.15 | AP114: 51 | AQ114: 53.24 | AR114: 51.78 | AS114: 45.64 | AT114: 32.62 | AU114: 19.42 | AV114: 8.96 | AW114: 5.47
A115: oriëntatie (Φ) venster voor | B115: =VLOOKUP($B$106, Lists!$F$57:$K$64, 1, FALSE) -> 180 | C115: ° | F115: noord = 180° / oost = -90° / zuid = 0° / west = 90°
A116: zonwering (Fc) | B116: =Sim!J$63 -> 1 | D116: BV 7.10.3.4 | E116: 0.5 | F116: buitenzonwering | AK116: I unshad | AL116: =SUM(AL112:AL114) -> 26.88647591 | AM116: =SUM(AM112:AM114) -> 44.05790907 | AN116: 82.11880088 | AO116: 119.7302185 | AP116: 171.7140293 | AQ116: 185.7306903 | AR116: 180.9657524 | AS116: 149.1286954 | AT116: 101.51087 | AU116: 64.42537855 | AV116: 32.3641447 | AW116: 21.07873662
A117: oppervlakte met zonwering | B117: =IF( AND( NOT(B116 = 1), B115 >= -120, B115 <= 120), B110, 0) -> 0 | C117: m² | E117: 0.6 | F117: ongeventileerde tussenzonwering | AK117: I shad, heat | AL117: =AL116*0.6 -> 16.13188555 | AM117: =AM116*0.6 -> 26.43474544 | AN117: 49.27128053 | AO117: 71.83813111 | AP117: 103.0284176 | AQ117: 111.4384142 | AR117: 108.5794515 | AS117: 89.47721724 | AT117: 60.906522 | AU117: 38.65522713 | AV117: 19.41848682 | AW117: 12.64724197
A118: bediending | B118: =IF( NOT(B116 = 1), Sim!J$69, "NA") -> NA | E118: 0.9 | F118: binnenzonwering | AK118: I shad, cool | AL118: =AL116*0.8*1.1 -> 23.6600988 | AM118: 38.77095999 | AN118: 72.26454478 | AO118: 105.3625923 | AP118: 151.1083458 | AQ118: 163.4430075 | AR118: 159.2498621 | AS118: 131.233252 | AT118: 89.3295656 | AU118: 56.69433313 | AV118: 28.48044733 | AW118: 18.54928823
E119: 1 | F119: andere gevallen
A120: zonwering ac, heat | B120: 0.4 | D120: BVI 5.7 | E120: 1 | F120: vaste zonwering
E121: 0.4 | F121: andere gevallen | AK121: Q s, heat | AL121: =0.95*(0.9*($B120*$B116+(1-$B120))*$B113)*$B111*AL117 -> 0 | AM121: 0 | AN121: 0 | AO121: 0 | AP121: 0 | AQ121: 0 | AR121: 0 | AS121: 0 | AT121: 0 | AU121: 0 | AV121: 0 | AW121: 0
A122: zonwering ac, cool | B122: =IF( B118 = "manual", IF( B$360 = "ja", 0.4, 0.5), IF(B118 = "automatic", 0.7, 1)) -> 1 | D122: BVI 5.7 | E122: 1 | F122: vaste zonwering | AK122: Q s, cool | AL122: =0.95*(0.9*($B122*$B116+(1-$B122))*$B113)*$B111*AL118 -> 0 | AM122: 0 | AN122: 0 | AO122: 0 | AP122: 0 | AQ122: 0 | AR122: 0 | AS122: 0 | AT122: 0 | AU122: 0 | AV122: 0 | AW122: 0
E123: 0.4 | F123: handbediend + koelinstallatie aanwezig
A124: lengte bouwknoop gevel-raam | B124: =(B110^ (1/2)) * 4 -> 0 | C124: m | E124: 0.5 | F124: handbediend + geen koelinstallatie aanwezig
E125: 0.6 | F125: automatische zonwering
E126: 0.7 | F126: automatische zonwering altijd gesloten als gebouw niet in gebruik is
A128: VENSTER ACHTER | AJ128: =A128 -> VENSTER ACHTER
A129: referentie oppervlakte venster | C129: m²
A130: oppervlakte venster achter | B130: =B$105 * B129 -> 0 | C130: m²
A131: oppervlakte glas | B131: =B130 * 0.7 -> 0 | C131: m²
A132: U-waarde venster | B132: =Sim!J$39 -> 1.91 | C132: W/m²K | D132: TR | E132: U = 0.3*U profiel + 0.7*U glas (+3*phi afstandhouder) | AK132: I dir, unshad | AL132: =VLOOKUP($B135, Fixed!$E$154:$Q$162, AL99 + 1, FALSE) -> 74.25299673 | AM132: =VLOOKUP($B135, Fixed!$E$154:$Q$162, AM99 + 1, FALSE) -> 102.5609744 | AN132: =VLOOKUP($B135, Fixed!$E$154:$Q$162, AN99 + 1, FALSE) -> 127.0029283 | AO132: =VLOOKUP($B135, Fixed!$E$154:$Q$162, AO99 + 1, FALSE) -> 118.8453207 | AP132: =VLOOKUP($B135, Fixed!$E$154:$Q$162, AP99 + 1, FALSE) -> 100.3341592 | AQ132: =VLOOKUP($B135, Fixed!$E$154:$Q$162, AQ99 + 1, FALSE) -> 81.62892212 | AR132: =VLOOKUP($B135, Fixed!$E$154:$Q$162, AR99 + 1, FALSE) -> 82.75687089 | AS132: =VLOOKUP($B135, Fixed!$E$154:$Q$162, AS99 + 1, FALSE) -> 116.5520946 | AT132: =VLOOKUP($B135, Fixed!$E$154:$Q$162, AT99 + 1, FALSE) -> 156.8112966 | AU132: =VLOOKUP($B135, Fixed!$E$154:$Q$162, AU99 + 1, FALSE) -> 145.6066762 | AV132: =VLOOKUP($B135, Fixed!$E$154:$Q$162, AV99 + 1, FALSE) -> 94.0858546 | AW132: =VLOOKUP($B135, Fixed!$E$154:$Q$162, AW99 + 1, FALSE) -> 62.0508961
A133: g normaal | B133: =Sim!J$40 -> 0.52 | AK133: I dif, unshad | AL133: =AL$102*$M134*((1+COS(RADIANS($B134)))/2) -> 27.189 | AM133: 43.831 | AN133: 82.203 | AO133: 116.176 | AP133: 155.555 | AQ133: 157.993 | AR133: 162.074 | AS133: 141.351 | AT133: 97.308 | AU133: 62.699 | AV133: 32.065 | AW133: 21.306
A134: helling (θ) | B134: 90 | C134: ° | L134: cm | M134: =VLOOKUP(B135, Fixed!$E$177:$F$184, 2, FALSE) -> 1.06 | AK134: I refl, unshad | AL134: =0.2*AL$101*((1-COS(RADIANS($B134)))/2) -> 7.14 | AM134: 12.7 | AN134: 24.55 | AO134: 37.15 | AP134: 51 | AQ134: 53.24 | AR134: 51.78 | AS134: 45.64 | AT134: 32.62 | AU134: 19.42 | AV134: 8.96 | AW134: 5.47
